Workbook

Sheet Ф
B2: Значение из списка | C2: Форматирование отчета | J2: Период
B3: 3 | J3: Год | K3: =qParams_Y -> 2016
B4: Выпадающий список | J4: Месяц | K4: =qParams_M -> 1
B5: Сводный
B6: Сводный с автоподбором ширины колонок
B7: Для утв плана КВ | J7: Число десятичных знаков | K7: 0
B8: План года и кварталы
B9: Краткий (КВ) помесячный | J9: Ставка НДС | K9: =IF(ISNA(O11),0.18,O11) -> 18%
B10: Для анализа ДДС на след месяц | N10: =qParams_FIRM -> ООО "Мечел-Энерго"
B11: Для утв. плана КВ (год утверждения не наступил) | N11: Текущая ставка отчета | O11: =VLOOKUP(N10,N12:O31,2,FALSE) -> 
N12: Румыния :
N13: Mechel Targoviste | O13: 24%
N14: Ductil Steel | O14: 24%
N15: Mechel Campia Turzii | O15: 24%
N16: Ремзавод Тырговиште | O16: 24%
N17: Laminorul Braila | O17: 24%
N18: Mechel Trans Ru S.R.L. | O18: 24%
N19: Казахстан :
N20: ТОО "Восход-Хром" | O20: 12%
N21: ТОО "Восход-Ориэл" | O21: 12%
N22: Болгария :
N23: "Топлофикация Русе" АД | O23: 20%
N24: США :
N25: Mechel Bluestone Inc | O25: 0%
N26: Литва :
N27: Mechel Nemunas | O27: 21%
N28: Украина:
N29: АО (частное) "ДЭМЗ" | O29: 20%
N30: Нидерланды
N31: Mechel Trans Global B.V. | O31: 19%

Sheet КВ
K1: =qParams_T -> 05.02.2016 (13:01:47) | AU1: Генеральный директор ОАО "Мечел" ____________ О.В.Коржов "____"___________
B2: Код группировки | C2: =qParams_REPORTGROUPTYPE_ID -> 14 | K2: Группа Мечел | SB2: НДС | SC2: =Ф!K9 -> 18%
K3: ="Капитальные вложения " & qParams_Y -> Капитальные вложения 2016 | L3: =qParams_FIRM -> ООО "Мечел-Энерго"
K4: тыс. без НДС )* | L4: (наименование предприятия)
B5: Код для условного форматирования строки отчета | C5: Код группировки | D5: Признак принадл. к Пуск. Програм | E5: - | F5: - | G5: код | H5: Признак принадлежности к ОВС, ПГ | I5: Признак принадлежности к Плану | J5: № | K5: Наименование | L5: Месяц и год реализации | N5: Единица измерения | O5: Проектная мощность \ количество | P5: Наличие ПСД | Q5: Сметная стоимость | V5: на начало года | AZ5: ="Источники инвестиций на " & qParams_Y -> Источники инвестиций на 2016 | BE5: С начала года | BJ5: С НАЧАЛА ГОДА | CD5: План КВ на год | QJ5: на конец года | QT5: С начала реализации (на конец отчетного периода) | RS5: Обоснование по включению новых объектов строительства)** | RT5: Остаток от плана по оплате (= план "С начала года" + план 2-х след. мес. - факт "С начала года") | RV5: Проверка | RX5: Остаток от плана года | RY5: Остаток от сметной стоим. + 10% | RZ5: Ожидаемый факт в текущем месяце | SA5: Остаток от плана по оплате (= план "С начала года" + план 2-х след. мес. - факт "С начала года") | SB5: Остаток от плана года | SC5: Остаток от сметной стоим. + 10%
L6: начало | M6: ввод в эксплуатацию | V6: Факт | AF6: Остаток сметной стоимости | AP6: Год | AZ6: План года | BE6: Факт | BJ6: План по годовой программе | BT6: Факт | CD6: I квартал | CN6: I квартал (факт) | CX6: Январь | DH6: Январь (факт) | DR6: Февраль | EB6: Февраль (факт) | EL6: Март | EV6: Март (факт) | FF6: II квартал | FP6: II квартал (факт) | FZ6: Апрель | GJ6: Апрель (факт) | GT6: Май | HD6: Май (факт) | HN6: Июнь | HX6: Июнь (факт) | IH6: I полугодие | IR6: I полугодие (факт) | JB6: III квартал | JL6: III квартал (факт) | JV6: Июль | KF6: Июль (факт) | KP6: Август | KZ6: Август (факт) | LJ6: Сентябрь | LT6: Сентябрь (факт) | MD6: 9 месяцев | MN6: 9 месяцев (факт) | MX6: IV квартал | NH6: IV квартал (факт) | NR6: Октябрь | OB6: Октябрь (факт) | OL6: Ноябрь | OV6: Ноябрь (факт) | PF6: Декабрь | PP6: Декабрь (факт) | PZ6: Остаток от плана года | QJ6: Остаток сметной стоимости | QT6: Факт | RD6: Фактический остаток сметной стоимости | RN6: Разница между освоением и оплатой | RV6: Источники инвестиций (Всего)
AZ7: Собственные средства | BA7: Привлеченные средства | BE7: Собственные средства | BF7: Привлеченные средства
V8: Освоение | AA8: Оплата | AF8: Освоение | AK8: Оплата | AP8: Освоение | AU8: Оплата | AZ8: Всего | BA8: Всего | BB8: Кредиты банка | BC8: Лизинговые схемы | BD8: Прочие средства | BE8: Всего | BF8: Всего | BG8: Кредиты банка | BH8: Лизинговые схемы | BI8: Прочие средства | BJ8: Освоение | BO8: Оплата | BT8: Освоение | BY8: Оплата | CD8: Освоение | CI8: Оплата | CN8: Освоение | CS8: Оплата | CX8: Освоение | DC8: Оплата | DH8: Освоение | DM8: Оплата | DR8: Освоение | DW8: Оплата | EB8: Освоение | EG8: Оплата | EL8: Освоение | EQ8: Оплата | EV8: Освоение | FA8: Оплата | FF8: Освоение | FK8: Оплата | FP8: Освоение | FU8: Оплата | FZ8: Освоение | GE8: Оплата | GJ8: Освоение | GO8: Оплата | GT8: Освоение | GY8: Оплата | HD8: Освоение | HI8: Оплата | HN8: Освоение | HS8: Оплата | HX8: Освоение | IC8: Оплата | IH8: Освоение | IM8: Оплата | IR8: Освоение | IW8: Оплата | JB8: Освоение | JG8: Оплата | JL8: Освоение | JQ8: Оплата | JV8: Освоение | KA8: Оплата | KF8: Освоение | KK8: Оплата | KP8: Освоение | KU8: Оплата | KZ8: Освоение | LE8: Оплата | LJ8: Освоение | LO8: Оплата | LT8: Освоение | LY8: Оплата | MD8: Освоение | MI8: Оплата | MN8: Освоение | MS8: Оплата | MX8: Освоение | NC8: Оплата | NH8: Освоение | NM8: Оплата | NR8: Освоение | NW8: Оплата | OB8: Освоение | OG8: Оплата | OL8: Освоение | OQ8: Оплата | OV8: Освоение | PA8: Оплата | PF8: Освоение | PK8: Оплата | PP8: Освоение | PU8: Оплата | PZ8: Освоение | QE8: Оплата | QJ8: Освоение | QO8: Оплата | QT8: Освоение | QY8: Оплата | RD8: Освоение | RI8: Оплата
Q9: Всего | R9: ПИР | S9: Оборуд. | T9: СМР | U9: Прочие | V9: Всего | W9: ПИР | X9: Оборуд. | Y9: СМР | Z9: Прочие | AA9: Всего | AB9: ПИР | AC9: Оборуд. | AD9: СМР | AE9: Прочие | AF9: Всего | AG9: ПИР | AH9: Оборуд. | AI9: СМР | AJ9: Прочие | AK9: Всего | AL9: ПИР | AM9: Оборуд. | AN9: СМР | AO9: Прочие | AP9: Всего | AQ9: ПИР | AR9: Оборуд. | AS9: СМР | AT9: Прочие | AU9: Всего | AV9: ПИР | AW9: Оборуд. | AX9: СМР | AY9: Прочие | BJ9: Всего | BK9: ПИР | BL9: Оборуд. | BM9: СМР | BN9: Прочее | BO9: Всего | BP9: ПИР | BQ9: Оборуд. | BR9: СМР | BS9: Прочее | BT9: Всего | BU9: ПИР | BV9: Оборуд. | BW9: СМР | BX9: Прочее | BY9: Всего | BZ9: ПИР | CA9: Оборуд. | CB9: СМР | CC9: Прочее | CD9: Всего | CE9: ПИР | CF9: Оборуд. | CG9: СМР | CH9: Прочие | CI9: Всего | CJ9: ПИР | CK9: Оборуд. | CL9: СМР | CM9: Прочие | CN9: Всего | CO9: ПИР | CP9: Оборуд. | CQ9: СМР | CR9: Прочее | CS9: Всего | CT9: ПИР | CU9: Оборуд. | CV9: СМР | CW9: Прочее | CX9: Всего | CY9: ПИР | CZ9: Оборуд. | DA9: СМР | DB9: Прочие | DC9: Всего | DD9: ПИР | DE9: Оборуд. | DF9: СМР | DG9: Прочие | DH9: Всего | DI9: ПИР | DJ9: Оборуд. | DK9: СМР | DL9: Прочее | DM9: Всего | DN9: ПИР | DO9: Оборуд. | DP9: СМР | DQ9: Прочее | DR9: Всего | DS9: ПИР | DT9: Оборуд. | DU9: СМР | DV9: Прочие | DW9: Всего | DX9: ПИР | DY9: Оборуд. | DZ9: СМР | EA9: Прочие | EB9: Всего | EC9: ПИР | ED9: Оборуд. | EE9: СМР | EF9: Прочее | EG9: Всего | EH9: ПИР | EI9: Оборуд. | EJ9: СМР | EK9: Прочее | EL9: Всего | EM9: ПИР | EN9: Оборуд. | EO9: СМР | EP9: Прочие | EQ9: Всего | ER9: ПИР | ES9: Оборуд. | ET9: СМР | EU9: Прочие | EV9: Всего | EW9: ПИР | EX9: Оборуд. | EY9: СМР | EZ9: Прочее | FA9: Всего | FB9: ПИР | FC9: Оборуд. | FD9: СМР | FE9: Прочее | FF9: Всего | FG9: ПИР | FH9: Оборуд. | FI9: СМР | FJ9: Прочие | FK9: Всего | FL9: ПИР | FM9: Оборуд. | FN9: СМР | FO9: Прочие | FP9: Всего | FQ9: ПИР | FR9: Оборуд. | FS9: СМР | FT9: Прочие | FU9: Всего | FV9: ПИР | FW9: Оборуд. | FX9: СМР | FY9: Прочие | FZ9: Всего | GA9: ПИР | GB9: Оборуд. | GC9: СМР | GD9: Прочие | GE9: Всего | GF9: ПИР | GG9: Оборуд. | GH9: СМР | GI9: Прочие | GJ9: Всего | GK9: ПИР | GL9: Оборуд. | GM9: СМР | GN9: Прочие | GO9: Всего | GP9: ПИР | GQ9: Оборуд. | GR9: СМР | GS9: Прочие | GT9: Всего | GU9: ПИР | GV9: Оборуд. | GW9: СМР | GX9: Прочие | GY9: Всего | GZ9: ПИР | HA9: Оборуд. | HB9: СМР | HC9: Прочие | HD9: Всего | HE9: ПИР | HF9: Оборуд. | HG9: СМР | HH9: Прочие | HI9: Всего | HJ9: ПИР | HK9: Оборуд. | HL9: СМР | HM9: Прочие | HN9: Всего | HO9: ПИР | HP9: Оборуд. | HQ9: СМР | HR9: Прочие | HS9: Всего | HT9: ПИР | HU9: Оборуд. | HV9: СМР | HW9: Прочие | HX9: Всего | HY9: ПИР | HZ9: Оборуд. | IA9: СМР | IB9: Прочие | IC9: Всего | ID9: ПИР | IE9: Оборуд. | IF9: СМР | IG9: Прочие | IH9: Всего | II9: ПИР | IJ9: Оборуд. | IK9: СМР | IL9: Прочие | IM9: Всего | IN9: ПИР | IO9: Оборуд. | IP9: СМР | IQ9: Прочие | IR9: Всего | IS9: ПИР | IT9: Оборуд. | IU9: СМР | IV9: Прочее | IW9: Всего | IX9: ПИР | IY9: Оборуд. | IZ9: СМР | JA9: Прочее | JB9: Всего | JC9: ПИР | JD9: Оборуд. | JE9: СМР | JF9: Прочие | JG9: Всего | JH9: ПИР | JI9: Оборуд. | JJ9: СМР | JK9: Прочие | JL9: Всего | JM9: ПИР | JN9: Оборуд. | JO9: СМР | JP9: Прочие | JQ9: Всего | JR9: ПИР | JS9: Оборуд. | JT9: СМР | JU9: Прочие | JV9: Всего | JW9: ПИР | JX9: Оборуд. | JY9: СМР | JZ9: Прочие | KA9: Всего | KB9: ПИР | KC9: Оборуд. | KD9: СМР | KE9: Прочие | KF9: Всего | KG9: ПИР | KH9: Оборуд. | KI9: СМР | KJ9: Прочие | KK9: Всего | KL9: ПИР | KM9: Оборуд. | KN9: СМР | KO9: Прочие | KP9: Всего | KQ9: ПИР | KR9: Оборуд. | KS9: СМР | KT9: Прочие | KU9: Всего | KV9: ПИР | KW9: Оборуд. | KX9: СМР | KY9: Прочие | KZ9: Всего | LA9: ПИР | LB9: Оборуд. | LC9: СМР | LD9: Прочие | LE9: Всего | LF9: ПИР | LG9: Оборуд. | LH9: СМР | LI9: Прочие | LJ9: Всего | LK9: ПИР | LL9: Оборуд. | LM9: СМР | LN9: Прочие | LO9: Всего | LP9: ПИР | LQ9: Оборуд. | LR9: СМР | LS9: Прочие | LT9: Всего | LU9: ПИР | LV9: Оборуд. | LW9: СМР | LX9: Прочие | LY9: Всего | LZ9: ПИР | MA9: Оборуд. | MB9: СМР | MC9: Прочие | MD9: Всего | ME9: ПИР | MF9: Оборуд. | MG9: СМР | MH9: Прочие | MI9: Всего | MJ9: ПИР | MK9: Оборуд. | ML9: СМР | MM9: Прочие | MN9: Всего | MO9: ПИР | MP9: Оборуд. | MQ9: СМР | MR9: Прочее | MS9: Всего | MT9: ПИР | MU9: Оборуд. | MV9: СМР | MW9: Прочее | MX9: Всего | MY9: ПИР | MZ9: Оборуд. | NA9: СМР | NB9: Прочие | NC9: Всего | ND9: ПИР | NE9: Оборуд. | NF9: СМР | NG9: Прочие | NH9: Всего | NI9: ПИР | NJ9: Оборуд. | NK9: СМР | NL9: Прочие | NM9: Всего | NN9: ПИР | NO9: Оборуд. | NP9: СМР | NQ9: Прочие | NR9: Всего | NS9: ПИР | NT9: Оборуд. | NU9: СМР | NV9: Прочие | NW9: Всего | NX9: ПИР | NY9: Оборуд. | NZ9: СМР | OA9: Прочие | OB9: Всего | OC9: ПИР | OD9: Оборуд. | OE9: СМР | OF9: Прочие | OG9: Всего | OH9: ПИР | OI9: Оборуд. | OJ9: СМР | OK9: Прочие | OL9: Всего | OM9: ПИР | ON9: Оборуд. | OO9: СМР | OP9: Прочие | OQ9: Всего | OR9: ПИР | OS9: Оборуд. | OT9: СМР | OU9: Прочие | OV9: Всего | OW9: ПИР | OX9: Оборуд. | OY9: СМР | OZ9: Прочие | PA9: Всего | PB9: ПИР | PC9: Оборуд. | PD9: СМР | PE9: Прочие | PF9: Всего | PG9: ПИР | PH9: Оборуд. | PI9: СМР | PJ9: Прочие | PK9: Всего | PL9: ПИР | PM9: Оборуд. | PN9: СМР | PO9: Прочие | PP9: Всего | PQ9: ПИР | PR9: Оборуд. | PS9: СМР | PT9: Прочие | PU9: Всего | PV9: ПИР | PW9: Оборуд. | PX9: СМР | PY9: Прочие | PZ9: Всего | QA9: ПИР | QB9: Оборуд. | QC9: СМР | QD9: Прочее | QE9: Всего | QF9: ПИР | QG9: Оборуд. | QH9: СМР | QI9: Прочее | QJ9: Всего | QK9: ПИР | QL9: Оборуд. | QM9: СМР | QN9: Прочие | QO9: Всего | QP9: ПИР | QQ9: Оборуд. | QR9: СМР | QS9: Прочие | QT9: Всего | QU9: ПИР | QV9: Оборуд. | QW9: СМР | QX9: Прочие | QY9: Всего | QZ9: ПИР | RA9: Оборуд. | RB9: СМР | RC9: Прочие | RD9: Всего | RE9: ПИР | RF9: Оборуд. | RG9: СМР | RH9: Прочие | RI9: Всего | RJ9: ПИР | RK9: Оборуд. | RL9: СМР | RM9: Прочие | RN9: Всего | RO9: ПИР | RP9: Оборуд. | RQ9: СМР | RR9: Прочие | RT9: Без НДС | RU9: С НДС | RV9: План | RW9: Факт | RX9: С НДС | RY9: С НДС | RZ9: С НДС | SA9: С НДС | SB9: С НДС | SC9: С НДС
G10: 1 | H10: 2 | I10: 3 | J10: 4 | K10: 5 | L10: 6 | M10: 7 | N10: 8 | O10: 9 | P10: 10 | Q10: 11 | R10: 12 | S10: 13 | T10: 14 | U10: 15 | V10: 16 | W10: 17 | X10: 18 | Y10: 19 | Z10: 20 | AA10: 21 | AB10: 22 | AC10: 23 | AD10: 24 | AE10: 25 | AF10: 26 | AG10: 27 | AH10: 28 | AI10: 29 | AJ10: 30 | AK10: 31 | AL10: 32 | AM10: 33 | AN10: 34 | AO10: 35 | AP10: 36 | AQ10: 37 | AR10: 38 | AS10: 39 | AT10: 40 | AU10: 41 | AV10: 42 | AW10: 43 | AX10: 44 | AY10: 45 | AZ10: 46 | BA10: 47 | BB10: 48 | BC10: 49 | BD10: 50 | BE10: 51 | BF10: 52 | BG10: 53 | BH10: 54 | BI10: 55 | BJ10: 56 | BK10: 57 | BL10: 58 | BM10: 59 | BN10: 60 | BO10: 61 | BP10: 62 | BQ10: 63 | BR10: 64 | BS10: 65 | BT10: 66 | BU10: 67 | BV10: 68 | BW10: 69 | BX10: 70 | BY10: 71 | BZ10: 72 | CA10: 73 | CB10: 74 | CC10: 75 | CD10: 76 | CE10: 77 | CF10: 78 | CG10: 79 | CH10: 80 | CI10: 81 | CJ10: 82 | CK10: 83 | CL10: 84 | CM10: 85 | CN10: 86 | CO10: 87 | CP10: 88 | CQ10: 89 | CR10: 90 | CS10: 91 | CT10: 92 | CU10: 93 | CV10: 94 | CW10: 95 | CX10: 96 | CY10: 97 | CZ10: 98 | DA10: 99 | DB10: 100 | DC10: 101 | DD10: 102 | DE10: 103 | DF10: 104 | DG10: 105 | DH10: 106 | DI10: 107 | DJ10: 108 | DK10: 109 | DL10: 110 | DM10: 111 | DN10: 112 | DO10: 113 | DP10: 114 | DQ10: 115 | DR10: 116 | DS10: 117 | DT10: 118 | DU10: 119 | DV10: 120 | DW10: 121 | DX10: 122 | DY10: 123 | DZ10: 124 | EA10: 125 | EB10: 126 | EC10: 127 | ED10: 128 | EE10: 129 | EF10: 130 | EG10: 131 | EH10: 132 | EI10: 133 | EJ10: 134 | EK10: 135 | EL10: 136 | EM10: 137 | EN10: 138 | EO10: 139 | EP10: 140 | EQ10: 141 | ER10: 142 | ES10: 143 | ET10: 144 | EU10: 145 | EV10: 146 | EW10: 147 | EX10: 148 | EY10: 149 | EZ10: 150 | FA10: 151 | FB10: 152 | FC10: 153 | FD10: 154 | FE10: 155 | FF10: 156 | FG10: 157 | FH10: 158 | FI10: 159 | FJ10: 160 | FK10: 161 | FL10: 162 | FM10: 163 | FN10: 164 | FO10: 165 | FP10: 166 | FQ10: 167 | FR10: 168 | FS10: 169 | FT10: 170 | FU10: 171 | FV10: 172 | FW10: 173 | FX10: 174 | FY10: 175 | FZ10: 176 | GA10: 177 | GB10: 178 | GC10: 179 | GD10: 180 | GE10: 181 | GF10: 182 | GG10: 183 | GH10: 184 | GI10: 185 | GJ10: 186 | GK10: 187 | GL10: 188 | GM10: 189 | GN10: 190 | GO10: 191 | GP10: 192 | GQ10: 193 | GR10: 194 | GS10: 195 | GT10: 196 | GU10: 197 | GV10: 198 | GW10: 199 | GX10: 200 | GY10: 201 | GZ10: 202 | HA10: 203 | HB10: 204 | HC10: 205 | HD10: 206 | HE10: 207 | HF10: 208 | HG10: 209 | HH10: 210 | HI10: 211 | HJ10: 212 | HK10: 213 | HL10: 214 | HM10: 215 | HN10: 216 | HO10: 217 | HP10: 218 | HQ10: 219 | HR10: 220 | HS10: 221 | HT10: 222 | HU10: 223 | HV10: 224 | HW10: 225 | HX10: 226 | HY10: 227 | HZ10: 228 | IA10: 229 | IB10: 230 | IC10: 231 | ID10: 232 | IE10: 233 | IF10: 234 | IG10: 235 | IH10: 236 | II10: 237 | IJ10: 238 | IK10: 239 | IL10: 240 | IM10: 241 | IN10: 242 | IO10: 243 | IP10: 244 | IQ10: 245 | IR10: 246 | IS10: 247 | IT10: 248 | IU10: 249 | IV10: 250 | IW10: 251 | IX10: 252 | IY10: 253 | IZ10: 254 | JA10: 255 | JB10: 256 | JC10: 257 | JD10: 258 | JE10: 259 | JF10: 260 | JG10: 261 | JH10: 262 | JI10: 263 | JJ10: 264 | JK10: 265 | JL10: 266 | JM10: 267 | JN10: 268 | JO10: 269 | JP10: 270 | JQ10: 271 | JR10: 272 | JS10: 273 | JT10: 274 | JU10: 275 | JV10: 276 | JW10: 277 | JX10: 278 | JY10: 279 | JZ10: 280 | KA10: 281 | KB10: 282 | KC10: 283 | KD10: 284 | KE10: 285 | KF10: 286 | KG10: 287 | KH10: 288 | KI10: 289 | KJ10: 290 | KK10: 291 | KL10: 292 | KM10: 293 | KN10: 294 | KO10: 295 | KP10: 296 | KQ10: 297 | KR10: 298 | KS10: 299 | KT10: 300 | KU10: 301 | KV10: 302 | KW10: 303 | KX10: 304 | KY10: 305 | KZ10: 306 | LA10: 307 | LB10: 308 | LC10: 309 | LD10: 310 | LE10: 311 | LF10: 312 | LG10: 313 | LH10: 314 | LI10: 315 | LJ10: 316 | LK10: 317 | LL10: 318 | LM10: 319 | LN10: 320 | LO10: 321 | LP10: 322 | LQ10: 323 | LR10: 324 | LS10: 325 | LT10: 326 | LU10: 327 | LV10: 328 | LW10: 329 | LX10: 330 | LY10: 331 | LZ10: 332 | MA10: 333 | MB10: 334 | MC10: 335 | MD10: 336 | ME10: 337 | MF10: 338 | MG10: 339 | MH10: 340 | MI10: 341 | MJ10: 342 | MK10: 343 | ML10: 344 | MM10: 345 | MN10: 346 | MO10: 347 | MP10: 348 | MQ10: 349 | MR10: 350 | MS10: 351 | MT10: 352 | MU10: 353 | MV10: 354 | MW10: 355 | MX10: 356 | MY10: 357 | MZ10: 358 | NA10: 359 | NB10: 360 | NC10: 361 | ND10: 362 | NE10: 363 | NF10: 364 | NG10: 365 | NH10: 366 | NI10: 367 | NJ10: 368 | NK10: 369 | NL10: 370 | NM10: 371 | NN10: 372 | NO10: 373 | NP10: 374 | NQ10: 375 | NR10: 376 | NS10: 377 | NT10: 378 | NU10: 379 | NV10: 380 | NW10: 381 | NX10: 382 | NY10: 383 | NZ10: 384 | OA10: 385 | OB10: 386 | OC10: 387 | OD10: 388 | OE10: 389 | OF10: 390 | OG10: 391 | OH10: 392 | OI10: 393 | OJ10: 394 | OK10: 395 | OL10: 396 | OM10: 397 | ON10: 398 | OO10: 399 | OP10: 400 | OQ10: 401 | OR10: 402 | OS10: 403 | OT10: 404 | OU10: 405 | OV10: 406 | OW10: 407 | OX10: 408 | OY10: 409 | OZ10: 410 | PA10: 411 | PB10: 412 | PC10: 413 | PD10: 414 | PE10: 415 | PF10: 416 | PG10: 417 | PH10: 418 | PI10: 419 | PJ10: 420 | PK10: 421 | PL10: 422 | PM10: 423 | PN10: 424 | PO10: 425 | PP10: 426 | PQ10: 427 | PR10: 428 | PS10: 429 | PT10: 430 | PU10: 431 | PV10: 432 | PW10: 433 | PX10: 434 | PY10: 435 | PZ10: 436 | QA10: 437 | QB10: 438 | QC10: 439 | QD10: 440 | QE10: 441 | QF10: 442 | QG10: 443 | QH10: 444 | QI10: 445 | QJ10: 446 | QK10: 447 | QL10: 448 | QM10: 449 | QN10: 450 | QO10: 451 | QP10: 452 | QQ10: 453 | QR10: 454 | QS10: 455 | QT10: 456 | QU10: 457 | QV10: 458 | QW10: 459 | QX10: 460 | QY10: 461 | QZ10: 462 | RA10: 463 | RB10: 464 | RC10: 465 | RD10: 466 | RE10: 467 | RF10: 468 | RG10: 469 | RH10: 470 | RI10: 471 | RJ10: 472 | RK10: 473 | RL10: 474 | RM10: 475 | RN10: 476 | RO10: 477 | RP10: 478 | RQ10: 479 | RR10: 480 | RS10: 481 | RT10: 482 | RU10: 483 | RV10: 484 | RW10: 485 | RX10: 486 | RY10: 487 | RZ10: 488 | SA10: 489 | SB10: 490 | SC10: 491
B11: 3 | C11: 11 | K11: ООО "Мечел-Энерго" | Q11: =R11+S11+T11+U11 -> 143,392 | R11: 8,198 | S11: 6,768 | T11: 128,426 | U11: 0 | V11: =W11+X11+Y11+Z11 -> 35,335 | W11: 5,666 | X11: 918 | Y11: 28,751 | Z11: 0 | AA11: =AB11+AC11+AD11+AE11 -> 35,583 | AB11: 5,123 | AC11: 2,185 | AD11: 28,275 | AE11: 0 | AF11: =Q11-V11 -> 108,057 | AG11: =R11-W11 -> 2,532 | AH11: =S11-X11 -> 5,850 | AI11: =T11-Y11 -> 99,675 | AJ11: =U11-Z11 -> 0 | AK11: =Q11-AA11 -> 107,809 | AL11: =R11-AB11 -> 3,075 | AM11: =S11-AC11 -> 4,583 | AN11: =T11-AD11 -> 100,151 | AO11: =U11-AE11 -> 0 | AP11: =CX11+DR11+EL11+FZ11+GT11+HN11+JV11+KP11+LJ11+NR11+OL11+PF11 -> 95,564 | AQ11: =CY11+DS11+EM11+GA11+GU11+HO11+JW11+KQ11+LK11+NS11+OM11+PG11 -> 2,532 | AR11: =CZ11+DT11+EN11+GB11+GV11+HP11+JX11+KR11+LL11+NT11+ON11+PH11 -> 5,850 | AS11: =DA11+DU11+EO11+GC11+GW11+HQ11+JY11+KS11+LM11+NU11+OO11+PI11 -> 87,182 | AT11: =DB11+DV11+EP11+GD11+GX11+HR11+JZ11+KT11+LN11+NV11+OP11+PJ11 -> 0 | AU11: =DC11+DW11+EQ11+GE11+GY11+HS11+KA11+KU11+LO11+NW11+OQ11+PK11 -> 79,083 | AV11: =DD11+DX11+ER11+GF11+GZ11+HT11+KB11+KV11+LP11+NX11+OR11+PL11 -> 3,074 | AW11: =DE11+DY11+ES11+GG11+HA11+HU11+KC11+KW11+LQ11+NY11+OS11+PM11 -> 4,583 | AX11: =DF11+DZ11+ET11+GH11+HB11+HV11+KD11+KX11+LR11+NZ11+OT11+PN11 -> 71,426 | AY11: =DG11+EA11+EU11+GI11+HC11+HW11+KE11+KY11+LS11+OA11+OU11+PO11 -> 0 | AZ11: 79,083 | BA11: =IF(SUM(BB11:BD11)=0,"",SUM(BB11:BD11)) ->  | BF11: =IF(SUM(BG11:BI11)=0,"",SUM(BG11:BI11)) ->  | BJ11: =IF(Ф!$K$4>=1,CX11,0)+IF(Ф!$K$4>=2,DR11,0)+IF(Ф!$K$4>=3,EL11,0)+IF(Ф!$K$4>=4,FZ11,0)+IF(Ф!$K$4>=5,GT11,0)+IF(Ф!$K$4>=6,HN11,0)+IF(Ф!$K$4>=7,JV11,0)+IF(Ф!$K$4>=8,KP11,0)+IF(Ф!$K$4>=9,LJ11,0)+IF(Ф!$K$4>=10,NR11,0)+IF(Ф!$K$4>=11,OL11,0)+IF(Ф!$K$4>=12,PF11,0) -> 2,399 | BK11: =IF(Ф!$K$4>=1,CY11,0)+IF(Ф!$K$4>=2,DS11,0)+IF(Ф!$K$4>=3,EM11,0)+IF(Ф!$K$4>=4,GA11,0)+IF(Ф!$K$4>=5,GU11,0)+IF(Ф!$K$4>=6,HO11,0)+IF(Ф!$K$4>=7,JW11,0)+IF(Ф!$K$4>=8,KQ11,0)+IF(Ф!$K$4>=9,LK11,0)+IF(Ф!$K$4>=10,NS11,0)+IF(Ф!$K$4>=11,OM11,0)+IF(Ф!$K$4>=12,PG11,0) -> 0 | BL11: =IF(Ф!$K$4>=1,CZ11,0)+IF(Ф!$K$4>=2,DT11,0)+IF(Ф!$K$4>=3,EN11,0)+IF(Ф!$K$4>=4,GB11,0)+IF(Ф!$K$4>=5,GV11,0)+IF(Ф!$K$4>=6,HP11,0)+IF(Ф!$K$4>=7,JX11,0)+IF(Ф!$K$4>=8,KR11,0)+IF(Ф!$K$4>=9,LL11,0)+IF(Ф!$K$4>=10,NT11,0)+IF(Ф!$K$4>=11,ON11,0)+IF(Ф!$K$4>=12,PH11,0) -> 0 | BM11: =IF(Ф!$K$4>=1,DA11,0)+IF(Ф!$K$4>=2,DU11,0)+IF(Ф!$K$4>=3,EO11,0)+IF(Ф!$K$4>=4,GC11,0)+IF(Ф!$K$4>=5,GW11,0)+IF(Ф!$K$4>=6,HQ11,0)+IF(Ф!$K$4>=7,JY11,0)+IF(Ф!$K$4>=8,KS11,0)+IF(Ф!$K$4>=9,LM11,0)+IF(Ф!$K$4>=10,NU11,0)+IF(Ф!$K$4>=11,OO11,0)+IF(Ф!$K$4>=12,PI11,0) -> 2,399 | BN11: =IF(Ф!$K$4>=1,DB11,0)+IF(Ф!$K$4>=2,DV11,0)+IF(Ф!$K$4>=3,EP11,0)+IF(Ф!$K$4>=4,GD11,0)+IF(Ф!$K$4>=5,GX11,0)+IF(Ф!$K$4>=6,HR11,0)+IF(Ф!$K$4>=7,JZ11,0)+IF(Ф!$K$4>=8,KT11,0)+IF(Ф!$K$4>=9,LN11,0)+IF(Ф!$K$4>=10,NV11,0)+IF(Ф!$K$4>=11,OP11,0)+IF(Ф!$K$4>=12,PJ11,0) -> 0 | BO11: =IF(Ф!$K$4>=1,DC11,0)+IF(Ф!$K$4>=2,DW11,0)+IF(Ф!$K$4>=3,EQ11,0)+IF(Ф!$K$4>=4,GE11,0)+IF(Ф!$K$4>=5,GY11,0)+IF(Ф!$K$4>=6,HS11,0)+IF(Ф!$K$4>=7,KA11,0)+IF(Ф!$K$4>=8,KU11,0)+IF(Ф!$K$4>=9,LO11,0)+IF(Ф!$K$4>=10,NW11,0)+IF(Ф!$K$4>=11,OQ11,0)+IF(Ф!$K$4>=12,PK11,0) -> 0 | BP11: =IF(Ф!$K$4>=1,DD11,0)+IF(Ф!$K$4>=2,DX11,0)+IF(Ф!$K$4>=3,ER11,0)+IF(Ф!$K$4>=4,GF11,0)+IF(Ф!$K$4>=5,GZ11,0)+IF(Ф!$K$4>=6,HT11,0)+IF(Ф!$K$4>=7,KB11,0)+IF(Ф!$K$4>=8,KV11,0)+IF(Ф!$K$4>=9,LP11,0)+IF(Ф!$K$4>=10,NX11,0)+IF(Ф!$K$4>=11,OR11,0)+IF(Ф!$K$4>=12,PL11,0) -> 0 | BQ11: =IF(Ф!$K$4>=1,DE11,0)+IF(Ф!$K$4>=2,DY11,0)+IF(Ф!$K$4>=3,ES11,0)+IF(Ф!$K$4>=4,GG11,0)+IF(Ф!$K$4>=5,HA11,0)+IF(Ф!$K$4>=6,HU11,0)+IF(Ф!$K$4>=7,KC11,0)+IF(Ф!$K$4>=8,KW11,0)+IF(Ф!$K$4>=9,LQ11,0)+IF(Ф!$K$4>=10,NY11,0)+IF(Ф!$K$4>=11,OS11,0)+IF(Ф!$K$4>=12,PM11,0) -> 0 | BR11: =IF(Ф!$K$4>=1,DF11,0)+IF(Ф!$K$4>=2,DZ11,0)+IF(Ф!$K$4>=3,ET11,0)+IF(Ф!$K$4>=4,GH11,0)+IF(Ф!$K$4>=5,HB11,0)+IF(Ф!$K$4>=6,HV11,0)+IF(Ф!$K$4>=7,KD11,0)+IF(Ф!$K$4>=8,KX11,0)+IF(Ф!$K$4>=9,LR11,0)+IF(Ф!$K$4>=10,NZ11,0)+IF(Ф!$K$4>=11,OT11,0)+IF(Ф!$K$4>=12,PN11,0) -> 0 | BS11: =IF(Ф!$K$4>=1,DG11,0)+IF(Ф!$K$4>=2,EA11,0)+IF(Ф!$K$4>=3,EU11,0)+IF(Ф!$K$4>=4,GI11,0)+IF(Ф!$K$4>=5,HC11,0)+IF(Ф!$K$4>=6,HW11,0)+IF(Ф!$K$4>=7,KE11,0)+IF(Ф!$K$4>=8,KY11,0)+IF(Ф!$K$4>=9,LS11,0)+IF(Ф!$K$4>=10,OA11,0)+IF(Ф!$K$4>=11,OU11,0)+IF(Ф!$K$4>=12,PO11,0) -> 0 | BT11: =IF(Ф!$K$4>=1,DH11,0)+IF(Ф!$K$4>=2,EB11,0)+IF(Ф!$K$4>=3,EV11,0)+IF(Ф!$K$4>=4,GJ11,0)+IF(Ф!$K$4>=5,HD11,0)+IF(Ф!$K$4>=6,HX11,0)+IF(Ф!$K$4>=7,KF11,0)+IF(Ф!$K$4>=8,KZ11,0)+IF(Ф!$K$4>=9,LT11,0)+IF(Ф!$K$4>=10,OB11,0)+IF(Ф!$K$4>=11,OV11,0)+IF(Ф!$K$4>=12,PP11,0) -> 0 | BU11: =IF(Ф!$K$4>=1,DI11,0)+IF(Ф!$K$4>=2,EC11,0)+IF(Ф!$K$4>=3,EW11,0)+IF(Ф!$K$4>=4,GK11,0)+IF(Ф!$K$4>=5,HE11,0)+IF(Ф!$K$4>=6,HY11,0)+IF(Ф!$K$4>=7,KG11,0)+IF(Ф!$K$4>=8,LA11,0)+IF(Ф!$K$4>=9,LU11,0)+IF(Ф!$K$4>=10,OC11,0)+IF(Ф!$K$4>=11,OW11,0)+IF(Ф!$K$4>=12,PQ11,0) -> 0 | BV11: =IF(Ф!$K$4>=1,DJ11,0)+IF(Ф!$K$4>=2,ED11,0)+IF(Ф!$K$4>=3,EX11,0)+IF(Ф!$K$4>=4,GL11,0)+IF(Ф!$K$4>=5,HF11,0)+IF(Ф!$K$4>=6,HZ11,0)+IF(Ф!$K$4>=7,KH11,0)+IF(Ф!$K$4>=8,LB11,0)+IF(Ф!$K$4>=9,LV11,0)+IF(Ф!$K$4>=10,OD11,0)+IF(Ф!$K$4>=11,OX11,0)+IF(Ф!$K$4>=12,PR11,0) -> 0 | BW11: =IF(Ф!$K$4>=1,DK11,0)+IF(Ф!$K$4>=2,EE11,0)+IF(Ф!$K$4>=3,EY11,0)+IF(Ф!$K$4>=4,GM11,0)+IF(Ф!$K$4>=5,HG11,0)+IF(Ф!$K$4>=6,IA11,0)+IF(Ф!$K$4>=7,KI11,0)+IF(Ф!$K$4>=8,LC11,0)+IF(Ф!$K$4>=9,LW11,0)+IF(Ф!$K$4>=10,OE11,0)+IF(Ф!$K$4>=11,OY11,0)+IF(Ф!$K$4>=12,PS11,0) -> 0 | BX11: =IF(Ф!$K$4>=1,DL11,0)+IF(Ф!$K$4>=2,EF11,0)+IF(Ф!$K$4>=3,EZ11,0)+IF(Ф!$K$4>=4,GN11,0)+IF(Ф!$K$4>=5,HH11,0)+IF(Ф!$K$4>=6,IB11,0)+IF(Ф!$K$4>=7,KJ11,0)+IF(Ф!$K$4>=8,LD11,0)+IF(Ф!$K$4>=9,LX11,0)+IF(Ф!$K$4>=10,OF11,0)+IF(Ф!$K$4>=11,OZ11,0)+IF(Ф!$K$4>=12,PT11,0) -> 0 | BY11: =IF(Ф!$K$4>=1,DM11,0)+IF(Ф!$K$4>=2,EG11,0)+IF(Ф!$K$4>=3,FA11,0)+IF(Ф!$K$4>=4,GO11,0)+IF(Ф!$K$4>=5,HI11,0)+IF(Ф!$K$4>=6,IC11,0)+IF(Ф!$K$4>=7,KK11,0)+IF(Ф!$K$4>=8,LE11,0)+IF(Ф!$K$4>=9,LY11,0)+IF(Ф!$K$4>=10,OG11,0)+IF(Ф!$K$4>=11,PA11,0)+IF(Ф!$K$4>=12,PU11,0) -> 0 | BZ11: =IF(Ф!$K$4>=1,DN11,0)+IF(Ф!$K$4>=2,EH11,0)+IF(Ф!$K$4>=3,FB11,0)+IF(Ф!$K$4>=4,GP11,0)+IF(Ф!$K$4>=5,HJ11,0)+IF(Ф!$K$4>=6,ID11,0)+IF(Ф!$K$4>=7,KL11,0)+IF(Ф!$K$4>=8,LF11,0)+IF(Ф!$K$4>=9,LZ11,0)+IF(Ф!$K$4>=10,OH11,0)+IF(Ф!$K$4>=11,PB11,0)+IF(Ф!$K$4>=12,PV11,0) -> 0 | CA11: =IF(Ф!$K$4>=1,DO11,0)+IF(Ф!$K$4>=2,EI11,0)+IF(Ф!$K$4>=3,FC11,0)+IF(Ф!$K$4>=4,GQ11,0)+IF(Ф!$K$4>=5,HK11,0)+IF(Ф!$K$4>=6,IE11,0)+IF(Ф!$K$4>=7,KM11,0)+IF(Ф!$K$4>=8,LG11,0)+IF(Ф!$K$4>=9,MA11,0)+IF(Ф!$K$4>=10,OI11,0)+IF(Ф!$K$4>=11,PC11,0)+IF(Ф!$K$4>=12,PW11,0) -> 0 | CB11: =IF(Ф!$K$4>=1,DP11,0)+IF(Ф!$K$4>=2,EJ11,0)+IF(Ф!$K$4>=3,FD11,0)+IF(Ф!$K$4>=4,GR11,0)+IF(Ф!$K$4>=5,HL11,0)+IF(Ф!$K$4>=6,IF11,0)+IF(Ф!$K$4>=7,KN11,0)+IF(Ф!$K$4>=8,LH11,0)+IF(Ф!$K$4>=9,MB11,0)+IF(Ф!$K$4>=10,OJ11,0)+IF(Ф!$K$4>=11,PD11,0)+IF(Ф!$K$4>=12,PX11,0) -> 0 | CC11: =IF(Ф!$K$4>=1,DQ11,0)+IF(Ф!$K$4>=2,EK11,0)+IF(Ф!$K$4>=3,FE11,0)+IF(Ф!$K$4>=4,GS11,0)+IF(Ф!$K$4>=5,HM11,0)+IF(Ф!$K$4>=6,IG11,0)+IF(Ф!$K$4>=7,KO11,0)+IF(Ф!$K$4>=8,LI11,0)+IF(Ф!$K$4>=9,MC11,0)+IF(Ф!$K$4>=10,OK11,0)+IF(Ф!$K$4>=11,PE11,0)+IF(Ф!$K$4>=12,PY11,0) -> 0 | CD11: =CX11+DR11+EL11 -> 20,593 | CE11: =CY11+DS11+EM11 -> 282 | CF11: =CZ11+DT11+EN11 -> 4,347 | CG11: =DA11+DU11+EO11 -> 15,964 | CH11: =DB11+DV11+EP11 -> 0 | CI11: =DC11+DW11+EQ11 -> 18,666 | CJ11: =DD11+DX11+ER11 -> 624 | CK11: =DE11+DY11+ES11 -> 3,080 | CL11: =DF11+DZ11+ET11 -> 14,962 | CM11: =DG11+EA11+EU11 -> 0 | CN11: =DH11+EB11+EV11 -> 0 | CO11: =DI11+EC11+EW11 -> 0 | CP11: =DJ11+ED11+EX11 -> 0 | CQ11: =DK11+EE11+EY11 -> 0 | CR11: =DL11+EF11+EZ11 -> 0 | CS11: =DM11+EG11+FA11 -> 0 | CT11: =DN11+EH11+FB11 -> 0 | CU11: =DO11+EI11+FC11 -> 0 | CV11: =DP11+EJ11+FD11 -> 0 | CW11: =DQ11+EK11+FE11 -> 0 | CX11: =CY11+CZ11+DA11+DB11 -> 2,399 | CY11: 0 | CZ11: 0 | DA11: 2,399 | DB11: 0 | DC11: =DD11+DE11+DF11+DG11 -> 0 | DD11: 0 | DE11: 0 | DF11: 0 | DG11: 0 | DH11: =DI11+DJ11+DK11+DL11 -> 0 | DI11: 0 | DJ11: 0 | DK11: 0 | DL11: 0 | DM11: =DN11+DO11+DP11+DQ11 -> 0 | DN11: 0 | DO11: 0 | DP11: 0 | DQ11: 0 | DR11: =DS11+DT11+DU11+DV11 -> 6,947 | DS11: 82 | DT11: 0 | DU11: 6,865 | DV11: 0 | DW11: =DX11+DY11+DZ11+EA11 -> 9,159 | DX11: 374 | DY11: 3,080 | DZ11: 5,705 | EA11: 0 | EB11: =EC11+ED11+EE11+EF11 -> 0 | EC11: 0 | ED11: 0 | EE11: 0 | EF11: 0 | EG11: =EH11+EI11+EJ11+EK11 -> 0 | EH11: 0 | EI11: 0 | EJ11: 0 | EK11: 0 | EL11: =EM11+EN11+EO11+EP11 -> 11,247 | EM11: 200 | EN11: 4,347 | EO11: 6,700 | EP11: 0 | EQ11: =ER11+ES11+ET11+EU11 -> 9,507 | ER11: 250 | ES11: 0 | ET11: 9,257 | EU11: 0 | EV11: =EW11+EX11+EY11+EZ11 -> 0 | EW11: 0 | EX11: 0 | EY11: 0 | EZ11: 0 | FA11: =FB11+FC11+FD11+FE11 -> 0 | FB11: 0 | FC11: 0 | FD11: 0 | FE11: 0 | FF11: =FZ11+GT11+HN11 -> 23,154 | FG11: =GA11+GU11+HO11 -> 2,050 | FH11: =GB11+GV11+HP11 -> 0 | FI11: =GC11+GW11+HQ11 -> 21,104 | FJ11: =GD11+GX11+HR11 -> 0 | FK11: =GE11+GY11+HS11 -> 26,182 | FL11: =GF11+GZ11+HT11 -> 200 | FM11: =GG11+HA11+HU11 -> 0 | FN11: =GH11+HB11+HV11 -> 25,982 | FO11: =GI11+HC11+HW11 -> 0 | FP11: =GJ11+HD11+HX11 -> 0 | FQ11: =GK11+HE11+HY11 -> 0 | FR11: =GL11+HF11+HZ11 -> 0 | FS11: =GM11+HG11+IA11 -> 0 | FT11: =GN11+HH11+IB11 -> 0 | FU11: =GO11+HI11+IC11 -> 0 | FV11: =GP11+HJ11+ID11 -> 0 | FW11: =GQ11+HK11+IE11 -> 0 | FX11: =GR11+HL11+IF11 -> 0 | FY11: =GS11+HM11+IG11 -> 0 | FZ11: =GA11+GB11+GC11+GD11 -> 6,700 | GA11: 0 | GB11: 0 | GC11: 6,700 | GD11: 0 | GE11: =GF11+GG11+GH11+GI11 -> 1,484 | GF11: 200 | GG11: 0 | GH11: 1,284 | GI11: 0 | GJ11: =GK11+GL11+GM11+GN11 -> 0 | GK11: 0 | GL11: 0 | GM11: 0 | GN11: 0 | GO11: =GP11+GQ11+GR11+GS11 -> 0 | GP11: 0 | GQ11: 0 | GR11: 0 | GS11: 0 | GT11: =GU11+GV11+GW11+GX11 -> 6,700 | GU11: 0 | GV11: 0 | GW11: 6,700 | GX11: 0 | GY11: =GZ11+HA11+HB11+HC11 -> 12,498 | GZ11: 0 | HA11: 0 | HB11: 12,498 | HC11: 0 | HD11: =HE11+HF11+HG11+HH11 -> 0 | HE11: 0 | HF11: 0 | HG11: 0 | HH11: 0 | HI11: =HJ11+HK11+HL11+HM11 -> 0 | HJ11: 0 | HK11: 0 | HL11: 0 | HM11: 0 | HN11: =HO11+HP11+HQ11+HR11 -> 9,754 | HO11: 2,050 | HP11: 0 | HQ11: 7,704 | HR11: 0 | HS11: =HT11+HU11+HV11+HW11 -> 12,200 | HT11: 0 | HU11: 0 | HV11: 12,200 | HW11: 0 | HX11: =HY11+HZ11+IA11+IB11 -> 0 | HY11: 0 | HZ11: 0 | IA11: 0 | IB11: 0 | IC11: =ID11+IE11+IF11+IG11 -> 0 | ID11: 0 | IE11: 0 | IF11: 0 | IG11: 0 | IH11: =CX11+DR11+EL11+FZ11+GT11+HN11 -> 43,747 | II11: =CY11+DS11+EM11+GA11+GU11+HO11 -> 2,332 | IJ11: =CZ11+DT11+EN11+GB11+GV11+HP11 -> 4,347 | IK11: =DA11+DU11+EO11+GC11+GW11+HQ11 -> 37,068 | IL11: =DB11+DV11+EP11+GD11+GX11+HR11 -> 0 | IM11: =DC11+DW11+EQ11+GE11+GY11+HS11 -> 44,848 | IN11: =DD11+DX11+ER11+GF11+GZ11+HT11 -> 824 | IO11: =DE11+DY11+ES11+GG11+HA11+HU11 -> 3,080 | IP11: =DF11+DZ11+ET11+GH11+HB11+HV11 -> 40,944 | IQ11: =DG11+EA11+EU11+GI11+HC11+HW11 -> 0 | IR11: =DH11+EB11+EV11+GJ11+HD11+HX11 -> 0 | IS11: =DI11+EC11+EW11+GK11+HE11+HY11 -> 0 | IT11: =DJ11+ED11+EX11+GL11+HF11+HZ11 -> 0 | IU11: =DK11+EE11+EY11+GM11+HG11+IA11 -> 0 | IV11: =DL11+EF11+EZ11+GN11+HH11+IB11 -> 0 | IW11: =DM11+EG11+FA11+GO11+HI11+IC11 -> 0 | IX11: =DN11+EH11+FB11+GP11+HJ11+ID11 -> 0 | IY11: =DO11+EI11+FC11+GQ11+HK11+IE11 -> 0 | IZ11: =DP11+EJ11+FD11+GR11+HL11+IF11 -> 0 | JA11: =DQ11+EK11+FE11+GS11+HM11+IG11 -> 0 | JB11: =JV11+KP11+LJ11 -> 45,540 | JC11: =JW11+KQ11+LK11 -> 200 | JD11: =JX11+KR11+LL11 -> 1,503 | JE11: =JY11+KS11+LM11 -> 43,837 | JF11: =JZ11+KT11+LN11 -> 0 | JG11: =KA11+KU11+LO11 -> 27,763 | JH11: =KB11+KV11+LP11 -> 2,050 | JI11: =KC11+KW11+LQ11 -> 1,503 | JJ11: =KD11+KX11+LR11 -> 24,210 | JK11: =KE11+KY11+LS11 -> 0 | JL11: =KF11+KZ11+LT11 -> 0 | JM11: =KG11+LA11+LU11 -> 0 | JN11: =KH11+LB11+LV11 -> 0 | JO11: =KI11+LC11+LW11 -> 0 | JP11: =KJ11+LD11+LX11 -> 0 | JQ11: =KK11+LE11+LY11 -> 0 | JR11: =KL11+LF11+LZ11 -> 0 | JS11: =KM11+LG11+MA11 -> 0 | JT11: =KN11+LH11+MB11 -> 0 | JU11: =KO11+LI11+MC11 -> 0 | JV11: =JW11+JX11+JY11+JZ11 -> 11,967 | JW11: 0 | JX11: 0 | JY11: 11,967 | JZ11: 0 | KA11: =KB11+KC11+KD11+KE11 -> 10,330 | KB11: 0 | KC11: 1,503 | KD11: 8,827 | KE11: 0 | KF11: =KG11+KH11+KI11+KJ11 -> 0 | KG11: 0 | KH11: 0 | KI11: 0 | KJ11: 0 | KK11: =KL11+KM11+KN11+KO11 -> 0 | KL11: 0 | KM11: 0 | KN11: 0 | KO11: 0 | KP11: =KQ11+KR11+KS11+KT11 -> 15,686 | KQ11: 0 | KR11: 0 | KS11: 15,686 | KT11: 0 | KU11: =KV11+KW11+KX11+KY11 -> 8,200 | KV11: 0 | KW11: 0 | KX11: 8,200 | KY11: 0 | KZ11: =LA11+LB11+LC11+LD11 -> 0 | LA11: 0 | LB11: 0 | LC11: 0 | LD11: 0 | LE11: =LF11+LG11+LH11+LI11 -> 0 | LF11: 0 | LG11: 0 | LH11: 0 | LI11: 0 | LJ11: =LK11+LL11+LM11+LN11 -> 17,887 | LK11: 200 | LL11: 1,503 | LM11: 16,184 | LN11: 0 | LO11: =LP11+LQ11+LR11+LS11 -> 9,233 | LP11: 2,050 | LQ11: 0 | LR11: 7,183 | LS11: 0 | LT11: =LU11+LV11+LW11+LX11 -> 0 | LU11: 0 | LV11: 0 | LW11: 0 | LX11: 0 | LY11: =LZ11+MA11+MB11+MC11 -> 0 | LZ11: 0 | MA11: 0 | MB11: 0 | MC11: 0 | MD11: =CX11+DR11+EL11+FZ11+GT11+HN11+JV11+KP11+LJ11 -> 89,287 | ME11: =CY11+DS11+EM11+GA11+GU11+HO11+JW11+KQ11+LK11 -> 2,532 | MF11: =CZ11+DT11+EN11+GB11+GV11+HP11+JX11+KR11+LL11 -> 5,850 | MG11: =DA11+DU11+EO11+GC11+GW11+HQ11+JY11+KS11+LM11 -> 80,905 | MH11: =DB11+DV11+EP11+GD11+GX11+HR11+JZ11+KT11+LN11 -> 0 | MI11: =DC11+DW11+EQ11+GE11+GY11+HS11+KA11+KU11+LO11 -> 72,611 | MJ11: =DD11+DX11+ER11+GF11+GZ11+HT11+KB11+KV11+LP11 -> 2,874 | MK11: =DE11+DY11+ES11+GG11+HA11+HU11+KC11+KW11+LQ11 -> 4,583 | ML11: =DF11+DZ11+ET11+GH11+HB11+HV11+KD11+KX11+LR11 -> 65,154 | MM11: =DG11+EA11+EU11+GI11+HC11+HW11+KE11+KY11+LS11 -> 0 | MN11: =DH11+EB11+EV11+GJ11+HD11+HX11+KF11+KZ11+LT11 -> 0 | MO11: =DI11+EC11+EW11+GK11+HE11+HY11+KG11+LA11+LU11 -> 0 | MP11: =DJ11+ED11+EX11+GL11+HF11+HZ11+KH11+LB11+LV11 -> 0 | MQ11: =DK11+EE11+EY11+GM11+HG11+IA11+KI11+LC11+LW11 -> 0 | MR11: =DL11+EF11+EZ11+GN11+HH11+IB11+KJ11+LD11+LX11 -> 0 | MS11: =DM11+EG11+FA11+GO11+HI11+IC11+KK11+LE11+LY11 -> 0 | MT11: =DN11+EH11+FB11+GP11+HJ11+ID11+KL11+LF11+LZ11 -> 0 | MU11: =DO11+EI11+FC11+GQ11+HK11+IE11+KM11+LG11+MA11 -> 0 | MV11: =DP11+EJ11+FD11+GR11+HL11+IF11+KN11+LH11+MB11 -> 0 | MW11: =DQ11+EK11+FE11+GS11+HM11+IG11+KO11+LI11+MC11 -> 0 | MX11: =NR11+OL11+PF11 -> 6,277 | MY11: =NS11+OM11+PG11 -> 0 | MZ11: =NT11+ON11+PH11 -> 0 | NA11: =NU11+OO11+PI11 -> 6,277 | NB11: =NV11+OP11+PJ11 -> 0 | NC11: =NW11+OQ11+PK11 -> 6,472 | ND11: =NX11+OR11+PL11 -> 200 | NE11: =NY11+OS11+PM11 -> 0 | NF11: =NZ11+OT11+PN11 -> 6,272 | NG11: =OA11+OU11+PO11 -> 0 | NH11: =OB11+OV11+PP11 -> 0 | NI11: =OC11+OW11+PQ11 -> 0 | NJ11: =OD11+OX11+PR11 -> 0 | NK11: =OE11+OY11+PS11 -> 0 | NL11: =OF11+OZ11+PT11 -> 0 | NM11: =OG11+PA11+PU11 -> 0 | NN11: =OH11+PB11+PV11 -> 0 | NO11: =OI11+PC11+PW11 -> 0 | NP11: =OJ11+PD11+PX11 -> 0 | NQ11: =OK11+PE11+PY11 -> 0 | NR11: =NS11+NT11+NU11+NV11 -> 5,492 | NS11: 0 | NT11: 0 | NU11: 5,492 | NV11: 0 | NW11: =NX11+NY11+NZ11+OA11 -> 3,000 | NX11: 0 | NY11: 0 | NZ11: 3,000 | OA11: 0 | OB11: =OC11+OD11+OE11+OF11 -> 0 | OC11: 0 | OD11: 0 | OE11: 0 | OF11: 0 | OG11: =OH11+OI11+OJ11+OK11 -> 0 | OH11: 0 | OI11: 0 | OJ11: 0 | OK11: 0 | OL11: =OM11+ON11+OO11+OP11 -> 785 | OM11: 0 | ON11: 0 | OO11: 785 | OP11: 0 | OQ11: =OR11+OS11+OT11+OU11 -> 2,700 | OR11: 200 | OS11: 0 | OT11: 2,500 | OU11: 0 | OV11: =OW11+OX11+OY11+OZ11 -> 0 | OW11: 0 | OX11: 0 | OY11: 0 | OZ11: 0 | PA11: =PB11+PC11+PD11+PE11 -> 0 | PB11: 0 | PC11: 0 | PD11: 0 | PE11: 0 | PF11: =PG11+PH11+PI11+PJ11 -> 0 | PG11: 0 | PH11: 0 | PI11: 0 | PJ11: 0 | PK11: =PL11+PM11+PN11+PO11 -> 772 | PL11: 0 | PM11: 0 | PN11: 772 | PO11: 0 | PP11: =PQ11+PR11+PS11+PT11 -> 0 | PQ11: 0 | PR11: 0 | PS11: 0 | PT11: 0 | PU11: =PV11+PW11+PX11+PY11 -> 0 | PV11: 0 | PW11: 0 | PX11: 0 | PY11: 0 | PZ11: =AP11-BT11 -> 95,564 | QA11: =AQ11-BU11 -> 2,532 | QB11: =AR11-BV11 -> 5,850 | QC11: =AS11-BW11 -> 87,182 | QD11: =AT11-BX11 -> 0 | QE11: =AU11-BY11 -> 79,083 | QF11: =AV11-BZ11 -> 3,074 | QG11: =AW11-CA11 -> 4,583 | QH11: =AX11-CB11 -> 71,426 | QI11: =AY11-CC11 -> 0 | QJ11: =ROUND(Q11-V11-AP11,5) -> 12,493 | QK11: =ROUND(R11-W11-AQ11,5) -> 0 | QL11: =ROUND(S11-X11-AR11,5) -> 0 | QM11: =ROUND(T11-Y11-AS11,5) -> 12,493 | QN11: =ROUND(U11-Z11-AT11,5) -> 0 | QO11: =ROUND(Q11-AA11-AU11,5) -> 28,726 | QP11: =ROUND(R11-AB11-AV11,5) -> 1 | QQ11: =ROUND(S11-AC11-AW11,5) -> 0 | QR11: =ROUND(T11-AD11-AX11,5) -> 28,725 | QS11: =ROUND(U11-AE11-AY11,5) -> 0 | QT11: =V11+BT11 -> 35,335 | QU11: =W11+BU11 -> 5,666 | QV11: =X11+BV11 -> 918 | QW11: =Y11+BW11 -> 28,751 | QX11: =Z11+BX11 -> 0 | QY11: =AA11+BY11 -> 35,583 | QZ11: =AB11+BZ11 -> 5,123 | RA11: =AC11+CA11 -> 2,185 | RB11: =AD11+CB11 -> 28,275 | RC11: =AE11+CC11 -> 0 | RD11: =Q11-V11-BT11 -> 108,057 | RE11: =R11-W11-BU11 -> 2,532 | RF11: =S11-X11-BV11 -> 5,850 | RG11: =T11-Y11-BW11 -> 99,675 | RH11: =U11-Z11-BX11 -> 0 | RI11: =Q11-AA11-BY11 -> 107,809 | RJ11: =R11-AB11-BZ11 -> 3,075 | RK11: =S11-AC11-CA11 -> 4,583 | RL11: =T11-AD11-CB11 -> 100,151 | RM11: =U11-AE11-CC11 -> 0 | RN11: =QT11-QY11 -> -248 | RO11: =QU11-QZ11 -> 543 | RP11: =QV11-RA11 -> -1,267 | RQ11: =QW11-RB11 -> 476 | RR11: =QX11-RC11 -> 0 | RT11: =BO11+IF(Ф!$K$4=1,DW11+EQ11,0)+IF(Ф!$K$4=2,EQ11+GE11,0)+IF(Ф!$K$4=3,GE11+GY11,0)+IF(Ф!$K$4=4,GY11+HS11,0)+IF(Ф!$K$4=5,HS11+KA11,0)+IF(Ф!$K$4=6,KA11+KU11,0)+IF(Ф!$K$4=7,KU11+LO11,0)+IF(Ф!$K$4=8,LO11+NW11,0)+IF(Ф!$K$4=9,NW11+OQ11,0)+IF(Ф!$K$4=10,OQ11+PK11,0)+IF(Ф!$K$4=11,PK11,0)-BY11 -> 18,666 | RU11: =RT11*(1+Ф!$K$9) -> 22,026 | RV11: =IF(ISNUMBER(AU11),IF((IF(ISNUMBER(AZ11),AZ11,0)+IF(ISNUMBER(BA11),BA11,0))<>AU11,AU11-(IF(ISNUMBER(AZ11),AZ11,0)+IF(ISNUMBER(BA11),BA11,0)),""),) ->  | RW11: =IF(ISNUMBER(BY11),IF((IF(ISNUMBER(BE11),BE11,0)+IF(ISNUMBER(BF11),BF11,0))<>BY11,BY11-(IF(ISNUMBER(BE11),BE11,0)+IF(ISNUMBER(BF11),BF11,0)),""),) ->  | RX11: =QE11*(1+$SC$2) -> 93,318 | RY11: =(Q11*1.1-QY11)*(1+$SC$2) -> 144,135 | SA11: =RU11-RZ11 -> 22,026 | SB11: =RX11-RZ11 -> 93,318 | SC11: =RY11-RZ11 -> 144,135
B12: 15 | C12: 12 | K12: ВСЕГО с ИТ и ССБ бюджетом | Q12: 143,392 | R12: 8,198 | S12: 6,768 | T12: 128,426 | U12: 0 | V12: 35,335 | W12: 5,666 | X12: 918 | Y12: 28,751 | Z12: 0 | AA12: 35,583 | AB12: 5,123 | AC12: 2,185 | AD12: 28,275 | AE12: 0 | AF12: 108,057 | AG12: 2,532 | AH12: 5,850 | AI12: 99,675 | AJ12: 0 | AK12: 107,809 | AL12: 3,075 | AM12: 4,583 | AN12: 100,151 | AO12: 0 | AP12: 95,564 | AQ12: 2,532 | AR12: 5,850 | AS12: 87,182 | AT12: 0 | AU12: 79,083 | AV12: 3,074 | AW12: 4,583 | AX12: 71,426 | AY12: 0 | AZ12: 79,083 | BJ12: =IF(Ф!$K$4>=1,CX12,0)+IF(Ф!$K$4>=2,DR12,0)+IF(Ф!$K$4>=3,EL12,0)+IF(Ф!$K$4>=4,FZ12,0)+IF(Ф!$K$4>=5,GT12,0)+IF(Ф!$K$4>=6,HN12,0)+IF(Ф!$K$4>=7,JV12,0)+IF(Ф!$K$4>=8,KP12,0)+IF(Ф!$K$4>=9,LJ12,0)+IF(Ф!$K$4>=10,NR12,0)+IF(Ф!$K$4>=11,OL12,0)+IF(Ф!$K$4>=12,PF12,0) -> 2,399 | BK12: =IF(Ф!$K$4>=1,CY12,0)+IF(Ф!$K$4>=2,DS12,0)+IF(Ф!$K$4>=3,EM12,0)+IF(Ф!$K$4>=4,GA12,0)+IF(Ф!$K$4>=5,GU12,0)+IF(Ф!$K$4>=6,HO12,0)+IF(Ф!$K$4>=7,JW12,0)+IF(Ф!$K$4>=8,KQ12,0)+IF(Ф!$K$4>=9,LK12,0)+IF(Ф!$K$4>=10,NS12,0)+IF(Ф!$K$4>=11,OM12,0)+IF(Ф!$K$4>=12,PG12,0) -> 0 | BL12: =IF(Ф!$K$4>=1,CZ12,0)+IF(Ф!$K$4>=2,DT12,0)+IF(Ф!$K$4>=3,EN12,0)+IF(Ф!$K$4>=4,GB12,0)+IF(Ф!$K$4>=5,GV12,0)+IF(Ф!$K$4>=6,HP12,0)+IF(Ф!$K$4>=7,JX12,0)+IF(Ф!$K$4>=8,KR12,0)+IF(Ф!$K$4>=9,LL12,0)+IF(Ф!$K$4>=10,NT12,0)+IF(Ф!$K$4>=11,ON12,0)+IF(Ф!$K$4>=12,PH12,0) -> 0 | BM12: =IF(Ф!$K$4>=1,DA12,0)+IF(Ф!$K$4>=2,DU12,0)+IF(Ф!$K$4>=3,EO12,0)+IF(Ф!$K$4>=4,GC12,0)+IF(Ф!$K$4>=5,GW12,0)+IF(Ф!$K$4>=6,HQ12,0)+IF(Ф!$K$4>=7,JY12,0)+IF(Ф!$K$4>=8,KS12,0)+IF(Ф!$K$4>=9,LM12,0)+IF(Ф!$K$4>=10,NU12,0)+IF(Ф!$K$4>=11,OO12,0)+IF(Ф!$K$4>=12,PI12,0) -> 2,399 | BN12: =IF(Ф!$K$4>=1,DB12,0)+IF(Ф!$K$4>=2,DV12,0)+IF(Ф!$K$4>=3,EP12,0)+IF(Ф!$K$4>=4,GD12,0)+IF(Ф!$K$4>=5,GX12,0)+IF(Ф!$K$4>=6,HR12,0)+IF(Ф!$K$4>=7,JZ12,0)+IF(Ф!$K$4>=8,KT12,0)+IF(Ф!$K$4>=9,LN12,0)+IF(Ф!$K$4>=10,NV12,0)+IF(Ф!$K$4>=11,OP12,0)+IF(Ф!$K$4>=12,PJ12,0) -> 0 | BO12: =IF(Ф!$K$4>=1,DC12,0)+IF(Ф!$K$4>=2,DW12,0)+IF(Ф!$K$4>=3,EQ12,0)+IF(Ф!$K$4>=4,GE12,0)+IF(Ф!$K$4>=5,GY12,0)+IF(Ф!$K$4>=6,HS12,0)+IF(Ф!$K$4>=7,KA12,0)+IF(Ф!$K$4>=8,KU12,0)+IF(Ф!$K$4>=9,LO12,0)+IF(Ф!$K$4>=10,NW12,0)+IF(Ф!$K$4>=11,OQ12,0)+IF(Ф!$K$4>=12,PK12,0) -> 0 | BP12: =IF(Ф!$K$4>=1,DD12,0)+IF(Ф!$K$4>=2,DX12,0)+IF(Ф!$K$4>=3,ER12,0)+IF(Ф!$K$4>=4,GF12,0)+IF(Ф!$K$4>=5,GZ12,0)+IF(Ф!$K$4>=6,HT12,0)+IF(Ф!$K$4>=7,KB12,0)+IF(Ф!$K$4>=8,KV12,0)+IF(Ф!$K$4>=9,LP12,0)+IF(Ф!$K$4>=10,NX12,0)+IF(Ф!$K$4>=11,OR12,0)+IF(Ф!$K$4>=12,PL12,0) -> 0 | BQ12: =IF(Ф!$K$4>=1,DE12,0)+IF(Ф!$K$4>=2,DY12,0)+IF(Ф!$K$4>=3,ES12,0)+IF(Ф!$K$4>=4,GG12,0)+IF(Ф!$K$4>=5,HA12,0)+IF(Ф!$K$4>=6,HU12,0)+IF(Ф!$K$4>=7,KC12,0)+IF(Ф!$K$4>=8,KW12,0)+IF(Ф!$K$4>=9,LQ12,0)+IF(Ф!$K$4>=10,NY12,0)+IF(Ф!$K$4>=11,OS12,0)+IF(Ф!$K$4>=12,PM12,0) -> 0 | BR12: =IF(Ф!$K$4>=1,DF12,0)+IF(Ф!$K$4>=2,DZ12,0)+IF(Ф!$K$4>=3,ET12,0)+IF(Ф!$K$4>=4,GH12,0)+IF(Ф!$K$4>=5,HB12,0)+IF(Ф!$K$4>=6,HV12,0)+IF(Ф!$K$4>=7,KD12,0)+IF(Ф!$K$4>=8,KX12,0)+IF(Ф!$K$4>=9,LR12,0)+IF(Ф!$K$4>=10,NZ12,0)+IF(Ф!$K$4>=11,OT12,0)+IF(Ф!$K$4>=12,PN12,0) -> 0 | BS12: =IF(Ф!$K$4>=1,DG12,0)+IF(Ф!$K$4>=2,EA12,0)+IF(Ф!$K$4>=3,EU12,0)+IF(Ф!$K$4>=4,GI12,0)+IF(Ф!$K$4>=5,HC12,0)+IF(Ф!$K$4>=6,HW12,0)+IF(Ф!$K$4>=7,KE12,0)+IF(Ф!$K$4>=8,KY12,0)+IF(Ф!$K$4>=9,LS12,0)+IF(Ф!$K$4>=10,OA12,0)+IF(Ф!$K$4>=11,OU12,0)+IF(Ф!$K$4>=12,PO12,0) -> 0 | BT12: =IF(Ф!$K$4>=1,DH12,0)+IF(Ф!$K$4>=2,EB12,0)+IF(Ф!$K$4>=3,EV12,0)+IF(Ф!$K$4>=4,GJ12,0)+IF(Ф!$K$4>=5,HD12,0)+IF(Ф!$K$4>=6,HX12,0)+IF(Ф!$K$4>=7,KF12,0)+IF(Ф!$K$4>=8,KZ12,0)+IF(Ф!$K$4>=9,LT12,0)+IF(Ф!$K$4>=10,OB12,0)+IF(Ф!$K$4>=11,OV12,0)+IF(Ф!$K$4>=12,PP12,0) -> 0 | BU12: =IF(Ф!$K$4>=1,DI12,0)+IF(Ф!$K$4>=2,EC12,0)+IF(Ф!$K$4>=3,EW12,0)+IF(Ф!$K$4>=4,GK12,0)+IF(Ф!$K$4>=5,HE12,0)+IF(Ф!$K$4>=6,HY12,0)+IF(Ф!$K$4>=7,KG12,0)+IF(Ф!$K$4>=8,LA12,0)+IF(Ф!$K$4>=9,LU12,0)+IF(Ф!$K$4>=10,OC12,0)+IF(Ф!$K$4>=11,OW12,0)+IF(Ф!$K$4>=12,PQ12,0) -> 0 | BV12: =IF(Ф!$K$4>=1,DJ12,0)+IF(Ф!$K$4>=2,ED12,0)+IF(Ф!$K$4>=3,EX12,0)+IF(Ф!$K$4>=4,GL12,0)+IF(Ф!$K$4>=5,HF12,0)+IF(Ф!$K$4>=6,HZ12,0)+IF(Ф!$K$4>=7,KH12,0)+IF(Ф!$K$4>=8,LB12,0)+IF(Ф!$K$4>=9,LV12,0)+IF(Ф!$K$4>=10,OD12,0)+IF(Ф!$K$4>=11,OX12,0)+IF(Ф!$K$4>=12,PR12,0) -> 0 | BW12: =IF(Ф!$K$4>=1,DK12,0)+IF(Ф!$K$4>=2,EE12,0)+IF(Ф!$K$4>=3,EY12,0)+IF(Ф!$K$4>=4,GM12,0)+IF(Ф!$K$4>=5,HG12,0)+IF(Ф!$K$4>=6,IA12,0)+IF(Ф!$K$4>=7,KI12,0)+IF(Ф!$K$4>=8,LC12,0)+IF(Ф!$K$4>=9,LW12,0)+IF(Ф!$K$4>=10,OE12,0)+IF(Ф!$K$4>=11,OY12,0)+IF(Ф!$K$4>=12,PS12,0) -> 0 | BX12: =IF(Ф!$K$4>=1,DL12,0)+IF(Ф!$K$4>=2,EF12,0)+IF(Ф!$K$4>=3,EZ12,0)+IF(Ф!$K$4>=4,GN12,0)+IF(Ф!$K$4>=5,HH12,0)+IF(Ф!$K$4>=6,IB12,0)+IF(Ф!$K$4>=7,KJ12,0)+IF(Ф!$K$4>=8,LD12,0)+IF(Ф!$K$4>=9,LX12,0)+IF(Ф!$K$4>=10,OF12,0)+IF(Ф!$K$4>=11,OZ12,0)+IF(Ф!$K$4>=12,PT12,0) -> 0 | BY12: =IF(Ф!$K$4>=1,DM12,0)+IF(Ф!$K$4>=2,EG12,0)+IF(Ф!$K$4>=3,FA12,0)+IF(Ф!$K$4>=4,GO12,0)+IF(Ф!$K$4>=5,HI12,0)+IF(Ф!$K$4>=6,IC12,0)+IF(Ф!$K$4>=7,KK12,0)+IF(Ф!$K$4>=8,LE12,0)+IF(Ф!$K$4>=9,LY12,0)+IF(Ф!$K$4>=10,OG12,0)+IF(Ф!$K$4>=11,PA12,0)+IF(Ф!$K$4>=12,PU12,0) -> 0 | BZ12: =IF(Ф!$K$4>=1,DN12,0)+IF(Ф!$K$4>=2,EH12,0)+IF(Ф!$K$4>=3,FB12,0)+IF(Ф!$K$4>=4,GP12,0)+IF(Ф!$K$4>=5,HJ12,0)+IF(Ф!$K$4>=6,ID12,0)+IF(Ф!$K$4>=7,KL12,0)+IF(Ф!$K$4>=8,LF12,0)+IF(Ф!$K$4>=9,LZ12,0)+IF(Ф!$K$4>=10,OH12,0)+IF(Ф!$K$4>=11,PB12,0)+IF(Ф!$K$4>=12,PV12,0) -> 0 | CA12: =IF(Ф!$K$4>=1,DO12,0)+IF(Ф!$K$4>=2,EI12,0)+IF(Ф!$K$4>=3,FC12,0)+IF(Ф!$K$4>=4,GQ12,0)+IF(Ф!$K$4>=5,HK12,0)+IF(Ф!$K$4>=6,IE12,0)+IF(Ф!$K$4>=7,KM12,0)+IF(Ф!$K$4>=8,LG12,0)+IF(Ф!$K$4>=9,MA12,0)+IF(Ф!$K$4>=10,OI12,0)+IF(Ф!$K$4>=11,PC12,0)+IF(Ф!$K$4>=12,PW12,0) -> 0 | CB12: =IF(Ф!$K$4>=1,DP12,0)+IF(Ф!$K$4>=2,EJ12,0)+IF(Ф!$K$4>=3,FD12,0)+IF(Ф!$K$4>=4,GR12,0)+IF(Ф!$K$4>=5,HL12,0)+IF(Ф!$K$4>=6,IF12,0)+IF(Ф!$K$4>=7,KN12,0)+IF(Ф!$K$4>=8,LH12,0)+IF(Ф!$K$4>=9,MB12,0)+IF(Ф!$K$4>=10,OJ12,0)+IF(Ф!$K$4>=11,PD12,0)+IF(Ф!$K$4>=12,PX12,0) -> 0 | CC12: =IF(Ф!$K$4>=1,DQ12,0)+IF(Ф!$K$4>=2,EK12,0)+IF(Ф!$K$4>=3,FE12,0)+IF(Ф!$K$4>=4,GS12,0)+IF(Ф!$K$4>=5,HM12,0)+IF(Ф!$K$4>=6,IG12,0)+IF(Ф!$K$4>=7,KO12,0)+IF(Ф!$K$4>=8,LI12,0)+IF(Ф!$K$4>=9,MC12,0)+IF(Ф!$K$4>=10,OK12,0)+IF(Ф!$K$4>=11,PE12,0)+IF(Ф!$K$4>=12,PY12,0) -> 0 | CD12: 20,593 | CE12: 282 | CF12: 4,347 | CG12: 15,964 | CH12: 0 | CI12: 18,666 | CJ12: 624 | CK12: 3,080 | CL12: 14,962 | CM12: 0 | CN12: 0 | CO12: 0 | CP12: 0 | CQ12: 0 | CR12: 0 | CS12: 0 | CT12: 0 | CU12: 0 | CV12: 0 | CW12: 0 | CX12: 2,399 | CY12: 0 | CZ12: 0 | DA12: 2,399 | DB12: 0 | DC12: 0 | DD12: 0 | DE12: 0 | DF12: 0 | DG12: 0 | DH12: 0 | DI12: 0 | DJ12: 0 | DK12: 0 | DL12: 0 | DM12: 0 | DN12: 0 | DO12: 0 | DP12: 0 | DQ12: 0 | DR12: 6,947 | DS12: 82 | DT12: 0 | DU12: 6,865 | DV12: 0 | DW12: 9,159 | DX12: 374 | DY12: 3,080 | DZ12: 5,705 | EA12: 0 | EB12: 0 | EC12: 0 | ED12: 0 | EE12: 0 | EF12: 0 | EG12: 0 | EH12: 0 | EI12: 0 | EJ12: 0 | EK12: 0 | EL12: 11,247 | EM12: 200 | EN12: 4,347 | EO12: 6,700 | EP12: 0 | EQ12: 9,507 | ER12: 250 | ES12: 0 | ET12: 9,257 | EU12: 0 | EV12: 0 | EW12: 0 | EX12: 0 | EY12: 0 | EZ12: 0 | FA12: 0 | FB12: 0 | FC12: 0 | FD12: 0 | FE12: 0 | FF12: 23,154 | FG12: 2,050 | FH12: 0 | FI12: 21,104 | FJ12: 0 | FK12: 26,182 | FL12: 200 | FM12: 0 | FN12: 25,982 | FO12: 0 | FP12: 0 | FQ12: 0 | FR12: 0 | FS12: 0 | FT12: 0 | FU12: 0 | FV12: 0 | FW12: 0 | FX12: 0 | FY12: 0 | FZ12: 6,700 | GA12: 0 | GB12: 0 | GC12: 6,700 | GD12: 0 | GE12: 1,484 | GF12: 200 | GG12: 0 | GH12: 1,284 | GI12: 0 | GJ12: 0 | GK12: 0 | GL12: 0 | GM12: 0 | GN12: 0 | GO12: 0 | GP12: 0 | GQ12: 0 | GR12: 0 | GS12: 0 | GT12: 6,700 | GU12: 0 | GV12: 0 | GW12: 6,700 | GX12: 0 | GY12: 12,498 | GZ12: 0 | HA12: 0 | HB12: 12,498 | HC12: 0 | HD12: 0 | HE12: 0 | HF12: 0 | HG12: 0 | HH12: 0 | HI12: 0 | HJ12: 0 | HK12: 0 | HL12: 0 | HM12: 0 | HN12: 9,754 | HO12: 2,050 | HP12: 0 | HQ12: 7,704 | HR12: 0 | HS12: 12,200 | HT12: 0 | HU12: 0 | HV12: 12,200 | HW12: 0 | HX12: 0 | HY12: 0 | HZ12: 0 | IA12: 0 | IB12: 0 | IC12: 0 | ID12: 0 | IE12: 0 | IF12: 0 | IG12: 0 | IH12: 43,747 | II12: 2,332 | IJ12: 4,347 | IK12: 37,068 | IL12: 0 | IM12: 44,848 | IN12: 824 | IO12: 3,080 | IP12: 40,944 | IQ12: 0 | IR12: 0 | IS12: 0 | IT12: 0 | IU12: 0 | IV12: 0 | IW12: 0 | IX12: 0 | IY12: 0 | IZ12: 0 | JA12: 0 | JB12: 45,540 | JC12: 200 | JD12: 1,503 | JE12: 43,837 | JF12: 0 | JG12: 27,763 | JH12: 2,050 | JI12: 1,503 | JJ12: 24,210 | JK12: 0 | JL12: 0 | JM12: 0 | JN12: 0 | JO12: 0 | JP12: 0 | JQ12: 0 | JR12: 0 | JS12: 0 | JT12: 0 | JU12: 0 | JV12: 11,967 | JW12: 0 | JX12: 0 | JY12: 11,967 | JZ12: 0 | KA12: 10,330 | KB12: 0 | KC12: 1,503 | KD12: 8,827 | KE12: 0 | KF12: 0 | KG12: 0 | KH12: 0 | KI12: 0 | KJ12: 0 | KK12: 0 | KL12: 0 | KM12: 0 | KN12: 0 | KO12: 0 | KP12: 15,686 | KQ12: 0 | KR12: 0 | KS12: 15,686 | KT12: 0 | KU12: 8,200 | KV12: 0 | KW12: 0 | KX12: 8,200 | KY12: 0 | KZ12: 0 | LA12: 0 | LB12: 0 | LC12: 0 | LD12: 0 | LE12: 0 | LF12: 0 | LG12: 0 | LH12: 0 | LI12: 0 | LJ12: 17,887 | LK12: 200 | LL12: 1,503 | LM12: 16,184 | LN12: 0 | LO12: 9,233 | LP12: 2,050 | LQ12: 0 | LR12: 7,183 | LS12: 0 | LT12: 0 | LU12: 0 | LV12: 0 | LW12: 0 | LX12: 0 | LY12: 0 | LZ12: 0 | MA12: 0 | MB12: 0 | MC12: 0 | MD12: 89,287 | ME12: 2,532 | MF12: 5,850 | MG12: 80,905 | MH12: 0 | MI12: 72,611 | MJ12: 2,874 | MK12: 4,583 | ML12: 65,154 | MM12: 0 | MN12: 0 | MO12: 0 | MP12: 0 | MQ12: 0 | MR12: 0 | MS12: 0 | MT12: 0 | MU12: 0 | MV12: 0 | MW12: 0 | MX12: 6,277 | MY12: 0 | MZ12: 0 | NA12: 6,277 | NB12: 0 | NC12: 6,472 | ND12: 200 | NE12: 0 | NF12: 6,272 | NG12: 0 | NH12: 0 | NI12: 0 | NJ12: 0 | NK12: 0 | NL12: 0 | NM12: 0 | NN12: 0 | NO12: 0 | NP12: 0 | NQ12: 0 | NR12: 5,492 | NS12: 0 | NT12: 0 | NU12: 5,492 | NV12: 0 | NW12: 3,000 | NX12: 0 | NY12: 0 | NZ12: 3,000 | OA12: 0 | OB12: 0 | OC12: 0 | OD12: 0 | OE12: 0 | OF12: 0 | OG12: 0 | OH12: 0 | OI12: 0 | OJ12: 0 | OK12: 0 | OL12: 785 | OM12: 0 | ON12: 0 | OO12: 785 | OP12: 0 | OQ12: 2,700 | OR12: 200 | OS12: 0 | OT12: 2,500 | OU12: 0 | OV12: 0 | OW12: 0 | OX12: 0 | OY12: 0 | OZ12: 0 | PA12: 0 | PB12: 0 | PC12: 0 | PD12: 0 | PE12: 0 | PF12: 0 | PG12: 0 | PH12: 0 | PI12: 0 | PJ12: 0 | PK12: 772 | PL12: 0 | PM12: 0 | PN12: 772 | PO12: 0 | PP12: 0 | PQ12: 0 | PR12: 0 | PS12: 0 | PT12: 0 | PU12: 0 | PV12: 0 | PW12: 0 | PX12: 0 | PY12: 0 | PZ12: 95,564 | QA12: 2,532 | QB12: 5,850 | QC12: 87,182 | QD12: 0 | QE12: 79,083 | QF12: 3,074 | QG12: 4,583 | QH12: 71,426 | QI12: 0 | QJ12: 12,493 | QK12: 0 | QL12: 0 | QM12: 12,493 | QN12: 0 | QO12: 28,726 | QP12: 1 | QQ12: 0 | QR12: 28,725 | QS12: 0 | QT12: 35,335 | QU12: 5,666 | QV12: 918 | QW12: 28,751 | QX12: 0 | QY12: 35,583 | QZ12: 5,123 | RA12: 2,185 | RB12: 28,275 | RC12: 0 | RD12: 108,057 | RE12: 2,532 | RF12: 5,850 | RG12: 99,675 | RH12: 0 | RI12: 107,809 | RJ12: 3,075 | RK12: 4,583 | RL12: 100,151 | RM12: 0 | RN12: -248 | RO12: 543 | RP12: -1,267 | RQ12: 476 | RR12: 0 | RT12: =BO12+IF(Ф!$K$4=1,DW12+EQ12,0)+IF(Ф!$K$4=2,EQ12+GE12,0)+IF(Ф!$K$4=3,GE12+GY12,0)+IF(Ф!$K$4=4,GY12+HS12,0)+IF(Ф!$K$4=5,HS12+KA12,0)+IF(Ф!$K$4=6,KA12+KU12,0)+IF(Ф!$K$4=7,KU12+LO12,0)+IF(Ф!$K$4=8,LO12+NW12,0)+IF(Ф!$K$4=9,NW12+OQ12,0)+IF(Ф!$K$4=10,OQ12+PK12,0)+IF(Ф!$K$4=11,PK12,0)-BY12 -> 18,666 | RU12: =RT12*(1+Ф!$K$9) -> 22,026 | RX12: 93,318 | RY12: 144,135 | SA12: 22,026 | SB12: 93,318 | SC12: 144,135
B13: 18 | C13: 13 | K13: Поддержание существующих мощностей и техперевооружение | Q13: 143,392 | R13: 8,198 | S13: 6,768 | T13: 128,426 | U13: 0 | V13: 35,335 | W13: 5,666 | X13: 918 | Y13: 28,751 | Z13: 0 | AA13: 35,583 | AB13: 5,123 | AC13: 2,185 | AD13: 28,275 | AE13: 0 | AF13: 108,057 | AG13: 2,532 | AH13: 5,850 | AI13: 99,675 | AJ13: 0 | AK13: 107,809 | AL13: 3,075 | AM13: 4,583 | AN13: 100,151 | AO13: 0 | AP13: 95,564 | AQ13: 2,532 | AR13: 5,850 | AS13: 87,182 | AT13: 0 | AU13: 79,083 | AV13: 3,074 | AW13: 4,583 | AX13: 71,426 | AY13: 0 | AZ13: 79,083 | BJ13: =IF(Ф!$K$4>=1,CX13,0)+IF(Ф!$K$4>=2,DR13,0)+IF(Ф!$K$4>=3,EL13,0)+IF(Ф!$K$4>=4,FZ13,0)+IF(Ф!$K$4>=5,GT13,0)+IF(Ф!$K$4>=6,HN13,0)+IF(Ф!$K$4>=7,JV13,0)+IF(Ф!$K$4>=8,KP13,0)+IF(Ф!$K$4>=9,LJ13,0)+IF(Ф!$K$4>=10,NR13,0)+IF(Ф!$K$4>=11,OL13,0)+IF(Ф!$K$4>=12,PF13,0) -> 2,399 | BK13: =IF(Ф!$K$4>=1,CY13,0)+IF(Ф!$K$4>=2,DS13,0)+IF(Ф!$K$4>=3,EM13,0)+IF(Ф!$K$4>=4,GA13,0)+IF(Ф!$K$4>=5,GU13,0)+IF(Ф!$K$4>=6,HO13,0)+IF(Ф!$K$4>=7,JW13,0)+IF(Ф!$K$4>=8,KQ13,0)+IF(Ф!$K$4>=9,LK13,0)+IF(Ф!$K$4>=10,NS13,0)+IF(Ф!$K$4>=11,OM13,0)+IF(Ф!$K$4>=12,PG13,0) -> 0 | BL13: =IF(Ф!$K$4>=1,CZ13,0)+IF(Ф!$K$4>=2,DT13,0)+IF(Ф!$K$4>=3,EN13,0)+IF(Ф!$K$4>=4,GB13,0)+IF(Ф!$K$4>=5,GV13,0)+IF(Ф!$K$4>=6,HP13,0)+IF(Ф!$K$4>=7,JX13,0)+IF(Ф!$K$4>=8,KR13,0)+IF(Ф!$K$4>=9,LL13,0)+IF(Ф!$K$4>=10,NT13,0)+IF(Ф!$K$4>=11,ON13,0)+IF(Ф!$K$4>=12,PH13,0) -> 0 | BM13: =IF(Ф!$K$4>=1,DA13,0)+IF(Ф!$K$4>=2,DU13,0)+IF(Ф!$K$4>=3,EO13,0)+IF(Ф!$K$4>=4,GC13,0)+IF(Ф!$K$4>=5,GW13,0)+IF(Ф!$K$4>=6,HQ13,0)+IF(Ф!$K$4>=7,JY13,0)+IF(Ф!$K$4>=8,KS13,0)+IF(Ф!$K$4>=9,LM13,0)+IF(Ф!$K$4>=10,NU13,0)+IF(Ф!$K$4>=11,OO13,0)+IF(Ф!$K$4>=12,PI13,0) -> 2,399 | BN13: =IF(Ф!$K$4>=1,DB13,0)+IF(Ф!$K$4>=2,DV13,0)+IF(Ф!$K$4>=3,EP13,0)+IF(Ф!$K$4>=4,GD13,0)+IF(Ф!$K$4>=5,GX13,0)+IF(Ф!$K$4>=6,HR13,0)+IF(Ф!$K$4>=7,JZ13,0)+IF(Ф!$K$4>=8,KT13,0)+IF(Ф!$K$4>=9,LN13,0)+IF(Ф!$K$4>=10,NV13,0)+IF(Ф!$K$4>=11,OP13,0)+IF(Ф!$K$4>=12,PJ13,0) -> 0 | BO13: =IF(Ф!$K$4>=1,DC13,0)+IF(Ф!$K$4>=2,DW13,0)+IF(Ф!$K$4>=3,EQ13,0)+IF(Ф!$K$4>=4,GE13,0)+IF(Ф!$K$4>=5,GY13,0)+IF(Ф!$K$4>=6,HS13,0)+IF(Ф!$K$4>=7,KA13,0)+IF(Ф!$K$4>=8,KU13,0)+IF(Ф!$K$4>=9,LO13,0)+IF(Ф!$K$4>=10,NW13,0)+IF(Ф!$K$4>=11,OQ13,0)+IF(Ф!$K$4>=12,PK13,0) -> 0 | BP13: =IF(Ф!$K$4>=1,DD13,0)+IF(Ф!$K$4>=2,DX13,0)+IF(Ф!$K$4>=3,ER13,0)+IF(Ф!$K$4>=4,GF13,0)+IF(Ф!$K$4>=5,GZ13,0)+IF(Ф!$K$4>=6,HT13,0)+IF(Ф!$K$4>=7,KB13,0)+IF(Ф!$K$4>=8,KV13,0)+IF(Ф!$K$4>=9,LP13,0)+IF(Ф!$K$4>=10,NX13,0)+IF(Ф!$K$4>=11,OR13,0)+IF(Ф!$K$4>=12,PL13,0) -> 0 | BQ13: =IF(Ф!$K$4>=1,DE13,0)+IF(Ф!$K$4>=2,DY13,0)+IF(Ф!$K$4>=3,ES13,0)+IF(Ф!$K$4>=4,GG13,0)+IF(Ф!$K$4>=5,HA13,0)+IF(Ф!$K$4>=6,HU13,0)+IF(Ф!$K$4>=7,KC13,0)+IF(Ф!$K$4>=8,KW13,0)+IF(Ф!$K$4>=9,LQ13,0)+IF(Ф!$K$4>=10,NY13,0)+IF(Ф!$K$4>=11,OS13,0)+IF(Ф!$K$4>=12,PM13,0) -> 0 | BR13: =IF(Ф!$K$4>=1,DF13,0)+IF(Ф!$K$4>=2,DZ13,0)+IF(Ф!$K$4>=3,ET13,0)+IF(Ф!$K$4>=4,GH13,0)+IF(Ф!$K$4>=5,HB13,0)+IF(Ф!$K$4>=6,HV13,0)+IF(Ф!$K$4>=7,KD13,0)+IF(Ф!$K$4>=8,KX13,0)+IF(Ф!$K$4>=9,LR13,0)+IF(Ф!$K$4>=10,NZ13,0)+IF(Ф!$K$4>=11,OT13,0)+IF(Ф!$K$4>=12,PN13,0) -> 0 | BS13: =IF(Ф!$K$4>=1,DG13,0)+IF(Ф!$K$4>=2,EA13,0)+IF(Ф!$K$4>=3,EU13,0)+IF(Ф!$K$4>=4,GI13,0)+IF(Ф!$K$4>=5,HC13,0)+IF(Ф!$K$4>=6,HW13,0)+IF(Ф!$K$4>=7,KE13,0)+IF(Ф!$K$4>=8,KY13,0)+IF(Ф!$K$4>=9,LS13,0)+IF(Ф!$K$4>=10,OA13,0)+IF(Ф!$K$4>=11,OU13,0)+IF(Ф!$K$4>=12,PO13,0) -> 0 | BT13: =IF(Ф!$K$4>=1,DH13,0)+IF(Ф!$K$4>=2,EB13,0)+IF(Ф!$K$4>=3,EV13,0)+IF(Ф!$K$4>=4,GJ13,0)+IF(Ф!$K$4>=5,HD13,0)+IF(Ф!$K$4>=6,HX13,0)+IF(Ф!$K$4>=7,KF13,0)+IF(Ф!$K$4>=8,KZ13,0)+IF(Ф!$K$4>=9,LT13,0)+IF(Ф!$K$4>=10,OB13,0)+IF(Ф!$K$4>=11,OV13,0)+IF(Ф!$K$4>=12,PP13,0) -> 0 | BU13: =IF(Ф!$K$4>=1,DI13,0)+IF(Ф!$K$4>=2,EC13,0)+IF(Ф!$K$4>=3,EW13,0)+IF(Ф!$K$4>=4,GK13,0)+IF(Ф!$K$4>=5,HE13,0)+IF(Ф!$K$4>=6,HY13,0)+IF(Ф!$K$4>=7,KG13,0)+IF(Ф!$K$4>=8,LA13,0)+IF(Ф!$K$4>=9,LU13,0)+IF(Ф!$K$4>=10,OC13,0)+IF(Ф!$K$4>=11,OW13,0)+IF(Ф!$K$4>=12,PQ13,0) -> 0 | BV13: =IF(Ф!$K$4>=1,DJ13,0)+IF(Ф!$K$4>=2,ED13,0)+IF(Ф!$K$4>=3,EX13,0)+IF(Ф!$K$4>=4,GL13,0)+IF(Ф!$K$4>=5,HF13,0)+IF(Ф!$K$4>=6,HZ13,0)+IF(Ф!$K$4>=7,KH13,0)+IF(Ф!$K$4>=8,LB13,0)+IF(Ф!$K$4>=9,LV13,0)+IF(Ф!$K$4>=10,OD13,0)+IF(Ф!$K$4>=11,OX13,0)+IF(Ф!$K$4>=12,PR13,0) -> 0 | BW13: =IF(Ф!$K$4>=1,DK13,0)+IF(Ф!$K$4>=2,EE13,0)+IF(Ф!$K$4>=3,EY13,0)+IF(Ф!$K$4>=4,GM13,0)+IF(Ф!$K$4>=5,HG13,0)+IF(Ф!$K$4>=6,IA13,0)+IF(Ф!$K$4>=7,KI13,0)+IF(Ф!$K$4>=8,LC13,0)+IF(Ф!$K$4>=9,LW13,0)+IF(Ф!$K$4>=10,OE13,0)+IF(Ф!$K$4>=11,OY13,0)+IF(Ф!$K$4>=12,PS13,0) -> 0 | BX13: =IF(Ф!$K$4>=1,DL13,0)+IF(Ф!$K$4>=2,EF13,0)+IF(Ф!$K$4>=3,EZ13,0)+IF(Ф!$K$4>=4,GN13,0)+IF(Ф!$K$4>=5,HH13,0)+IF(Ф!$K$4>=6,IB13,0)+IF(Ф!$K$4>=7,KJ13,0)+IF(Ф!$K$4>=8,LD13,0)+IF(Ф!$K$4>=9,LX13,0)+IF(Ф!$K$4>=10,OF13,0)+IF(Ф!$K$4>=11,OZ13,0)+IF(Ф!$K$4>=12,PT13,0) -> 0 | BY13: =IF(Ф!$K$4>=1,DM13,0)+IF(Ф!$K$4>=2,EG13,0)+IF(Ф!$K$4>=3,FA13,0)+IF(Ф!$K$4>=4,GO13,0)+IF(Ф!$K$4>=5,HI13,0)+IF(Ф!$K$4>=6,IC13,0)+IF(Ф!$K$4>=7,KK13,0)+IF(Ф!$K$4>=8,LE13,0)+IF(Ф!$K$4>=9,LY13,0)+IF(Ф!$K$4>=10,OG13,0)+IF(Ф!$K$4>=11,PA13,0)+IF(Ф!$K$4>=12,PU13,0) -> 0 | BZ13: =IF(Ф!$K$4>=1,DN13,0)+IF(Ф!$K$4>=2,EH13,0)+IF(Ф!$K$4>=3,FB13,0)+IF(Ф!$K$4>=4,GP13,0)+IF(Ф!$K$4>=5,HJ13,0)+IF(Ф!$K$4>=6,ID13,0)+IF(Ф!$K$4>=7,KL13,0)+IF(Ф!$K$4>=8,LF13,0)+IF(Ф!$K$4>=9,LZ13,0)+IF(Ф!$K$4>=10,OH13,0)+IF(Ф!$K$4>=11,PB13,0)+IF(Ф!$K$4>=12,PV13,0) -> 0 | CA13: =IF(Ф!$K$4>=1,DO13,0)+IF(Ф!$K$4>=2,EI13,0)+IF(Ф!$K$4>=3,FC13,0)+IF(Ф!$K$4>=4,GQ13,0)+IF(Ф!$K$4>=5,HK13,0)+IF(Ф!$K$4>=6,IE13,0)+IF(Ф!$K$4>=7,KM13,0)+IF(Ф!$K$4>=8,LG13,0)+IF(Ф!$K$4>=9,MA13,0)+IF(Ф!$K$4>=10,OI13,0)+IF(Ф!$K$4>=11,PC13,0)+IF(Ф!$K$4>=12,PW13,0) -> 0 | CB13: =IF(Ф!$K$4>=1,DP13,0)+IF(Ф!$K$4>=2,EJ13,0)+IF(Ф!$K$4>=3,FD13,0)+IF(Ф!$K$4>=4,GR13,0)+IF(Ф!$K$4>=5,HL13,0)+IF(Ф!$K$4>=6,IF13,0)+IF(Ф!$K$4>=7,KN13,0)+IF(Ф!$K$4>=8,LH13,0)+IF(Ф!$K$4>=9,MB13,0)+IF(Ф!$K$4>=10,OJ13,0)+IF(Ф!$K$4>=11,PD13,0)+IF(Ф!$K$4>=12,PX13,0) -> 0 | CC13: =IF(Ф!$K$4>=1,DQ13,0)+IF(Ф!$K$4>=2,EK13,0)+IF(Ф!$K$4>=3,FE13,0)+IF(Ф!$K$4>=4,GS13,0)+IF(Ф!$K$4>=5,HM13,0)+IF(Ф!$K$4>=6,IG13,0)+IF(Ф!$K$4>=7,KO13,0)+IF(Ф!$K$4>=8,LI13,0)+IF(Ф!$K$4>=9,MC13,0)+IF(Ф!$K$4>=10,OK13,0)+IF(Ф!$K$4>=11,PE13,0)+IF(Ф!$K$4>=12,PY13,0) -> 0 | CD13: 20,593 | CE13: 282 | CF13: 4,347 | CG13: 15,964 | CH13: 0 | CI13: 18,666 | CJ13: 624 | CK13: 3,080 | CL13: 14,962 | CM13: 0 | CN13: 0 | CO13: 0 | CP13: 0 | CQ13: 0 | CR13: 0 | CS13: 0 | CT13: 0 | CU13: 0 | CV13: 0 | CW13: 0 | CX13: 2,399 | CY13: 0 | CZ13: 0 | DA13: 2,399 | DB13: 0 | DC13: 0 | DD13: 0 | DE13: 0 | DF13: 0 | DG13: 0 | DH13: 0 | DI13: 0 | DJ13: 0 | DK13: 0 | DL13: 0 | DM13: 0 | DN13: 0 | DO13: 0 | DP13: 0 | DQ13: 0 | DR13: 6,947 | DS13: 82 | DT13: 0 | DU13: 6,865 | DV13: 0 | DW13: 9,159 | DX13: 374 | DY13: 3,080 | DZ13: 5,705 | EA13: 0 | EB13: 0 | EC13: 0 | ED13: 0 | EE13: 0 | EF13: 0 | EG13: 0 | EH13: 0 | EI13: 0 | EJ13: 0 | EK13: 0 | EL13: 11,247 | EM13: 200 | EN13: 4,347 | EO13: 6,700 | EP13: 0 | EQ13: 9,507 | ER13: 250 | ES13: 0 | ET13: 9,257 | EU13: 0 | EV13: 0 | EW13: 0 | EX13: 0 | EY13: 0 | EZ13: 0 | FA13: 0 | FB13: 0 | FC13: 0 | FD13: 0 | FE13: 0 | FF13: 23,154 | FG13: 2,050 | FH13: 0 | FI13: 21,104 | FJ13: 0 | FK13: 26,182 | FL13: 200 | FM13: 0 | FN13: 25,982 | FO13: 0 | FP13: 0 | FQ13: 0 | FR13: 0 | FS13: 0 | FT13: 0 | FU13: 0 | FV13: 0 | FW13: 0 | FX13: 0 | FY13: 0 | FZ13: 6,700 | GA13: 0 | GB13: 0 | GC13: 6,700 | GD13: 0 | GE13: 1,484 | GF13: 200 | GG13: 0 | GH13: 1,284 | GI13: 0 | GJ13: 0 | GK13: 0 | GL13: 0 | GM13: 0 | GN13: 0 | GO13: 0 | GP13: 0 | GQ13: 0 | GR13: 0 | GS13: 0 | GT13: 6,700 | GU13: 0 | GV13: 0 | GW13: 6,700 | GX13: 0 | GY13: 12,498 | GZ13: 0 | HA13: 0 | HB13: 12,498 | HC13: 0 | HD13: 0 | HE13: 0 | HF13: 0 | HG13: 0 | HH13: 0 | HI13: 0 | HJ13: 0 | HK13: 0 | HL13: 0 | HM13: 0 | HN13: 9,754 | HO13: 2,050 | HP13: 0 | HQ13: 7,704 | HR13: 0 | HS13: 12,200 | HT13: 0 | HU13: 0 | HV13: 12,200 | HW13: 0 | HX13: 0 | HY13: 0 | HZ13: 0 | IA13: 0 | IB13: 0 | IC13: 0 | ID13: 0 | IE13: 0 | IF13: 0 | IG13: 0 | IH13: 43,747 | II13: 2,332 | IJ13: 4,347 | IK13: 37,068 | IL13: 0 | IM13: 44,848 | IN13: 824 | IO13: 3,080 | IP13: 40,944 | IQ13: 0 | IR13: 0 | IS13: 0 | IT13: 0 | IU13: 0 | IV13: 0 | IW13: 0 | IX13: 0 | IY13: 0 | IZ13: 0 | JA13: 0 | JB13: 45,540 | JC13: 200 | JD13: 1,503 | JE13: 43,837 | JF13: 0 | JG13: 27,763 | JH13: 2,050 | JI13: 1,503 | JJ13: 24,210 | JK13: 0 | JL13: 0 | JM13: 0 | JN13: 0 | JO13: 0 | JP13: 0 | JQ13: 0 | JR13: 0 | JS13: 0 | JT13: 0 | JU13: 0 | JV13: 11,967 | JW13: 0 | JX13: 0 | JY13: 11,967 | JZ13: 0 | KA13: 10,330 | KB13: 0 | KC13: 1,503 | KD13: 8,827 | KE13: 0 | KF13: 0 | KG13: 0 | KH13: 0 | KI13: 0 | KJ13: 0 | KK13: 0 | KL13: 0 | KM13: 0 | KN13: 0 | KO13: 0 | KP13: 15,686 | KQ13: 0 | KR13: 0 | KS13: 15,686 | KT13: 0 | KU13: 8,200 | KV13: 0 | KW13: 0 | KX13: 8,200 | KY13: 0 | KZ13: 0 | LA13: 0 | LB13: 0 | LC13: 0 | LD13: 0 | LE13: 0 | LF13: 0 | LG13: 0 | LH13: 0 | LI13: 0 | LJ13: 17,887 | LK13: 200 | LL13: 1,503 | LM13: 16,184 | LN13: 0 | LO13: 9,233 | LP13: 2,050 | LQ13: 0 | LR13: 7,183 | LS13: 0 | LT13: 0 | LU13: 0 | LV13: 0 | LW13: 0 | LX13: 0 | LY13: 0 | LZ13: 0 | MA13: 0 | MB13: 0 | MC13: 0 | MD13: 89,287 | ME13: 2,532 | MF13: 5,850 | MG13: 80,905 | MH13: 0 | MI13: 72,611 | MJ13: 2,874 | MK13: 4,583 | ML13: 65,154 | MM13: 0 | MN13: 0 | MO13: 0 | MP13: 0 | MQ13: 0 | MR13: 0 | MS13: 0 | MT13: 0 | MU13: 0 | MV13: 0 | MW13: 0 | MX13: 6,277 | MY13: 0 | MZ13: 0 | NA13: 6,277 | NB13: 0 | NC13: 6,472 | ND13: 200 | NE13: 0 | NF13: 6,272 | NG13: 0 | NH13: 0 | NI13: 0 | NJ13: 0 | NK13: 0 | NL13: 0 | NM13: 0 | NN13: 0 | NO13: 0 | NP13: 0 | NQ13: 0 | NR13: 5,492 | NS13: 0 | NT13: 0 | NU13: 5,492 | NV13: 0 | NW13: 3,000 | NX13: 0 | NY13: 0 | NZ13: 3,000 | OA13: 0 | OB13: 0 | OC13: 0 | OD13: 0 | OE13: 0 | OF13: 0 | OG13: 0 | OH13: 0 | OI13: 0 | OJ13: 0 | OK13: 0 | OL13: 785 | OM13: 0 | ON13: 0 | OO13: 785 | OP13: 0 | OQ13: 2,700 | OR13: 200 | OS13: 0 | OT13: 2,500 | OU13: 0 | OV13: 0 | OW13: 0 | OX13: 0 | OY13: 0 | OZ13: 0 | PA13: 0 | PB13: 0 | PC13: 0 | PD13: 0 | PE13: 0 | PF13: 0 | PG13: 0 | PH13: 0 | PI13: 0 | PJ13: 0 | PK13: 772 | PL13: 0 | PM13: 0 | PN13: 772 | PO13: 0 | PP13: 0 | PQ13: 0 | PR13: 0 | PS13: 0 | PT13: 0 | PU13: 0 | PV13: 0 | PW13: 0 | PX13: 0 | PY13: 0 | PZ13: 95,564 | QA13: 2,532 | QB13: 5,850 | QC13: 87,182 | QD13: 0 | QE13: 79,083 | QF13: 3,074 | QG13: 4,583 | QH13: 71,426 | QI13: 0 | QJ13: 12,493 | QK13: 0 | QL13: 0 | QM13: 12,493 | QN13: 0 | QO13: 28,726 | QP13: 1 | QQ13: 0 | QR13: 28,725 | QS13: 0 | QT13: 35,335 | QU13: 5,666 | QV13: 918 | QW13: 28,751 | QX13: 0 | QY13: 35,583 | QZ13: 5,123 | RA13: 2,185 | RB13: 28,275 | RC13: 0 | RD13: 108,057 | RE13: 2,532 | RF13: 5,850 | RG13: 99,675 | RH13: 0 | RI13: 107,809 | RJ13: 3,075 | RK13: 4,583 | RL13: 100,151 | RM13: 0 | RN13: -248 | RO13: 543 | RP13: -1,267 | RQ13: 476 | RR13: 0 | RT13: =BO13+IF(Ф!$K$4=1,DW13+EQ13,0)+IF(Ф!$K$4=2,EQ13+GE13,0)+IF(Ф!$K$4=3,GE13+GY13,0)+IF(Ф!$K$4=4,GY13+HS13,0)+IF(Ф!$K$4=5,HS13+KA13,0)+IF(Ф!$K$4=6,KA13+KU13,0)+IF(Ф!$K$4=7,KU13+LO13,0)+IF(Ф!$K$4=8,LO13+NW13,0)+IF(Ф!$K$4=9,NW13+OQ13,0)+IF(Ф!$K$4=10,OQ13+PK13,0)+IF(Ф!$K$4=11,PK13,0)-BY13 -> 18,666 | RU13: =RT13*(1+Ф!$K$9) -> 22,026 | RX13: 93,318 | RY13: 144,135 | SA13: 22,026 | SB13: 93,318 | SC13: 144,135
B14: 15 | C14: 12 | K14: ВСЕГО без ИТ и ССБ бюджета | Q14: 143,192 | R14: 7,998 | S14: 6,768 | T14: 128,426 | U14: 0 | V14: 35,335 | W14: 5,666 | X14: 918 | Y14: 28,751 | Z14: 0 | AA14: 35,583 | AB14: 5,123 | AC14: 2,185 | AD14: 28,275 | AE14: 0 | AF14: 107,857 | AG14: 2,332 | AH14: 5,850 | AI14: 99,675 | AJ14: 0 | AK14: 107,609 | AL14: 2,875 | AM14: 4,583 | AN14: 100,151 | AO14: 0 | AP14: 95,364 | AQ14: 2,332 | AR14: 5,850 | AS14: 87,182 | AT14: 0 | AU14: 78,883 | AV14: 2,874 | AW14: 4,583 | AX14: 71,426 | AY14: 0 | AZ14: 78,883 | BJ14: =IF(Ф!$K$4>=1,CX14,0)+IF(Ф!$K$4>=2,DR14,0)+IF(Ф!$K$4>=3,EL14,0)+IF(Ф!$K$4>=4,FZ14,0)+IF(Ф!$K$4>=5,GT14,0)+IF(Ф!$K$4>=6,HN14,0)+IF(Ф!$K$4>=7,JV14,0)+IF(Ф!$K$4>=8,KP14,0)+IF(Ф!$K$4>=9,LJ14,0)+IF(Ф!$K$4>=10,NR14,0)+IF(Ф!$K$4>=11,OL14,0)+IF(Ф!$K$4>=12,PF14,0) -> 2,399 | BK14: =IF(Ф!$K$4>=1,CY14,0)+IF(Ф!$K$4>=2,DS14,0)+IF(Ф!$K$4>=3,EM14,0)+IF(Ф!$K$4>=4,GA14,0)+IF(Ф!$K$4>=5,GU14,0)+IF(Ф!$K$4>=6,HO14,0)+IF(Ф!$K$4>=7,JW14,0)+IF(Ф!$K$4>=8,KQ14,0)+IF(Ф!$K$4>=9,LK14,0)+IF(Ф!$K$4>=10,NS14,0)+IF(Ф!$K$4>=11,OM14,0)+IF(Ф!$K$4>=12,PG14,0) -> 0 | BL14: =IF(Ф!$K$4>=1,CZ14,0)+IF(Ф!$K$4>=2,DT14,0)+IF(Ф!$K$4>=3,EN14,0)+IF(Ф!$K$4>=4,GB14,0)+IF(Ф!$K$4>=5,GV14,0)+IF(Ф!$K$4>=6,HP14,0)+IF(Ф!$K$4>=7,JX14,0)+IF(Ф!$K$4>=8,KR14,0)+IF(Ф!$K$4>=9,LL14,0)+IF(Ф!$K$4>=10,NT14,0)+IF(Ф!$K$4>=11,ON14,0)+IF(Ф!$K$4>=12,PH14,0) -> 0 | BM14: =IF(Ф!$K$4>=1,DA14,0)+IF(Ф!$K$4>=2,DU14,0)+IF(Ф!$K$4>=3,EO14,0)+IF(Ф!$K$4>=4,GC14,0)+IF(Ф!$K$4>=5,GW14,0)+IF(Ф!$K$4>=6,HQ14,0)+IF(Ф!$K$4>=7,JY14,0)+IF(Ф!$K$4>=8,KS14,0)+IF(Ф!$K$4>=9,LM14,0)+IF(Ф!$K$4>=10,NU14,0)+IF(Ф!$K$4>=11,OO14,0)+IF(Ф!$K$4>=12,PI14,0) -> 2,399 | BN14: =IF(Ф!$K$4>=1,DB14,0)+IF(Ф!$K$4>=2,DV14,0)+IF(Ф!$K$4>=3,EP14,0)+IF(Ф!$K$4>=4,GD14,0)+IF(Ф!$K$4>=5,GX14,0)+IF(Ф!$K$4>=6,HR14,0)+IF(Ф!$K$4>=7,JZ14,0)+IF(Ф!$K$4>=8,KT14,0)+IF(Ф!$K$4>=9,LN14,0)+IF(Ф!$K$4>=10,NV14,0)+IF(Ф!$K$4>=11,OP14,0)+IF(Ф!$K$4>=12,PJ14,0) -> 0 | BO14: =IF(Ф!$K$4>=1,DC14,0)+IF(Ф!$K$4>=2,DW14,0)+IF(Ф!$K$4>=3,EQ14,0)+IF(Ф!$K$4>=4,GE14,0)+IF(Ф!$K$4>=5,GY14,0)+IF(Ф!$K$4>=6,HS14,0)+IF(Ф!$K$4>=7,KA14,0)+IF(Ф!$K$4>=8,KU14,0)+IF(Ф!$K$4>=9,LO14,0)+IF(Ф!$K$4>=10,NW14,0)+IF(Ф!$K$4>=11,OQ14,0)+IF(Ф!$K$4>=12,PK14,0) -> 0 | BP14: =IF(Ф!$K$4>=1,DD14,0)+IF(Ф!$K$4>=2,DX14,0)+IF(Ф!$K$4>=3,ER14,0)+IF(Ф!$K$4>=4,GF14,0)+IF(Ф!$K$4>=5,GZ14,0)+IF(Ф!$K$4>=6,HT14,0)+IF(Ф!$K$4>=7,KB14,0)+IF(Ф!$K$4>=8,KV14,0)+IF(Ф!$K$4>=9,LP14,0)+IF(Ф!$K$4>=10,NX14,0)+IF(Ф!$K$4>=11,OR14,0)+IF(Ф!$K$4>=12,PL14,0) -> 0 | BQ14: =IF(Ф!$K$4>=1,DE14,0)+IF(Ф!$K$4>=2,DY14,0)+IF(Ф!$K$4>=3,ES14,0)+IF(Ф!$K$4>=4,GG14,0)+IF(Ф!$K$4>=5,HA14,0)+IF(Ф!$K$4>=6,HU14,0)+IF(Ф!$K$4>=7,KC14,0)+IF(Ф!$K$4>=8,KW14,0)+IF(Ф!$K$4>=9,LQ14,0)+IF(Ф!$K$4>=10,NY14,0)+IF(Ф!$K$4>=11,OS14,0)+IF(Ф!$K$4>=12,PM14,0) -> 0 | BR14: =IF(Ф!$K$4>=1,DF14,0)+IF(Ф!$K$4>=2,DZ14,0)+IF(Ф!$K$4>=3,ET14,0)+IF(Ф!$K$4>=4,GH14,0)+IF(Ф!$K$4>=5,HB14,0)+IF(Ф!$K$4>=6,HV14,0)+IF(Ф!$K$4>=7,KD14,0)+IF(Ф!$K$4>=8,KX14,0)+IF(Ф!$K$4>=9,LR14,0)+IF(Ф!$K$4>=10,NZ14,0)+IF(Ф!$K$4>=11,OT14,0)+IF(Ф!$K$4>=12,PN14,0) -> 0 | BS14: =IF(Ф!$K$4>=1,DG14,0)+IF(Ф!$K$4>=2,EA14,0)+IF(Ф!$K$4>=3,EU14,0)+IF(Ф!$K$4>=4,GI14,0)+IF(Ф!$K$4>=5,HC14,0)+IF(Ф!$K$4>=6,HW14,0)+IF(Ф!$K$4>=7,KE14,0)+IF(Ф!$K$4>=8,KY14,0)+IF(Ф!$K$4>=9,LS14,0)+IF(Ф!$K$4>=10,OA14,0)+IF(Ф!$K$4>=11,OU14,0)+IF(Ф!$K$4>=12,PO14,0) -> 0 | BT14: =IF(Ф!$K$4>=1,DH14,0)+IF(Ф!$K$4>=2,EB14,0)+IF(Ф!$K$4>=3,EV14,0)+IF(Ф!$K$4>=4,GJ14,0)+IF(Ф!$K$4>=5,HD14,0)+IF(Ф!$K$4>=6,HX14,0)+IF(Ф!$K$4>=7,KF14,0)+IF(Ф!$K$4>=8,KZ14,0)+IF(Ф!$K$4>=9,LT14,0)+IF(Ф!$K$4>=10,OB14,0)+IF(Ф!$K$4>=11,OV14,0)+IF(Ф!$K$4>=12,PP14,0) -> 0 | BU14: =IF(Ф!$K$4>=1,DI14,0)+IF(Ф!$K$4>=2,EC14,0)+IF(Ф!$K$4>=3,EW14,0)+IF(Ф!$K$4>=4,GK14,0)+IF(Ф!$K$4>=5,HE14,0)+IF(Ф!$K$4>=6,HY14,0)+IF(Ф!$K$4>=7,KG14,0)+IF(Ф!$K$4>=8,LA14,0)+IF(Ф!$K$4>=9,LU14,0)+IF(Ф!$K$4>=10,OC14,0)+IF(Ф!$K$4>=11,OW14,0)+IF(Ф!$K$4>=12,PQ14,0) -> 0 | BV14: =IF(Ф!$K$4>=1,DJ14,0)+IF(Ф!$K$4>=2,ED14,0)+IF(Ф!$K$4>=3,EX14,0)+IF(Ф!$K$4>=4,GL14,0)+IF(Ф!$K$4>=5,HF14,0)+IF(Ф!$K$4>=6,HZ14,0)+IF(Ф!$K$4>=7,KH14,0)+IF(Ф!$K$4>=8,LB14,0)+IF(Ф!$K$4>=9,LV14,0)+IF(Ф!$K$4>=10,OD14,0)+IF(Ф!$K$4>=11,OX14,0)+IF(Ф!$K$4>=12,PR14,0) -> 0 | BW14: =IF(Ф!$K$4>=1,DK14,0)+IF(Ф!$K$4>=2,EE14,0)+IF(Ф!$K$4>=3,EY14,0)+IF(Ф!$K$4>=4,GM14,0)+IF(Ф!$K$4>=5,HG14,0)+IF(Ф!$K$4>=6,IA14,0)+IF(Ф!$K$4>=7,KI14,0)+IF(Ф!$K$4>=8,LC14,0)+IF(Ф!$K$4>=9,LW14,0)+IF(Ф!$K$4>=10,OE14,0)+IF(Ф!$K$4>=11,OY14,0)+IF(Ф!$K$4>=12,PS14,0) -> 0 | BX14: =IF(Ф!$K$4>=1,DL14,0)+IF(Ф!$K$4>=2,EF14,0)+IF(Ф!$K$4>=3,EZ14,0)+IF(Ф!$K$4>=4,GN14,0)+IF(Ф!$K$4>=5,HH14,0)+IF(Ф!$K$4>=6,IB14,0)+IF(Ф!$K$4>=7,KJ14,0)+IF(Ф!$K$4>=8,LD14,0)+IF(Ф!$K$4>=9,LX14,0)+IF(Ф!$K$4>=10,OF14,0)+IF(Ф!$K$4>=11,OZ14,0)+IF(Ф!$K$4>=12,PT14,0) -> 0 | BY14: =IF(Ф!$K$4>=1,DM14,0)+IF(Ф!$K$4>=2,EG14,0)+IF(Ф!$K$4>=3,FA14,0)+IF(Ф!$K$4>=4,GO14,0)+IF(Ф!$K$4>=5,HI14,0)+IF(Ф!$K$4>=6,IC14,0)+IF(Ф!$K$4>=7,KK14,0)+IF(Ф!$K$4>=8,LE14,0)+IF(Ф!$K$4>=9,LY14,0)+IF(Ф!$K$4>=10,OG14,0)+IF(Ф!$K$4>=11,PA14,0)+IF(Ф!$K$4>=12,PU14,0) -> 0 | BZ14: =IF(Ф!$K$4>=1,DN14,0)+IF(Ф!$K$4>=2,EH14,0)+IF(Ф!$K$4>=3,FB14,0)+IF(Ф!$K$4>=4,GP14,0)+IF(Ф!$K$4>=5,HJ14,0)+IF(Ф!$K$4>=6,ID14,0)+IF(Ф!$K$4>=7,KL14,0)+IF(Ф!$K$4>=8,LF14,0)+IF(Ф!$K$4>=9,LZ14,0)+IF(Ф!$K$4>=10,OH14,0)+IF(Ф!$K$4>=11,PB14,0)+IF(Ф!$K$4>=12,PV14,0) -> 0 | CA14: =IF(Ф!$K$4>=1,DO14,0)+IF(Ф!$K$4>=2,EI14,0)+IF(Ф!$K$4>=3,FC14,0)+IF(Ф!$K$4>=4,GQ14,0)+IF(Ф!$K$4>=5,HK14,0)+IF(Ф!$K$4>=6,IE14,0)+IF(Ф!$K$4>=7,KM14,0)+IF(Ф!$K$4>=8,LG14,0)+IF(Ф!$K$4>=9,MA14,0)+IF(Ф!$K$4>=10,OI14,0)+IF(Ф!$K$4>=11,PC14,0)+IF(Ф!$K$4>=12,PW14,0) -> 0 | CB14: =IF(Ф!$K$4>=1,DP14,0)+IF(Ф!$K$4>=2,EJ14,0)+IF(Ф!$K$4>=3,FD14,0)+IF(Ф!$K$4>=4,GR14,0)+IF(Ф!$K$4>=5,HL14,0)+IF(Ф!$K$4>=6,IF14,0)+IF(Ф!$K$4>=7,KN14,0)+IF(Ф!$K$4>=8,LH14,0)+IF(Ф!$K$4>=9,MB14,0)+IF(Ф!$K$4>=10,OJ14,0)+IF(Ф!$K$4>=11,PD14,0)+IF(Ф!$K$4>=12,PX14,0) -> 0 | CC14: =IF(Ф!$K$4>=1,DQ14,0)+IF(Ф!$K$4>=2,EK14,0)+IF(Ф!$K$4>=3,FE14,0)+IF(Ф!$K$4>=4,GS14,0)+IF(Ф!$K$4>=5,HM14,0)+IF(Ф!$K$4>=6,IG14,0)+IF(Ф!$K$4>=7,KO14,0)+IF(Ф!$K$4>=8,LI14,0)+IF(Ф!$K$4>=9,MC14,0)+IF(Ф!$K$4>=10,OK14,0)+IF(Ф!$K$4>=11,PE14,0)+IF(Ф!$K$4>=12,PY14,0) -> 0 | CD14: 20,593 | CE14: 282 | CF14: 4,347 | CG14: 15,964 | CH14: 0 | CI14: 18,666 | CJ14: 624 | CK14: 3,080 | CL14: 14,962 | CM14: 0 | CN14: 0 | CO14: 0 | CP14: 0 | CQ14: 0 | CR14: 0 | CS14: 0 | CT14: 0 | CU14: 0 | CV14: 0 | CW14: 0 | CX14: 2,399 | CY14: 0 | CZ14: 0 | DA14: 2,399 | DB14: 0 | DC14: 0 | DD14: 0 | DE14: 0 | DF14: 0 | DG14: 0 | DH14: 0 | DI14: 0 | DJ14: 0 | DK14: 0 | DL14: 0 | DM14: 0 | DN14: 0 | DO14: 0 | DP14: 0 | DQ14: 0 | DR14: 6,947 | DS14: 82 | DT14: 0 | DU14: 6,865 | DV14: 0 | DW14: 9,159 | DX14: 374 | DY14: 3,080 | DZ14: 5,705 | EA14: 0 | EB14: 0 | EC14: 0 | ED14: 0 | EE14: 0 | EF14: 0 | EG14: 0 | EH14: 0 | EI14: 0 | EJ14: 0 | EK14: 0 | EL14: 11,247 | EM14: 200 | EN14: 4,347 | EO14: 6,700 | EP14: 0 | EQ14: 9,507 | ER14: 250 | ES14: 0 | ET14: 9,257 | EU14: 0 | EV14: 0 | EW14: 0 | EX14: 0 | EY14: 0 | EZ14: 0 | FA14: 0 | FB14: 0 | FC14: 0 | FD14: 0 | FE14: 0 | FF14: 23,154 | FG14: 2,050 | FH14: 0 | FI14: 21,104 | FJ14: 0 | FK14: 26,182 | FL14: 200 | FM14: 0 | FN14: 25,982 | FO14: 0 | FP14: 0 | FQ14: 0 | FR14: 0 | FS14: 0 | FT14: 0 | FU14: 0 | FV14: 0 | FW14: 0 | FX14: 0 | FY14: 0 | FZ14: 6,700 | GA14: 0 | GB14: 0 | GC14: 6,700 | GD14: 0 | GE14: 1,484 | GF14: 200 | GG14: 0 | GH14: 1,284 | GI14: 0 | GJ14: 0 | GK14: 0 | GL14: 0 | GM14: 0 | GN14: 0 | GO14: 0 | GP14: 0 | GQ14: 0 | GR14: 0 | GS14: 0 | GT14: 6,700 | GU14: 0 | GV14: 0 | GW14: 6,700 | GX14: 0 | GY14: 12,498 | GZ14: 0 | HA14: 0 | HB14: 12,498 | HC14: 0 | HD14: 0 | HE14: 0 | HF14: 0 | HG14: 0 | HH14: 0 | HI14: 0 | HJ14: 0 | HK14: 0 | HL14: 0 | HM14: 0 | HN14: 9,754 | HO14: 2,050 | HP14: 0 | HQ14: 7,704 | HR14: 0 | HS14: 12,200 | HT14: 0 | HU14: 0 | HV14: 12,200 | HW14: 0 | HX14: 0 | HY14: 0 | HZ14: 0 | IA14: 0 | IB14: 0 | IC14: 0 | ID14: 0 | IE14: 0 | IF14: 0 | IG14: 0 | IH14: 43,747 | II14: 2,332 | IJ14: 4,347 | IK14: 37,068 | IL14: 0 | IM14: 44,848 | IN14: 824 | IO14: 3,080 | IP14: 40,944 | IQ14: 0 | IR14: 0 | IS14: 0 | IT14: 0 | IU14: 0 | IV14: 0 | IW14: 0 | IX14: 0 | IY14: 0 | IZ14: 0 | JA14: 0 | JB14: 45,340 | JC14: 0 | JD14: 1,503 | JE14: 43,837 | JF14: 0 | JG14: 27,763 | JH14: 2,050 | JI14: 1,503 | JJ14: 24,210 | JK14: 0 | JL14: 0 | JM14: 0 | JN14: 0 | JO14: 0 | JP14: 0 | JQ14: 0 | JR14: 0 | JS14: 0 | JT14: 0 | JU14: 0 | JV14: 11,967 | JW14: 0 | JX14: 0 | JY14: 11,967 | JZ14: 0 | KA14: 10,330 | KB14: 0 | KC14: 1,503 | KD14: 8,827 | KE14: 0 | KF14: 0 | KG14: 0 | KH14: 0 | KI14: 0 | KJ14: 0 | KK14: 0 | KL14: 0 | KM14: 0 | KN14: 0 | KO14: 0 | KP14: 15,686 | KQ14: 0 | KR14: 0 | KS14: 15,686 | KT14: 0 | KU14: 8,200 | KV14: 0 | KW14: 0 | KX14: 8,200 | KY14: 0 | KZ14: 0 | LA14: 0 | LB14: 0 | LC14: 0 | LD14: 0 | LE14: 0 | LF14: 0 | LG14: 0 | LH14: 0 | LI14: 0 | LJ14: 17,687 | LK14: 0 | LL14: 1,503 | LM14: 16,184 | LN14: 0 | LO14: 9,233 | LP14: 2,050 | LQ14: 0 | LR14: 7,183 | LS14: 0 | LT14: 0 | LU14: 0 | LV14: 0 | LW14: 0 | LX14: 0 | LY14: 0 | LZ14: 0 | MA14: 0 | MB14: 0 | MC14: 0 | MD14: 89,087 | ME14: 2,332 | MF14: 5,850 | MG14: 80,905 | MH14: 0 | MI14: 72,611 | MJ14: 2,874 | MK14: 4,583 | ML14: 65,154 | MM14: 0 | MN14: 0 | MO14: 0 | MP14: 0 | MQ14: 0 | MR14: 0 | MS14: 0 | MT14: 0 | MU14: 0 | MV14: 0 | MW14: 0 | MX14: 6,277 | MY14: 0 | MZ14: 0 | NA14: 6,277 | NB14: 0 | NC14: 6,272 | ND14: 0 | NE14: 0 | NF14: 6,272 | NG14: 0 | NH14: 0 | NI14: 0 | NJ14: 0 | NK14: 0 | NL14: 0 | NM14: 0 | NN14: 0 | NO14: 0 | NP14: 0 | NQ14: 0 | NR14: 5,492 | NS14: 0 | NT14: 0 | NU14: 5,492 | NV14: 0 | NW14: 3,000 | NX14: 0 | NY14: 0 | NZ14: 3,000 | OA14: 0 | OB14: 0 | OC14: 0 | OD14: 0 | OE14: 0 | OF14: 0 | OG14: 0 | OH14: 0 | OI14: 0 | OJ14: 0 | OK14: 0 | OL14: 785 | OM14: 0 | ON14: 0 | OO14: 785 | OP14: 0 | OQ14: 2,500 | OR14: 0 | OS14: 0 | OT14: 2,500 | OU14: 0 | OV14: 0 | OW14: 0 | OX14: 0 | OY14: 0 | OZ14: 0 | PA14: 0 | PB14: 0 | PC14: 0 | PD14: 0 | PE14: 0 | PF14: 0 | PG14: 0 | PH14: 0 | PI14: 0 | PJ14: 0 | PK14: 772 | PL14: 0 | PM14: 0 | PN14: 772 | PO14: 0 | PP14: 0 | PQ14: 0 | PR14: 0 | PS14: 0 | PT14: 0 | PU14: 0 | PV14: 0 | PW14: 0 | PX14: 0 | PY14: 0 | PZ14: 95,364 | QA14: 2,332 | QB14: 5,850 | QC14: 87,182 | QD14: 0 | QE14: 78,883 | QF14: 2,874 | QG14: 4,583 | QH14: 71,426 | QI14: 0 | QJ14: 12,493 | QK14: 0 | QL14: 0 | QM14: 12,493 | QN14: 0 | QO14: 28,726 | QP14: 1 | QQ14: 0 | QR14: 28,725 | QS14: 0 | QT14: 35,335 | QU14: 5,666 | QV14: 918 | QW14: 28,751 | QX14: 0 | QY14: 35,583 | QZ14: 5,123 | RA14: 2,185 | RB14: 28,275 | RC14: 0 | RD14: 107,857 | RE14: 2,332 | RF14: 5,850 | RG14: 99,675 | RH14: 0 | RI14: 107,609 | RJ14: 2,875 | RK14: 4,583 | RL14: 100,151 | RM14: 0 | RN14: -248 | RO14: 543 | RP14: -1,267 | RQ14: 476 | RR14: 0 | RT14: =BO14+IF(Ф!$K$4=1,DW14+EQ14,0)+IF(Ф!$K$4=2,EQ14+GE14,0)+IF(Ф!$K$4=3,GE14+GY14,0)+IF(Ф!$K$4=4,GY14+HS14,0)+IF(Ф!$K$4=5,HS14+KA14,0)+IF(Ф!$K$4=6,KA14+KU14,0)+IF(Ф!$K$4=7,KU14+LO14,0)+IF(Ф!$K$4=8,LO14+NW14,0)+IF(Ф!$K$4=9,NW14+OQ14,0)+IF(Ф!$K$4=10,OQ14+PK14,0)+IF(Ф!$K$4=11,PK14,0)-BY14 -> 18,666 | RU14: =RT14*(1+Ф!$K$9) -> 22,026 | RX14: 93,082 | RY14: 143,875 | SA14: 22,026 | SB14: 93,082 | SC14: 143,875
B15: 18 | C15: 13 | K15: Поддержание существующих мощностей и техперевооружение | Q15: 143,192 | R15: 7,998 | S15: 6,768 | T15: 128,426 | U15: 0 | V15: 35,335 | W15: 5,666 | X15: 918 | Y15: 28,751 | Z15: 0 | AA15: 35,583 | AB15: 5,123 | AC15: 2,185 | AD15: 28,275 | AE15: 0 | AF15: 107,857 | AG15: 2,332 | AH15: 5,850 | AI15: 99,675 | AJ15: 0 | AK15: 107,609 | AL15: 2,875 | AM15: 4,583 | AN15: 100,151 | AO15: 0 | AP15: 95,364 | AQ15: 2,332 | AR15: 5,850 | AS15: 87,182 | AT15: 0 | AU15: 78,883 | AV15: 2,874 | AW15: 4,583 | AX15: 71,426 | AY15: 0 | AZ15: 78,883 | BJ15: =IF(Ф!$K$4>=1,CX15,0)+IF(Ф!$K$4>=2,DR15,0)+IF(Ф!$K$4>=3,EL15,0)+IF(Ф!$K$4>=4,FZ15,0)+IF(Ф!$K$4>=5,GT15,0)+IF(Ф!$K$4>=6,HN15,0)+IF(Ф!$K$4>=7,JV15,0)+IF(Ф!$K$4>=8,KP15,0)+IF(Ф!$K$4>=9,LJ15,0)+IF(Ф!$K$4>=10,NR15,0)+IF(Ф!$K$4>=11,OL15,0)+IF(Ф!$K$4>=12,PF15,0) -> 2,399 | BK15: =IF(Ф!$K$4>=1,CY15,0)+IF(Ф!$K$4>=2,DS15,0)+IF(Ф!$K$4>=3,EM15,0)+IF(Ф!$K$4>=4,GA15,0)+IF(Ф!$K$4>=5,GU15,0)+IF(Ф!$K$4>=6,HO15,0)+IF(Ф!$K$4>=7,JW15,0)+IF(Ф!$K$4>=8,KQ15,0)+IF(Ф!$K$4>=9,LK15,0)+IF(Ф!$K$4>=10,NS15,0)+IF(Ф!$K$4>=11,OM15,0)+IF(Ф!$K$4>=12,PG15,0) -> 0 | BL15: =IF(Ф!$K$4>=1,CZ15,0)+IF(Ф!$K$4>=2,DT15,0)+IF(Ф!$K$4>=3,EN15,0)+IF(Ф!$K$4>=4,GB15,0)+IF(Ф!$K$4>=5,GV15,0)+IF(Ф!$K$4>=6,HP15,0)+IF(Ф!$K$4>=7,JX15,0)+IF(Ф!$K$4>=8,KR15,0)+IF(Ф!$K$4>=9,LL15,0)+IF(Ф!$K$4>=10,NT15,0)+IF(Ф!$K$4>=11,ON15,0)+IF(Ф!$K$4>=12,PH15,0) -> 0 | BM15: =IF(Ф!$K$4>=1,DA15,0)+IF(Ф!$K$4>=2,DU15,0)+IF(Ф!$K$4>=3,EO15,0)+IF(Ф!$K$4>=4,GC15,0)+IF(Ф!$K$4>=5,GW15,0)+IF(Ф!$K$4>=6,HQ15,0)+IF(Ф!$K$4>=7,JY15,0)+IF(Ф!$K$4>=8,KS15,0)+IF(Ф!$K$4>=9,LM15,0)+IF(Ф!$K$4>=10,NU15,0)+IF(Ф!$K$4>=11,OO15,0)+IF(Ф!$K$4>=12,PI15,0) -> 2,399 | BN15: =IF(Ф!$K$4>=1,DB15,0)+IF(Ф!$K$4>=2,DV15,0)+IF(Ф!$K$4>=3,EP15,0)+IF(Ф!$K$4>=4,GD15,0)+IF(Ф!$K$4>=5,GX15,0)+IF(Ф!$K$4>=6,HR15,0)+IF(Ф!$K$4>=7,JZ15,0)+IF(Ф!$K$4>=8,KT15,0)+IF(Ф!$K$4>=9,LN15,0)+IF(Ф!$K$4>=10,NV15,0)+IF(Ф!$K$4>=11,OP15,0)+IF(Ф!$K$4>=12,PJ15,0) -> 0 | BO15: =IF(Ф!$K$4>=1,DC15,0)+IF(Ф!$K$4>=2,DW15,0)+IF(Ф!$K$4>=3,EQ15,0)+IF(Ф!$K$4>=4,GE15,0)+IF(Ф!$K$4>=5,GY15,0)+IF(Ф!$K$4>=6,HS15,0)+IF(Ф!$K$4>=7,KA15,0)+IF(Ф!$K$4>=8,KU15,0)+IF(Ф!$K$4>=9,LO15,0)+IF(Ф!$K$4>=10,NW15,0)+IF(Ф!$K$4>=11,OQ15,0)+IF(Ф!$K$4>=12,PK15,0) -> 0 | BP15: =IF(Ф!$K$4>=1,DD15,0)+IF(Ф!$K$4>=2,DX15,0)+IF(Ф!$K$4>=3,ER15,0)+IF(Ф!$K$4>=4,GF15,0)+IF(Ф!$K$4>=5,GZ15,0)+IF(Ф!$K$4>=6,HT15,0)+IF(Ф!$K$4>=7,KB15,0)+IF(Ф!$K$4>=8,KV15,0)+IF(Ф!$K$4>=9,LP15,0)+IF(Ф!$K$4>=10,NX15,0)+IF(Ф!$K$4>=11,OR15,0)+IF(Ф!$K$4>=12,PL15,0) -> 0 | BQ15: =IF(Ф!$K$4>=1,DE15,0)+IF(Ф!$K$4>=2,DY15,0)+IF(Ф!$K$4>=3,ES15,0)+IF(Ф!$K$4>=4,GG15,0)+IF(Ф!$K$4>=5,HA15,0)+IF(Ф!$K$4>=6,HU15,0)+IF(Ф!$K$4>=7,KC15,0)+IF(Ф!$K$4>=8,KW15,0)+IF(Ф!$K$4>=9,LQ15,0)+IF(Ф!$K$4>=10,NY15,0)+IF(Ф!$K$4>=11,OS15,0)+IF(Ф!$K$4>=12,PM15,0) -> 0 | BR15: =IF(Ф!$K$4>=1,DF15,0)+IF(Ф!$K$4>=2,DZ15,0)+IF(Ф!$K$4>=3,ET15,0)+IF(Ф!$K$4>=4,GH15,0)+IF(Ф!$K$4>=5,HB15,0)+IF(Ф!$K$4>=6,HV15,0)+IF(Ф!$K$4>=7,KD15,0)+IF(Ф!$K$4>=8,KX15,0)+IF(Ф!$K$4>=9,LR15,0)+IF(Ф!$K$4>=10,NZ15,0)+IF(Ф!$K$4>=11,OT15,0)+IF(Ф!$K$4>=12,PN15,0) -> 0 | BS15: =IF(Ф!$K$4>=1,DG15,0)+IF(Ф!$K$4>=2,EA15,0)+IF(Ф!$K$4>=3,EU15,0)+IF(Ф!$K$4>=4,GI15,0)+IF(Ф!$K$4>=5,HC15,0)+IF(Ф!$K$4>=6,HW15,0)+IF(Ф!$K$4>=7,KE15,0)+IF(Ф!$K$4>=8,KY15,0)+IF(Ф!$K$4>=9,LS15,0)+IF(Ф!$K$4>=10,OA15,0)+IF(Ф!$K$4>=11,OU15,0)+IF(Ф!$K$4>=12,PO15,0) -> 0 | BT15: =IF(Ф!$K$4>=1,DH15,0)+IF(Ф!$K$4>=2,EB15,0)+IF(Ф!$K$4>=3,EV15,0)+IF(Ф!$K$4>=4,GJ15,0)+IF(Ф!$K$4>=5,HD15,0)+IF(Ф!$K$4>=6,HX15,0)+IF(Ф!$K$4>=7,KF15,0)+IF(Ф!$K$4>=8,KZ15,0)+IF(Ф!$K$4>=9,LT15,0)+IF(Ф!$K$4>=10,OB15,0)+IF(Ф!$K$4>=11,OV15,0)+IF(Ф!$K$4>=12,PP15,0) -> 0 | BU15: =IF(Ф!$K$4>=1,DI15,0)+IF(Ф!$K$4>=2,EC15,0)+IF(Ф!$K$4>=3,EW15,0)+IF(Ф!$K$4>=4,GK15,0)+IF(Ф!$K$4>=5,HE15,0)+IF(Ф!$K$4>=6,HY15,0)+IF(Ф!$K$4>=7,KG15,0)+IF(Ф!$K$4>=8,LA15,0)+IF(Ф!$K$4>=9,LU15,0)+IF(Ф!$K$4>=10,OC15,0)+IF(Ф!$K$4>=11,OW15,0)+IF(Ф!$K$4>=12,PQ15,0) -> 0 | BV15: =IF(Ф!$K$4>=1,DJ15,0)+IF(Ф!$K$4>=2,ED15,0)+IF(Ф!$K$4>=3,EX15,0)+IF(Ф!$K$4>=4,GL15,0)+IF(Ф!$K$4>=5,HF15,0)+IF(Ф!$K$4>=6,HZ15,0)+IF(Ф!$K$4>=7,KH15,0)+IF(Ф!$K$4>=8,LB15,0)+IF(Ф!$K$4>=9,LV15,0)+IF(Ф!$K$4>=10,OD15,0)+IF(Ф!$K$4>=11,OX15,0)+IF(Ф!$K$4>=12,PR15,0) -> 0 | BW15: =IF(Ф!$K$4>=1,DK15,0)+IF(Ф!$K$4>=2,EE15,0)+IF(Ф!$K$4>=3,EY15,0)+IF(Ф!$K$4>=4,GM15,0)+IF(Ф!$K$4>=5,HG15,0)+IF(Ф!$K$4>=6,IA15,0)+IF(Ф!$K$4>=7,KI15,0)+IF(Ф!$K$4>=8,LC15,0)+IF(Ф!$K$4>=9,LW15,0)+IF(Ф!$K$4>=10,OE15,0)+IF(Ф!$K$4>=11,OY15,0)+IF(Ф!$K$4>=12,PS15,0) -> 0 | BX15: =IF(Ф!$K$4>=1,DL15,0)+IF(Ф!$K$4>=2,EF15,0)+IF(Ф!$K$4>=3,EZ15,0)+IF(Ф!$K$4>=4,GN15,0)+IF(Ф!$K$4>=5,HH15,0)+IF(Ф!$K$4>=6,IB15,0)+IF(Ф!$K$4>=7,KJ15,0)+IF(Ф!$K$4>=8,LD15,0)+IF(Ф!$K$4>=9,LX15,0)+IF(Ф!$K$4>=10,OF15,0)+IF(Ф!$K$4>=11,OZ15,0)+IF(Ф!$K$4>=12,PT15,0) -> 0 | BY15: =IF(Ф!$K$4>=1,DM15,0)+IF(Ф!$K$4>=2,EG15,0)+IF(Ф!$K$4>=3,FA15,0)+IF(Ф!$K$4>=4,GO15,0)+IF(Ф!$K$4>=5,HI15,0)+IF(Ф!$K$4>=6,IC15,0)+IF(Ф!$K$4>=7,KK15,0)+IF(Ф!$K$4>=8,LE15,0)+IF(Ф!$K$4>=9,LY15,0)+IF(Ф!$K$4>=10,OG15,0)+IF(Ф!$K$4>=11,PA15,0)+IF(Ф!$K$4>=12,PU15,0) -> 0 | BZ15: =IF(Ф!$K$4>=1,DN15,0)+IF(Ф!$K$4>=2,EH15,0)+IF(Ф!$K$4>=3,FB15,0)+IF(Ф!$K$4>=4,GP15,0)+IF(Ф!$K$4>=5,HJ15,0)+IF(Ф!$K$4>=6,ID15,0)+IF(Ф!$K$4>=7,KL15,0)+IF(Ф!$K$4>=8,LF15,0)+IF(Ф!$K$4>=9,LZ15,0)+IF(Ф!$K$4>=10,OH15,0)+IF(Ф!$K$4>=11,PB15,0)+IF(Ф!$K$4>=12,PV15,0) -> 0 | CA15: =IF(Ф!$K$4>=1,DO15,0)+IF(Ф!$K$4>=2,EI15,0)+IF(Ф!$K$4>=3,FC15,0)+IF(Ф!$K$4>=4,GQ15,0)+IF(Ф!$K$4>=5,HK15,0)+IF(Ф!$K$4>=6,IE15,0)+IF(Ф!$K$4>=7,KM15,0)+IF(Ф!$K$4>=8,LG15,0)+IF(Ф!$K$4>=9,MA15,0)+IF(Ф!$K$4>=10,OI15,0)+IF(Ф!$K$4>=11,PC15,0)+IF(Ф!$K$4>=12,PW15,0) -> 0 | CB15: =IF(Ф!$K$4>=1,DP15,0)+IF(Ф!$K$4>=2,EJ15,0)+IF(Ф!$K$4>=3,FD15,0)+IF(Ф!$K$4>=4,GR15,0)+IF(Ф!$K$4>=5,HL15,0)+IF(Ф!$K$4>=6,IF15,0)+IF(Ф!$K$4>=7,KN15,0)+IF(Ф!$K$4>=8,LH15,0)+IF(Ф!$K$4>=9,MB15,0)+IF(Ф!$K$4>=10,OJ15,0)+IF(Ф!$K$4>=11,PD15,0)+IF(Ф!$K$4>=12,PX15,0) -> 0 | CC15: =IF(Ф!$K$4>=1,DQ15,0)+IF(Ф!$K$4>=2,EK15,0)+IF(Ф!$K$4>=3,FE15,0)+IF(Ф!$K$4>=4,GS15,0)+IF(Ф!$K$4>=5,HM15,0)+IF(Ф!$K$4>=6,IG15,0)+IF(Ф!$K$4>=7,KO15,0)+IF(Ф!$K$4>=8,LI15,0)+IF(Ф!$K$4>=9,MC15,0)+IF(Ф!$K$4>=10,OK15,0)+IF(Ф!$K$4>=11,PE15,0)+IF(Ф!$K$4>=12,PY15,0) -> 0 | CD15: 20,593 | CE15: 282 | CF15: 4,347 | CG15: 15,964 | CH15: 0 | CI15: 18,666 | CJ15: 624 | CK15: 3,080 | CL15: 14,962 | CM15: 0 | CN15: 0 | CO15: 0 | CP15: 0 | CQ15: 0 | CR15: 0 | CS15: 0 | CT15: 0 | CU15: 0 | CV15: 0 | CW15: 0 | CX15: 2,399 | CY15: 0 | CZ15: 0 | DA15: 2,399 | DB15: 0 | DC15: 0 | DD15: 0 | DE15: 0 | DF15: 0 | DG15: 0 | DH15: 0 | DI15: 0 | DJ15: 0 | DK15: 0 | DL15: 0 | DM15: 0 | DN15: 0 | DO15: 0 | DP15: 0 | DQ15: 0 | DR15: 6,947 | DS15: 82 | DT15: 0 | DU15: 6,865 | DV15: 0 | DW15: 9,159 | DX15: 374 | DY15: 3,080 | DZ15: 5,705 | EA15: 0 | EB15: 0 | EC15: 0 | ED15: 0 | EE15: 0 | EF15: 0 | EG15: 0 | EH15: 0 | EI15: 0 | EJ15: 0 | EK15: 0 | EL15: 11,247 | EM15: 200 | EN15: 4,347 | EO15: 6,700 | EP15: 0 | EQ15: 9,507 | ER15: 250 | ES15: 0 | ET15: 9,257 | EU15: 0 | EV15: 0 | EW15: 0 | EX15: 0 | EY15: 0 | EZ15: 0 | FA15: 0 | FB15: 0 | FC15: 0 | FD15: 0 | FE15: 0 | FF15: 23,154 | FG15: 2,050 | FH15: 0 | FI15: 21,104 | FJ15: 0 | FK15: 26,182 | FL15: 200 | FM15: 0 | FN15: 25,982 | FO15: 0 | FP15: 0 | FQ15: 0 | FR15: 0 | FS15: 0 | FT15: 0 | FU15: 0 | FV15: 0 | FW15: 0 | FX15: 0 | FY15: 0 | FZ15: 6,700 | GA15: 0 | GB15: 0 | GC15: 6,700 | GD15: 0 | GE15: 1,484 | GF15: 200 | GG15: 0 | GH15: 1,284 | GI15: 0 | GJ15: 0 | GK15: 0 | GL15: 0 | GM15: 0 | GN15: 0 | GO15: 0 | GP15: 0 | GQ15: 0 | GR15: 0 | GS15: 0 | GT15: 6,700 | GU15: 0 | GV15: 0 | GW15: 6,700 | GX15: 0 | GY15: 12,498 | GZ15: 0 | HA15: 0 | HB15: 12,498 | HC15: 0 | HD15: 0 | HE15: 0 | HF15: 0 | HG15: 0 | HH15: 0 | HI15: 0 | HJ15: 0 | HK15: 0 | HL15: 0 | HM15: 0 | HN15: 9,754 | HO15: 2,050 | HP15: 0 | HQ15: 7,704 | HR15: 0 | HS15: 12,200 | HT15: 0 | HU15: 0 | HV15: 12,200 | HW15: 0 | HX15: 0 | HY15: 0 | HZ15: 0 | IA15: 0 | IB15: 0 | IC15: 0 | ID15: 0 | IE15: 0 | IF15: 0 | IG15: 0 | IH15: 43,747 | II15: 2,332 | IJ15: 4,347 | IK15: 37,068 | IL15: 0 | IM15: 44,848 | IN15: 824 | IO15: 3,080 | IP15: 40,944 | IQ15: 0 | IR15: 0 | IS15: 0 | IT15: 0 | IU15: 0 | IV15: 0 | IW15: 0 | IX15: 0 | IY15: 0 | IZ15: 0 | JA15: 0 | JB15: 45,340 | JC15: 0 | JD15: 1,503 | JE15: 43,837 | JF15: 0 | JG15: 27,763 | JH15: 2,050 | JI15: 1,503 | JJ15: 24,210 | JK15: 0 | JL15: 0 | JM15: 0 | JN15: 0 | JO15: 0 | JP15: 0 | JQ15: 0 | JR15: 0 | JS15: 0 | JT15: 0 | JU15: 0 | JV15: 11,967 | JW15: 0 | JX15: 0 | JY15: 11,967 | JZ15: 0 | KA15: 10,330 | KB15: 0 | KC15: 1,503 | KD15: 8,827 | KE15: 0 | KF15: 0 | KG15: 0 | KH15: 0 | KI15: 0 | KJ15: 0 | KK15: 0 | KL15: 0 | KM15: 0 | KN15: 0 | KO15: 0 | KP15: 15,686 | KQ15: 0 | KR15: 0 | KS15: 15,686 | KT15: 0 | KU15: 8,200 | KV15: 0 | KW15: 0 | KX15: 8,200 | KY15: 0 | KZ15: 0 | LA15: 0 | LB15: 0 | LC15: 0 | LD15: 0 | LE15: 0 | LF15: 0 | LG15: 0 | LH15: 0 | LI15: 0 | LJ15: 17,687 | LK15: 0 | LL15: 1,503 | LM15: 16,184 | LN15: 0 | LO15: 9,233 | LP15: 2,050 | LQ15: 0 | LR15: 7,183 | LS15: 0 | LT15: 0 | LU15: 0 | LV15: 0 | LW15: 0 | LX15: 0 | LY15: 0 | LZ15: 0 | MA15: 0 | MB15: 0 | MC15: 0 | MD15: 89,087 | ME15: 2,332 | MF15: 5,850 | MG15: 80,905 | MH15: 0 | MI15: 72,611 | MJ15: 2,874 | MK15: 4,583 | ML15: 65,154 | MM15: 0 | MN15: 0 | MO15: 0 | MP15: 0 | MQ15: 0 | MR15: 0 | MS15: 0 | MT15: 0 | MU15: 0 | MV15: 0 | MW15: 0 | MX15: 6,277 | MY15: 0 | MZ15: 0 | NA15: 6,277 | NB15: 0 | NC15: 6,272 | ND15: 0 | NE15: 0 | NF15: 6,272 | NG15: 0 | NH15: 0 | NI15: 0 | NJ15: 0 | NK15: 0 | NL15: 0 | NM15: 0 | NN15: 0 | NO15: 0 | NP15: 0 | NQ15: 0 | NR15: 5,492 | NS15: 0 | NT15: 0 | NU15: 5,492 | NV15: 0 | NW15: 3,000 | NX15: 0 | NY15: 0 | NZ15: 3,000 | OA15: 0 | OB15: 0 | OC15: 0 | OD15: 0 | OE15: 0 | OF15: 0 | OG15: 0 | OH15: 0 | OI15: 0 | OJ15: 0 | OK15: 0 | OL15: 785 | OM15: 0 | ON15: 0 | OO15: 785 | OP15: 0 | OQ15: 2,500 | OR15: 0 | OS15: 0 | OT15: 2,500 | OU15: 0 | OV15: 0 | OW15: 0 | OX15: 0 | OY15: 0 | OZ15: 0 | PA15: 0 | PB15: 0 | PC15: 0 | PD15: 0 | PE15: 0 | PF15: 0 | PG15: 0 | PH15: 0 | PI15: 0 | PJ15: 0 | PK15: 772 | PL15: 0 | PM15: 0 | PN15: 772 | PO15: 0 | PP15: 0 | PQ15: 0 | PR15: 0 | PS15: 0 | PT15: 0 | PU15: 0 | PV15: 0 | PW15: 0 | PX15: 0 | PY15: 0 | PZ15: 95,364 | QA15: 2,332 | QB15: 5,850 | QC15: 87,182 | QD15: 0 | QE15: 78,883 | QF15: 2,874 | QG15: 4,583 | QH15: 71,426 | QI15: 0 | QJ15: 12,493 | QK15: 0 | QL15: 0 | QM15: 12,493 | QN15: 0 | QO15: 28,726 | QP15: 1 | QQ15: 0 | QR15: 28,725 | QS15: 0 | QT15: 35,335 | QU15: 5,666 | QV15: 918 | QW15: 28,751 | QX15: 0 | QY15: 35,583 | QZ15: 5,123 | RA15: 2,185 | RB15: 28,275 | RC15: 0 | RD15: 107,857 | RE15: 2,332 | RF15: 5,850 | RG15: 99,675 | RH15: 0 | RI15: 107,609 | RJ15: 2,875 | RK15: 4,583 | RL15: 100,151 | RM15: 0 | RN15: -248 | RO15: 543 | RP15: -1,267 | RQ15: 476 | RR15: 0 | RT15: =BO15+IF(Ф!$K$4=1,DW15+EQ15,0)+IF(Ф!$K$4=2,EQ15+GE15,0)+IF(Ф!$K$4=3,GE15+GY15,0)+IF(Ф!$K$4=4,GY15+HS15,0)+IF(Ф!$K$4=5,HS15+KA15,0)+IF(Ф!$K$4=6,KA15+KU15,0)+IF(Ф!$K$4=7,KU15+LO15,0)+IF(Ф!$K$4=8,LO15+NW15,0)+IF(Ф!$K$4=9,NW15+OQ15,0)+IF(Ф!$K$4=10,OQ15+PK15,0)+IF(Ф!$K$4=11,PK15,0)-BY15 -> 18,666 | RU15: =RT15*(1+Ф!$K$9) -> 22,026 | RX15: 93,082 | RY15: 143,875 | SA15: 22,026 | SB15: 93,082 | SC15: 143,875
B16: 17 | C16: 14 | J16: 1 | K16: Производственное строительство | Q16: 136,424 | R16: 7,998 | S16: 0 | T16: 128,426 | U16: 0 | V16: 34,417 | W16: 5,666 | X16: 0 | Y16: 28,751 | Z16: 0 | AA16: 33,398 | AB16: 5,123 | AC16: 0 | AD16: 28,275 | AE16: 0 | AF16: 102,007 | AG16: 2,332 | AH16: 0 | AI16: 99,675 | AJ16: 0 | AK16: 103,026 | AL16: 2,875 | AM16: 0 | AN16: 100,151 | AO16: 0 | AP16: 89,514 | AQ16: 2,332 | AR16: 0 | AS16: 87,182 | AT16: 0 | AU16: 74,300 | AV16: 2,874 | AW16: 0 | AX16: 71,426 | AY16: 0 | AZ16: 74,300 | BJ16: =IF(Ф!$K$4>=1,CX16,0)+IF(Ф!$K$4>=2,DR16,0)+IF(Ф!$K$4>=3,EL16,0)+IF(Ф!$K$4>=4,FZ16,0)+IF(Ф!$K$4>=5,GT16,0)+IF(Ф!$K$4>=6,HN16,0)+IF(Ф!$K$4>=7,JV16,0)+IF(Ф!$K$4>=8,KP16,0)+IF(Ф!$K$4>=9,LJ16,0)+IF(Ф!$K$4>=10,NR16,0)+IF(Ф!$K$4>=11,OL16,0)+IF(Ф!$K$4>=12,PF16,0) -> 2,399 | BK16: =IF(Ф!$K$4>=1,CY16,0)+IF(Ф!$K$4>=2,DS16,0)+IF(Ф!$K$4>=3,EM16,0)+IF(Ф!$K$4>=4,GA16,0)+IF(Ф!$K$4>=5,GU16,0)+IF(Ф!$K$4>=6,HO16,0)+IF(Ф!$K$4>=7,JW16,0)+IF(Ф!$K$4>=8,KQ16,0)+IF(Ф!$K$4>=9,LK16,0)+IF(Ф!$K$4>=10,NS16,0)+IF(Ф!$K$4>=11,OM16,0)+IF(Ф!$K$4>=12,PG16,0) -> 0 | BL16: =IF(Ф!$K$4>=1,CZ16,0)+IF(Ф!$K$4>=2,DT16,0)+IF(Ф!$K$4>=3,EN16,0)+IF(Ф!$K$4>=4,GB16,0)+IF(Ф!$K$4>=5,GV16,0)+IF(Ф!$K$4>=6,HP16,0)+IF(Ф!$K$4>=7,JX16,0)+IF(Ф!$K$4>=8,KR16,0)+IF(Ф!$K$4>=9,LL16,0)+IF(Ф!$K$4>=10,NT16,0)+IF(Ф!$K$4>=11,ON16,0)+IF(Ф!$K$4>=12,PH16,0) -> 0 | BM16: =IF(Ф!$K$4>=1,DA16,0)+IF(Ф!$K$4>=2,DU16,0)+IF(Ф!$K$4>=3,EO16,0)+IF(Ф!$K$4>=4,GC16,0)+IF(Ф!$K$4>=5,GW16,0)+IF(Ф!$K$4>=6,HQ16,0)+IF(Ф!$K$4>=7,JY16,0)+IF(Ф!$K$4>=8,KS16,0)+IF(Ф!$K$4>=9,LM16,0)+IF(Ф!$K$4>=10,NU16,0)+IF(Ф!$K$4>=11,OO16,0)+IF(Ф!$K$4>=12,PI16,0) -> 2,399 | BN16: =IF(Ф!$K$4>=1,DB16,0)+IF(Ф!$K$4>=2,DV16,0)+IF(Ф!$K$4>=3,EP16,0)+IF(Ф!$K$4>=4,GD16,0)+IF(Ф!$K$4>=5,GX16,0)+IF(Ф!$K$4>=6,HR16,0)+IF(Ф!$K$4>=7,JZ16,0)+IF(Ф!$K$4>=8,KT16,0)+IF(Ф!$K$4>=9,LN16,0)+IF(Ф!$K$4>=10,NV16,0)+IF(Ф!$K$4>=11,OP16,0)+IF(Ф!$K$4>=12,PJ16,0) -> 0 | BO16: =IF(Ф!$K$4>=1,DC16,0)+IF(Ф!$K$4>=2,DW16,0)+IF(Ф!$K$4>=3,EQ16,0)+IF(Ф!$K$4>=4,GE16,0)+IF(Ф!$K$4>=5,GY16,0)+IF(Ф!$K$4>=6,HS16,0)+IF(Ф!$K$4>=7,KA16,0)+IF(Ф!$K$4>=8,KU16,0)+IF(Ф!$K$4>=9,LO16,0)+IF(Ф!$K$4>=10,NW16,0)+IF(Ф!$K$4>=11,OQ16,0)+IF(Ф!$K$4>=12,PK16,0) -> 0 | BP16: =IF(Ф!$K$4>=1,DD16,0)+IF(Ф!$K$4>=2,DX16,0)+IF(Ф!$K$4>=3,ER16,0)+IF(Ф!$K$4>=4,GF16,0)+IF(Ф!$K$4>=5,GZ16,0)+IF(Ф!$K$4>=6,HT16,0)+IF(Ф!$K$4>=7,KB16,0)+IF(Ф!$K$4>=8,KV16,0)+IF(Ф!$K$4>=9,LP16,0)+IF(Ф!$K$4>=10,NX16,0)+IF(Ф!$K$4>=11,OR16,0)+IF(Ф!$K$4>=12,PL16,0) -> 0 | BQ16: =IF(Ф!$K$4>=1,DE16,0)+IF(Ф!$K$4>=2,DY16,0)+IF(Ф!$K$4>=3,ES16,0)+IF(Ф!$K$4>=4,GG16,0)+IF(Ф!$K$4>=5,HA16,0)+IF(Ф!$K$4>=6,HU16,0)+IF(Ф!$K$4>=7,KC16,0)+IF(Ф!$K$4>=8,KW16,0)+IF(Ф!$K$4>=9,LQ16,0)+IF(Ф!$K$4>=10,NY16,0)+IF(Ф!$K$4>=11,OS16,0)+IF(Ф!$K$4>=12,PM16,0) -> 0 | BR16: =IF(Ф!$K$4>=1,DF16,0)+IF(Ф!$K$4>=2,DZ16,0)+IF(Ф!$K$4>=3,ET16,0)+IF(Ф!$K$4>=4,GH16,0)+IF(Ф!$K$4>=5,HB16,0)+IF(Ф!$K$4>=6,HV16,0)+IF(Ф!$K$4>=7,KD16,0)+IF(Ф!$K$4>=8,KX16,0)+IF(Ф!$K$4>=9,LR16,0)+IF(Ф!$K$4>=10,NZ16,0)+IF(Ф!$K$4>=11,OT16,0)+IF(Ф!$K$4>=12,PN16,0) -> 0 | BS16: =IF(Ф!$K$4>=1,DG16,0)+IF(Ф!$K$4>=2,EA16,0)+IF(Ф!$K$4>=3,EU16,0)+IF(Ф!$K$4>=4,GI16,0)+IF(Ф!$K$4>=5,HC16,0)+IF(Ф!$K$4>=6,HW16,0)+IF(Ф!$K$4>=7,KE16,0)+IF(Ф!$K$4>=8,KY16,0)+IF(Ф!$K$4>=9,LS16,0)+IF(Ф!$K$4>=10,OA16,0)+IF(Ф!$K$4>=11,OU16,0)+IF(Ф!$K$4>=12,PO16,0) -> 0 | BT16: =IF(Ф!$K$4>=1,DH16,0)+IF(Ф!$K$4>=2,EB16,0)+IF(Ф!$K$4>=3,EV16,0)+IF(Ф!$K$4>=4,GJ16,0)+IF(Ф!$K$4>=5,HD16,0)+IF(Ф!$K$4>=6,HX16,0)+IF(Ф!$K$4>=7,KF16,0)+IF(Ф!$K$4>=8,KZ16,0)+IF(Ф!$K$4>=9,LT16,0)+IF(Ф!$K$4>=10,OB16,0)+IF(Ф!$K$4>=11,OV16,0)+IF(Ф!$K$4>=12,PP16,0) -> 0 | BU16: =IF(Ф!$K$4>=1,DI16,0)+IF(Ф!$K$4>=2,EC16,0)+IF(Ф!$K$4>=3,EW16,0)+IF(Ф!$K$4>=4,GK16,0)+IF(Ф!$K$4>=5,HE16,0)+IF(Ф!$K$4>=6,HY16,0)+IF(Ф!$K$4>=7,KG16,0)+IF(Ф!$K$4>=8,LA16,0)+IF(Ф!$K$4>=9,LU16,0)+IF(Ф!$K$4>=10,OC16,0)+IF(Ф!$K$4>=11,OW16,0)+IF(Ф!$K$4>=12,PQ16,0) -> 0 | BV16: =IF(Ф!$K$4>=1,DJ16,0)+IF(Ф!$K$4>=2,ED16,0)+IF(Ф!$K$4>=3,EX16,0)+IF(Ф!$K$4>=4,GL16,0)+IF(Ф!$K$4>=5,HF16,0)+IF(Ф!$K$4>=6,HZ16,0)+IF(Ф!$K$4>=7,KH16,0)+IF(Ф!$K$4>=8,LB16,0)+IF(Ф!$K$4>=9,LV16,0)+IF(Ф!$K$4>=10,OD16,0)+IF(Ф!$K$4>=11,OX16,0)+IF(Ф!$K$4>=12,PR16,0) -> 0 | BW16: =IF(Ф!$K$4>=1,DK16,0)+IF(Ф!$K$4>=2,EE16,0)+IF(Ф!$K$4>=3,EY16,0)+IF(Ф!$K$4>=4,GM16,0)+IF(Ф!$K$4>=5,HG16,0)+IF(Ф!$K$4>=6,IA16,0)+IF(Ф!$K$4>=7,KI16,0)+IF(Ф!$K$4>=8,LC16,0)+IF(Ф!$K$4>=9,LW16,0)+IF(Ф!$K$4>=10,OE16,0)+IF(Ф!$K$4>=11,OY16,0)+IF(Ф!$K$4>=12,PS16,0) -> 0 | BX16: =IF(Ф!$K$4>=1,DL16,0)+IF(Ф!$K$4>=2,EF16,0)+IF(Ф!$K$4>=3,EZ16,0)+IF(Ф!$K$4>=4,GN16,0)+IF(Ф!$K$4>=5,HH16,0)+IF(Ф!$K$4>=6,IB16,0)+IF(Ф!$K$4>=7,KJ16,0)+IF(Ф!$K$4>=8,LD16,0)+IF(Ф!$K$4>=9,LX16,0)+IF(Ф!$K$4>=10,OF16,0)+IF(Ф!$K$4>=11,OZ16,0)+IF(Ф!$K$4>=12,PT16,0) -> 0 | BY16: =IF(Ф!$K$4>=1,DM16,0)+IF(Ф!$K$4>=2,EG16,0)+IF(Ф!$K$4>=3,FA16,0)+IF(Ф!$K$4>=4,GO16,0)+IF(Ф!$K$4>=5,HI16,0)+IF(Ф!$K$4>=6,IC16,0)+IF(Ф!$K$4>=7,KK16,0)+IF(Ф!$K$4>=8,LE16,0)+IF(Ф!$K$4>=9,LY16,0)+IF(Ф!$K$4>=10,OG16,0)+IF(Ф!$K$4>=11,PA16,0)+IF(Ф!$K$4>=12,PU16,0) -> 0 | BZ16: =IF(Ф!$K$4>=1,DN16,0)+IF(Ф!$K$4>=2,EH16,0)+IF(Ф!$K$4>=3,FB16,0)+IF(Ф!$K$4>=4,GP16,0)+IF(Ф!$K$4>=5,HJ16,0)+IF(Ф!$K$4>=6,ID16,0)+IF(Ф!$K$4>=7,KL16,0)+IF(Ф!$K$4>=8,LF16,0)+IF(Ф!$K$4>=9,LZ16,0)+IF(Ф!$K$4>=10,OH16,0)+IF(Ф!$K$4>=11,PB16,0)+IF(Ф!$K$4>=12,PV16,0) -> 0 | CA16: =IF(Ф!$K$4>=1,DO16,0)+IF(Ф!$K$4>=2,EI16,0)+IF(Ф!$K$4>=3,FC16,0)+IF(Ф!$K$4>=4,GQ16,0)+IF(Ф!$K$4>=5,HK16,0)+IF(Ф!$K$4>=6,IE16,0)+IF(Ф!$K$4>=7,KM16,0)+IF(Ф!$K$4>=8,LG16,0)+IF(Ф!$K$4>=9,MA16,0)+IF(Ф!$K$4>=10,OI16,0)+IF(Ф!$K$4>=11,PC16,0)+IF(Ф!$K$4>=12,PW16,0) -> 0 | CB16: =IF(Ф!$K$4>=1,DP16,0)+IF(Ф!$K$4>=2,EJ16,0)+IF(Ф!$K$4>=3,FD16,0)+IF(Ф!$K$4>=4,GR16,0)+IF(Ф!$K$4>=5,HL16,0)+IF(Ф!$K$4>=6,IF16,0)+IF(Ф!$K$4>=7,KN16,0)+IF(Ф!$K$4>=8,LH16,0)+IF(Ф!$K$4>=9,MB16,0)+IF(Ф!$K$4>=10,OJ16,0)+IF(Ф!$K$4>=11,PD16,0)+IF(Ф!$K$4>=12,PX16,0) -> 0 | CC16: =IF(Ф!$K$4>=1,DQ16,0)+IF(Ф!$K$4>=2,EK16,0)+IF(Ф!$K$4>=3,FE16,0)+IF(Ф!$K$4>=4,GS16,0)+IF(Ф!$K$4>=5,HM16,0)+IF(Ф!$K$4>=6,IG16,0)+IF(Ф!$K$4>=7,KO16,0)+IF(Ф!$K$4>=8,LI16,0)+IF(Ф!$K$4>=9,MC16,0)+IF(Ф!$K$4>=10,OK16,0)+IF(Ф!$K$4>=11,PE16,0)+IF(Ф!$K$4>=12,PY16,0) -> 0 | CD16: 16,246 | CE16: 282 | CF16: 0 | CG16: 15,964 | CH16: 0 | CI16: 15,586 | CJ16: 624 | CK16: 0 | CL16: 14,962 | CM16: 0 | CN16: 0 | CO16: 0 | CP16: 0 | CQ16: 0 | CR16: 0 | CS16: 0 | CT16: 0 | CU16: 0 | CV16: 0 | CW16: 0 | CX16: 2,399 | CY16: 0 | CZ16: 0 | DA16: 2,399 | DB16: 0 | DC16: 0 | DD16: 0 | DE16: 0 | DF16: 0 | DG16: 0 | DH16: 0 | DI16: 0 | DJ16: 0 | DK16: 0 | DL16: 0 | DM16: 0 | DN16: 0 | DO16: 0 | DP16: 0 | DQ16: 0 | DR16: 6,947 | DS16: 82 | DT16: 0 | DU16: 6,865 | DV16: 0 | DW16: 6,079 | DX16: 374 | DY16: 0 | DZ16: 5,705 | EA16: 0 | EB16: 0 | EC16: 0 | ED16: 0 | EE16: 0 | EF16: 0 | EG16: 0 | EH16: 0 | EI16: 0 | EJ16: 0 | EK16: 0 | EL16: 6,900 | EM16: 200 | EN16: 0 | EO16: 6,700 | EP16: 0 | EQ16: 9,507 | ER16: 250 | ES16: 0 | ET16: 9,257 | EU16: 0 | EV16: 0 | EW16: 0 | EX16: 0 | EY16: 0 | EZ16: 0 | FA16: 0 | FB16: 0 | FC16: 0 | FD16: 0 | FE16: 0 | FF16: 23,154 | FG16: 2,050 | FH16: 0 | FI16: 21,104 | FJ16: 0 | FK16: 26,182 | FL16: 200 | FM16: 0 | FN16: 25,982 | FO16: 0 | FP16: 0 | FQ16: 0 | FR16: 0 | FS16: 0 | FT16: 0 | FU16: 0 | FV16: 0 | FW16: 0 | FX16: 0 | FY16: 0 | FZ16: 6,700 | GA16: 0 | GB16: 0 | GC16: 6,700 | GD16: 0 | GE16: 1,484 | GF16: 200 | GG16: 0 | GH16: 1,284 | GI16: 0 | GJ16: 0 | GK16: 0 | GL16: 0 | GM16: 0 | GN16: 0 | GO16: 0 | GP16: 0 | GQ16: 0 | GR16: 0 | GS16: 0 | GT16: 6,700 | GU16: 0 | GV16: 0 | GW16: 6,700 | GX16: 0 | GY16: 12,498 | GZ16: 0 | HA16: 0 | HB16: 12,498 | HC16: 0 | HD16: 0 | HE16: 0 | HF16: 0 | HG16: 0 | HH16: 0 | HI16: 0 | HJ16: 0 | HK16: 0 | HL16: 0 | HM16: 0 | HN16: 9,754 | HO16: 2,050 | HP16: 0 | HQ16: 7,704 | HR16: 0 | HS16: 12,200 | HT16: 0 | HU16: 0 | HV16: 12,200 | HW16: 0 | HX16: 0 | HY16: 0 | HZ16: 0 | IA16: 0 | IB16: 0 | IC16: 0 | ID16: 0 | IE16: 0 | IF16: 0 | IG16: 0 | IH16: 39,400 | II16: 2,332 | IJ16: 0 | IK16: 37,068 | IL16: 0 | IM16: 41,768 | IN16: 824 | IO16: 0 | IP16: 40,944 | IQ16: 0 | IR16: 0 | IS16: 0 | IT16: 0 | IU16: 0 | IV16: 0 | IW16: 0 | IX16: 0 | IY16: 0 | IZ16: 0 | JA16: 0 | JB16: 43,837 | JC16: 0 | JD16: 0 | JE16: 43,837 | JF16: 0 | JG16: 26,260 | JH16: 2,050 | JI16: 0 | JJ16: 24,210 | JK16: 0 | JL16: 0 | JM16: 0 | JN16: 0 | JO16: 0 | JP16: 0 | JQ16: 0 | JR16: 0 | JS16: 0 | JT16: 0 | JU16: 0 | JV16: 11,967 | JW16: 0 | JX16: 0 | JY16: 11,967 | JZ16: 0 | KA16: 8,827 | KB16: 0 | KC16: 0 | KD16: 8,827 | KE16: 0 | KF16: 0 | KG16: 0 | KH16: 0 | KI16: 0 | KJ16: 0 | KK16: 0 | KL16: 0 | KM16: 0 | KN16: 0 | KO16: 0 | KP16: 15,686 | KQ16: 0 | KR16: 0 | KS16: 15,686 | KT16: 0 | KU16: 8,200 | KV16: 0 | KW16: 0 | KX16: 8,200 | KY16: 0 | KZ16: 0 | LA16: 0 | LB16: 0 | LC16: 0 | LD16: 0 | LE16: 0 | LF16: 0 | LG16: 0 | LH16: 0 | LI16: 0 | LJ16: 16,184 | LK16: 0 | LL16: 0 | LM16: 16,184 | LN16: 0 | LO16: 9,233 | LP16: 2,050 | LQ16: 0 | LR16: 7,183 | LS16: 0 | LT16: 0 | LU16: 0 | LV16: 0 | LW16: 0 | LX16: 0 | LY16: 0 | LZ16: 0 | MA16: 0 | MB16: 0 | MC16: 0 | MD16: 83,237 | ME16: 2,332 | MF16: 0 | MG16: 80,905 | MH16: 0 | MI16: 68,028 | MJ16: 2,874 | MK16: 0 | ML16: 65,154 | MM16: 0 | MN16: 0 | MO16: 0 | MP16: 0 | MQ16: 0 | MR16: 0 | MS16: 0 | MT16: 0 | MU16: 0 | MV16: 0 | MW16: 0 | MX16: 6,277 | MY16: 0 | MZ16: 0 | NA16: 6,277 | NB16: 0 | NC16: 6,272 | ND16: 0 | NE16: 0 | NF16: 6,272 | NG16: 0 | NH16: 0 | NI16: 0 | NJ16: 0 | NK16: 0 | NL16: 0 | NM16: 0 | NN16: 0 | NO16: 0 | NP16: 0 | NQ16: 0 | NR16: 5,492 | NS16: 0 | NT16: 0 | NU16: 5,492 | NV16: 0 | NW16: 3,000 | NX16: 0 | NY16: 0 | NZ16: 3,000 | OA16: 0 | OB16: 0 | OC16: 0 | OD16: 0 | OE16: 0 | OF16: 0 | OG16: 0 | OH16: 0 | OI16: 0 | OJ16: 0 | OK16: 0 | OL16: 785 | OM16: 0 | ON16: 0 | OO16: 785 | OP16: 0 | OQ16: 2,500 | OR16: 0 | OS16: 0 | OT16: 2,500 | OU16: 0 | OV16: 0 | OW16: 0 | OX16: 0 | OY16: 0 | OZ16: 0 | PA16: 0 | PB16: 0 | PC16: 0 | PD16: 0 | PE16: 0 | PF16: 0 | PG16: 0 | PH16: 0 | PI16: 0 | PJ16: 0 | PK16: 772 | PL16: 0 | PM16: 0 | PN16: 772 | PO16: 0 | PP16: 0 | PQ16: 0 | PR16: 0 | PS16: 0 | PT16: 0 | PU16: 0 | PV16: 0 | PW16: 0 | PX16: 0 | PY16: 0 | PZ16: 89,514 | QA16: 2,332 | QB16: 0 | QC16: 87,182 | QD16: 0 | QE16: 74,300 | QF16: 2,874 | QG16: 0 | QH16: 71,426 | QI16: 0 | QJ16: 12,493 | QK16: 0 | QL16: 0 | QM16: 12,493 | QN16: 0 | QO16: 28,726 | QP16: 1 | QQ16: 0 | QR16: 28,725 | QS16: 0 | QT16: 34,417 | QU16: 5,666 | QV16: 0 | QW16: 28,751 | QX16: 0 | QY16: 33,398 | QZ16: 5,123 | RA16: 0 | RB16: 28,275 | RC16: 0 | RD16: 102,007 | RE16: 2,332 | RF16: 0 | RG16: 99,675 | RH16: 0 | RI16: 103,026 | RJ16: 2,875 | RK16: 0 | RL16: 100,151 | RM16: 0 | RN16: 1,019 | RO16: 543 | RP16: 0 | RQ16: 476 | RR16: 0 | RT16: =BO16+IF(Ф!$K$4=1,DW16+EQ16,0)+IF(Ф!$K$4=2,EQ16+GE16,0)+IF(Ф!$K$4=3,GE16+GY16,0)+IF(Ф!$K$4=4,GY16+HS16,0)+IF(Ф!$K$4=5,HS16+KA16,0)+IF(Ф!$K$4=6,KA16+KU16,0)+IF(Ф!$K$4=7,KU16+LO16,0)+IF(Ф!$K$4=8,LO16+NW16,0)+IF(Ф!$K$4=9,NW16+OQ16,0)+IF(Ф!$K$4=10,OQ16+PK16,0)+IF(Ф!$K$4=11,PK16,0)-BY16 -> 15,586 | RU16: =RT16*(1+Ф!$K$9) -> 18,391 | RX16: 87,674 | RY16: 137,669 | SA16: 18,391 | SB16: 87,674 | SC16: 137,669
B17: 18 | C17: 15 | K17: Поддержание существующих мощностей и техперевооружение | Q17: 136,424 | R17: 7,998 | S17: 0 | T17: 128,426 | U17: 0 | V17: 34,417 | W17: 5,666 | X17: 0 | Y17: 28,751 | Z17: 0 | AA17: 33,398 | AB17: 5,123 | AC17: 0 | AD17: 28,275 | AE17: 0 | AF17: 102,007 | AG17: 2,332 | AH17: 0 | AI17: 99,675 | AJ17: 0 | AK17: 103,026 | AL17: 2,875 | AM17: 0 | AN17: 100,151 | AO17: 0 | AP17: 89,514 | AQ17: 2,332 | AR17: 0 | AS17: 87,182 | AT17: 0 | AU17: 74,300 | AV17: 2,874 | AW17: 0 | AX17: 71,426 | AY17: 0 | AZ17: 74,300 | BJ17: =IF(Ф!$K$4>=1,CX17,0)+IF(Ф!$K$4>=2,DR17,0)+IF(Ф!$K$4>=3,EL17,0)+IF(Ф!$K$4>=4,FZ17,0)+IF(Ф!$K$4>=5,GT17,0)+IF(Ф!$K$4>=6,HN17,0)+IF(Ф!$K$4>=7,JV17,0)+IF(Ф!$K$4>=8,KP17,0)+IF(Ф!$K$4>=9,LJ17,0)+IF(Ф!$K$4>=10,NR17,0)+IF(Ф!$K$4>=11,OL17,0)+IF(Ф!$K$4>=12,PF17,0) -> 2,399 | BK17: =IF(Ф!$K$4>=1,CY17,0)+IF(Ф!$K$4>=2,DS17,0)+IF(Ф!$K$4>=3,EM17,0)+IF(Ф!$K$4>=4,GA17,0)+IF(Ф!$K$4>=5,GU17,0)+IF(Ф!$K$4>=6,HO17,0)+IF(Ф!$K$4>=7,JW17,0)+IF(Ф!$K$4>=8,KQ17,0)+IF(Ф!$K$4>=9,LK17,0)+IF(Ф!$K$4>=10,NS17,0)+IF(Ф!$K$4>=11,OM17,0)+IF(Ф!$K$4>=12,PG17,0) -> 0 | BL17: =IF(Ф!$K$4>=1,CZ17,0)+IF(Ф!$K$4>=2,DT17,0)+IF(Ф!$K$4>=3,EN17,0)+IF(Ф!$K$4>=4,GB17,0)+IF(Ф!$K$4>=5,GV17,0)+IF(Ф!$K$4>=6,HP17,0)+IF(Ф!$K$4>=7,JX17,0)+IF(Ф!$K$4>=8,KR17,0)+IF(Ф!$K$4>=9,LL17,0)+IF(Ф!$K$4>=10,NT17,0)+IF(Ф!$K$4>=11,ON17,0)+IF(Ф!$K$4>=12,PH17,0) -> 0 | BM17: =IF(Ф!$K$4>=1,DA17,0)+IF(Ф!$K$4>=2,DU17,0)+IF(Ф!$K$4>=3,EO17,0)+IF(Ф!$K$4>=4,GC17,0)+IF(Ф!$K$4>=5,GW17,0)+IF(Ф!$K$4>=6,HQ17,0)+IF(Ф!$K$4>=7,JY17,0)+IF(Ф!$K$4>=8,KS17,0)+IF(Ф!$K$4>=9,LM17,0)+IF(Ф!$K$4>=10,NU17,0)+IF(Ф!$K$4>=11,OO17,0)+IF(Ф!$K$4>=12,PI17,0) -> 2,399 | BN17: =IF(Ф!$K$4>=1,DB17,0)+IF(Ф!$K$4>=2,DV17,0)+IF(Ф!$K$4>=3,EP17,0)+IF(Ф!$K$4>=4,GD17,0)+IF(Ф!$K$4>=5,GX17,0)+IF(Ф!$K$4>=6,HR17,0)+IF(Ф!$K$4>=7,JZ17,0)+IF(Ф!$K$4>=8,KT17,0)+IF(Ф!$K$4>=9,LN17,0)+IF(Ф!$K$4>=10,NV17,0)+IF(Ф!$K$4>=11,OP17,0)+IF(Ф!$K$4>=12,PJ17,0) -> 0 | BO17: =IF(Ф!$K$4>=1,DC17,0)+IF(Ф!$K$4>=2,DW17,0)+IF(Ф!$K$4>=3,EQ17,0)+IF(Ф!$K$4>=4,GE17,0)+IF(Ф!$K$4>=5,GY17,0)+IF(Ф!$K$4>=6,HS17,0)+IF(Ф!$K$4>=7,KA17,0)+IF(Ф!$K$4>=8,KU17,0)+IF(Ф!$K$4>=9,LO17,0)+IF(Ф!$K$4>=10,NW17,0)+IF(Ф!$K$4>=11,OQ17,0)+IF(Ф!$K$4>=12,PK17,0) -> 0 | BP17: =IF(Ф!$K$4>=1,DD17,0)+IF(Ф!$K$4>=2,DX17,0)+IF(Ф!$K$4>=3,ER17,0)+IF(Ф!$K$4>=4,GF17,0)+IF(Ф!$K$4>=5,GZ17,0)+IF(Ф!$K$4>=6,HT17,0)+IF(Ф!$K$4>=7,KB17,0)+IF(Ф!$K$4>=8,KV17,0)+IF(Ф!$K$4>=9,LP17,0)+IF(Ф!$K$4>=10,NX17,0)+IF(Ф!$K$4>=11,OR17,0)+IF(Ф!$K$4>=12,PL17,0) -> 0 | BQ17: =IF(Ф!$K$4>=1,DE17,0)+IF(Ф!$K$4>=2,DY17,0)+IF(Ф!$K$4>=3,ES17,0)+IF(Ф!$K$4>=4,GG17,0)+IF(Ф!$K$4>=5,HA17,0)+IF(Ф!$K$4>=6,HU17,0)+IF(Ф!$K$4>=7,KC17,0)+IF(Ф!$K$4>=8,KW17,0)+IF(Ф!$K$4>=9,LQ17,0)+IF(Ф!$K$4>=10,NY17,0)+IF(Ф!$K$4>=11,OS17,0)+IF(Ф!$K$4>=12,PM17,0) -> 0 | BR17: =IF(Ф!$K$4>=1,DF17,0)+IF(Ф!$K$4>=2,DZ17,0)+IF(Ф!$K$4>=3,ET17,0)+IF(Ф!$K$4>=4,GH17,0)+IF(Ф!$K$4>=5,HB17,0)+IF(Ф!$K$4>=6,HV17,0)+IF(Ф!$K$4>=7,KD17,0)+IF(Ф!$K$4>=8,KX17,0)+IF(Ф!$K$4>=9,LR17,0)+IF(Ф!$K$4>=10,NZ17,0)+IF(Ф!$K$4>=11,OT17,0)+IF(Ф!$K$4>=12,PN17,0) -> 0 | BS17: =IF(Ф!$K$4>=1,DG17,0)+IF(Ф!$K$4>=2,EA17,0)+IF(Ф!$K$4>=3,EU17,0)+IF(Ф!$K$4>=4,GI17,0)+IF(Ф!$K$4>=5,HC17,0)+IF(Ф!$K$4>=6,HW17,0)+IF(Ф!$K$4>=7,KE17,0)+IF(Ф!$K$4>=8,KY17,0)+IF(Ф!$K$4>=9,LS17,0)+IF(Ф!$K$4>=10,OA17,0)+IF(Ф!$K$4>=11,OU17,0)+IF(Ф!$K$4>=12,PO17,0) -> 0 | BT17: =IF(Ф!$K$4>=1,DH17,0)+IF(Ф!$K$4>=2,EB17,0)+IF(Ф!$K$4>=3,EV17,0)+IF(Ф!$K$4>=4,GJ17,0)+IF(Ф!$K$4>=5,HD17,0)+IF(Ф!$K$4>=6,HX17,0)+IF(Ф!$K$4>=7,KF17,0)+IF(Ф!$K$4>=8,KZ17,0)+IF(Ф!$K$4>=9,LT17,0)+IF(Ф!$K$4>=10,OB17,0)+IF(Ф!$K$4>=11,OV17,0)+IF(Ф!$K$4>=12,PP17,0) -> 0 | BU17: =IF(Ф!$K$4>=1,DI17,0)+IF(Ф!$K$4>=2,EC17,0)+IF(Ф!$K$4>=3,EW17,0)+IF(Ф!$K$4>=4,GK17,0)+IF(Ф!$K$4>=5,HE17,0)+IF(Ф!$K$4>=6,HY17,0)+IF(Ф!$K$4>=7,KG17,0)+IF(Ф!$K$4>=8,LA17,0)+IF(Ф!$K$4>=9,LU17,0)+IF(Ф!$K$4>=10,OC17,0)+IF(Ф!$K$4>=11,OW17,0)+IF(Ф!$K$4>=12,PQ17,0) -> 0 | BV17: =IF(Ф!$K$4>=1,DJ17,0)+IF(Ф!$K$4>=2,ED17,0)+IF(Ф!$K$4>=3,EX17,0)+IF(Ф!$K$4>=4,GL17,0)+IF(Ф!$K$4>=5,HF17,0)+IF(Ф!$K$4>=6,HZ17,0)+IF(Ф!$K$4>=7,KH17,0)+IF(Ф!$K$4>=8,LB17,0)+IF(Ф!$K$4>=9,LV17,0)+IF(Ф!$K$4>=10,OD17,0)+IF(Ф!$K$4>=11,OX17,0)+IF(Ф!$K$4>=12,PR17,0) -> 0 | BW17: =IF(Ф!$K$4>=1,DK17,0)+IF(Ф!$K$4>=2,EE17,0)+IF(Ф!$K$4>=3,EY17,0)+IF(Ф!$K$4>=4,GM17,0)+IF(Ф!$K$4>=5,HG17,0)+IF(Ф!$K$4>=6,IA17,0)+IF(Ф!$K$4>=7,KI17,0)+IF(Ф!$K$4>=8,LC17,0)+IF(Ф!$K$4>=9,LW17,0)+IF(Ф!$K$4>=10,OE17,0)+IF(Ф!$K$4>=11,OY17,0)+IF(Ф!$K$4>=12,PS17,0) -> 0 | BX17: =IF(Ф!$K$4>=1,DL17,0)+IF(Ф!$K$4>=2,EF17,0)+IF(Ф!$K$4>=3,EZ17,0)+IF(Ф!$K$4>=4,GN17,0)+IF(Ф!$K$4>=5,HH17,0)+IF(Ф!$K$4>=6,IB17,0)+IF(Ф!$K$4>=7,KJ17,0)+IF(Ф!$K$4>=8,LD17,0)+IF(Ф!$K$4>=9,LX17,0)+IF(Ф!$K$4>=10,OF17,0)+IF(Ф!$K$4>=11,OZ17,0)+IF(Ф!$K$4>=12,PT17,0) -> 0 | BY17: =IF(Ф!$K$4>=1,DM17,0)+IF(Ф!$K$4>=2,EG17,0)+IF(Ф!$K$4>=3,FA17,0)+IF(Ф!$K$4>=4,GO17,0)+IF(Ф!$K$4>=5,HI17,0)+IF(Ф!$K$4>=6,IC17,0)+IF(Ф!$K$4>=7,KK17,0)+IF(Ф!$K$4>=8,LE17,0)+IF(Ф!$K$4>=9,LY17,0)+IF(Ф!$K$4>=10,OG17,0)+IF(Ф!$K$4>=11,PA17,0)+IF(Ф!$K$4>=12,PU17,0) -> 0 | BZ17: =IF(Ф!$K$4>=1,DN17,0)+IF(Ф!$K$4>=2,EH17,0)+IF(Ф!$K$4>=3,FB17,0)+IF(Ф!$K$4>=4,GP17,0)+IF(Ф!$K$4>=5,HJ17,0)+IF(Ф!$K$4>=6,ID17,0)+IF(Ф!$K$4>=7,KL17,0)+IF(Ф!$K$4>=8,LF17,0)+IF(Ф!$K$4>=9,LZ17,0)+IF(Ф!$K$4>=10,OH17,0)+IF(Ф!$K$4>=11,PB17,0)+IF(Ф!$K$4>=12,PV17,0) -> 0 | CA17: =IF(Ф!$K$4>=1,DO17,0)+IF(Ф!$K$4>=2,EI17,0)+IF(Ф!$K$4>=3,FC17,0)+IF(Ф!$K$4>=4,GQ17,0)+IF(Ф!$K$4>=5,HK17,0)+IF(Ф!$K$4>=6,IE17,0)+IF(Ф!$K$4>=7,KM17,0)+IF(Ф!$K$4>=8,LG17,0)+IF(Ф!$K$4>=9,MA17,0)+IF(Ф!$K$4>=10,OI17,0)+IF(Ф!$K$4>=11,PC17,0)+IF(Ф!$K$4>=12,PW17,0) -> 0 | CB17: =IF(Ф!$K$4>=1,DP17,0)+IF(Ф!$K$4>=2,EJ17,0)+IF(Ф!$K$4>=3,FD17,0)+IF(Ф!$K$4>=4,GR17,0)+IF(Ф!$K$4>=5,HL17,0)+IF(Ф!$K$4>=6,IF17,0)+IF(Ф!$K$4>=7,KN17,0)+IF(Ф!$K$4>=8,LH17,0)+IF(Ф!$K$4>=9,MB17,0)+IF(Ф!$K$4>=10,OJ17,0)+IF(Ф!$K$4>=11,PD17,0)+IF(Ф!$K$4>=12,PX17,0) -> 0 | CC17: =IF(Ф!$K$4>=1,DQ17,0)+IF(Ф!$K$4>=2,EK17,0)+IF(Ф!$K$4>=3,FE17,0)+IF(Ф!$K$4>=4,GS17,0)+IF(Ф!$K$4>=5,HM17,0)+IF(Ф!$K$4>=6,IG17,0)+IF(Ф!$K$4>=7,KO17,0)+IF(Ф!$K$4>=8,LI17,0)+IF(Ф!$K$4>=9,MC17,0)+IF(Ф!$K$4>=10,OK17,0)+IF(Ф!$K$4>=11,PE17,0)+IF(Ф!$K$4>=12,PY17,0) -> 0 | CD17: 16,246 | CE17: 282 | CF17: 0 | CG17: 15,964 | CH17: 0 | CI17: 15,586 | CJ17: 624 | CK17: 0 | CL17: 14,962 | CM17: 0 | CN17: 0 | CO17: 0 | CP17: 0 | CQ17: 0 | CR17: 0 | CS17: 0 | CT17: 0 | CU17: 0 | CV17: 0 | CW17: 0 | CX17: 2,399 | CY17: 0 | CZ17: 0 | DA17: 2,399 | DB17: 0 | DC17: 0 | DD17: 0 | DE17: 0 | DF17: 0 | DG17: 0 | DH17: 0 | DI17: 0 | DJ17: 0 | DK17: 0 | DL17: 0 | DM17: 0 | DN17: 0 | DO17: 0 | DP17: 0 | DQ17: 0 | DR17: 6,947 | DS17: 82 | DT17: 0 | DU17: 6,865 | DV17: 0 | DW17: 6,079 | DX17: 374 | DY17: 0 | DZ17: 5,705 | EA17: 0 | EB17: 0 | EC17: 0 | ED17: 0 | EE17: 0 | EF17: 0 | EG17: 0 | EH17: 0 | EI17: 0 | EJ17: 0 | EK17: 0 | EL17: 6,900 | EM17: 200 | EN17: 0 | EO17: 6,700 | EP17: 0 | EQ17: 9,507 | ER17: 250 | ES17: 0 | ET17: 9,257 | EU17: 0 | EV17: 0 | EW17: 0 | EX17: 0 | EY17: 0 | EZ17: 0 | FA17: 0 | FB17: 0 | FC17: 0 | FD17: 0 | FE17: 0 | FF17: 23,154 | FG17: 2,050 | FH17: 0 | FI17: 21,104 | FJ17: 0 | FK17: 26,182 | FL17: 200 | FM17: 0 | FN17: 25,982 | FO17: 0 | FP17: 0 | FQ17: 0 | FR17: 0 | FS17: 0 | FT17: 0 | FU17: 0 | FV17: 0 | FW17: 0 | FX17: 0 | FY17: 0 | FZ17: 6,700 | GA17: 0 | GB17: 0 | GC17: 6,700 | GD17: 0 | GE17: 1,484 | GF17: 200 | GG17: 0 | GH17: 1,284 | GI17: 0 | GJ17: 0 | GK17: 0 | GL17: 0 | GM17: 0 | GN17: 0 | GO17: 0 | GP17: 0 | GQ17: 0 | GR17: 0 | GS17: 0 | GT17: 6,700 | GU17: 0 | GV17: 0 | GW17: 6,700 | GX17: 0 | GY17: 12,498 | GZ17: 0 | HA17: 0 | HB17: 12,498 | HC17: 0 | HD17: 0 | HE17: 0 | HF17: 0 | HG17: 0 | HH17: 0 | HI17: 0 | HJ17: 0 | HK17: 0 | HL17: 0 | HM17: 0 | HN17: 9,754 | HO17: 2,050 | HP17: 0 | HQ17: 7,704 | HR17: 0 | HS17: 12,200 | HT17: 0 | HU17: 0 | HV17: 12,200 | HW17: 0 | HX17: 0 | HY17: 0 | HZ17: 0 | IA17: 0 | IB17: 0 | IC17: 0 | ID17: 0 | IE17: 0 | IF17: 0 | IG17: 0 | IH17: 39,400 | II17: 2,332 | IJ17: 0 | IK17: 37,068 | IL17: 0 | IM17: 41,768 | IN17: 824 | IO17: 0 | IP17: 40,944 | IQ17: 0 | IR17: 0 | IS17: 0 | IT17: 0 | IU17: 0 | IV17: 0 | IW17: 0 | IX17: 0 | IY17: 0 | IZ17: 0 | JA17: 0 | JB17: 43,837 | JC17: 0 | JD17: 0 | JE17: 43,837 | JF17: 0 | JG17: 26,260 | JH17: 2,050 | JI17: 0 | JJ17: 24,210 | JK17: 0 | JL17: 0 | JM17: 0 | JN17: 0 | JO17: 0 | JP17: 0 | JQ17: 0 | JR17: 0 | JS17: 0 | JT17: 0 | JU17: 0 | JV17: 11,967 | JW17: 0 | JX17: 0 | JY17: 11,967 | JZ17: 0 | KA17: 8,827 | KB17: 0 | KC17: 0 | KD17: 8,827 | KE17: 0 | KF17: 0 | KG17: 0 | KH17: 0 | KI17: 0 | KJ17: 0 | KK17: 0 | KL17: 0 | KM17: 0 | KN17: 0 | KO17: 0 | KP17: 15,686 | KQ17: 0 | KR17: 0 | KS17: 15,686 | KT17: 0 | KU17: 8,200 | KV17: 0 | KW17: 0 | KX17: 8,200 | KY17: 0 | KZ17: 0 | LA17: 0 | LB17: 0 | LC17: 0 | LD17: 0 | LE17: 0 | LF17: 0 | LG17: 0 | LH17: 0 | LI17: 0 | LJ17: 16,184 | LK17: 0 | LL17: 0 | LM17: 16,184 | LN17: 0 | LO17: 9,233 | LP17: 2,050 | LQ17: 0 | LR17: 7,183 | LS17: 0 | LT17: 0 | LU17: 0 | LV17: 0 | LW17: 0 | LX17: 0 | LY17: 0 | LZ17: 0 | MA17: 0 | MB17: 0 | MC17: 0 | MD17: 83,237 | ME17: 2,332 | MF17: 0 | MG17: 80,905 | MH17: 0 | MI17: 68,028 | MJ17: 2,874 | MK17: 0 | ML17: 65,154 | MM17: 0 | MN17: 0 | MO17: 0 | MP17: 0 | MQ17: 0 | MR17: 0 | MS17: 0 | MT17: 0 | MU17: 0 | MV17: 0 | MW17: 0 | MX17: 6,277 | MY17: 0 | MZ17: 0 | NA17: 6,277 | NB17: 0 | NC17: 6,272 | ND17: 0 | NE17: 0 | NF17: 6,272 | NG17: 0 | NH17: 0 | NI17: 0 | NJ17: 0 | NK17: 0 | NL17: 0 | NM17: 0 | NN17: 0 | NO17: 0 | NP17: 0 | NQ17: 0 | NR17: 5,492 | NS17: 0 | NT17: 0 | NU17: 5,492 | NV17: 0 | NW17: 3,000 | NX17: 0 | NY17: 0 | NZ17: 3,000 | OA17: 0 | OB17: 0 | OC17: 0 | OD17: 0 | OE17: 0 | OF17: 0 | OG17: 0 | OH17: 0 | OI17: 0 | OJ17: 0 | OK17: 0 | OL17: 785 | OM17: 0 | ON17: 0 | OO17: 785 | OP17: 0 | OQ17: 2,500 | OR17: 0 | OS17: 0 | OT17: 2,500 | OU17: 0 | OV17: 0 | OW17: 0 | OX17: 0 | OY17: 0 | OZ17: 0 | PA17: 0 | PB17: 0 | PC17: 0 | PD17: 0 | PE17: 0 | PF17: 0 | PG17: 0 | PH17: 0 | PI17: 0 | PJ17: 0 | PK17: 772 | PL17: 0 | PM17: 0 | PN17: 772 | PO17: 0 | PP17: 0 | PQ17: 0 | PR17: 0 | PS17: 0 | PT17: 0 | PU17: 0 | PV17: 0 | PW17: 0 | PX17: 0 | PY17: 0 | PZ17: 89,514 | QA17: 2,332 | QB17: 0 | QC17: 87,182 | QD17: 0 | QE17: 74,300 | QF17: 2,874 | QG17: 0 | QH17: 71,426 | QI17: 0 | QJ17: 12,493 | QK17: 0 | QL17: 0 | QM17: 12,493 | QN17: 0 | QO17: 28,726 | QP17: 1 | QQ17: 0 | QR17: 28,725 | QS17: 0 | QT17: 34,417 | QU17: 5,666 | QV17: 0 | QW17: 28,751 | QX17: 0 | QY17: 33,398 | QZ17: 5,123 | RA17: 0 | RB17: 28,275 | RC17: 0 | RD17: 102,007 | RE17: 2,332 | RF17: 0 | RG17: 99,675 | RH17: 0 | RI17: 103,026 | RJ17: 2,875 | RK17: 0 | RL17: 100,151 | RM17: 0 | RN17: 1,019 | RO17: 543 | RP17: 0 | RQ17: 476 | RR17: 0 | RT17: =BO17+IF(Ф!$K$4=1,DW17+EQ17,0)+IF(Ф!$K$4=2,EQ17+GE17,0)+IF(Ф!$K$4=3,GE17+GY17,0)+IF(Ф!$K$4=4,GY17+HS17,0)+IF(Ф!$K$4=5,HS17+KA17,0)+IF(Ф!$K$4=6,KA17+KU17,0)+IF(Ф!$K$4=7,KU17+LO17,0)+IF(Ф!$K$4=8,LO17+NW17,0)+IF(Ф!$K$4=9,NW17+OQ17,0)+IF(Ф!$K$4=10,OQ17+PK17,0)+IF(Ф!$K$4=11,PK17,0)-BY17 -> 15,586 | RU17: =RT17*(1+Ф!$K$9) -> 18,391 | RX17: 87,674 | RY17: 137,669 | SA17: 18,391 | SB17: 87,674 | SC17: 137,669
B18: 17 | C18: 14 | J18: 2 | K18: Производственное оборудование, не входящее в сметы строек | Q18: 6,768 | S18: 6,768 | V18: 918 | W18: 0 | X18: 918 | Y18: 0 | Z18: 0 | AA18: 2,185 | AB18: 0 | AC18: 2,185 | AD18: 0 | AE18: 0 | AF18: 5,850 | AG18: 0 | AH18: 5,850 | AI18: 0 | AJ18: 0 | AK18: 4,583 | AL18: 0 | AM18: 4,583 | AN18: 0 | AO18: 0 | AP18: 5,850 | AQ18: 0 | AR18: 5,850 | AS18: 0 | AT18: 0 | AU18: 4,583 | AV18: 0 | AW18: 4,583 | AX18: 0 | AY18: 0 | AZ18: 4,583 | BJ18: =IF(Ф!$K$4>=1,CX18,0)+IF(Ф!$K$4>=2,DR18,0)+IF(Ф!$K$4>=3,EL18,0)+IF(Ф!$K$4>=4,FZ18,0)+IF(Ф!$K$4>=5,GT18,0)+IF(Ф!$K$4>=6,HN18,0)+IF(Ф!$K$4>=7,JV18,0)+IF(Ф!$K$4>=8,KP18,0)+IF(Ф!$K$4>=9,LJ18,0)+IF(Ф!$K$4>=10,NR18,0)+IF(Ф!$K$4>=11,OL18,0)+IF(Ф!$K$4>=12,PF18,0) -> 0 | BK18: =IF(Ф!$K$4>=1,CY18,0)+IF(Ф!$K$4>=2,DS18,0)+IF(Ф!$K$4>=3,EM18,0)+IF(Ф!$K$4>=4,GA18,0)+IF(Ф!$K$4>=5,GU18,0)+IF(Ф!$K$4>=6,HO18,0)+IF(Ф!$K$4>=7,JW18,0)+IF(Ф!$K$4>=8,KQ18,0)+IF(Ф!$K$4>=9,LK18,0)+IF(Ф!$K$4>=10,NS18,0)+IF(Ф!$K$4>=11,OM18,0)+IF(Ф!$K$4>=12,PG18,0) -> 0 | BL18: =IF(Ф!$K$4>=1,CZ18,0)+IF(Ф!$K$4>=2,DT18,0)+IF(Ф!$K$4>=3,EN18,0)+IF(Ф!$K$4>=4,GB18,0)+IF(Ф!$K$4>=5,GV18,0)+IF(Ф!$K$4>=6,HP18,0)+IF(Ф!$K$4>=7,JX18,0)+IF(Ф!$K$4>=8,KR18,0)+IF(Ф!$K$4>=9,LL18,0)+IF(Ф!$K$4>=10,NT18,0)+IF(Ф!$K$4>=11,ON18,0)+IF(Ф!$K$4>=12,PH18,0) -> 0 | BM18: =IF(Ф!$K$4>=1,DA18,0)+IF(Ф!$K$4>=2,DU18,0)+IF(Ф!$K$4>=3,EO18,0)+IF(Ф!$K$4>=4,GC18,0)+IF(Ф!$K$4>=5,GW18,0)+IF(Ф!$K$4>=6,HQ18,0)+IF(Ф!$K$4>=7,JY18,0)+IF(Ф!$K$4>=8,KS18,0)+IF(Ф!$K$4>=9,LM18,0)+IF(Ф!$K$4>=10,NU18,0)+IF(Ф!$K$4>=11,OO18,0)+IF(Ф!$K$4>=12,PI18,0) -> 0 | BN18: =IF(Ф!$K$4>=1,DB18,0)+IF(Ф!$K$4>=2,DV18,0)+IF(Ф!$K$4>=3,EP18,0)+IF(Ф!$K$4>=4,GD18,0)+IF(Ф!$K$4>=5,GX18,0)+IF(Ф!$K$4>=6,HR18,0)+IF(Ф!$K$4>=7,JZ18,0)+IF(Ф!$K$4>=8,KT18,0)+IF(Ф!$K$4>=9,LN18,0)+IF(Ф!$K$4>=10,NV18,0)+IF(Ф!$K$4>=11,OP18,0)+IF(Ф!$K$4>=12,PJ18,0) -> 0 | BO18: =IF(Ф!$K$4>=1,DC18,0)+IF(Ф!$K$4>=2,DW18,0)+IF(Ф!$K$4>=3,EQ18,0)+IF(Ф!$K$4>=4,GE18,0)+IF(Ф!$K$4>=5,GY18,0)+IF(Ф!$K$4>=6,HS18,0)+IF(Ф!$K$4>=7,KA18,0)+IF(Ф!$K$4>=8,KU18,0)+IF(Ф!$K$4>=9,LO18,0)+IF(Ф!$K$4>=10,NW18,0)+IF(Ф!$K$4>=11,OQ18,0)+IF(Ф!$K$4>=12,PK18,0) -> 0 | BP18: =IF(Ф!$K$4>=1,DD18,0)+IF(Ф!$K$4>=2,DX18,0)+IF(Ф!$K$4>=3,ER18,0)+IF(Ф!$K$4>=4,GF18,0)+IF(Ф!$K$4>=5,GZ18,0)+IF(Ф!$K$4>=6,HT18,0)+IF(Ф!$K$4>=7,KB18,0)+IF(Ф!$K$4>=8,KV18,0)+IF(Ф!$K$4>=9,LP18,0)+IF(Ф!$K$4>=10,NX18,0)+IF(Ф!$K$4>=11,OR18,0)+IF(Ф!$K$4>=12,PL18,0) -> 0 | BQ18: =IF(Ф!$K$4>=1,DE18,0)+IF(Ф!$K$4>=2,DY18,0)+IF(Ф!$K$4>=3,ES18,0)+IF(Ф!$K$4>=4,GG18,0)+IF(Ф!$K$4>=5,HA18,0)+IF(Ф!$K$4>=6,HU18,0)+IF(Ф!$K$4>=7,KC18,0)+IF(Ф!$K$4>=8,KW18,0)+IF(Ф!$K$4>=9,LQ18,0)+IF(Ф!$K$4>=10,NY18,0)+IF(Ф!$K$4>=11,OS18,0)+IF(Ф!$K$4>=12,PM18,0) -> 0 | BR18: =IF(Ф!$K$4>=1,DF18,0)+IF(Ф!$K$4>=2,DZ18,0)+IF(Ф!$K$4>=3,ET18,0)+IF(Ф!$K$4>=4,GH18,0)+IF(Ф!$K$4>=5,HB18,0)+IF(Ф!$K$4>=6,HV18,0)+IF(Ф!$K$4>=7,KD18,0)+IF(Ф!$K$4>=8,KX18,0)+IF(Ф!$K$4>=9,LR18,0)+IF(Ф!$K$4>=10,NZ18,0)+IF(Ф!$K$4>=11,OT18,0)+IF(Ф!$K$4>=12,PN18,0) -> 0 | BS18: =IF(Ф!$K$4>=1,DG18,0)+IF(Ф!$K$4>=2,EA18,0)+IF(Ф!$K$4>=3,EU18,0)+IF(Ф!$K$4>=4,GI18,0)+IF(Ф!$K$4>=5,HC18,0)+IF(Ф!$K$4>=6,HW18,0)+IF(Ф!$K$4>=7,KE18,0)+IF(Ф!$K$4>=8,KY18,0)+IF(Ф!$K$4>=9,LS18,0)+IF(Ф!$K$4>=10,OA18,0)+IF(Ф!$K$4>=11,OU18,0)+IF(Ф!$K$4>=12,PO18,0) -> 0 | BT18: =IF(Ф!$K$4>=1,DH18,0)+IF(Ф!$K$4>=2,EB18,0)+IF(Ф!$K$4>=3,EV18,0)+IF(Ф!$K$4>=4,GJ18,0)+IF(Ф!$K$4>=5,HD18,0)+IF(Ф!$K$4>=6,HX18,0)+IF(Ф!$K$4>=7,KF18,0)+IF(Ф!$K$4>=8,KZ18,0)+IF(Ф!$K$4>=9,LT18,0)+IF(Ф!$K$4>=10,OB18,0)+IF(Ф!$K$4>=11,OV18,0)+IF(Ф!$K$4>=12,PP18,0) -> 0 | BU18: =IF(Ф!$K$4>=1,DI18,0)+IF(Ф!$K$4>=2,EC18,0)+IF(Ф!$K$4>=3,EW18,0)+IF(Ф!$K$4>=4,GK18,0)+IF(Ф!$K$4>=5,HE18,0)+IF(Ф!$K$4>=6,HY18,0)+IF(Ф!$K$4>=7,KG18,0)+IF(Ф!$K$4>=8,LA18,0)+IF(Ф!$K$4>=9,LU18,0)+IF(Ф!$K$4>=10,OC18,0)+IF(Ф!$K$4>=11,OW18,0)+IF(Ф!$K$4>=12,PQ18,0) -> 0 | BV18: =IF(Ф!$K$4>=1,DJ18,0)+IF(Ф!$K$4>=2,ED18,0)+IF(Ф!$K$4>=3,EX18,0)+IF(Ф!$K$4>=4,GL18,0)+IF(Ф!$K$4>=5,HF18,0)+IF(Ф!$K$4>=6,HZ18,0)+IF(Ф!$K$4>=7,KH18,0)+IF(Ф!$K$4>=8,LB18,0)+IF(Ф!$K$4>=9,LV18,0)+IF(Ф!$K$4>=10,OD18,0)+IF(Ф!$K$4>=11,OX18,0)+IF(Ф!$K$4>=12,PR18,0) -> 0 | BW18: =IF(Ф!$K$4>=1,DK18,0)+IF(Ф!$K$4>=2,EE18,0)+IF(Ф!$K$4>=3,EY18,0)+IF(Ф!$K$4>=4,GM18,0)+IF(Ф!$K$4>=5,HG18,0)+IF(Ф!$K$4>=6,IA18,0)+IF(Ф!$K$4>=7,KI18,0)+IF(Ф!$K$4>=8,LC18,0)+IF(Ф!$K$4>=9,LW18,0)+IF(Ф!$K$4>=10,OE18,0)+IF(Ф!$K$4>=11,OY18,0)+IF(Ф!$K$4>=12,PS18,0) -> 0 | BX18: =IF(Ф!$K$4>=1,DL18,0)+IF(Ф!$K$4>=2,EF18,0)+IF(Ф!$K$4>=3,EZ18,0)+IF(Ф!$K$4>=4,GN18,0)+IF(Ф!$K$4>=5,HH18,0)+IF(Ф!$K$4>=6,IB18,0)+IF(Ф!$K$4>=7,KJ18,0)+IF(Ф!$K$4>=8,LD18,0)+IF(Ф!$K$4>=9,LX18,0)+IF(Ф!$K$4>=10,OF18,0)+IF(Ф!$K$4>=11,OZ18,0)+IF(Ф!$K$4>=12,PT18,0) -> 0 | BY18: =IF(Ф!$K$4>=1,DM18,0)+IF(Ф!$K$4>=2,EG18,0)+IF(Ф!$K$4>=3,FA18,0)+IF(Ф!$K$4>=4,GO18,0)+IF(Ф!$K$4>=5,HI18,0)+IF(Ф!$K$4>=6,IC18,0)+IF(Ф!$K$4>=7,KK18,0)+IF(Ф!$K$4>=8,LE18,0)+IF(Ф!$K$4>=9,LY18,0)+IF(Ф!$K$4>=10,OG18,0)+IF(Ф!$K$4>=11,PA18,0)+IF(Ф!$K$4>=12,PU18,0) -> 0 | BZ18: =IF(Ф!$K$4>=1,DN18,0)+IF(Ф!$K$4>=2,EH18,0)+IF(Ф!$K$4>=3,FB18,0)+IF(Ф!$K$4>=4,GP18,0)+IF(Ф!$K$4>=5,HJ18,0)+IF(Ф!$K$4>=6,ID18,0)+IF(Ф!$K$4>=7,KL18,0)+IF(Ф!$K$4>=8,LF18,0)+IF(Ф!$K$4>=9,LZ18,0)+IF(Ф!$K$4>=10,OH18,0)+IF(Ф!$K$4>=11,PB18,0)+IF(Ф!$K$4>=12,PV18,0) -> 0 | CA18: =IF(Ф!$K$4>=1,DO18,0)+IF(Ф!$K$4>=2,EI18,0)+IF(Ф!$K$4>=3,FC18,0)+IF(Ф!$K$4>=4,GQ18,0)+IF(Ф!$K$4>=5,HK18,0)+IF(Ф!$K$4>=6,IE18,0)+IF(Ф!$K$4>=7,KM18,0)+IF(Ф!$K$4>=8,LG18,0)+IF(Ф!$K$4>=9,MA18,0)+IF(Ф!$K$4>=10,OI18,0)+IF(Ф!$K$4>=11,PC18,0)+IF(Ф!$K$4>=12,PW18,0) -> 0 | CB18: =IF(Ф!$K$4>=1,DP18,0)+IF(Ф!$K$4>=2,EJ18,0)+IF(Ф!$K$4>=3,FD18,0)+IF(Ф!$K$4>=4,GR18,0)+IF(Ф!$K$4>=5,HL18,0)+IF(Ф!$K$4>=6,IF18,0)+IF(Ф!$K$4>=7,KN18,0)+IF(Ф!$K$4>=8,LH18,0)+IF(Ф!$K$4>=9,MB18,0)+IF(Ф!$K$4>=10,OJ18,0)+IF(Ф!$K$4>=11,PD18,0)+IF(Ф!$K$4>=12,PX18,0) -> 0 | CC18: =IF(Ф!$K$4>=1,DQ18,0)+IF(Ф!$K$4>=2,EK18,0)+IF(Ф!$K$4>=3,FE18,0)+IF(Ф!$K$4>=4,GS18,0)+IF(Ф!$K$4>=5,HM18,0)+IF(Ф!$K$4>=6,IG18,0)+IF(Ф!$K$4>=7,KO18,0)+IF(Ф!$K$4>=8,LI18,0)+IF(Ф!$K$4>=9,MC18,0)+IF(Ф!$K$4>=10,OK18,0)+IF(Ф!$K$4>=11,PE18,0)+IF(Ф!$K$4>=12,PY18,0) -> 0 | CD18: 4,347 | CE18: 0 | CF18: 4,347 | CG18: 0 | CH18: 0 | CI18: 3,080 | CJ18: 0 | CK18: 3,080 | CL18: 0 | CM18: 0 | CN18: 0 | CO18: 0 | CP18: 0 | CQ18: 0 | CR18: 0 | CS18: 0 | CT18: 0 | CU18: 0 | CV18: 0 | CW18: 0 | CX18: 0 | CY18: 0 | CZ18: 0 | DA18: 0 | DB18: 0 | DC18: 0 | DD18: 0 | DE18: 0 | DF18: 0 | DG18: 0 | DH18: 0 | DI18: 0 | DJ18: 0 | DK18: 0 | DL18: 0 | DM18: 0 | DN18: 0 | DO18: 0 | DP18: 0 | DQ18: 0 | DR18: 0 | DS18: 0 | DT18: 0 | DU18: 0 | DV18: 0 | DW18: 3,080 | DX18: 0 | DY18: 3,080 | DZ18: 0 | EA18: 0 | EB18: 0 | EC18: 0 | ED18: 0 | EE18: 0 | EF18: 0 | EG18: 0 | EH18: 0 | EI18: 0 | EJ18: 0 | EK18: 0 | EL18: 4,347 | EM18: 0 | EN18: 4,347 | EO18: 0 | EP18: 0 | EQ18: 0 | ER18: 0 | ES18: 0 | ET18: 0 | EU18: 0 | EV18: 0 | EW18: 0 | EX18: 0 | EY18: 0 | EZ18: 0 | FA18: 0 | FB18: 0 | FC18: 0 | FD18: 0 | FE18: 0 | FF18: 0 | FG18: 0 | FH18: 0 | FI18: 0 | FJ18: 0 | FK18: 0 | FL18: 0 | FM18: 0 | FN18: 0 | FO18: 0 | FP18: 0 | FQ18: 0 | FR18: 0 | FS18: 0 | FT18: 0 | FU18: 0 | FV18: 0 | FW18: 0 | FX18: 0 | FY18: 0 | FZ18: 0 | GA18: 0 | GB18: 0 | GC18: 0 | GD18: 0 | GE18: 0 | GF18: 0 | GG18: 0 | GH18: 0 | GI18: 0 | GJ18: 0 | GK18: 0 | GL18: 0 | GM18: 0 | GN18: 0 | GO18: 0 | GP18: 0 | GQ18: 0 | GR18: 0 | GS18: 0 | GT18: 0 | GU18: 0 | GV18: 0 | GW18: 0 | GX18: 0 | GY18: 0 | GZ18: 0 | HA18: 0 | HB18: 0 | HC18: 0 | HD18: 0 | HE18: 0 | HF18: 0 | HG18: 0 | HH18: 0 | HI18: 0 | HJ18: 0 | HK18: 0 | HL18: 0 | HM18: 0 | HN18: 0 | HO18: 0 | HP18: 0 | HQ18: 0 | HR18: 0 | HS18: 0 | HT18: 0 | HU18: 0 | HV18: 0 | HW18: 0 | HX18: 0 | HY18: 0 | HZ18: 0 | IA18: 0 | IB18: 0 | IC18: 0 | ID18: 0 | IE18: 0 | IF18: 0 | IG18: 0 | IH18: 4,347 | II18: 0 | IJ18: 4,347 | IK18: 0 | IL18: 0 | IM18: 3,080 | IN18: 0 | IO18: 3,080 | IP18: 0 | IQ18: 0 | IR18: 0 | IS18: 0 | IT18: 0 | IU18: 0 | IV18: 0 | IW18: 0 | IX18: 0 | IY18: 0 | IZ18: 0 | JA18: 0 | JB18: 1,503 | JC18: 0 | JD18: 1,503 | JE18: 0 | JF18: 0 | JG18: 1,503 | JH18: 0 | JI18: 1,503 | JJ18: 0 | JK18: 0 | JL18: 0 | JM18: 0 | JN18: 0 | JO18: 0 | JP18: 0 | JQ18: 0 | JR18: 0 | JS18: 0 | JT18: 0 | JU18: 0 | JV18: 0 | JW18: 0 | JX18: 0 | JY18: 0 | JZ18: 0 | KA18: 1,503 | KB18: 0 | KC18: 1,503 | KD18: 0 | KE18: 0 | KF18: 0 | KG18: 0 | KH18: 0 | KI18: 0 | KJ18: 0 | KK18: 0 | KL18: 0 | KM18: 0 | KN18: 0 | KO18: 0 | KP18: 0 | KQ18: 0 | KR18: 0 | KS18: 0 | KT18: 0 | KU18: 0 | KV18: 0 | KW18: 0 | KX18: 0 | KY18: 0 | KZ18: 0 | LA18: 0 | LB18: 0 | LC18: 0 | LD18: 0 | LE18: 0 | LF18: 0 | LG18: 0 | LH18: 0 | LI18: 0 | LJ18: 1,503 | LK18: 0 | LL18: 1,503 | LM18: 0 | LN18: 0 | LO18: 0 | LP18: 0 | LQ18: 0 | LR18: 0 | LS18: 0 | LT18: 0 | LU18: 0 | LV18: 0 | LW18: 0 | LX18: 0 | LY18: 0 | LZ18: 0 | MA18: 0 | MB18: 0 | MC18: 0 | MD18: 5,850 | ME18: 0 | MF18: 5,850 | MG18: 0 | MH18: 0 | MI18: 4,583 | MJ18: 0 | MK18: 4,583 | ML18: 0 | MM18: 0 | MN18: 0 | MO18: 0 | MP18: 0 | MQ18: 0 | MR18: 0 | MS18: 0 | MT18: 0 | MU18: 0 | MV18: 0 | MW18: 0 | MX18: 0 | MY18: 0 | MZ18: 0 | NA18: 0 | NB18: 0 | NC18: 0 | ND18: 0 | NE18: 0 | NF18: 0 | NG18: 0 | NH18: 0 | NI18: 0 | NJ18: 0 | NK18: 0 | NL18: 0 | NM18: 0 | NN18: 0 | NO18: 0 | NP18: 0 | NQ18: 0 | NR18: 0 | NS18: 0 | NT18: 0 | NU18: 0 | NV18: 0 | NW18: 0 | NX18: 0 | NY18: 0 | NZ18: 0 | OA18: 0 | OB18: 0 | OC18: 0 | OD18: 0 | OE18: 0 | OF18: 0 | OG18: 0 | OH18: 0 | OI18: 0 | OJ18: 0 | OK18: 0 | OL18: 0 | OM18: 0 | ON18: 0 | OO18: 0 | OP18: 0 | OQ18: 0 | OR18: 0 | OS18: 0 | OT18: 0 | OU18: 0 | OV18: 0 | OW18: 0 | OX18: 0 | OY18: 0 | OZ18: 0 | PA18: 0 | PB18: 0 | PC18: 0 | PD18: 0 | PE18: 0 | PF18: 0 | PG18: 0 | PH18: 0 | PI18: 0 | PJ18: 0 | PK18: 0 | PL18: 0 | PM18: 0 | PN18: 0 | PO18: 0 | PP18: 0 | PQ18: 0 | PR18: 0 | PS18: 0 | PT18: 0 | PU18: 0 | PV18: 0 | PW18: 0 | PX18: 0 | PY18: 0 | PZ18: 5,850 | QA18: 0 | QB18: 5,850 | QC18: 0 | QD18: 0 | QE18: 4,583 | QF18: 0 | QG18: 4,583 | QH18: 0 | QI18: 0 | QJ18: 0 | QK18: 0 | QL18: 0 | QM18: 0 | QN18: 0 | QO18: 0 | QP18: 0 | QQ18: 0 | QR18: 0 | QS18: 0 | QT18: 918 | QU18: 0 | QV18: 918 | QW18: 0 | QX18: 0 | QY18: 2,185 | QZ18: 0 | RA18: 2,185 | RB18: 0 | RC18: 0 | RD18: 5,850 | RE18: 0 | RF18: 5,850 | RG18: 0 | RH18: 0 | RI18: 4,583 | RJ18: 0 | RK18: 4,583 | RL18: 0 | RM18: 0 | RN18: -1,267 | RO18: 0 | RP18: -1,267 | RQ18: 0 | RR18: 0 | RT18: =BO18+IF(Ф!$K$4=1,DW18+EQ18,0)+IF(Ф!$K$4=2,EQ18+GE18,0)+IF(Ф!$K$4=3,GE18+GY18,0)+IF(Ф!$K$4=4,GY18+HS18,0)+IF(Ф!$K$4=5,HS18+KA18,0)+IF(Ф!$K$4=6,KA18+KU18,0)+IF(Ф!$K$4=7,KU18+LO18,0)+IF(Ф!$K$4=8,LO18+NW18,0)+IF(Ф!$K$4=9,NW18+OQ18,0)+IF(Ф!$K$4=10,OQ18+PK18,0)+IF(Ф!$K$4=11,PK18,0)-BY18 -> 3,080 | RU18: =RT18*(1+Ф!$K$9) -> 3,634 | RX18: 5,408 | RY18: 6,207 | SA18: 3,634 | SB18: 5,408 | SC18: 6,207
B19: 18 | C19: 15 | K19: Поддержание существующих мощностей и техперевооружение | Q19: 6,768 | S19: 6,768 | V19: 918 | W19: 0 | X19: 918 | Y19: 0 | Z19: 0 | AA19: 2,185 | AB19: 0 | AC19: 2,185 | AD19: 0 | AE19: 0 | AF19: 5,850 | AG19: 0 | AH19: 5,850 | AI19: 0 | AJ19: 0 | AK19: 4,583 | AL19: 0 | AM19: 4,583 | AN19: 0 | AO19: 0 | AP19: 5,850 | AQ19: 0 | AR19: 5,850 | AS19: 0 | AT19: 0 | AU19: 4,583 | AV19: 0 | AW19: 4,583 | AX19: 0 | AY19: 0 | AZ19: 4,583 | BJ19: =IF(Ф!$K$4>=1,CX19,0)+IF(Ф!$K$4>=2,DR19,0)+IF(Ф!$K$4>=3,EL19,0)+IF(Ф!$K$4>=4,FZ19,0)+IF(Ф!$K$4>=5,GT19,0)+IF(Ф!$K$4>=6,HN19,0)+IF(Ф!$K$4>=7,JV19,0)+IF(Ф!$K$4>=8,KP19,0)+IF(Ф!$K$4>=9,LJ19,0)+IF(Ф!$K$4>=10,NR19,0)+IF(Ф!$K$4>=11,OL19,0)+IF(Ф!$K$4>=12,PF19,0) -> 0 | BK19: =IF(Ф!$K$4>=1,CY19,0)+IF(Ф!$K$4>=2,DS19,0)+IF(Ф!$K$4>=3,EM19,0)+IF(Ф!$K$4>=4,GA19,0)+IF(Ф!$K$4>=5,GU19,0)+IF(Ф!$K$4>=6,HO19,0)+IF(Ф!$K$4>=7,JW19,0)+IF(Ф!$K$4>=8,KQ19,0)+IF(Ф!$K$4>=9,LK19,0)+IF(Ф!$K$4>=10,NS19,0)+IF(Ф!$K$4>=11,OM19,0)+IF(Ф!$K$4>=12,PG19,0) -> 0 | BL19: =IF(Ф!$K$4>=1,CZ19,0)+IF(Ф!$K$4>=2,DT19,0)+IF(Ф!$K$4>=3,EN19,0)+IF(Ф!$K$4>=4,GB19,0)+IF(Ф!$K$4>=5,GV19,0)+IF(Ф!$K$4>=6,HP19,0)+IF(Ф!$K$4>=7,JX19,0)+IF(Ф!$K$4>=8,KR19,0)+IF(Ф!$K$4>=9,LL19,0)+IF(Ф!$K$4>=10,NT19,0)+IF(Ф!$K$4>=11,ON19,0)+IF(Ф!$K$4>=12,PH19,0) -> 0 | BM19: =IF(Ф!$K$4>=1,DA19,0)+IF(Ф!$K$4>=2,DU19,0)+IF(Ф!$K$4>=3,EO19,0)+IF(Ф!$K$4>=4,GC19,0)+IF(Ф!$K$4>=5,GW19,0)+IF(Ф!$K$4>=6,HQ19,0)+IF(Ф!$K$4>=7,JY19,0)+IF(Ф!$K$4>=8,KS19,0)+IF(Ф!$K$4>=9,LM19,0)+IF(Ф!$K$4>=10,NU19,0)+IF(Ф!$K$4>=11,OO19,0)+IF(Ф!$K$4>=12,PI19,0) -> 0 | BN19: =IF(Ф!$K$4>=1,DB19,0)+IF(Ф!$K$4>=2,DV19,0)+IF(Ф!$K$4>=3,EP19,0)+IF(Ф!$K$4>=4,GD19,0)+IF(Ф!$K$4>=5,GX19,0)+IF(Ф!$K$4>=6,HR19,0)+IF(Ф!$K$4>=7,JZ19,0)+IF(Ф!$K$4>=8,KT19,0)+IF(Ф!$K$4>=9,LN19,0)+IF(Ф!$K$4>=10,NV19,0)+IF(Ф!$K$4>=11,OP19,0)+IF(Ф!$K$4>=12,PJ19,0) -> 0 | BO19: =IF(Ф!$K$4>=1,DC19,0)+IF(Ф!$K$4>=2,DW19,0)+IF(Ф!$K$4>=3,EQ19,0)+IF(Ф!$K$4>=4,GE19,0)+IF(Ф!$K$4>=5,GY19,0)+IF(Ф!$K$4>=6,HS19,0)+IF(Ф!$K$4>=7,KA19,0)+IF(Ф!$K$4>=8,KU19,0)+IF(Ф!$K$4>=9,LO19,0)+IF(Ф!$K$4>=10,NW19,0)+IF(Ф!$K$4>=11,OQ19,0)+IF(Ф!$K$4>=12,PK19,0) -> 0 | BP19: =IF(Ф!$K$4>=1,DD19,0)+IF(Ф!$K$4>=2,DX19,0)+IF(Ф!$K$4>=3,ER19,0)+IF(Ф!$K$4>=4,GF19,0)+IF(Ф!$K$4>=5,GZ19,0)+IF(Ф!$K$4>=6,HT19,0)+IF(Ф!$K$4>=7,KB19,0)+IF(Ф!$K$4>=8,KV19,0)+IF(Ф!$K$4>=9,LP19,0)+IF(Ф!$K$4>=10,NX19,0)+IF(Ф!$K$4>=11,OR19,0)+IF(Ф!$K$4>=12,PL19,0) -> 0 | BQ19: =IF(Ф!$K$4>=1,DE19,0)+IF(Ф!$K$4>=2,DY19,0)+IF(Ф!$K$4>=3,ES19,0)+IF(Ф!$K$4>=4,GG19,0)+IF(Ф!$K$4>=5,HA19,0)+IF(Ф!$K$4>=6,HU19,0)+IF(Ф!$K$4>=7,KC19,0)+IF(Ф!$K$4>=8,KW19,0)+IF(Ф!$K$4>=9,LQ19,0)+IF(Ф!$K$4>=10,NY19,0)+IF(Ф!$K$4>=11,OS19,0)+IF(Ф!$K$4>=12,PM19,0) -> 0 | BR19: =IF(Ф!$K$4>=1,DF19,0)+IF(Ф!$K$4>=2,DZ19,0)+IF(Ф!$K$4>=3,ET19,0)+IF(Ф!$K$4>=4,GH19,0)+IF(Ф!$K$4>=5,HB19,0)+IF(Ф!$K$4>=6,HV19,0)+IF(Ф!$K$4>=7,KD19,0)+IF(Ф!$K$4>=8,KX19,0)+IF(Ф!$K$4>=9,LR19,0)+IF(Ф!$K$4>=10,NZ19,0)+IF(Ф!$K$4>=11,OT19,0)+IF(Ф!$K$4>=12,PN19,0) -> 0 | BS19: =IF(Ф!$K$4>=1,DG19,0)+IF(Ф!$K$4>=2,EA19,0)+IF(Ф!$K$4>=3,EU19,0)+IF(Ф!$K$4>=4,GI19,0)+IF(Ф!$K$4>=5,HC19,0)+IF(Ф!$K$4>=6,HW19,0)+IF(Ф!$K$4>=7,KE19,0)+IF(Ф!$K$4>=8,KY19,0)+IF(Ф!$K$4>=9,LS19,0)+IF(Ф!$K$4>=10,OA19,0)+IF(Ф!$K$4>=11,OU19,0)+IF(Ф!$K$4>=12,PO19,0) -> 0 | BT19: =IF(Ф!$K$4>=1,DH19,0)+IF(Ф!$K$4>=2,EB19,0)+IF(Ф!$K$4>=3,EV19,0)+IF(Ф!$K$4>=4,GJ19,0)+IF(Ф!$K$4>=5,HD19,0)+IF(Ф!$K$4>=6,HX19,0)+IF(Ф!$K$4>=7,KF19,0)+IF(Ф!$K$4>=8,KZ19,0)+IF(Ф!$K$4>=9,LT19,0)+IF(Ф!$K$4>=10,OB19,0)+IF(Ф!$K$4>=11,OV19,0)+IF(Ф!$K$4>=12,PP19,0) -> 0 | BU19: =IF(Ф!$K$4>=1,DI19,0)+IF(Ф!$K$4>=2,EC19,0)+IF(Ф!$K$4>=3,EW19,0)+IF(Ф!$K$4>=4,GK19,0)+IF(Ф!$K$4>=5,HE19,0)+IF(Ф!$K$4>=6,HY19,0)+IF(Ф!$K$4>=7,KG19,0)+IF(Ф!$K$4>=8,LA19,0)+IF(Ф!$K$4>=9,LU19,0)+IF(Ф!$K$4>=10,OC19,0)+IF(Ф!$K$4>=11,OW19,0)+IF(Ф!$K$4>=12,PQ19,0) -> 0 | BV19: =IF(Ф!$K$4>=1,DJ19,0)+IF(Ф!$K$4>=2,ED19,0)+IF(Ф!$K$4>=3,EX19,0)+IF(Ф!$K$4>=4,GL19,0)+IF(Ф!$K$4>=5,HF19,0)+IF(Ф!$K$4>=6,HZ19,0)+IF(Ф!$K$4>=7,KH19,0)+IF(Ф!$K$4>=8,LB19,0)+IF(Ф!$K$4>=9,LV19,0)+IF(Ф!$K$4>=10,OD19,0)+IF(Ф!$K$4>=11,OX19,0)+IF(Ф!$K$4>=12,PR19,0) -> 0 | BW19: =IF(Ф!$K$4>=1,DK19,0)+IF(Ф!$K$4>=2,EE19,0)+IF(Ф!$K$4>=3,EY19,0)+IF(Ф!$K$4>=4,GM19,0)+IF(Ф!$K$4>=5,HG19,0)+IF(Ф!$K$4>=6,IA19,0)+IF(Ф!$K$4>=7,KI19,0)+IF(Ф!$K$4>=8,LC19,0)+IF(Ф!$K$4>=9,LW19,0)+IF(Ф!$K$4>=10,OE19,0)+IF(Ф!$K$4>=11,OY19,0)+IF(Ф!$K$4>=12,PS19,0) -> 0 | BX19: =IF(Ф!$K$4>=1,DL19,0)+IF(Ф!$K$4>=2,EF19,0)+IF(Ф!$K$4>=3,EZ19,0)+IF(Ф!$K$4>=4,GN19,0)+IF(Ф!$K$4>=5,HH19,0)+IF(Ф!$K$4>=6,IB19,0)+IF(Ф!$K$4>=7,KJ19,0)+IF(Ф!$K$4>=8,LD19,0)+IF(Ф!$K$4>=9,LX19,0)+IF(Ф!$K$4>=10,OF19,0)+IF(Ф!$K$4>=11,OZ19,0)+IF(Ф!$K$4>=12,PT19,0) -> 0 | BY19: =IF(Ф!$K$4>=1,DM19,0)+IF(Ф!$K$4>=2,EG19,0)+IF(Ф!$K$4>=3,FA19,0)+IF(Ф!$K$4>=4,GO19,0)+IF(Ф!$K$4>=5,HI19,0)+IF(Ф!$K$4>=6,IC19,0)+IF(Ф!$K$4>=7,KK19,0)+IF(Ф!$K$4>=8,LE19,0)+IF(Ф!$K$4>=9,LY19,0)+IF(Ф!$K$4>=10,OG19,0)+IF(Ф!$K$4>=11,PA19,0)+IF(Ф!$K$4>=12,PU19,0) -> 0 | BZ19: =IF(Ф!$K$4>=1,DN19,0)+IF(Ф!$K$4>=2,EH19,0)+IF(Ф!$K$4>=3,FB19,0)+IF(Ф!$K$4>=4,GP19,0)+IF(Ф!$K$4>=5,HJ19,0)+IF(Ф!$K$4>=6,ID19,0)+IF(Ф!$K$4>=7,KL19,0)+IF(Ф!$K$4>=8,LF19,0)+IF(Ф!$K$4>=9,LZ19,0)+IF(Ф!$K$4>=10,OH19,0)+IF(Ф!$K$4>=11,PB19,0)+IF(Ф!$K$4>=12,PV19,0) -> 0 | CA19: =IF(Ф!$K$4>=1,DO19,0)+IF(Ф!$K$4>=2,EI19,0)+IF(Ф!$K$4>=3,FC19,0)+IF(Ф!$K$4>=4,GQ19,0)+IF(Ф!$K$4>=5,HK19,0)+IF(Ф!$K$4>=6,IE19,0)+IF(Ф!$K$4>=7,KM19,0)+IF(Ф!$K$4>=8,LG19,0)+IF(Ф!$K$4>=9,MA19,0)+IF(Ф!$K$4>=10,OI19,0)+IF(Ф!$K$4>=11,PC19,0)+IF(Ф!$K$4>=12,PW19,0) -> 0 | CB19: =IF(Ф!$K$4>=1,DP19,0)+IF(Ф!$K$4>=2,EJ19,0)+IF(Ф!$K$4>=3,FD19,0)+IF(Ф!$K$4>=4,GR19,0)+IF(Ф!$K$4>=5,HL19,0)+IF(Ф!$K$4>=6,IF19,0)+IF(Ф!$K$4>=7,KN19,0)+IF(Ф!$K$4>=8,LH19,0)+IF(Ф!$K$4>=9,MB19,0)+IF(Ф!$K$4>=10,OJ19,0)+IF(Ф!$K$4>=11,PD19,0)+IF(Ф!$K$4>=12,PX19,0) -> 0 | CC19: =IF(Ф!$K$4>=1,DQ19,0)+IF(Ф!$K$4>=2,EK19,0)+IF(Ф!$K$4>=3,FE19,0)+IF(Ф!$K$4>=4,GS19,0)+IF(Ф!$K$4>=5,HM19,0)+IF(Ф!$K$4>=6,IG19,0)+IF(Ф!$K$4>=7,KO19,0)+IF(Ф!$K$4>=8,LI19,0)+IF(Ф!$K$4>=9,MC19,0)+IF(Ф!$K$4>=10,OK19,0)+IF(Ф!$K$4>=11,PE19,0)+IF(Ф!$K$4>=12,PY19,0) -> 0 | CD19: 4,347 | CE19: 0 | CF19: 4,347 | CG19: 0 | CH19: 0 | CI19: 3,080 | CJ19: 0 | CK19: 3,080 | CL19: 0 | CM19: 0 | CN19: 0 | CO19: 0 | CP19: 0 | CQ19: 0 | CR19: 0 | CS19: 0 | CT19: 0 | CU19: 0 | CV19: 0 | CW19: 0 | CX19: 0 | CY19: 0 | CZ19: 0 | DA19: 0 | DB19: 0 | DC19: 0 | DD19: 0 | DE19: 0 | DF19: 0 | DG19: 0 | DH19: 0 | DI19: 0 | DJ19: 0 | DK19: 0 | DL19: 0 | DM19: 0 | DN19: 0 | DO19: 0 | DP19: 0 | DQ19: 0 | DR19: 0 | DS19: 0 | DT19: 0 | DU19: 0 | DV19: 0 | DW19: 3,080 | DX19: 0 | DY19: 3,080 | DZ19: 0 | EA19: 0 | EB19: 0 | EC19: 0 | ED19: 0 | EE19: 0 | EF19: 0 | EG19: 0 | EH19: 0 | EI19: 0 | EJ19: 0 | EK19: 0 | EL19: 4,347 | EM19: 0 | EN19: 4,347 | EO19: 0 | EP19: 0 | EQ19: 0 | ER19: 0 | ES19: 0 | ET19: 0 | EU19: 0 | EV19: 0 | EW19: 0 | EX19: 0 | EY19: 0 | EZ19: 0 | FA19: 0 | FB19: 0 | FC19: 0 | FD19: 0 | FE19: 0 | FF19: 0 | FG19: 0 | FH19: 0 | FI19: 0 | FJ19: 0 | FK19: 0 | FL19: 0 | FM19: 0 | FN19: 0 | FO19: 0 | FP19: 0 | FQ19: 0 | FR19: 0 | FS19: 0 | FT19: 0 | FU19: 0 | FV19: 0 | FW19: 0 | FX19: 0 | FY19: 0 | FZ19: 0 | GA19: 0 | GB19: 0 | GC19: 0 | GD19: 0 | GE19: 0 | GF19: 0 | GG19: 0 | GH19: 0 | GI19: 0 | GJ19: 0 | GK19: 0 | GL19: 0 | GM19: 0 | GN19: 0 | GO19: 0 | GP19: 0 | GQ19: 0 | GR19: 0 | GS19: 0 | GT19: 0 | GU19: 0 | GV19: 0 | GW19: 0 | GX19: 0 | GY19: 0 | GZ19: 0 | HA19: 0 | HB19: 0 | HC19: 0 | HD19: 0 | HE19: 0 | HF19: 0 | HG19: 0 | HH19: 0 | HI19: 0 | HJ19: 0 | HK19: 0 | HL19: 0 | HM19: 0 | HN19: 0 | HO19: 0 | HP19: 0 | HQ19: 0 | HR19: 0 | HS19: 0 | HT19: 0 | HU19: 0 | HV19: 0 | HW19: 0 | HX19: 0 | HY19: 0 | HZ19: 0 | IA19: 0 | IB19: 0 | IC19: 0 | ID19: 0 | IE19: 0 | IF19: 0 | IG19: 0 | IH19: 4,347 | II19: 0 | IJ19: 4,347 | IK19: 0 | IL19: 0 | IM19: 3,080 | IN19: 0 | IO19: 3,080 | IP19: 0 | IQ19: 0 | IR19: 0 | IS19: 0 | IT19: 0 | IU19: 0 | IV19: 0 | IW19: 0 | IX19: 0 | IY19: 0 | IZ19: 0 | JA19: 0 | JB19: 1,503 | JC19: 0 | JD19: 1,503 | JE19: 0 | JF19: 0 | JG19: 1,503 | JH19: 0 | JI19: 1,503 | JJ19: 0 | JK19: 0 | JL19: 0 | JM19: 0 | JN19: 0 | JO19: 0 | JP19: 0 | JQ19: 0 | JR19: 0 | JS19: 0 | JT19: 0 | JU19: 0 | JV19: 0 | JW19: 0 | JX19: 0 | JY19: 0 | JZ19: 0 | KA19: 1,503 | KB19: 0 | KC19: 1,503 | KD19: 0 | KE19: 0 | KF19: 0 | KG19: 0 | KH19: 0 | KI19: 0 | KJ19: 0 | KK19: 0 | KL19: 0 | KM19: 0 | KN19: 0 | KO19: 0 | KP19: 0 | KQ19: 0 | KR19: 0 | KS19: 0 | KT19: 0 | KU19: 0 | KV19: 0 | KW19: 0 | KX19: 0 | KY19: 0 | KZ19: 0 | LA19: 0 | LB19: 0 | LC19: 0 | LD19: 0 | LE19: 0 | LF19: 0 | LG19: 0 | LH19: 0 | LI19: 0 | LJ19: 1,503 | LK19: 0 | LL19: 1,503 | LM19: 0 | LN19: 0 | LO19: 0 | LP19: 0 | LQ19: 0 | LR19: 0 | LS19: 0 | LT19: 0 | LU19: 0 | LV19: 0 | LW19: 0 | LX19: 0 | LY19: 0 | LZ19: 0 | MA19: 0 | MB19: 0 | MC19: 0 | MD19: 5,850 | ME19: 0 | MF19: 5,850 | MG19: 0 | MH19: 0 | MI19: 4,583 | MJ19: 0 | MK19: 4,583 | ML19: 0 | MM19: 0 | MN19: 0 | MO19: 0 | MP19: 0 | MQ19: 0 | MR19: 0 | MS19: 0 | MT19: 0 | MU19: 0 | MV19: 0 | MW19: 0 | MX19: 0 | MY19: 0 | MZ19: 0 | NA19: 0 | NB19: 0 | NC19: 0 | ND19: 0 | NE19: 0 | NF19: 0 | NG19: 0 | NH19: 0 | NI19: 0 | NJ19: 0 | NK19: 0 | NL19: 0 | NM19: 0 | NN19: 0 | NO19: 0 | NP19: 0 | NQ19: 0 | NR19: 0 | NS19: 0 | NT19: 0 | NU19: 0 | NV19: 0 | NW19: 0 | NX19: 0 | NY19: 0 | NZ19: 0 | OA19: 0 | OB19: 0 | OC19: 0 | OD19: 0 | OE19: 0 | OF19: 0 | OG19: 0 | OH19: 0 | OI19: 0 | OJ19: 0 | OK19: 0 | OL19: 0 | OM19: 0 | ON19: 0 | OO19: 0 | OP19: 0 | OQ19: 0 | OR19: 0 | OS19: 0 | OT19: 0 | OU19: 0 | OV19: 0 | OW19: 0 | OX19: 0 | OY19: 0 | OZ19: 0 | PA19: 0 | PB19: 0 | PC19: 0 | PD19: 0 | PE19: 0 | PF19: 0 | PG19: 0 | PH19: 0 | PI19: 0 | PJ19: 0 | PK19: 0 | PL19: 0 | PM19: 0 | PN19: 0 | PO19: 0 | PP19: 0 | PQ19: 0 | PR19: 0 | PS19: 0 | PT19: 0 | PU19: 0 | PV19: 0 | PW19: 0 | PX19: 0 | PY19: 0 | PZ19: 5,850 | QA19: 0 | QB19: 5,850 | QC19: 0 | QD19: 0 | QE19: 4,583 | QF19: 0 | QG19: 4,583 | QH19: 0 | QI19: 0 | QJ19: 0 | QK19: 0 | QL19: 0 | QM19: 0 | QN19: 0 | QO19: 0 | QP19: 0 | QQ19: 0 | QR19: 0 | QS19: 0 | QT19: 918 | QU19: 0 | QV19: 918 | QW19: 0 | QX19: 0 | QY19: 2,185 | QZ19: 0 | RA19: 2,185 | RB19: 0 | RC19: 0 | RD19: 5,850 | RE19: 0 | RF19: 5,850 | RG19: 0 | RH19: 0 | RI19: 4,583 | RJ19: 0 | RK19: 4,583 | RL19: 0 | RM19: 0 | RN19: -1,267 | RO19: 0 | RP19: -1,267 | RQ19: 0 | RR19: 0 | RT19: =BO19+IF(Ф!$K$4=1,DW19+EQ19,0)+IF(Ф!$K$4=2,EQ19+GE19,0)+IF(Ф!$K$4=3,GE19+GY19,0)+IF(Ф!$K$4=4,GY19+HS19,0)+IF(Ф!$K$4=5,HS19+KA19,0)+IF(Ф!$K$4=6,KA19+KU19,0)+IF(Ф!$K$4=7,KU19+LO19,0)+IF(Ф!$K$4=8,LO19+NW19,0)+IF(Ф!$K$4=9,NW19+OQ19,0)+IF(Ф!$K$4=10,OQ19+PK19,0)+IF(Ф!$K$4=11,PK19,0)-BY19 -> 3,080 | RU19: =RT19*(1+Ф!$K$9) -> 3,634 | RX19: 5,408 | RY19: 6,207 | SA19: 3,634 | SB19: 5,408 | SC19: 6,207
B20: 17 | C20: 14 | J20: 3 | K20: Непроизводственное строительство | Q20: 0 | V20: 0 | AA20: 0 | AF20: 0 | AG20: 0 | AH20: 0 | AI20: 0 | AJ20: 0 | AK20: 0 | AL20: 0 | AM20: 0 | AN20: 0 | AO20: 0 | AP20: 0 | AQ20: 0 | AR20: 0 | AS20: 0 | AT20: 0 | AU20: 0 | AV20: 0 | AW20: 0 | AX20: 0 | AY20: 0 | BJ20: =IF(Ф!$K$4>=1,CX20,0)+IF(Ф!$K$4>=2,DR20,0)+IF(Ф!$K$4>=3,EL20,0)+IF(Ф!$K$4>=4,FZ20,0)+IF(Ф!$K$4>=5,GT20,0)+IF(Ф!$K$4>=6,HN20,0)+IF(Ф!$K$4>=7,JV20,0)+IF(Ф!$K$4>=8,KP20,0)+IF(Ф!$K$4>=9,LJ20,0)+IF(Ф!$K$4>=10,NR20,0)+IF(Ф!$K$4>=11,OL20,0)+IF(Ф!$K$4>=12,PF20,0) -> 0 | BK20: =IF(Ф!$K$4>=1,CY20,0)+IF(Ф!$K$4>=2,DS20,0)+IF(Ф!$K$4>=3,EM20,0)+IF(Ф!$K$4>=4,GA20,0)+IF(Ф!$K$4>=5,GU20,0)+IF(Ф!$K$4>=6,HO20,0)+IF(Ф!$K$4>=7,JW20,0)+IF(Ф!$K$4>=8,KQ20,0)+IF(Ф!$K$4>=9,LK20,0)+IF(Ф!$K$4>=10,NS20,0)+IF(Ф!$K$4>=11,OM20,0)+IF(Ф!$K$4>=12,PG20,0) -> 0 | BL20: =IF(Ф!$K$4>=1,CZ20,0)+IF(Ф!$K$4>=2,DT20,0)+IF(Ф!$K$4>=3,EN20,0)+IF(Ф!$K$4>=4,GB20,0)+IF(Ф!$K$4>=5,GV20,0)+IF(Ф!$K$4>=6,HP20,0)+IF(Ф!$K$4>=7,JX20,0)+IF(Ф!$K$4>=8,KR20,0)+IF(Ф!$K$4>=9,LL20,0)+IF(Ф!$K$4>=10,NT20,0)+IF(Ф!$K$4>=11,ON20,0)+IF(Ф!$K$4>=12,PH20,0) -> 0 | BM20: =IF(Ф!$K$4>=1,DA20,0)+IF(Ф!$K$4>=2,DU20,0)+IF(Ф!$K$4>=3,EO20,0)+IF(Ф!$K$4>=4,GC20,0)+IF(Ф!$K$4>=5,GW20,0)+IF(Ф!$K$4>=6,HQ20,0)+IF(Ф!$K$4>=7,JY20,0)+IF(Ф!$K$4>=8,KS20,0)+IF(Ф!$K$4>=9,LM20,0)+IF(Ф!$K$4>=10,NU20,0)+IF(Ф!$K$4>=11,OO20,0)+IF(Ф!$K$4>=12,PI20,0) -> 0 | BN20: =IF(Ф!$K$4>=1,DB20,0)+IF(Ф!$K$4>=2,DV20,0)+IF(Ф!$K$4>=3,EP20,0)+IF(Ф!$K$4>=4,GD20,0)+IF(Ф!$K$4>=5,GX20,0)+IF(Ф!$K$4>=6,HR20,0)+IF(Ф!$K$4>=7,JZ20,0)+IF(Ф!$K$4>=8,KT20,0)+IF(Ф!$K$4>=9,LN20,0)+IF(Ф!$K$4>=10,NV20,0)+IF(Ф!$K$4>=11,OP20,0)+IF(Ф!$K$4>=12,PJ20,0) -> 0 | BO20: =IF(Ф!$K$4>=1,DC20,0)+IF(Ф!$K$4>=2,DW20,0)+IF(Ф!$K$4>=3,EQ20,0)+IF(Ф!$K$4>=4,GE20,0)+IF(Ф!$K$4>=5,GY20,0)+IF(Ф!$K$4>=6,HS20,0)+IF(Ф!$K$4>=7,KA20,0)+IF(Ф!$K$4>=8,KU20,0)+IF(Ф!$K$4>=9,LO20,0)+IF(Ф!$K$4>=10,NW20,0)+IF(Ф!$K$4>=11,OQ20,0)+IF(Ф!$K$4>=12,PK20,0) -> 0 | BP20: =IF(Ф!$K$4>=1,DD20,0)+IF(Ф!$K$4>=2,DX20,0)+IF(Ф!$K$4>=3,ER20,0)+IF(Ф!$K$4>=4,GF20,0)+IF(Ф!$K$4>=5,GZ20,0)+IF(Ф!$K$4>=6,HT20,0)+IF(Ф!$K$4>=7,KB20,0)+IF(Ф!$K$4>=8,KV20,0)+IF(Ф!$K$4>=9,LP20,0)+IF(Ф!$K$4>=10,NX20,0)+IF(Ф!$K$4>=11,OR20,0)+IF(Ф!$K$4>=12,PL20,0) -> 0 | BQ20: =IF(Ф!$K$4>=1,DE20,0)+IF(Ф!$K$4>=2,DY20,0)+IF(Ф!$K$4>=3,ES20,0)+IF(Ф!$K$4>=4,GG20,0)+IF(Ф!$K$4>=5,HA20,0)+IF(Ф!$K$4>=6,HU20,0)+IF(Ф!$K$4>=7,KC20,0)+IF(Ф!$K$4>=8,KW20,0)+IF(Ф!$K$4>=9,LQ20,0)+IF(Ф!$K$4>=10,NY20,0)+IF(Ф!$K$4>=11,OS20,0)+IF(Ф!$K$4>=12,PM20,0) -> 0 | BR20: =IF(Ф!$K$4>=1,DF20,0)+IF(Ф!$K$4>=2,DZ20,0)+IF(Ф!$K$4>=3,ET20,0)+IF(Ф!$K$4>=4,GH20,0)+IF(Ф!$K$4>=5,HB20,0)+IF(Ф!$K$4>=6,HV20,0)+IF(Ф!$K$4>=7,KD20,0)+IF(Ф!$K$4>=8,KX20,0)+IF(Ф!$K$4>=9,LR20,0)+IF(Ф!$K$4>=10,NZ20,0)+IF(Ф!$K$4>=11,OT20,0)+IF(Ф!$K$4>=12,PN20,0) -> 0 | BS20: =IF(Ф!$K$4>=1,DG20,0)+IF(Ф!$K$4>=2,EA20,0)+IF(Ф!$K$4>=3,EU20,0)+IF(Ф!$K$4>=4,GI20,0)+IF(Ф!$K$4>=5,HC20,0)+IF(Ф!$K$4>=6,HW20,0)+IF(Ф!$K$4>=7,KE20,0)+IF(Ф!$K$4>=8,KY20,0)+IF(Ф!$K$4>=9,LS20,0)+IF(Ф!$K$4>=10,OA20,0)+IF(Ф!$K$4>=11,OU20,0)+IF(Ф!$K$4>=12,PO20,0) -> 0 | BT20: =IF(Ф!$K$4>=1,DH20,0)+IF(Ф!$K$4>=2,EB20,0)+IF(Ф!$K$4>=3,EV20,0)+IF(Ф!$K$4>=4,GJ20,0)+IF(Ф!$K$4>=5,HD20,0)+IF(Ф!$K$4>=6,HX20,0)+IF(Ф!$K$4>=7,KF20,0)+IF(Ф!$K$4>=8,KZ20,0)+IF(Ф!$K$4>=9,LT20,0)+IF(Ф!$K$4>=10,OB20,0)+IF(Ф!$K$4>=11,OV20,0)+IF(Ф!$K$4>=12,PP20,0) -> 0 | BU20: =IF(Ф!$K$4>=1,DI20,0)+IF(Ф!$K$4>=2,EC20,0)+IF(Ф!$K$4>=3,EW20,0)+IF(Ф!$K$4>=4,GK20,0)+IF(Ф!$K$4>=5,HE20,0)+IF(Ф!$K$4>=6,HY20,0)+IF(Ф!$K$4>=7,KG20,0)+IF(Ф!$K$4>=8,LA20,0)+IF(Ф!$K$4>=9,LU20,0)+IF(Ф!$K$4>=10,OC20,0)+IF(Ф!$K$4>=11,OW20,0)+IF(Ф!$K$4>=12,PQ20,0) -> 0 | BV20: =IF(Ф!$K$4>=1,DJ20,0)+IF(Ф!$K$4>=2,ED20,0)+IF(Ф!$K$4>=3,EX20,0)+IF(Ф!$K$4>=4,GL20,0)+IF(Ф!$K$4>=5,HF20,0)+IF(Ф!$K$4>=6,HZ20,0)+IF(Ф!$K$4>=7,KH20,0)+IF(Ф!$K$4>=8,LB20,0)+IF(Ф!$K$4>=9,LV20,0)+IF(Ф!$K$4>=10,OD20,0)+IF(Ф!$K$4>=11,OX20,0)+IF(Ф!$K$4>=12,PR20,0) -> 0 | BW20: =IF(Ф!$K$4>=1,DK20,0)+IF(Ф!$K$4>=2,EE20,0)+IF(Ф!$K$4>=3,EY20,0)+IF(Ф!$K$4>=4,GM20,0)+IF(Ф!$K$4>=5,HG20,0)+IF(Ф!$K$4>=6,IA20,0)+IF(Ф!$K$4>=7,KI20,0)+IF(Ф!$K$4>=8,LC20,0)+IF(Ф!$K$4>=9,LW20,0)+IF(Ф!$K$4>=10,OE20,0)+IF(Ф!$K$4>=11,OY20,0)+IF(Ф!$K$4>=12,PS20,0) -> 0 | BX20: =IF(Ф!$K$4>=1,DL20,0)+IF(Ф!$K$4>=2,EF20,0)+IF(Ф!$K$4>=3,EZ20,0)+IF(Ф!$K$4>=4,GN20,0)+IF(Ф!$K$4>=5,HH20,0)+IF(Ф!$K$4>=6,IB20,0)+IF(Ф!$K$4>=7,KJ20,0)+IF(Ф!$K$4>=8,LD20,0)+IF(Ф!$K$4>=9,LX20,0)+IF(Ф!$K$4>=10,OF20,0)+IF(Ф!$K$4>=11,OZ20,0)+IF(Ф!$K$4>=12,PT20,0) -> 0 | BY20: =IF(Ф!$K$4>=1,DM20,0)+IF(Ф!$K$4>=2,EG20,0)+IF(Ф!$K$4>=3,FA20,0)+IF(Ф!$K$4>=4,GO20,0)+IF(Ф!$K$4>=5,HI20,0)+IF(Ф!$K$4>=6,IC20,0)+IF(Ф!$K$4>=7,KK20,0)+IF(Ф!$K$4>=8,LE20,0)+IF(Ф!$K$4>=9,LY20,0)+IF(Ф!$K$4>=10,OG20,0)+IF(Ф!$K$4>=11,PA20,0)+IF(Ф!$K$4>=12,PU20,0) -> 0 | BZ20: =IF(Ф!$K$4>=1,DN20,0)+IF(Ф!$K$4>=2,EH20,0)+IF(Ф!$K$4>=3,FB20,0)+IF(Ф!$K$4>=4,GP20,0)+IF(Ф!$K$4>=5,HJ20,0)+IF(Ф!$K$4>=6,ID20,0)+IF(Ф!$K$4>=7,KL20,0)+IF(Ф!$K$4>=8,LF20,0)+IF(Ф!$K$4>=9,LZ20,0)+IF(Ф!$K$4>=10,OH20,0)+IF(Ф!$K$4>=11,PB20,0)+IF(Ф!$K$4>=12,PV20,0) -> 0 | CA20: =IF(Ф!$K$4>=1,DO20,0)+IF(Ф!$K$4>=2,EI20,0)+IF(Ф!$K$4>=3,FC20,0)+IF(Ф!$K$4>=4,GQ20,0)+IF(Ф!$K$4>=5,HK20,0)+IF(Ф!$K$4>=6,IE20,0)+IF(Ф!$K$4>=7,KM20,0)+IF(Ф!$K$4>=8,LG20,0)+IF(Ф!$K$4>=9,MA20,0)+IF(Ф!$K$4>=10,OI20,0)+IF(Ф!$K$4>=11,PC20,0)+IF(Ф!$K$4>=12,PW20,0) -> 0 | CB20: =IF(Ф!$K$4>=1,DP20,0)+IF(Ф!$K$4>=2,EJ20,0)+IF(Ф!$K$4>=3,FD20,0)+IF(Ф!$K$4>=4,GR20,0)+IF(Ф!$K$4>=5,HL20,0)+IF(Ф!$K$4>=6,IF20,0)+IF(Ф!$K$4>=7,KN20,0)+IF(Ф!$K$4>=8,LH20,0)+IF(Ф!$K$4>=9,MB20,0)+IF(Ф!$K$4>=10,OJ20,0)+IF(Ф!$K$4>=11,PD20,0)+IF(Ф!$K$4>=12,PX20,0) -> 0 | CC20: =IF(Ф!$K$4>=1,DQ20,0)+IF(Ф!$K$4>=2,EK20,0)+IF(Ф!$K$4>=3,FE20,0)+IF(Ф!$K$4>=4,GS20,0)+IF(Ф!$K$4>=5,HM20,0)+IF(Ф!$K$4>=6,IG20,0)+IF(Ф!$K$4>=7,KO20,0)+IF(Ф!$K$4>=8,LI20,0)+IF(Ф!$K$4>=9,MC20,0)+IF(Ф!$K$4>=10,OK20,0)+IF(Ф!$K$4>=11,PE20,0)+IF(Ф!$K$4>=12,PY20,0) -> 0 | CD20: 0 | CE20: 0 | CF20: 0 | CG20: 0 | CH20: 0 | CI20: 0 | CJ20: 0 | CK20: 0 | CL20: 0 | CM20: 0 | CN20: 0 | CO20: 0 | CP20: 0 | CQ20: 0 | CR20: 0 | CS20: 0 | CT20: 0 | CU20: 0 | CV20: 0 | CW20: 0 | CX20: 0 | DC20: 0 | DH20: 0 | DM20: 0 | DR20: 0 | DW20: 0 | EB20: 0 | EG20: 0 | EL20: 0 | EQ20: 0 | EV20: 0 | FA20: 0 | FF20: 0 | FG20: 0 | FH20: 0 | FI20: 0 | FJ20: 0 | FK20: 0 | FL20: 0 | FM20: 0 | FN20: 0 | FO20: 0 | FP20: 0 | FQ20: 0 | FR20: 0 | FS20: 0 | FT20: 0 | FU20: 0 | FV20: 0 | FW20: 0 | FX20: 0 | FY20: 0 | FZ20: 0 | GE20: 0 | GJ20: 0 | GO20: 0 | GT20: 0 | GY20: 0 | HD20: 0 | HI20: 0 | HN20: 0 | HS20: 0 | HX20: 0 | IC20: 0 | IH20: 0 | II20: 0 | IJ20: 0 | IK20: 0 | IL20: 0 | IM20: 0 | IN20: 0 | IO20: 0 | IP20: 0 | IQ20: 0 | IR20: 0 | IS20: 0 | IT20: 0 | IU20: 0 | IV20: 0 | IW20: 0 | IX20: 0 | IY20: 0 | IZ20: 0 | JA20: 0 | JB20: 0 | JC20: 0 | JD20: 0 | JE20: 0 | JF20: 0 | JG20: 0 | JH20: 0 | JI20: 0 | JJ20: 0 | JK20: 0 | JL20: 0 | JM20: 0 | JN20: 0 | JO20: 0 | JP20: 0 | JQ20: 0 | JR20: 0 | JS20: 0 | JT20: 0 | JU20: 0 | JV20: 0 | KA20: 0 | KF20: 0 | KK20: 0 | KP20: 0 | KU20: 0 | KZ20: 0 | LE20: 0 | LJ20: 0 | LO20: 0 | LT20: 0 | LY20: 0 | MD20: 0 | ME20: 0 | MF20: 0 | MG20: 0 | MH20: 0 | MI20: 0 | MJ20: 0 | MK20: 0 | ML20: 0 | MM20: 0 | MN20: 0 | MO20: 0 | MP20: 0 | MQ20: 0 | MR20: 0 | MS20: 0 | MT20: 0 | MU20: 0 | MV20: 0 | MW20: 0 | MX20: 0 | MY20: 0 | MZ20: 0 | NA20: 0 | NB20: 0 | NC20: 0 | ND20: 0 | NE20: 0 | NF20: 0 | NG20: 0 | NH20: 0 | NI20: 0 | NJ20: 0 | NK20: 0 | NL20: 0 | NM20: 0 | NN20: 0 | NO20: 0 | NP20: 0 | NQ20: 0 | NR20: 0 | NW20: 0 | OB20: 0 | OG20: 0 | OL20: 0 | OQ20: 0 | OV20: 0 | PA20: 0 | PF20: 0 | PK20: 0 | PP20: 0 | PU20: 0 | PZ20: 0 | QA20: 0 | QB20: 0 | QC20: 0 | QD20: 0 | QE20: 0 | QF20: 0 | QG20: 0 | QH20: 0 | QI20: 0 | QJ20: 0 | QK20: 0 | QL20: 0 | QM20: 0 | QN20: 0 | QO20: 0 | QP20: 0 | QQ20: 0 | QR20: 0 | QS20: 0 | QT20: 0 | QU20: 0 | QV20: 0 | QW20: 0 | QX20: 0 | QY20: 0 | QZ20: 0 | RA20: 0 | RB20: 0 | RC20: 0 | RD20: 0 | RE20: 0 | RF20: 0 | RG20: 0 | RH20: 0 | RI20: 0 | RJ20: 0 | RK20: 0 | RL20: 0 | RM20: 0 | RN20: 0 | RO20: 0 | RP20: 0 | RQ20: 0 | RR20: 0 | RT20: =BO20+IF(Ф!$K$4=1,DW20+EQ20,0)+IF(Ф!$K$4=2,EQ20+GE20,0)+IF(Ф!$K$4=3,GE20+GY20,0)+IF(Ф!$K$4=4,GY20+HS20,0)+IF(Ф!$K$4=5,HS20+KA20,0)+IF(Ф!$K$4=6,KA20+KU20,0)+IF(Ф!$K$4=7,KU20+LO20,0)+IF(Ф!$K$4=8,LO20+NW20,0)+IF(Ф!$K$4=9,NW20+OQ20,0)+IF(Ф!$K$4=10,OQ20+PK20,0)+IF(Ф!$K$4=11,PK20,0)-BY20 -> 0 | RU20: =RT20*(1+Ф!$K$9) -> 0 | RX20: 0 | RY20: 0 | SA20: 0 | SB20: 0 | SC20: 0
B21: 17 | C21: 14 | J21: 4 | K21: Проектные работы и прочие капитальные вложения | Q21: 0 | V21: 0 | AA21: 0 | AF21: 0 | AG21: 0 | AH21: 0 | AI21: 0 | AJ21: 0 | AK21: 0 | AL21: 0 | AM21: 0 | AN21: 0 | AO21: 0 | AP21: 0 | AQ21: 0 | AR21: 0 | AS21: 0 | AT21: 0 | AU21: 0 | AV21: 0 | AW21: 0 | AX21: 0 | AY21: 0 | BJ21: =IF(Ф!$K$4>=1,CX21,0)+IF(Ф!$K$4>=2,DR21,0)+IF(Ф!$K$4>=3,EL21,0)+IF(Ф!$K$4>=4,FZ21,0)+IF(Ф!$K$4>=5,GT21,0)+IF(Ф!$K$4>=6,HN21,0)+IF(Ф!$K$4>=7,JV21,0)+IF(Ф!$K$4>=8,KP21,0)+IF(Ф!$K$4>=9,LJ21,0)+IF(Ф!$K$4>=10,NR21,0)+IF(Ф!$K$4>=11,OL21,0)+IF(Ф!$K$4>=12,PF21,0) -> 0 | BK21: =IF(Ф!$K$4>=1,CY21,0)+IF(Ф!$K$4>=2,DS21,0)+IF(Ф!$K$4>=3,EM21,0)+IF(Ф!$K$4>=4,GA21,0)+IF(Ф!$K$4>=5,GU21,0)+IF(Ф!$K$4>=6,HO21,0)+IF(Ф!$K$4>=7,JW21,0)+IF(Ф!$K$4>=8,KQ21,0)+IF(Ф!$K$4>=9,LK21,0)+IF(Ф!$K$4>=10,NS21,0)+IF(Ф!$K$4>=11,OM21,0)+IF(Ф!$K$4>=12,PG21,0) -> 0 | BL21: =IF(Ф!$K$4>=1,CZ21,0)+IF(Ф!$K$4>=2,DT21,0)+IF(Ф!$K$4>=3,EN21,0)+IF(Ф!$K$4>=4,GB21,0)+IF(Ф!$K$4>=5,GV21,0)+IF(Ф!$K$4>=6,HP21,0)+IF(Ф!$K$4>=7,JX21,0)+IF(Ф!$K$4>=8,KR21,0)+IF(Ф!$K$4>=9,LL21,0)+IF(Ф!$K$4>=10,NT21,0)+IF(Ф!$K$4>=11,ON21,0)+IF(Ф!$K$4>=12,PH21,0) -> 0 | BM21: =IF(Ф!$K$4>=1,DA21,0)+IF(Ф!$K$4>=2,DU21,0)+IF(Ф!$K$4>=3,EO21,0)+IF(Ф!$K$4>=4,GC21,0)+IF(Ф!$K$4>=5,GW21,0)+IF(Ф!$K$4>=6,HQ21,0)+IF(Ф!$K$4>=7,JY21,0)+IF(Ф!$K$4>=8,KS21,0)+IF(Ф!$K$4>=9,LM21,0)+IF(Ф!$K$4>=10,NU21,0)+IF(Ф!$K$4>=11,OO21,0)+IF(Ф!$K$4>=12,PI21,0) -> 0 | BN21: =IF(Ф!$K$4>=1,DB21,0)+IF(Ф!$K$4>=2,DV21,0)+IF(Ф!$K$4>=3,EP21,0)+IF(Ф!$K$4>=4,GD21,0)+IF(Ф!$K$4>=5,GX21,0)+IF(Ф!$K$4>=6,HR21,0)+IF(Ф!$K$4>=7,JZ21,0)+IF(Ф!$K$4>=8,KT21,0)+IF(Ф!$K$4>=9,LN21,0)+IF(Ф!$K$4>=10,NV21,0)+IF(Ф!$K$4>=11,OP21,0)+IF(Ф!$K$4>=12,PJ21,0) -> 0 | BO21: =IF(Ф!$K$4>=1,DC21,0)+IF(Ф!$K$4>=2,DW21,0)+IF(Ф!$K$4>=3,EQ21,0)+IF(Ф!$K$4>=4,GE21,0)+IF(Ф!$K$4>=5,GY21,0)+IF(Ф!$K$4>=6,HS21,0)+IF(Ф!$K$4>=7,KA21,0)+IF(Ф!$K$4>=8,KU21,0)+IF(Ф!$K$4>=9,LO21,0)+IF(Ф!$K$4>=10,NW21,0)+IF(Ф!$K$4>=11,OQ21,0)+IF(Ф!$K$4>=12,PK21,0) -> 0 | BP21: =IF(Ф!$K$4>=1,DD21,0)+IF(Ф!$K$4>=2,DX21,0)+IF(Ф!$K$4>=3,ER21,0)+IF(Ф!$K$4>=4,GF21,0)+IF(Ф!$K$4>=5,GZ21,0)+IF(Ф!$K$4>=6,HT21,0)+IF(Ф!$K$4>=7,KB21,0)+IF(Ф!$K$4>=8,KV21,0)+IF(Ф!$K$4>=9,LP21,0)+IF(Ф!$K$4>=10,NX21,0)+IF(Ф!$K$4>=11,OR21,0)+IF(Ф!$K$4>=12,PL21,0) -> 0 | BQ21: =IF(Ф!$K$4>=1,DE21,0)+IF(Ф!$K$4>=2,DY21,0)+IF(Ф!$K$4>=3,ES21,0)+IF(Ф!$K$4>=4,GG21,0)+IF(Ф!$K$4>=5,HA21,0)+IF(Ф!$K$4>=6,HU21,0)+IF(Ф!$K$4>=7,KC21,0)+IF(Ф!$K$4>=8,KW21,0)+IF(Ф!$K$4>=9,LQ21,0)+IF(Ф!$K$4>=10,NY21,0)+IF(Ф!$K$4>=11,OS21,0)+IF(Ф!$K$4>=12,PM21,0) -> 0 | BR21: =IF(Ф!$K$4>=1,DF21,0)+IF(Ф!$K$4>=2,DZ21,0)+IF(Ф!$K$4>=3,ET21,0)+IF(Ф!$K$4>=4,GH21,0)+IF(Ф!$K$4>=5,HB21,0)+IF(Ф!$K$4>=6,HV21,0)+IF(Ф!$K$4>=7,KD21,0)+IF(Ф!$K$4>=8,KX21,0)+IF(Ф!$K$4>=9,LR21,0)+IF(Ф!$K$4>=10,NZ21,0)+IF(Ф!$K$4>=11,OT21,0)+IF(Ф!$K$4>=12,PN21,0) -> 0 | BS21: =IF(Ф!$K$4>=1,DG21,0)+IF(Ф!$K$4>=2,EA21,0)+IF(Ф!$K$4>=3,EU21,0)+IF(Ф!$K$4>=4,GI21,0)+IF(Ф!$K$4>=5,HC21,0)+IF(Ф!$K$4>=6,HW21,0)+IF(Ф!$K$4>=7,KE21,0)+IF(Ф!$K$4>=8,KY21,0)+IF(Ф!$K$4>=9,LS21,0)+IF(Ф!$K$4>=10,OA21,0)+IF(Ф!$K$4>=11,OU21,0)+IF(Ф!$K$4>=12,PO21,0) -> 0 | BT21: =IF(Ф!$K$4>=1,DH21,0)+IF(Ф!$K$4>=2,EB21,0)+IF(Ф!$K$4>=3,EV21,0)+IF(Ф!$K$4>=4,GJ21,0)+IF(Ф!$K$4>=5,HD21,0)+IF(Ф!$K$4>=6,HX21,0)+IF(Ф!$K$4>=7,KF21,0)+IF(Ф!$K$4>=8,KZ21,0)+IF(Ф!$K$4>=9,LT21,0)+IF(Ф!$K$4>=10,OB21,0)+IF(Ф!$K$4>=11,OV21,0)+IF(Ф!$K$4>=12,PP21,0) -> 0 | BU21: =IF(Ф!$K$4>=1,DI21,0)+IF(Ф!$K$4>=2,EC21,0)+IF(Ф!$K$4>=3,EW21,0)+IF(Ф!$K$4>=4,GK21,0)+IF(Ф!$K$4>=5,HE21,0)+IF(Ф!$K$4>=6,HY21,0)+IF(Ф!$K$4>=7,KG21,0)+IF(Ф!$K$4>=8,LA21,0)+IF(Ф!$K$4>=9,LU21,0)+IF(Ф!$K$4>=10,OC21,0)+IF(Ф!$K$4>=11,OW21,0)+IF(Ф!$K$4>=12,PQ21,0) -> 0 | BV21: =IF(Ф!$K$4>=1,DJ21,0)+IF(Ф!$K$4>=2,ED21,0)+IF(Ф!$K$4>=3,EX21,0)+IF(Ф!$K$4>=4,GL21,0)+IF(Ф!$K$4>=5,HF21,0)+IF(Ф!$K$4>=6,HZ21,0)+IF(Ф!$K$4>=7,KH21,0)+IF(Ф!$K$4>=8,LB21,0)+IF(Ф!$K$4>=9,LV21,0)+IF(Ф!$K$4>=10,OD21,0)+IF(Ф!$K$4>=11,OX21,0)+IF(Ф!$K$4>=12,PR21,0) -> 0 | BW21: =IF(Ф!$K$4>=1,DK21,0)+IF(Ф!$K$4>=2,EE21,0)+IF(Ф!$K$4>=3,EY21,0)+IF(Ф!$K$4>=4,GM21,0)+IF(Ф!$K$4>=5,HG21,0)+IF(Ф!$K$4>=6,IA21,0)+IF(Ф!$K$4>=7,KI21,0)+IF(Ф!$K$4>=8,LC21,0)+IF(Ф!$K$4>=9,LW21,0)+IF(Ф!$K$4>=10,OE21,0)+IF(Ф!$K$4>=11,OY21,0)+IF(Ф!$K$4>=12,PS21,0) -> 0 | BX21: =IF(Ф!$K$4>=1,DL21,0)+IF(Ф!$K$4>=2,EF21,0)+IF(Ф!$K$4>=3,EZ21,0)+IF(Ф!$K$4>=4,GN21,0)+IF(Ф!$K$4>=5,HH21,0)+IF(Ф!$K$4>=6,IB21,0)+IF(Ф!$K$4>=7,KJ21,0)+IF(Ф!$K$4>=8,LD21,0)+IF(Ф!$K$4>=9,LX21,0)+IF(Ф!$K$4>=10,OF21,0)+IF(Ф!$K$4>=11,OZ21,0)+IF(Ф!$K$4>=12,PT21,0) -> 0 | BY21: =IF(Ф!$K$4>=1,DM21,0)+IF(Ф!$K$4>=2,EG21,0)+IF(Ф!$K$4>=3,FA21,0)+IF(Ф!$K$4>=4,GO21,0)+IF(Ф!$K$4>=5,HI21,0)+IF(Ф!$K$4>=6,IC21,0)+IF(Ф!$K$4>=7,KK21,0)+IF(Ф!$K$4>=8,LE21,0)+IF(Ф!$K$4>=9,LY21,0)+IF(Ф!$K$4>=10,OG21,0)+IF(Ф!$K$4>=11,PA21,0)+IF(Ф!$K$4>=12,PU21,0) -> 0 | BZ21: =IF(Ф!$K$4>=1,DN21,0)+IF(Ф!$K$4>=2,EH21,0)+IF(Ф!$K$4>=3,FB21,0)+IF(Ф!$K$4>=4,GP21,0)+IF(Ф!$K$4>=5,HJ21,0)+IF(Ф!$K$4>=6,ID21,0)+IF(Ф!$K$4>=7,KL21,0)+IF(Ф!$K$4>=8,LF21,0)+IF(Ф!$K$4>=9,LZ21,0)+IF(Ф!$K$4>=10,OH21,0)+IF(Ф!$K$4>=11,PB21,0)+IF(Ф!$K$4>=12,PV21,0) -> 0 | CA21: =IF(Ф!$K$4>=1,DO21,0)+IF(Ф!$K$4>=2,EI21,0)+IF(Ф!$K$4>=3,FC21,0)+IF(Ф!$K$4>=4,GQ21,0)+IF(Ф!$K$4>=5,HK21,0)+IF(Ф!$K$4>=6,IE21,0)+IF(Ф!$K$4>=7,KM21,0)+IF(Ф!$K$4>=8,LG21,0)+IF(Ф!$K$4>=9,MA21,0)+IF(Ф!$K$4>=10,OI21,0)+IF(Ф!$K$4>=11,PC21,0)+IF(Ф!$K$4>=12,PW21,0) -> 0 | CB21: =IF(Ф!$K$4>=1,DP21,0)+IF(Ф!$K$4>=2,EJ21,0)+IF(Ф!$K$4>=3,FD21,0)+IF(Ф!$K$4>=4,GR21,0)+IF(Ф!$K$4>=5,HL21,0)+IF(Ф!$K$4>=6,IF21,0)+IF(Ф!$K$4>=7,KN21,0)+IF(Ф!$K$4>=8,LH21,0)+IF(Ф!$K$4>=9,MB21,0)+IF(Ф!$K$4>=10,OJ21,0)+IF(Ф!$K$4>=11,PD21,0)+IF(Ф!$K$4>=12,PX21,0) -> 0 | CC21: =IF(Ф!$K$4>=1,DQ21,0)+IF(Ф!$K$4>=2,EK21,0)+IF(Ф!$K$4>=3,FE21,0)+IF(Ф!$K$4>=4,GS21,0)+IF(Ф!$K$4>=5,HM21,0)+IF(Ф!$K$4>=6,IG21,0)+IF(Ф!$K$4>=7,KO21,0)+IF(Ф!$K$4>=8,LI21,0)+IF(Ф!$K$4>=9,MC21,0)+IF(Ф!$K$4>=10,OK21,0)+IF(Ф!$K$4>=11,PE21,0)+IF(Ф!$K$4>=12,PY21,0) -> 0 | CD21: 0 | CE21: 0 | CF21: 0 | CG21: 0 | CH21: 0 | CI21: 0 | CJ21: 0 | CK21: 0 | CL21: 0 | CM21: 0 | CN21: 0 | CO21: 0 | CP21: 0 | CQ21: 0 | CR21: 0 | CS21: 0 | CT21: 0 | CU21: 0 | CV21: 0 | CW21: 0 | CX21: 0 | DC21: 0 | DH21: 0 | DM21: 0 | DR21: 0 | DW21: 0 | EB21: 0 | EG21: 0 | EL21: 0 | EQ21: 0 | EV21: 0 | FA21: 0 | FF21: 0 | FG21: 0 | FH21: 0 | FI21: 0 | FJ21: 0 | FK21: 0 | FL21: 0 | FM21: 0 | FN21: 0 | FO21: 0 | FP21: 0 | FQ21: 0 | FR21: 0 | FS21: 0 | FT21: 0 | FU21: 0 | FV21: 0 | FW21: 0 | FX21: 0 | FY21: 0 | FZ21: 0 | GE21: 0 | GJ21: 0 | GO21: 0 | GT21: 0 | GY21: 0 | HD21: 0 | HI21: 0 | HN21: 0 | HS21: 0 | HX21: 0 | IC21: 0 | IH21: 0 | II21: 0 | IJ21: 0 | IK21: 0 | IL21: 0 | IM21: 0 | IN21: 0 | IO21: 0 | IP21: 0 | IQ21: 0 | IR21: 0 | IS21: 0 | IT21: 0 | IU21: 0 | IV21: 0 | IW21: 0 | IX21: 0 | IY21: 0 | IZ21: 0 | JA21: 0 | JB21: 0 | JC21: 0 | JD21: 0 | JE21: 0 | JF21: 0 | JG21: 0 | JH21: 0 | JI21: 0 | JJ21: 0 | JK21: 0 | JL21: 0 | JM21: 0 | JN21: 0 | JO21: 0 | JP21: 0 | JQ21: 0 | JR21: 0 | JS21: 0 | JT21: 0 | JU21: 0 | JV21: 0 | KA21: 0 | KF21: 0 | KK21: 0 | KP21: 0 | KU21: 0 | KZ21: 0 | LE21: 0 | LJ21: 0 | LO21: 0 | LT21: 0 | LY21: 0 | MD21: 0 | ME21: 0 | MF21: 0 | MG21: 0 | MH21: 0 | MI21: 0 | MJ21: 0 | MK21: 0 | ML21: 0 | MM21: 0 | MN21: 0 | MO21: 0 | MP21: 0 | MQ21: 0 | MR21: 0 | MS21: 0 | MT21: 0 | MU21: 0 | MV21: 0 | MW21: 0 | MX21: 0 | MY21: 0 | MZ21: 0 | NA21: 0 | NB21: 0 | NC21: 0 | ND21: 0 | NE21: 0 | NF21: 0 | NG21: 0 | NH21: 0 | NI21: 0 | NJ21: 0 | NK21: 0 | NL21: 0 | NM21: 0 | NN21: 0 | NO21: 0 | NP21: 0 | NQ21: 0 | NR21: 0 | NW21: 0 | OB21: 0 | OG21: 0 | OL21: 0 | OQ21: 0 | OV21: 0 | PA21: 0 | PF21: 0 | PK21: 0 | PP21: 0 | PU21: 0 | PZ21: 0 | QA21: 0 | QB21: 0 | QC21: 0 | QD21: 0 | QE21: 0 | QF21: 0 | QG21: 0 | QH21: 0 | QI21: 0 | QJ21: 0 | QK21: 0 | QL21: 0 | QM21: 0 | QN21: 0 | QO21: 0 | QP21: 0 | QQ21: 0 | QR21: 0 | QS21: 0 | QT21: 0 | QU21: 0 | QV21: 0 | QW21: 0 | QX21: 0 | QY21: 0 | QZ21: 0 | RA21: 0 | RB21: 0 | RC21: 0 | RD21: 0 | RE21: 0 | RF21: 0 | RG21: 0 | RH21: 0 | RI21: 0 | RJ21: 0 | RK21: 0 | RL21: 0 | RM21: 0 | RN21: 0 | RO21: 0 | RP21: 0 | RQ21: 0 | RR21: 0 | RT21: =BO21+IF(Ф!$K$4=1,DW21+EQ21,0)+IF(Ф!$K$4=2,EQ21+GE21,0)+IF(Ф!$K$4=3,GE21+GY21,0)+IF(Ф!$K$4=4,GY21+HS21,0)+IF(Ф!$K$4=5,HS21+KA21,0)+IF(Ф!$K$4=6,KA21+KU21,0)+IF(Ф!$K$4=7,KU21+LO21,0)+IF(Ф!$K$4=8,LO21+NW21,0)+IF(Ф!$K$4=9,NW21+OQ21,0)+IF(Ф!$K$4=10,OQ21+PK21,0)+IF(Ф!$K$4=11,PK21,0)-BY21 -> 0 | RU21: =RT21*(1+Ф!$K$9) -> 0 | RX21: 0 | RY21: 0 | SA21: 0 | SB21: 0 | SC21: 0
B22: 17 | C22: 14 | J22: 5 | K22: Информационные Технологии | Q22: 0 | V22: 0 | AA22: 0 | AF22: 0 | AG22: 0 | AH22: 0 | AI22: 0 | AJ22: 0 | AK22: 0 | AL22: 0 | AM22: 0 | AN22: 0 | AO22: 0 | AP22: 0 | AQ22: 0 | AR22: 0 | AS22: 0 | AT22: 0 | AU22: 0 | AV22: 0 | AW22: 0 | AX22: 0 | AY22: 0 | BJ22: =IF(Ф!$K$4>=1,CX22,0)+IF(Ф!$K$4>=2,DR22,0)+IF(Ф!$K$4>=3,EL22,0)+IF(Ф!$K$4>=4,FZ22,0)+IF(Ф!$K$4>=5,GT22,0)+IF(Ф!$K$4>=6,HN22,0)+IF(Ф!$K$4>=7,JV22,0)+IF(Ф!$K$4>=8,KP22,0)+IF(Ф!$K$4>=9,LJ22,0)+IF(Ф!$K$4>=10,NR22,0)+IF(Ф!$K$4>=11,OL22,0)+IF(Ф!$K$4>=12,PF22,0) -> 0 | BK22: =IF(Ф!$K$4>=1,CY22,0)+IF(Ф!$K$4>=2,DS22,0)+IF(Ф!$K$4>=3,EM22,0)+IF(Ф!$K$4>=4,GA22,0)+IF(Ф!$K$4>=5,GU22,0)+IF(Ф!$K$4>=6,HO22,0)+IF(Ф!$K$4>=7,JW22,0)+IF(Ф!$K$4>=8,KQ22,0)+IF(Ф!$K$4>=9,LK22,0)+IF(Ф!$K$4>=10,NS22,0)+IF(Ф!$K$4>=11,OM22,0)+IF(Ф!$K$4>=12,PG22,0) -> 0 | BL22: =IF(Ф!$K$4>=1,CZ22,0)+IF(Ф!$K$4>=2,DT22,0)+IF(Ф!$K$4>=3,EN22,0)+IF(Ф!$K$4>=4,GB22,0)+IF(Ф!$K$4>=5,GV22,0)+IF(Ф!$K$4>=6,HP22,0)+IF(Ф!$K$4>=7,JX22,0)+IF(Ф!$K$4>=8,KR22,0)+IF(Ф!$K$4>=9,LL22,0)+IF(Ф!$K$4>=10,NT22,0)+IF(Ф!$K$4>=11,ON22,0)+IF(Ф!$K$4>=12,PH22,0) -> 0 | BM22: =IF(Ф!$K$4>=1,DA22,0)+IF(Ф!$K$4>=2,DU22,0)+IF(Ф!$K$4>=3,EO22,0)+IF(Ф!$K$4>=4,GC22,0)+IF(Ф!$K$4>=5,GW22,0)+IF(Ф!$K$4>=6,HQ22,0)+IF(Ф!$K$4>=7,JY22,0)+IF(Ф!$K$4>=8,KS22,0)+IF(Ф!$K$4>=9,LM22,0)+IF(Ф!$K$4>=10,NU22,0)+IF(Ф!$K$4>=11,OO22,0)+IF(Ф!$K$4>=12,PI22,0) -> 0 | BN22: =IF(Ф!$K$4>=1,DB22,0)+IF(Ф!$K$4>=2,DV22,0)+IF(Ф!$K$4>=3,EP22,0)+IF(Ф!$K$4>=4,GD22,0)+IF(Ф!$K$4>=5,GX22,0)+IF(Ф!$K$4>=6,HR22,0)+IF(Ф!$K$4>=7,JZ22,0)+IF(Ф!$K$4>=8,KT22,0)+IF(Ф!$K$4>=9,LN22,0)+IF(Ф!$K$4>=10,NV22,0)+IF(Ф!$K$4>=11,OP22,0)+IF(Ф!$K$4>=12,PJ22,0) -> 0 | BO22: =IF(Ф!$K$4>=1,DC22,0)+IF(Ф!$K$4>=2,DW22,0)+IF(Ф!$K$4>=3,EQ22,0)+IF(Ф!$K$4>=4,GE22,0)+IF(Ф!$K$4>=5,GY22,0)+IF(Ф!$K$4>=6,HS22,0)+IF(Ф!$K$4>=7,KA22,0)+IF(Ф!$K$4>=8,KU22,0)+IF(Ф!$K$4>=9,LO22,0)+IF(Ф!$K$4>=10,NW22,0)+IF(Ф!$K$4>=11,OQ22,0)+IF(Ф!$K$4>=12,PK22,0) -> 0 | BP22: =IF(Ф!$K$4>=1,DD22,0)+IF(Ф!$K$4>=2,DX22,0)+IF(Ф!$K$4>=3,ER22,0)+IF(Ф!$K$4>=4,GF22,0)+IF(Ф!$K$4>=5,GZ22,0)+IF(Ф!$K$4>=6,HT22,0)+IF(Ф!$K$4>=7,KB22,0)+IF(Ф!$K$4>=8,KV22,0)+IF(Ф!$K$4>=9,LP22,0)+IF(Ф!$K$4>=10,NX22,0)+IF(Ф!$K$4>=11,OR22,0)+IF(Ф!$K$4>=12,PL22,0) -> 0 | BQ22: =IF(Ф!$K$4>=1,DE22,0)+IF(Ф!$K$4>=2,DY22,0)+IF(Ф!$K$4>=3,ES22,0)+IF(Ф!$K$4>=4,GG22,0)+IF(Ф!$K$4>=5,HA22,0)+IF(Ф!$K$4>=6,HU22,0)+IF(Ф!$K$4>=7,KC22,0)+IF(Ф!$K$4>=8,KW22,0)+IF(Ф!$K$4>=9,LQ22,0)+IF(Ф!$K$4>=10,NY22,0)+IF(Ф!$K$4>=11,OS22,0)+IF(Ф!$K$4>=12,PM22,0) -> 0 | BR22: =IF(Ф!$K$4>=1,DF22,0)+IF(Ф!$K$4>=2,DZ22,0)+IF(Ф!$K$4>=3,ET22,0)+IF(Ф!$K$4>=4,GH22,0)+IF(Ф!$K$4>=5,HB22,0)+IF(Ф!$K$4>=6,HV22,0)+IF(Ф!$K$4>=7,KD22,0)+IF(Ф!$K$4>=8,KX22,0)+IF(Ф!$K$4>=9,LR22,0)+IF(Ф!$K$4>=10,NZ22,0)+IF(Ф!$K$4>=11,OT22,0)+IF(Ф!$K$4>=12,PN22,0) -> 0 | BS22: =IF(Ф!$K$4>=1,DG22,0)+IF(Ф!$K$4>=2,EA22,0)+IF(Ф!$K$4>=3,EU22,0)+IF(Ф!$K$4>=4,GI22,0)+IF(Ф!$K$4>=5,HC22,0)+IF(Ф!$K$4>=6,HW22,0)+IF(Ф!$K$4>=7,KE22,0)+IF(Ф!$K$4>=8,KY22,0)+IF(Ф!$K$4>=9,LS22,0)+IF(Ф!$K$4>=10,OA22,0)+IF(Ф!$K$4>=11,OU22,0)+IF(Ф!$K$4>=12,PO22,0) -> 0 | BT22: =IF(Ф!$K$4>=1,DH22,0)+IF(Ф!$K$4>=2,EB22,0)+IF(Ф!$K$4>=3,EV22,0)+IF(Ф!$K$4>=4,GJ22,0)+IF(Ф!$K$4>=5,HD22,0)+IF(Ф!$K$4>=6,HX22,0)+IF(Ф!$K$4>=7,KF22,0)+IF(Ф!$K$4>=8,KZ22,0)+IF(Ф!$K$4>=9,LT22,0)+IF(Ф!$K$4>=10,OB22,0)+IF(Ф!$K$4>=11,OV22,0)+IF(Ф!$K$4>=12,PP22,0) -> 0 | BU22: =IF(Ф!$K$4>=1,DI22,0)+IF(Ф!$K$4>=2,EC22,0)+IF(Ф!$K$4>=3,EW22,0)+IF(Ф!$K$4>=4,GK22,0)+IF(Ф!$K$4>=5,HE22,0)+IF(Ф!$K$4>=6,HY22,0)+IF(Ф!$K$4>=7,KG22,0)+IF(Ф!$K$4>=8,LA22,0)+IF(Ф!$K$4>=9,LU22,0)+IF(Ф!$K$4>=10,OC22,0)+IF(Ф!$K$4>=11,OW22,0)+IF(Ф!$K$4>=12,PQ22,0) -> 0 | BV22: =IF(Ф!$K$4>=1,DJ22,0)+IF(Ф!$K$4>=2,ED22,0)+IF(Ф!$K$4>=3,EX22,0)+IF(Ф!$K$4>=4,GL22,0)+IF(Ф!$K$4>=5,HF22,0)+IF(Ф!$K$4>=6,HZ22,0)+IF(Ф!$K$4>=7,KH22,0)+IF(Ф!$K$4>=8,LB22,0)+IF(Ф!$K$4>=9,LV22,0)+IF(Ф!$K$4>=10,OD22,0)+IF(Ф!$K$4>=11,OX22,0)+IF(Ф!$K$4>=12,PR22,0) -> 0 | BW22: =IF(Ф!$K$4>=1,DK22,0)+IF(Ф!$K$4>=2,EE22,0)+IF(Ф!$K$4>=3,EY22,0)+IF(Ф!$K$4>=4,GM22,0)+IF(Ф!$K$4>=5,HG22,0)+IF(Ф!$K$4>=6,IA22,0)+IF(Ф!$K$4>=7,KI22,0)+IF(Ф!$K$4>=8,LC22,0)+IF(Ф!$K$4>=9,LW22,0)+IF(Ф!$K$4>=10,OE22,0)+IF(Ф!$K$4>=11,OY22,0)+IF(Ф!$K$4>=12,PS22,0) -> 0 | BX22: =IF(Ф!$K$4>=1,DL22,0)+IF(Ф!$K$4>=2,EF22,0)+IF(Ф!$K$4>=3,EZ22,0)+IF(Ф!$K$4>=4,GN22,0)+IF(Ф!$K$4>=5,HH22,0)+IF(Ф!$K$4>=6,IB22,0)+IF(Ф!$K$4>=7,KJ22,0)+IF(Ф!$K$4>=8,LD22,0)+IF(Ф!$K$4>=9,LX22,0)+IF(Ф!$K$4>=10,OF22,0)+IF(Ф!$K$4>=11,OZ22,0)+IF(Ф!$K$4>=12,PT22,0) -> 0 | BY22: =IF(Ф!$K$4>=1,DM22,0)+IF(Ф!$K$4>=2,EG22,0)+IF(Ф!$K$4>=3,FA22,0)+IF(Ф!$K$4>=4,GO22,0)+IF(Ф!$K$4>=5,HI22,0)+IF(Ф!$K$4>=6,IC22,0)+IF(Ф!$K$4>=7,KK22,0)+IF(Ф!$K$4>=8,LE22,0)+IF(Ф!$K$4>=9,LY22,0)+IF(Ф!$K$4>=10,OG22,0)+IF(Ф!$K$4>=11,PA22,0)+IF(Ф!$K$4>=12,PU22,0) -> 0 | BZ22: =IF(Ф!$K$4>=1,DN22,0)+IF(Ф!$K$4>=2,EH22,0)+IF(Ф!$K$4>=3,FB22,0)+IF(Ф!$K$4>=4,GP22,0)+IF(Ф!$K$4>=5,HJ22,0)+IF(Ф!$K$4>=6,ID22,0)+IF(Ф!$K$4>=7,KL22,0)+IF(Ф!$K$4>=8,LF22,0)+IF(Ф!$K$4>=9,LZ22,0)+IF(Ф!$K$4>=10,OH22,0)+IF(Ф!$K$4>=11,PB22,0)+IF(Ф!$K$4>=12,PV22,0) -> 0 | CA22: =IF(Ф!$K$4>=1,DO22,0)+IF(Ф!$K$4>=2,EI22,0)+IF(Ф!$K$4>=3,FC22,0)+IF(Ф!$K$4>=4,GQ22,0)+IF(Ф!$K$4>=5,HK22,0)+IF(Ф!$K$4>=6,IE22,0)+IF(Ф!$K$4>=7,KM22,0)+IF(Ф!$K$4>=8,LG22,0)+IF(Ф!$K$4>=9,MA22,0)+IF(Ф!$K$4>=10,OI22,0)+IF(Ф!$K$4>=11,PC22,0)+IF(Ф!$K$4>=12,PW22,0) -> 0 | CB22: =IF(Ф!$K$4>=1,DP22,0)+IF(Ф!$K$4>=2,EJ22,0)+IF(Ф!$K$4>=3,FD22,0)+IF(Ф!$K$4>=4,GR22,0)+IF(Ф!$K$4>=5,HL22,0)+IF(Ф!$K$4>=6,IF22,0)+IF(Ф!$K$4>=7,KN22,0)+IF(Ф!$K$4>=8,LH22,0)+IF(Ф!$K$4>=9,MB22,0)+IF(Ф!$K$4>=10,OJ22,0)+IF(Ф!$K$4>=11,PD22,0)+IF(Ф!$K$4>=12,PX22,0) -> 0 | CC22: =IF(Ф!$K$4>=1,DQ22,0)+IF(Ф!$K$4>=2,EK22,0)+IF(Ф!$K$4>=3,FE22,0)+IF(Ф!$K$4>=4,GS22,0)+IF(Ф!$K$4>=5,HM22,0)+IF(Ф!$K$4>=6,IG22,0)+IF(Ф!$K$4>=7,KO22,0)+IF(Ф!$K$4>=8,LI22,0)+IF(Ф!$K$4>=9,MC22,0)+IF(Ф!$K$4>=10,OK22,0)+IF(Ф!$K$4>=11,PE22,0)+IF(Ф!$K$4>=12,PY22,0) -> 0 | CD22: 0 | CE22: 0 | CF22: 0 | CG22: 0 | CH22: 0 | CI22: 0 | CJ22: 0 | CK22: 0 | CL22: 0 | CM22: 0 | CN22: 0 | CO22: 0 | CP22: 0 | CQ22: 0 | CR22: 0 | CS22: 0 | CT22: 0 | CU22: 0 | CV22: 0 | CW22: 0 | CX22: 0 | DC22: 0 | DH22: 0 | DM22: 0 | DR22: 0 | DW22: 0 | EB22: 0 | EG22: 0 | EL22: 0 | EQ22: 0 | EV22: 0 | FA22: 0 | FF22: 0 | FG22: 0 | FH22: 0 | FI22: 0 | FJ22: 0 | FK22: 0 | FL22: 0 | FM22: 0 | FN22: 0 | FO22: 0 | FP22: 0 | FQ22: 0 | FR22: 0 | FS22: 0 | FT22: 0 | FU22: 0 | FV22: 0 | FW22: 0 | FX22: 0 | FY22: 0 | FZ22: 0 | GE22: 0 | GJ22: 0 | GO22: 0 | GT22: 0 | GY22: 0 | HD22: 0 | HI22: 0 | HN22: 0 | HS22: 0 | HX22: 0 | IC22: 0 | IH22: 0 | II22: 0 | IJ22: 0 | IK22: 0 | IL22: 0 | IM22: 0 | IN22: 0 | IO22: 0 | IP22: 0 | IQ22: 0 | IR22: 0 | IS22: 0 | IT22: 0 | IU22: 0 | IV22: 0 | IW22: 0 | IX22: 0 | IY22: 0 | IZ22: 0 | JA22: 0 | JB22: 0 | JC22: 0 | JD22: 0 | JE22: 0 | JF22: 0 | JG22: 0 | JH22: 0 | JI22: 0 | JJ22: 0 | JK22: 0 | JL22: 0 | JM22: 0 | JN22: 0 | JO22: 0 | JP22: 0 | JQ22: 0 | JR22: 0 | JS22: 0 | JT22: 0 | JU22: 0 | JV22: 0 | KA22: 0 | KF22: 0 | KK22: 0 | KP22: 0 | KU22: 0 | KZ22: 0 | LE22: 0 | LJ22: 0 | LO22: 0 | LT22: 0 | LY22: 0 | MD22: 0 | ME22: 0 | MF22: 0 | MG22: 0 | MH22: 0 | MI22: 0 | MJ22: 0 | MK22: 0 | ML22: 0 | MM22: 0 | MN22: 0 | MO22: 0 | MP22: 0 | MQ22: 0 | MR22: 0 | MS22: 0 | MT22: 0 | MU22: 0 | MV22: 0 | MW22: 0 | MX22: 0 | MY22: 0 | MZ22: 0 | NA22: 0 | NB22: 0 | NC22: 0 | ND22: 0 | NE22: 0 | NF22: 0 | NG22: 0 | NH22: 0 | NI22: 0 | NJ22: 0 | NK22: 0 | NL22: 0 | NM22: 0 | NN22: 0 | NO22: 0 | NP22: 0 | NQ22: 0 | NR22: 0 | NW22: 0 | OB22: 0 | OG22: 0 | OL22: 0 | OQ22: 0 | OV22: 0 | PA22: 0 | PF22: 0 | PK22: 0 | PP22: 0 | PU22: 0 | PZ22: 0 | QA22: 0 | QB22: 0 | QC22: 0 | QD22: 0 | QE22: 0 | QF22: 0 | QG22: 0 | QH22: 0 | QI22: 0 | QJ22: 0 | QK22: 0 | QL22: 0 | QM22: 0 | QN22: 0 | QO22: 0 | QP22: 0 | QQ22: 0 | QR22: 0 | QS22: 0 | QT22: 0 | QU22: 0 | QV22: 0 | QW22: 0 | QX22: 0 | QY22: 0 | QZ22: 0 | RA22: 0 | RB22: 0 | RC22: 0 | RD22: 0 | RE22: 0 | RF22: 0 | RG22: 0 | RH22: 0 | RI22: 0 | RJ22: 0 | RK22: 0 | RL22: 0 | RM22: 0 | RN22: 0 | RO22: 0 | RP22: 0 | RQ22: 0 | RR22: 0 | RT22: =BO22+IF(Ф!$K$4=1,DW22+EQ22,0)+IF(Ф!$K$4=2,EQ22+GE22,0)+IF(Ф!$K$4=3,GE22+GY22,0)+IF(Ф!$K$4=4,GY22+HS22,0)+IF(Ф!$K$4=5,HS22+KA22,0)+IF(Ф!$K$4=6,KA22+KU22,0)+IF(Ф!$K$4=7,KU22+LO22,0)+IF(Ф!$K$4=8,LO22+NW22,0)+IF(Ф!$K$4=9,NW22+OQ22,0)+IF(Ф!$K$4=10,OQ22+PK22,0)+IF(Ф!$K$4=11,PK22,0)-BY22 -> 0 | RU22: =RT22*(1+Ф!$K$9) -> 0 | RX22: 0 | RY22: 0 | SA22: 0 | SB22: 0 | SC22: 0
B23: 17 | C23: 14 | J23: 6 | K23: Системы и средства безопасности | Q23: 200 | R23: 200 | V23: 0 | W23: 0 | X23: 0 | Y23: 0 | Z23: 0 | AA23: 0 | AB23: 0 | AC23: 0 | AD23: 0 | AE23: 0 | AF23: 200 | AG23: 200 | AH23: 0 | AI23: 0 | AJ23: 0 | AK23: 200 | AL23: 200 | AM23: 0 | AN23: 0 | AO23: 0 | AP23: 200 | AQ23: 200 | AR23: 0 | AS23: 0 | AT23: 0 | AU23: 200 | AV23: 200 | AW23: 0 | AX23: 0 | AY23: 0 | AZ23: 200 | BJ23: =IF(Ф!$K$4>=1,CX23,0)+IF(Ф!$K$4>=2,DR23,0)+IF(Ф!$K$4>=3,EL23,0)+IF(Ф!$K$4>=4,FZ23,0)+IF(Ф!$K$4>=5,GT23,0)+IF(Ф!$K$4>=6,HN23,0)+IF(Ф!$K$4>=7,JV23,0)+IF(Ф!$K$4>=8,KP23,0)+IF(Ф!$K$4>=9,LJ23,0)+IF(Ф!$K$4>=10,NR23,0)+IF(Ф!$K$4>=11,OL23,0)+IF(Ф!$K$4>=12,PF23,0) -> 0 | BK23: =IF(Ф!$K$4>=1,CY23,0)+IF(Ф!$K$4>=2,DS23,0)+IF(Ф!$K$4>=3,EM23,0)+IF(Ф!$K$4>=4,GA23,0)+IF(Ф!$K$4>=5,GU23,0)+IF(Ф!$K$4>=6,HO23,0)+IF(Ф!$K$4>=7,JW23,0)+IF(Ф!$K$4>=8,KQ23,0)+IF(Ф!$K$4>=9,LK23,0)+IF(Ф!$K$4>=10,NS23,0)+IF(Ф!$K$4>=11,OM23,0)+IF(Ф!$K$4>=12,PG23,0) -> 0 | BL23: =IF(Ф!$K$4>=1,CZ23,0)+IF(Ф!$K$4>=2,DT23,0)+IF(Ф!$K$4>=3,EN23,0)+IF(Ф!$K$4>=4,GB23,0)+IF(Ф!$K$4>=5,GV23,0)+IF(Ф!$K$4>=6,HP23,0)+IF(Ф!$K$4>=7,JX23,0)+IF(Ф!$K$4>=8,KR23,0)+IF(Ф!$K$4>=9,LL23,0)+IF(Ф!$K$4>=10,NT23,0)+IF(Ф!$K$4>=11,ON23,0)+IF(Ф!$K$4>=12,PH23,0) -> 0 | BM23: =IF(Ф!$K$4>=1,DA23,0)+IF(Ф!$K$4>=2,DU23,0)+IF(Ф!$K$4>=3,EO23,0)+IF(Ф!$K$4>=4,GC23,0)+IF(Ф!$K$4>=5,GW23,0)+IF(Ф!$K$4>=6,HQ23,0)+IF(Ф!$K$4>=7,JY23,0)+IF(Ф!$K$4>=8,KS23,0)+IF(Ф!$K$4>=9,LM23,0)+IF(Ф!$K$4>=10,NU23,0)+IF(Ф!$K$4>=11,OO23,0)+IF(Ф!$K$4>=12,PI23,0) -> 0 | BN23: =IF(Ф!$K$4>=1,DB23,0)+IF(Ф!$K$4>=2,DV23,0)+IF(Ф!$K$4>=3,EP23,0)+IF(Ф!$K$4>=4,GD23,0)+IF(Ф!$K$4>=5,GX23,0)+IF(Ф!$K$4>=6,HR23,0)+IF(Ф!$K$4>=7,JZ23,0)+IF(Ф!$K$4>=8,KT23,0)+IF(Ф!$K$4>=9,LN23,0)+IF(Ф!$K$4>=10,NV23,0)+IF(Ф!$K$4>=11,OP23,0)+IF(Ф!$K$4>=12,PJ23,0) -> 0 | BO23: =IF(Ф!$K$4>=1,DC23,0)+IF(Ф!$K$4>=2,DW23,0)+IF(Ф!$K$4>=3,EQ23,0)+IF(Ф!$K$4>=4,GE23,0)+IF(Ф!$K$4>=5,GY23,0)+IF(Ф!$K$4>=6,HS23,0)+IF(Ф!$K$4>=7,KA23,0)+IF(Ф!$K$4>=8,KU23,0)+IF(Ф!$K$4>=9,LO23,0)+IF(Ф!$K$4>=10,NW23,0)+IF(Ф!$K$4>=11,OQ23,0)+IF(Ф!$K$4>=12,PK23,0) -> 0 | BP23: =IF(Ф!$K$4>=1,DD23,0)+IF(Ф!$K$4>=2,DX23,0)+IF(Ф!$K$4>=3,ER23,0)+IF(Ф!$K$4>=4,GF23,0)+IF(Ф!$K$4>=5,GZ23,0)+IF(Ф!$K$4>=6,HT23,0)+IF(Ф!$K$4>=7,KB23,0)+IF(Ф!$K$4>=8,KV23,0)+IF(Ф!$K$4>=9,LP23,0)+IF(Ф!$K$4>=10,NX23,0)+IF(Ф!$K$4>=11,OR23,0)+IF(Ф!$K$4>=12,PL23,0) -> 0 | BQ23: =IF(Ф!$K$4>=1,DE23,0)+IF(Ф!$K$4>=2,DY23,0)+IF(Ф!$K$4>=3,ES23,0)+IF(Ф!$K$4>=4,GG23,0)+IF(Ф!$K$4>=5,HA23,0)+IF(Ф!$K$4>=6,HU23,0)+IF(Ф!$K$4>=7,KC23,0)+IF(Ф!$K$4>=8,KW23,0)+IF(Ф!$K$4>=9,LQ23,0)+IF(Ф!$K$4>=10,NY23,0)+IF(Ф!$K$4>=11,OS23,0)+IF(Ф!$K$4>=12,PM23,0) -> 0 | BR23: =IF(Ф!$K$4>=1,DF23,0)+IF(Ф!$K$4>=2,DZ23,0)+IF(Ф!$K$4>=3,ET23,0)+IF(Ф!$K$4>=4,GH23,0)+IF(Ф!$K$4>=5,HB23,0)+IF(Ф!$K$4>=6,HV23,0)+IF(Ф!$K$4>=7,KD23,0)+IF(Ф!$K$4>=8,KX23,0)+IF(Ф!$K$4>=9,LR23,0)+IF(Ф!$K$4>=10,NZ23,0)+IF(Ф!$K$4>=11,OT23,0)+IF(Ф!$K$4>=12,PN23,0) -> 0 | BS23: =IF(Ф!$K$4>=1,DG23,0)+IF(Ф!$K$4>=2,EA23,0)+IF(Ф!$K$4>=3,EU23,0)+IF(Ф!$K$4>=4,GI23,0)+IF(Ф!$K$4>=5,HC23,0)+IF(Ф!$K$4>=6,HW23,0)+IF(Ф!$K$4>=7,KE23,0)+IF(Ф!$K$4>=8,KY23,0)+IF(Ф!$K$4>=9,LS23,0)+IF(Ф!$K$4>=10,OA23,0)+IF(Ф!$K$4>=11,OU23,0)+IF(Ф!$K$4>=12,PO23,0) -> 0 | BT23: =IF(Ф!$K$4>=1,DH23,0)+IF(Ф!$K$4>=2,EB23,0)+IF(Ф!$K$4>=3,EV23,0)+IF(Ф!$K$4>=4,GJ23,0)+IF(Ф!$K$4>=5,HD23,0)+IF(Ф!$K$4>=6,HX23,0)+IF(Ф!$K$4>=7,KF23,0)+IF(Ф!$K$4>=8,KZ23,0)+IF(Ф!$K$4>=9,LT23,0)+IF(Ф!$K$4>=10,OB23,0)+IF(Ф!$K$4>=11,OV23,0)+IF(Ф!$K$4>=12,PP23,0) -> 0 | BU23: =IF(Ф!$K$4>=1,DI23,0)+IF(Ф!$K$4>=2,EC23,0)+IF(Ф!$K$4>=3,EW23,0)+IF(Ф!$K$4>=4,GK23,0)+IF(Ф!$K$4>=5,HE23,0)+IF(Ф!$K$4>=6,HY23,0)+IF(Ф!$K$4>=7,KG23,0)+IF(Ф!$K$4>=8,LA23,0)+IF(Ф!$K$4>=9,LU23,0)+IF(Ф!$K$4>=10,OC23,0)+IF(Ф!$K$4>=11,OW23,0)+IF(Ф!$K$4>=12,PQ23,0) -> 0 | BV23: =IF(Ф!$K$4>=1,DJ23,0)+IF(Ф!$K$4>=2,ED23,0)+IF(Ф!$K$4>=3,EX23,0)+IF(Ф!$K$4>=4,GL23,0)+IF(Ф!$K$4>=5,HF23,0)+IF(Ф!$K$4>=6,HZ23,0)+IF(Ф!$K$4>=7,KH23,0)+IF(Ф!$K$4>=8,LB23,0)+IF(Ф!$K$4>=9,LV23,0)+IF(Ф!$K$4>=10,OD23,0)+IF(Ф!$K$4>=11,OX23,0)+IF(Ф!$K$4>=12,PR23,0) -> 0 | BW23: =IF(Ф!$K$4>=1,DK23,0)+IF(Ф!$K$4>=2,EE23,0)+IF(Ф!$K$4>=3,EY23,0)+IF(Ф!$K$4>=4,GM23,0)+IF(Ф!$K$4>=5,HG23,0)+IF(Ф!$K$4>=6,IA23,0)+IF(Ф!$K$4>=7,KI23,0)+IF(Ф!$K$4>=8,LC23,0)+IF(Ф!$K$4>=9,LW23,0)+IF(Ф!$K$4>=10,OE23,0)+IF(Ф!$K$4>=11,OY23,0)+IF(Ф!$K$4>=12,PS23,0) -> 0 | BX23: =IF(Ф!$K$4>=1,DL23,0)+IF(Ф!$K$4>=2,EF23,0)+IF(Ф!$K$4>=3,EZ23,0)+IF(Ф!$K$4>=4,GN23,0)+IF(Ф!$K$4>=5,HH23,0)+IF(Ф!$K$4>=6,IB23,0)+IF(Ф!$K$4>=7,KJ23,0)+IF(Ф!$K$4>=8,LD23,0)+IF(Ф!$K$4>=9,LX23,0)+IF(Ф!$K$4>=10,OF23,0)+IF(Ф!$K$4>=11,OZ23,0)+IF(Ф!$K$4>=12,PT23,0) -> 0 | BY23: =IF(Ф!$K$4>=1,DM23,0)+IF(Ф!$K$4>=2,EG23,0)+IF(Ф!$K$4>=3,FA23,0)+IF(Ф!$K$4>=4,GO23,0)+IF(Ф!$K$4>=5,HI23,0)+IF(Ф!$K$4>=6,IC23,0)+IF(Ф!$K$4>=7,KK23,0)+IF(Ф!$K$4>=8,LE23,0)+IF(Ф!$K$4>=9,LY23,0)+IF(Ф!$K$4>=10,OG23,0)+IF(Ф!$K$4>=11,PA23,0)+IF(Ф!$K$4>=12,PU23,0) -> 0 | BZ23: =IF(Ф!$K$4>=1,DN23,0)+IF(Ф!$K$4>=2,EH23,0)+IF(Ф!$K$4>=3,FB23,0)+IF(Ф!$K$4>=4,GP23,0)+IF(Ф!$K$4>=5,HJ23,0)+IF(Ф!$K$4>=6,ID23,0)+IF(Ф!$K$4>=7,KL23,0)+IF(Ф!$K$4>=8,LF23,0)+IF(Ф!$K$4>=9,LZ23,0)+IF(Ф!$K$4>=10,OH23,0)+IF(Ф!$K$4>=11,PB23,0)+IF(Ф!$K$4>=12,PV23,0) -> 0 | CA23: =IF(Ф!$K$4>=1,DO23,0)+IF(Ф!$K$4>=2,EI23,0)+IF(Ф!$K$4>=3,FC23,0)+IF(Ф!$K$4>=4,GQ23,0)+IF(Ф!$K$4>=5,HK23,0)+IF(Ф!$K$4>=6,IE23,0)+IF(Ф!$K$4>=7,KM23,0)+IF(Ф!$K$4>=8,LG23,0)+IF(Ф!$K$4>=9,MA23,0)+IF(Ф!$K$4>=10,OI23,0)+IF(Ф!$K$4>=11,PC23,0)+IF(Ф!$K$4>=12,PW23,0) -> 0 | CB23: =IF(Ф!$K$4>=1,DP23,0)+IF(Ф!$K$4>=2,EJ23,0)+IF(Ф!$K$4>=3,FD23,0)+IF(Ф!$K$4>=4,GR23,0)+IF(Ф!$K$4>=5,HL23,0)+IF(Ф!$K$4>=6,IF23,0)+IF(Ф!$K$4>=7,KN23,0)+IF(Ф!$K$4>=8,LH23,0)+IF(Ф!$K$4>=9,MB23,0)+IF(Ф!$K$4>=10,OJ23,0)+IF(Ф!$K$4>=11,PD23,0)+IF(Ф!$K$4>=12,PX23,0) -> 0 | CC23: =IF(Ф!$K$4>=1,DQ23,0)+IF(Ф!$K$4>=2,EK23,0)+IF(Ф!$K$4>=3,FE23,0)+IF(Ф!$K$4>=4,GS23,0)+IF(Ф!$K$4>=5,HM23,0)+IF(Ф!$K$4>=6,IG23,0)+IF(Ф!$K$4>=7,KO23,0)+IF(Ф!$K$4>=8,LI23,0)+IF(Ф!$K$4>=9,MC23,0)+IF(Ф!$K$4>=10,OK23,0)+IF(Ф!$K$4>=11,PE23,0)+IF(Ф!$K$4>=12,PY23,0) -> 0 | CD23: 0 | CE23: 0 | CF23: 0 | CG23: 0 | CH23: 0 | CI23: 0 | CJ23: 0 | CK23: 0 | CL23: 0 | CM23: 0 | CN23: 0 | CO23: 0 | CP23: 0 | CQ23: 0 | CR23: 0 | CS23: 0 | CT23: 0 | CU23: 0 | CV23: 0 | CW23: 0 | CX23: 0 | CY23: 0 | CZ23: 0 | DA23: 0 | DB23: 0 | DC23: 0 | DD23: 0 | DE23: 0 | DF23: 0 | DG23: 0 | DH23: 0 | DI23: 0 | DJ23: 0 | DK23: 0 | DL23: 0 | DM23: 0 | DN23: 0 | DO23: 0 | DP23: 0 | DQ23: 0 | DR23: 0 | DS23: 0 | DT23: 0 | DU23: 0 | DV23: 0 | DW23: 0 | DX23: 0 | DY23: 0 | DZ23: 0 | EA23: 0 | EB23: 0 | EC23: 0 | ED23: 0 | EE23: 0 | EF23: 0 | EG23: 0 | EH23: 0 | EI23: 0 | EJ23: 0 | EK23: 0 | EL23: 0 | EM23: 0 | EN23: 0 | EO23: 0 | EP23: 0 | EQ23: 0 | ER23: 0 | ES23: 0 | ET23: 0 | EU23: 0 | EV23: 0 | EW23: 0 | EX23: 0 | EY23: 0 | EZ23: 0 | FA23: 0 | FB23: 0 | FC23: 0 | FD23: 0 | FE23: 0 | FF23: 0 | FG23: 0 | FH23: 0 | FI23: 0 | FJ23: 0 | FK23: 0 | FL23: 0 | FM23: 0 | FN23: 0 | FO23: 0 | FP23: 0 | FQ23: 0 | FR23: 0 | FS23: 0 | FT23: 0 | FU23: 0 | FV23: 0 | FW23: 0 | FX23: 0 | FY23: 0 | FZ23: 0 | GA23: 0 | GB23: 0 | GC23: 0 | GD23: 0 | GE23: 0 | GF23: 0 | GG23: 0 | GH23: 0 | GI23: 0 | GJ23: 0 | GK23: 0 | GL23: 0 | GM23: 0 | GN23: 0 | GO23: 0 | GP23: 0 | GQ23: 0 | GR23: 0 | GS23: 0 | GT23: 0 | GU23: 0 | GV23: 0 | GW23: 0 | GX23: 0 | GY23: 0 | GZ23: 0 | HA23: 0 | HB23: 0 | HC23: 0 | HD23: 0 | HE23: 0 | HF23: 0 | HG23: 0 | HH23: 0 | HI23: 0 | HJ23: 0 | HK23: 0 | HL23: 0 | HM23: 0 | HN23: 0 | HO23: 0 | HP23: 0 | HQ23: 0 | HR23: 0 | HS23: 0 | HT23: 0 | HU23: 0 | HV23: 0 | HW23: 0 | HX23: 0 | HY23: 0 | HZ23: 0 | IA23: 0 | IB23: 0 | IC23: 0 | ID23: 0 | IE23: 0 | IF23: 0 | IG23: 0 | IH23: 0 | II23: 0 | IJ23: 0 | IK23: 0 | IL23: 0 | IM23: 0 | IN23: 0 | IO23: 0 | IP23: 0 | IQ23: 0 | IR23: 0 | IS23: 0 | IT23: 0 | IU23: 0 | IV23: 0 | IW23: 0 | IX23: 0 | IY23: 0 | IZ23: 0 | JA23: 0 | JB23: 200 | JC23: 200 | JD23: 0 | JE23: 0 | JF23: 0 | JG23: 0 | JH23: 0 | JI23: 0 | JJ23: 0 | JK23: 0 | JL23: 0 | JM23: 0 | JN23: 0 | JO23: 0 | JP23: 0 | JQ23: 0 | JR23: 0 | JS23: 0 | JT23: 0 | JU23: 0 | JV23: 0 | JW23: 0 | JX23: 0 | JY23: 0 | JZ23: 0 | KA23: 0 | KB23: 0 | KC23: 0 | KD23: 0 | KE23: 0 | KF23: 0 | KG23: 0 | KH23: 0 | KI23: 0 | KJ23: 0 | KK23: 0 | KL23: 0 | KM23: 0 | KN23: 0 | KO23: 0 | KP23: 0 | KQ23: 0 | KR23: 0 | KS23: 0 | KT23: 0 | KU23: 0 | KV23: 0 | KW23: 0 | KX23: 0 | KY23: 0 | KZ23: 0 | LA23: 0 | LB23: 0 | LC23: 0 | LD23: 0 | LE23: 0 | LF23: 0 | LG23: 0 | LH23: 0 | LI23: 0 | LJ23: 200 | LK23: 200 | LL23: 0 | LM23: 0 | LN23: 0 | LO23: 0 | LP23: 0 | LQ23: 0 | LR23: 0 | LS23: 0 | LT23: 0 | LU23: 0 | LV23: 0 | LW23: 0 | LX23: 0 | LY23: 0 | LZ23: 0 | MA23: 0 | MB23: 0 | MC23: 0 | MD23: 200 | ME23: 200 | MF23: 0 | MG23: 0 | MH23: 0 | MI23: 0 | MJ23: 0 | MK23: 0 | ML23: 0 | MM23: 0 | MN23: 0 | MO23: 0 | MP23: 0 | MQ23: 0 | MR23: 0 | MS23: 0 | MT23: 0 | MU23: 0 | MV23: 0 | MW23: 0 | MX23: 0 | MY23: 0 | MZ23: 0 | NA23: 0 | NB23: 0 | NC23: 200 | ND23: 200 | NE23: 0 | NF23: 0 | NG23: 0 | NH23: 0 | NI23: 0 | NJ23: 0 | NK23: 0 | NL23: 0 | NM23: 0 | NN23: 0 | NO23: 0 | NP23: 0 | NQ23: 0 | NR23: 0 | NS23: 0 | NT23: 0 | NU23: 0 | NV23: 0 | NW23: 0 | NX23: 0 | NY23: 0 | NZ23: 0 | OA23: 0 | OB23: 0 | OC23: 0 | OD23: 0 | OE23: 0 | OF23: 0 | OG23: 0 | OH23: 0 | OI23: 0 | OJ23: 0 | OK23: 0 | OL23: 0 | OM23: 0 | ON23: 0 | OO23: 0 | OP23: 0 | OQ23: 200 | OR23: 200 | OS23: 0 | OT23: 0 | OU23: 0 | OV23: 0 | OW23: 0 | OX23: 0 | OY23: 0 | OZ23: 0 | PA23: 0 | PB23: 0 | PC23: 0 | PD23: 0 | PE23: 0 | PF23: 0 | PG23: 0 | PH23: 0 | PI23: 0 | PJ23: 0 | PK23: 0 | PL23: 0 | PM23: 0 | PN23: 0 | PO23: 0 | PP23: 0 | PQ23: 0 | PR23: 0 | PS23: 0 | PT23: 0 | PU23: 0 | PV23: 0 | PW23: 0 | PX23: 0 | PY23: 0 | PZ23: 200 | QA23: 200 | QB23: 0 | QC23: 0 | QD23: 0 | QE23: 200 | QF23: 200 | QG23: 0 | QH23: 0 | QI23: 0 | QJ23: 0 | QK23: 0 | QL23: 0 | QM23: 0 | QN23: 0 | QO23: 0 | QP23: 0 | QQ23: 0 | QR23: 0 | QS23: 0 | QT23: 0 | QU23: 0 | QV23: 0 | QW23: 0 | QX23: 0 | QY23: 0 | QZ23: 0 | RA23: 0 | RB23: 0 | RC23: 0 | RD23: 200 | RE23: 200 | RF23: 0 | RG23: 0 | RH23: 0 | RI23: 200 | RJ23: 200 | RK23: 0 | RL23: 0 | RM23: 0 | RN23: 0 | RO23: 0 | RP23: 0 | RQ23: 0 | RR23: 0 | RT23: =BO23+IF(Ф!$K$4=1,DW23+EQ23,0)+IF(Ф!$K$4=2,EQ23+GE23,0)+IF(Ф!$K$4=3,GE23+GY23,0)+IF(Ф!$K$4=4,GY23+HS23,0)+IF(Ф!$K$4=5,HS23+KA23,0)+IF(Ф!$K$4=6,KA23+KU23,0)+IF(Ф!$K$4=7,KU23+LO23,0)+IF(Ф!$K$4=8,LO23+NW23,0)+IF(Ф!$K$4=9,NW23+OQ23,0)+IF(Ф!$K$4=10,OQ23+PK23,0)+IF(Ф!$K$4=11,PK23,0)-BY23 -> 0 | RU23: =RT23*(1+Ф!$K$9) -> 0 | RX23: 236 | RY23: 260 | SA23: 0 | SB23: 236 | SC23: 260
B24: 18 | C24: 15 | K24: Поддержание существующих мощностей и техперевооружение | Q24: 200 | R24: 200 | V24: 0 | W24: 0 | X24: 0 | Y24: 0 | Z24: 0 | AA24: 0 | AB24: 0 | AC24: 0 | AD24: 0 | AE24: 0 | AF24: 200 | AG24: 200 | AH24: 0 | AI24: 0 | AJ24: 0 | AK24: 200 | AL24: 200 | AM24: 0 | AN24: 0 | AO24: 0 | AP24: 200 | AQ24: 200 | AR24: 0 | AS24: 0 | AT24: 0 | AU24: 200 | AV24: 200 | AW24: 0 | AX24: 0 | AY24: 0 | AZ24: 200 | BJ24: =IF(Ф!$K$4>=1,CX24,0)+IF(Ф!$K$4>=2,DR24,0)+IF(Ф!$K$4>=3,EL24,0)+IF(Ф!$K$4>=4,FZ24,0)+IF(Ф!$K$4>=5,GT24,0)+IF(Ф!$K$4>=6,HN24,0)+IF(Ф!$K$4>=7,JV24,0)+IF(Ф!$K$4>=8,KP24,0)+IF(Ф!$K$4>=9,LJ24,0)+IF(Ф!$K$4>=10,NR24,0)+IF(Ф!$K$4>=11,OL24,0)+IF(Ф!$K$4>=12,PF24,0) -> 0 | BK24: =IF(Ф!$K$4>=1,CY24,0)+IF(Ф!$K$4>=2,DS24,0)+IF(Ф!$K$4>=3,EM24,0)+IF(Ф!$K$4>=4,GA24,0)+IF(Ф!$K$4>=5,GU24,0)+IF(Ф!$K$4>=6,HO24,0)+IF(Ф!$K$4>=7,JW24,0)+IF(Ф!$K$4>=8,KQ24,0)+IF(Ф!$K$4>=9,LK24,0)+IF(Ф!$K$4>=10,NS24,0)+IF(Ф!$K$4>=11,OM24,0)+IF(Ф!$K$4>=12,PG24,0) -> 0 | BL24: =IF(Ф!$K$4>=1,CZ24,0)+IF(Ф!$K$4>=2,DT24,0)+IF(Ф!$K$4>=3,EN24,0)+IF(Ф!$K$4>=4,GB24,0)+IF(Ф!$K$4>=5,GV24,0)+IF(Ф!$K$4>=6,HP24,0)+IF(Ф!$K$4>=7,JX24,0)+IF(Ф!$K$4>=8,KR24,0)+IF(Ф!$K$4>=9,LL24,0)+IF(Ф!$K$4>=10,NT24,0)+IF(Ф!$K$4>=11,ON24,0)+IF(Ф!$K$4>=12,PH24,0) -> 0 | BM24: =IF(Ф!$K$4>=1,DA24,0)+IF(Ф!$K$4>=2,DU24,0)+IF(Ф!$K$4>=3,EO24,0)+IF(Ф!$K$4>=4,GC24,0)+IF(Ф!$K$4>=5,GW24,0)+IF(Ф!$K$4>=6,HQ24,0)+IF(Ф!$K$4>=7,JY24,0)+IF(Ф!$K$4>=8,KS24,0)+IF(Ф!$K$4>=9,LM24,0)+IF(Ф!$K$4>=10,NU24,0)+IF(Ф!$K$4>=11,OO24,0)+IF(Ф!$K$4>=12,PI24,0) -> 0 | BN24: =IF(Ф!$K$4>=1,DB24,0)+IF(Ф!$K$4>=2,DV24,0)+IF(Ф!$K$4>=3,EP24,0)+IF(Ф!$K$4>=4,GD24,0)+IF(Ф!$K$4>=5,GX24,0)+IF(Ф!$K$4>=6,HR24,0)+IF(Ф!$K$4>=7,JZ24,0)+IF(Ф!$K$4>=8,KT24,0)+IF(Ф!$K$4>=9,LN24,0)+IF(Ф!$K$4>=10,NV24,0)+IF(Ф!$K$4>=11,OP24,0)+IF(Ф!$K$4>=12,PJ24,0) -> 0 | BO24: =IF(Ф!$K$4>=1,DC24,0)+IF(Ф!$K$4>=2,DW24,0)+IF(Ф!$K$4>=3,EQ24,0)+IF(Ф!$K$4>=4,GE24,0)+IF(Ф!$K$4>=5,GY24,0)+IF(Ф!$K$4>=6,HS24,0)+IF(Ф!$K$4>=7,KA24,0)+IF(Ф!$K$4>=8,KU24,0)+IF(Ф!$K$4>=9,LO24,0)+IF(Ф!$K$4>=10,NW24,0)+IF(Ф!$K$4>=11,OQ24,0)+IF(Ф!$K$4>=12,PK24,0) -> 0 | BP24: =IF(Ф!$K$4>=1,DD24,0)+IF(Ф!$K$4>=2,DX24,0)+IF(Ф!$K$4>=3,ER24,0)+IF(Ф!$K$4>=4,GF24,0)+IF(Ф!$K$4>=5,GZ24,0)+IF(Ф!$K$4>=6,HT24,0)+IF(Ф!$K$4>=7,KB24,0)+IF(Ф!$K$4>=8,KV24,0)+IF(Ф!$K$4>=9,LP24,0)+IF(Ф!$K$4>=10,NX24,0)+IF(Ф!$K$4>=11,OR24,0)+IF(Ф!$K$4>=12,PL24,0) -> 0 | BQ24: =IF(Ф!$K$4>=1,DE24,0)+IF(Ф!$K$4>=2,DY24,0)+IF(Ф!$K$4>=3,ES24,0)+IF(Ф!$K$4>=4,GG24,0)+IF(Ф!$K$4>=5,HA24,0)+IF(Ф!$K$4>=6,HU24,0)+IF(Ф!$K$4>=7,KC24,0)+IF(Ф!$K$4>=8,KW24,0)+IF(Ф!$K$4>=9,LQ24,0)+IF(Ф!$K$4>=10,NY24,0)+IF(Ф!$K$4>=11,OS24,0)+IF(Ф!$K$4>=12,PM24,0) -> 0 | BR24: =IF(Ф!$K$4>=1,DF24,0)+IF(Ф!$K$4>=2,DZ24,0)+IF(Ф!$K$4>=3,ET24,0)+IF(Ф!$K$4>=4,GH24,0)+IF(Ф!$K$4>=5,HB24,0)+IF(Ф!$K$4>=6,HV24,0)+IF(Ф!$K$4>=7,KD24,0)+IF(Ф!$K$4>=8,KX24,0)+IF(Ф!$K$4>=9,LR24,0)+IF(Ф!$K$4>=10,NZ24,0)+IF(Ф!$K$4>=11,OT24,0)+IF(Ф!$K$4>=12,PN24,0) -> 0 | BS24: =IF(Ф!$K$4>=1,DG24,0)+IF(Ф!$K$4>=2,EA24,0)+IF(Ф!$K$4>=3,EU24,0)+IF(Ф!$K$4>=4,GI24,0)+IF(Ф!$K$4>=5,HC24,0)+IF(Ф!$K$4>=6,HW24,0)+IF(Ф!$K$4>=7,KE24,0)+IF(Ф!$K$4>=8,KY24,0)+IF(Ф!$K$4>=9,LS24,0)+IF(Ф!$K$4>=10,OA24,0)+IF(Ф!$K$4>=11,OU24,0)+IF(Ф!$K$4>=12,PO24,0) -> 0 | BT24: =IF(Ф!$K$4>=1,DH24,0)+IF(Ф!$K$4>=2,EB24,0)+IF(Ф!$K$4>=3,EV24,0)+IF(Ф!$K$4>=4,GJ24,0)+IF(Ф!$K$4>=5,HD24,0)+IF(Ф!$K$4>=6,HX24,0)+IF(Ф!$K$4>=7,KF24,0)+IF(Ф!$K$4>=8,KZ24,0)+IF(Ф!$K$4>=9,LT24,0)+IF(Ф!$K$4>=10,OB24,0)+IF(Ф!$K$4>=11,OV24,0)+IF(Ф!$K$4>=12,PP24,0) -> 0 | BU24: =IF(Ф!$K$4>=1,DI24,0)+IF(Ф!$K$4>=2,EC24,0)+IF(Ф!$K$4>=3,EW24,0)+IF(Ф!$K$4>=4,GK24,0)+IF(Ф!$K$4>=5,HE24,0)+IF(Ф!$K$4>=6,HY24,0)+IF(Ф!$K$4>=7,KG24,0)+IF(Ф!$K$4>=8,LA24,0)+IF(Ф!$K$4>=9,LU24,0)+IF(Ф!$K$4>=10,OC24,0)+IF(Ф!$K$4>=11,OW24,0)+IF(Ф!$K$4>=12,PQ24,0) -> 0 | BV24: =IF(Ф!$K$4>=1,DJ24,0)+IF(Ф!$K$4>=2,ED24,0)+IF(Ф!$K$4>=3,EX24,0)+IF(Ф!$K$4>=4,GL24,0)+IF(Ф!$K$4>=5,HF24,0)+IF(Ф!$K$4>=6,HZ24,0)+IF(Ф!$K$4>=7,KH24,0)+IF(Ф!$K$4>=8,LB24,0)+IF(Ф!$K$4>=9,LV24,0)+IF(Ф!$K$4>=10,OD24,0)+IF(Ф!$K$4>=11,OX24,0)+IF(Ф!$K$4>=12,PR24,0) -> 0 | BW24: =IF(Ф!$K$4>=1,DK24,0)+IF(Ф!$K$4>=2,EE24,0)+IF(Ф!$K$4>=3,EY24,0)+IF(Ф!$K$4>=4,GM24,0)+IF(Ф!$K$4>=5,HG24,0)+IF(Ф!$K$4>=6,IA24,0)+IF(Ф!$K$4>=7,KI24,0)+IF(Ф!$K$4>=8,LC24,0)+IF(Ф!$K$4>=9,LW24,0)+IF(Ф!$K$4>=10,OE24,0)+IF(Ф!$K$4>=11,OY24,0)+IF(Ф!$K$4>=12,PS24,0) -> 0 | BX24: =IF(Ф!$K$4>=1,DL24,0)+IF(Ф!$K$4>=2,EF24,0)+IF(Ф!$K$4>=3,EZ24,0)+IF(Ф!$K$4>=4,GN24,0)+IF(Ф!$K$4>=5,HH24,0)+IF(Ф!$K$4>=6,IB24,0)+IF(Ф!$K$4>=7,KJ24,0)+IF(Ф!$K$4>=8,LD24,0)+IF(Ф!$K$4>=9,LX24,0)+IF(Ф!$K$4>=10,OF24,0)+IF(Ф!$K$4>=11,OZ24,0)+IF(Ф!$K$4>=12,PT24,0) -> 0 | BY24: =IF(Ф!$K$4>=1,DM24,0)+IF(Ф!$K$4>=2,EG24,0)+IF(Ф!$K$4>=3,FA24,0)+IF(Ф!$K$4>=4,GO24,0)+IF(Ф!$K$4>=5,HI24,0)+IF(Ф!$K$4>=6,IC24,0)+IF(Ф!$K$4>=7,KK24,0)+IF(Ф!$K$4>=8,LE24,0)+IF(Ф!$K$4>=9,LY24,0)+IF(Ф!$K$4>=10,OG24,0)+IF(Ф!$K$4>=11,PA24,0)+IF(Ф!$K$4>=12,PU24,0) -> 0 | BZ24: =IF(Ф!$K$4>=1,DN24,0)+IF(Ф!$K$4>=2,EH24,0)+IF(Ф!$K$4>=3,FB24,0)+IF(Ф!$K$4>=4,GP24,0)+IF(Ф!$K$4>=5,HJ24,0)+IF(Ф!$K$4>=6,ID24,0)+IF(Ф!$K$4>=7,KL24,0)+IF(Ф!$K$4>=8,LF24,0)+IF(Ф!$K$4>=9,LZ24,0)+IF(Ф!$K$4>=10,OH24,0)+IF(Ф!$K$4>=11,PB24,0)+IF(Ф!$K$4>=12,PV24,0) -> 0 | CA24: =IF(Ф!$K$4>=1,DO24,0)+IF(Ф!$K$4>=2,EI24,0)+IF(Ф!$K$4>=3,FC24,0)+IF(Ф!$K$4>=4,GQ24,0)+IF(Ф!$K$4>=5,HK24,0)+IF(Ф!$K$4>=6,IE24,0)+IF(Ф!$K$4>=7,KM24,0)+IF(Ф!$K$4>=8,LG24,0)+IF(Ф!$K$4>=9,MA24,0)+IF(Ф!$K$4>=10,OI24,0)+IF(Ф!$K$4>=11,PC24,0)+IF(Ф!$K$4>=12,PW24,0) -> 0 | CB24: =IF(Ф!$K$4>=1,DP24,0)+IF(Ф!$K$4>=2,EJ24,0)+IF(Ф!$K$4>=3,FD24,0)+IF(Ф!$K$4>=4,GR24,0)+IF(Ф!$K$4>=5,HL24,0)+IF(Ф!$K$4>=6,IF24,0)+IF(Ф!$K$4>=7,KN24,0)+IF(Ф!$K$4>=8,LH24,0)+IF(Ф!$K$4>=9,MB24,0)+IF(Ф!$K$4>=10,OJ24,0)+IF(Ф!$K$4>=11,PD24,0)+IF(Ф!$K$4>=12,PX24,0) -> 0 | CC24: =IF(Ф!$K$4>=1,DQ24,0)+IF(Ф!$K$4>=2,EK24,0)+IF(Ф!$K$4>=3,FE24,0)+IF(Ф!$K$4>=4,GS24,0)+IF(Ф!$K$4>=5,HM24,0)+IF(Ф!$K$4>=6,IG24,0)+IF(Ф!$K$4>=7,KO24,0)+IF(Ф!$K$4>=8,LI24,0)+IF(Ф!$K$4>=9,MC24,0)+IF(Ф!$K$4>=10,OK24,0)+IF(Ф!$K$4>=11,PE24,0)+IF(Ф!$K$4>=12,PY24,0) -> 0 | CD24: 0 | CE24: 0 | CF24: 0 | CG24: 0 | CH24: 0 | CI24: 0 | CJ24: 0 | CK24: 0 | CL24: 0 | CM24: 0 | CN24: 0 | CO24: 0 | CP24: 0 | CQ24: 0 | CR24: 0 | CS24: 0 | CT24: 0 | CU24: 0 | CV24: 0 | CW24: 0 | CX24: 0 | CY24: 0 | CZ24: 0 | DA24: 0 | DB24: 0 | DC24: 0 | DD24: 0 | DE24: 0 | DF24: 0 | DG24: 0 | DH24: 0 | DI24: 0 | DJ24: 0 | DK24: 0 | DL24: 0 | DM24: 0 | DN24: 0 | DO24: 0 | DP24: 0 | DQ24: 0 | DR24: 0 | DS24: 0 | DT24: 0 | DU24: 0 | DV24: 0 | DW24: 0 | DX24: 0 | DY24: 0 | DZ24: 0 | EA24: 0 | EB24: 0 | EC24: 0 | ED24: 0 | EE24: 0 | EF24: 0 | EG24: 0 | EH24: 0 | EI24: 0 | EJ24: 0 | EK24: 0 | EL24: 0 | EM24: 0 | EN24: 0 | EO24: 0 | EP24: 0 | EQ24: 0 | ER24: 0 | ES24: 0 | ET24: 0 | EU24: 0 | EV24: 0 | EW24: 0 | EX24: 0 | EY24: 0 | EZ24: 0 | FA24: 0 | FB24: 0 | FC24: 0 | FD24: 0 | FE24: 0 | FF24: 0 | FG24: 0 | FH24: 0 | FI24: 0 | FJ24: 0 | FK24: 0 | FL24: 0 | FM24: 0 | FN24: 0 | FO24: 0 | FP24: 0 | FQ24: 0 | FR24: 0 | FS24: 0 | FT24: 0 | FU24: 0 | FV24: 0 | FW24: 0 | FX24: 0 | FY24: 0 | FZ24: 0 | GA24: 0 | GB24: 0 | GC24: 0 | GD24: 0 | GE24: 0 | GF24: 0 | GG24: 0 | GH24: 0 | GI24: 0 | GJ24: 0 | GK24: 0 | GL24: 0 | GM24: 0 | GN24: 0 | GO24: 0 | GP24: 0 | GQ24: 0 | GR24: 0 | GS24: 0 | GT24: 0 | GU24: 0 | GV24: 0 | GW24: 0 | GX24: 0 | GY24: 0 | GZ24: 0 | HA24: 0 | HB24: 0 | HC24: 0 | HD24: 0 | HE24: 0 | HF24: 0 | HG24: 0 | HH24: 0 | HI24: 0 | HJ24: 0 | HK24: 0 | HL24: 0 | HM24: 0 | HN24: 0 | HO24: 0 | HP24: 0 | HQ24: 0 | HR24: 0 | HS24: 0 | HT24: 0 | HU24: 0 | HV24: 0 | HW24: 0 | HX24: 0 | HY24: 0 | HZ24: 0 | IA24: 0 | IB24: 0 | IC24: 0 | ID24: 0 | IE24: 0 | IF24: 0 | IG24: 0 | IH24: 0 | II24: 0 | IJ24: 0 | IK24: 0 | IL24: 0 | IM24: 0 | IN24: 0 | IO24: 0 | IP24: 0 | IQ24: 0 | IR24: 0 | IS24: 0 | IT24: 0 | IU24: 0 | IV24: 0 | IW24: 0 | IX24: 0 | IY24: 0 | IZ24: 0 | JA24: 0 | JB24: 200 | JC24: 200 | JD24: 0 | JE24: 0 | JF24: 0 | JG24: 0 | JH24: 0 | JI24: 0 | JJ24: 0 | JK24: 0 | JL24: 0 | JM24: 0 | JN24: 0 | JO24: 0 | JP24: 0 | JQ24: 0 | JR24: 0 | JS24: 0 | JT24: 0 | JU24: 0 | JV24: 0 | JW24: 0 | JX24: 0 | JY24: 0 | JZ24: 0 | KA24: 0 | KB24: 0 | KC24: 0 | KD24: 0 | KE24: 0 | KF24: 0 | KG24: 0 | KH24: 0 | KI24: 0 | KJ24: 0 | KK24: 0 | KL24: 0 | KM24: 0 | KN24: 0 | KO24: 0 | KP24: 0 | KQ24: 0 | KR24: 0 | KS24: 0 | KT24: 0 | KU24: 0 | KV24: 0 | KW24: 0 | KX24: 0 | KY24: 0 | KZ24: 0 | LA24: 0 | LB24: 0 | LC24: 0 | LD24: 0 | LE24: 0 | LF24: 0 | LG24: 0 | LH24: 0 | LI24: 0 | LJ24: 200 | LK24: 200 | LL24: 0 | LM24: 0 | LN24: 0 | LO24: 0 | LP24: 0 | LQ24: 0 | LR24: 0 | LS24: 0 | LT24: 0 | LU24: 0 | LV24: 0 | LW24: 0 | LX24: 0 | LY24: 0 | LZ24: 0 | MA24: 0 | MB24: 0 | MC24: 0 | MD24: 200 | ME24: 200 | MF24: 0 | MG24: 0 | MH24: 0 | MI24: 0 | MJ24: 0 | MK24: 0 | ML24: 0 | MM24: 0 | MN24: 0 | MO24: 0 | MP24: 0 | MQ24: 0 | MR24: 0 | MS24: 0 | MT24: 0 | MU24: 0 | MV24: 0 | MW24: 0 | MX24: 0 | MY24: 0 | MZ24: 0 | NA24: 0 | NB24: 0 | NC24: 200 | ND24: 200 | NE24: 0 | NF24: 0 | NG24: 0 | NH24: 0 | NI24: 0 | NJ24: 0 | NK24: 0 | NL24: 0 | NM24: 0 | NN24: 0 | NO24: 0 | NP24: 0 | NQ24: 0 | NR24: 0 | NS24: 0 | NT24: 0 | NU24: 0 | NV24: 0 | NW24: 0 | NX24: 0 | NY24: 0 | NZ24: 0 | OA24: 0 | OB24: 0 | OC24: 0 | OD24: 0 | OE24: 0 | OF24: 0 | OG24: 0 | OH24: 0 | OI24: 0 | OJ24: 0 | OK24: 0 | OL24: 0 | OM24: 0 | ON24: 0 | OO24: 0 | OP24: 0 | OQ24: 200 | OR24: 200 | OS24: 0 | OT24: 0 | OU24: 0 | OV24: 0 | OW24: 0 | OX24: 0 | OY24: 0 | OZ24: 0 | PA24: 0 | PB24: 0 | PC24: 0 | PD24: 0 | PE24: 0 | PF24: 0 | PG24: 0 | PH24: 0 | PI24: 0 | PJ24: 0 | PK24: 0 | PL24: 0 | PM24: 0 | PN24: 0 | PO24: 0 | PP24: 0 | PQ24: 0 | PR24: 0 | PS24: 0 | PT24: 0 | PU24: 0 | PV24: 0 | PW24: 0 | PX24: 0 | PY24: 0 | PZ24: 200 | QA24: 200 | QB24: 0 | QC24: 0 | QD24: 0 | QE24: 200 | QF24: 200 | QG24: 0 | QH24: 0 | QI24: 0 | QJ24: 0 | QK24: 0 | QL24: 0 | QM24: 0 | QN24: 0 | QO24: 0 | QP24: 0 | QQ24: 0 | QR24: 0 | QS24: 0 | QT24: 0 | QU24: 0 | QV24: 0 | QW24: 0 | QX24: 0 | QY24: 0 | QZ24: 0 | RA24: 0 | RB24: 0 | RC24: 0 | RD24: 200 | RE24: 200 | RF24: 0 | RG24: 0 | RH24: 0 | RI24: 200 | RJ24: 200 | RK24: 0 | RL24: 0 | RM24: 0 | RN24: 0 | RO24: 0 | RP24: 0 | RQ24: 0 | RR24: 0 | RT24: =BO24+IF(Ф!$K$4=1,DW24+EQ24,0)+IF(Ф!$K$4=2,EQ24+GE24,0)+IF(Ф!$K$4=3,GE24+GY24,0)+IF(Ф!$K$4=4,GY24+HS24,0)+IF(Ф!$K$4=5,HS24+KA24,0)+IF(Ф!$K$4=6,KA24+KU24,0)+IF(Ф!$K$4=7,KU24+LO24,0)+IF(Ф!$K$4=8,LO24+NW24,0)+IF(Ф!$K$4=9,NW24+OQ24,0)+IF(Ф!$K$4=10,OQ24+PK24,0)+IF(Ф!$K$4=11,PK24,0)-BY24 -> 0 | RU24: =RT24*(1+Ф!$K$9) -> 0 | RX24: 236 | RY24: 260 | SA24: 0 | SB24: 236 | SC24: 260
B25: 17 | C25: 16 | J25: 1 | K25: Производственное строительство | Q25: 136,424 | R25: 7,998 | S25: 0 | T25: 128,426 | U25: 0 | V25: 34,417 | W25: 5,666 | X25: 0 | Y25: 28,751 | Z25: 0 | AA25: 33,398 | AB25: 5,123 | AC25: 0 | AD25: 28,275 | AE25: 0 | AF25: 102,007 | AG25: 2,332 | AH25: 0 | AI25: 99,675 | AJ25: 0 | AK25: 103,026 | AL25: 2,875 | AM25: 0 | AN25: 100,151 | AO25: 0 | AP25: 89,514 | AQ25: 2,332 | AR25: 0 | AS25: 87,182 | AT25: 0 | AU25: 74,300 | AV25: 2,874 | AW25: 0 | AX25: 71,426 | AY25: 0 | AZ25: 74,300 | BJ25: =IF(Ф!$K$4>=1,CX25,0)+IF(Ф!$K$4>=2,DR25,0)+IF(Ф!$K$4>=3,EL25,0)+IF(Ф!$K$4>=4,FZ25,0)+IF(Ф!$K$4>=5,GT25,0)+IF(Ф!$K$4>=6,HN25,0)+IF(Ф!$K$4>=7,JV25,0)+IF(Ф!$K$4>=8,KP25,0)+IF(Ф!$K$4>=9,LJ25,0)+IF(Ф!$K$4>=10,NR25,0)+IF(Ф!$K$4>=11,OL25,0)+IF(Ф!$K$4>=12,PF25,0) -> 2,399 | BK25: =IF(Ф!$K$4>=1,CY25,0)+IF(Ф!$K$4>=2,DS25,0)+IF(Ф!$K$4>=3,EM25,0)+IF(Ф!$K$4>=4,GA25,0)+IF(Ф!$K$4>=5,GU25,0)+IF(Ф!$K$4>=6,HO25,0)+IF(Ф!$K$4>=7,JW25,0)+IF(Ф!$K$4>=8,KQ25,0)+IF(Ф!$K$4>=9,LK25,0)+IF(Ф!$K$4>=10,NS25,0)+IF(Ф!$K$4>=11,OM25,0)+IF(Ф!$K$4>=12,PG25,0) -> 0 | BL25: =IF(Ф!$K$4>=1,CZ25,0)+IF(Ф!$K$4>=2,DT25,0)+IF(Ф!$K$4>=3,EN25,0)+IF(Ф!$K$4>=4,GB25,0)+IF(Ф!$K$4>=5,GV25,0)+IF(Ф!$K$4>=6,HP25,0)+IF(Ф!$K$4>=7,JX25,0)+IF(Ф!$K$4>=8,KR25,0)+IF(Ф!$K$4>=9,LL25,0)+IF(Ф!$K$4>=10,NT25,0)+IF(Ф!$K$4>=11,ON25,0)+IF(Ф!$K$4>=12,PH25,0) -> 0 | BM25: =IF(Ф!$K$4>=1,DA25,0)+IF(Ф!$K$4>=2,DU25,0)+IF(Ф!$K$4>=3,EO25,0)+IF(Ф!$K$4>=4,GC25,0)+IF(Ф!$K$4>=5,GW25,0)+IF(Ф!$K$4>=6,HQ25,0)+IF(Ф!$K$4>=7,JY25,0)+IF(Ф!$K$4>=8,KS25,0)+IF(Ф!$K$4>=9,LM25,0)+IF(Ф!$K$4>=10,NU25,0)+IF(Ф!$K$4>=11,OO25,0)+IF(Ф!$K$4>=12,PI25,0) -> 2,399 | BN25: =IF(Ф!$K$4>=1,DB25,0)+IF(Ф!$K$4>=2,DV25,0)+IF(Ф!$K$4>=3,EP25,0)+IF(Ф!$K$4>=4,GD25,0)+IF(Ф!$K$4>=5,GX25,0)+IF(Ф!$K$4>=6,HR25,0)+IF(Ф!$K$4>=7,JZ25,0)+IF(Ф!$K$4>=8,KT25,0)+IF(Ф!$K$4>=9,LN25,0)+IF(Ф!$K$4>=10,NV25,0)+IF(Ф!$K$4>=11,OP25,0)+IF(Ф!$K$4>=12,PJ25,0) -> 0 | BO25: =IF(Ф!$K$4>=1,DC25,0)+IF(Ф!$K$4>=2,DW25,0)+IF(Ф!$K$4>=3,EQ25,0)+IF(Ф!$K$4>=4,GE25,0)+IF(Ф!$K$4>=5,GY25,0)+IF(Ф!$K$4>=6,HS25,0)+IF(Ф!$K$4>=7,KA25,0)+IF(Ф!$K$4>=8,KU25,0)+IF(Ф!$K$4>=9,LO25,0)+IF(Ф!$K$4>=10,NW25,0)+IF(Ф!$K$4>=11,OQ25,0)+IF(Ф!$K$4>=12,PK25,0) -> 0 | BP25: =IF(Ф!$K$4>=1,DD25,0)+IF(Ф!$K$4>=2,DX25,0)+IF(Ф!$K$4>=3,ER25,0)+IF(Ф!$K$4>=4,GF25,0)+IF(Ф!$K$4>=5,GZ25,0)+IF(Ф!$K$4>=6,HT25,0)+IF(Ф!$K$4>=7,KB25,0)+IF(Ф!$K$4>=8,KV25,0)+IF(Ф!$K$4>=9,LP25,0)+IF(Ф!$K$4>=10,NX25,0)+IF(Ф!$K$4>=11,OR25,0)+IF(Ф!$K$4>=12,PL25,0) -> 0 | BQ25: =IF(Ф!$K$4>=1,DE25,0)+IF(Ф!$K$4>=2,DY25,0)+IF(Ф!$K$4>=3,ES25,0)+IF(Ф!$K$4>=4,GG25,0)+IF(Ф!$K$4>=5,HA25,0)+IF(Ф!$K$4>=6,HU25,0)+IF(Ф!$K$4>=7,KC25,0)+IF(Ф!$K$4>=8,KW25,0)+IF(Ф!$K$4>=9,LQ25,0)+IF(Ф!$K$4>=10,NY25,0)+IF(Ф!$K$4>=11,OS25,0)+IF(Ф!$K$4>=12,PM25,0) -> 0 | BR25: =IF(Ф!$K$4>=1,DF25,0)+IF(Ф!$K$4>=2,DZ25,0)+IF(Ф!$K$4>=3,ET25,0)+IF(Ф!$K$4>=4,GH25,0)+IF(Ф!$K$4>=5,HB25,0)+IF(Ф!$K$4>=6,HV25,0)+IF(Ф!$K$4>=7,KD25,0)+IF(Ф!$K$4>=8,KX25,0)+IF(Ф!$K$4>=9,LR25,0)+IF(Ф!$K$4>=10,NZ25,0)+IF(Ф!$K$4>=11,OT25,0)+IF(Ф!$K$4>=12,PN25,0) -> 0 | BS25: =IF(Ф!$K$4>=1,DG25,0)+IF(Ф!$K$4>=2,EA25,0)+IF(Ф!$K$4>=3,EU25,0)+IF(Ф!$K$4>=4,GI25,0)+IF(Ф!$K$4>=5,HC25,0)+IF(Ф!$K$4>=6,HW25,0)+IF(Ф!$K$4>=7,KE25,0)+IF(Ф!$K$4>=8,KY25,0)+IF(Ф!$K$4>=9,LS25,0)+IF(Ф!$K$4>=10,OA25,0)+IF(Ф!$K$4>=11,OU25,0)+IF(Ф!$K$4>=12,PO25,0) -> 0 | BT25: =IF(Ф!$K$4>=1,DH25,0)+IF(Ф!$K$4>=2,EB25,0)+IF(Ф!$K$4>=3,EV25,0)+IF(Ф!$K$4>=4,GJ25,0)+IF(Ф!$K$4>=5,HD25,0)+IF(Ф!$K$4>=6,HX25,0)+IF(Ф!$K$4>=7,KF25,0)+IF(Ф!$K$4>=8,KZ25,0)+IF(Ф!$K$4>=9,LT25,0)+IF(Ф!$K$4>=10,OB25,0)+IF(Ф!$K$4>=11,OV25,0)+IF(Ф!$K$4>=12,PP25,0) -> 0 | BU25: =IF(Ф!$K$4>=1,DI25,0)+IF(Ф!$K$4>=2,EC25,0)+IF(Ф!$K$4>=3,EW25,0)+IF(Ф!$K$4>=4,GK25,0)+IF(Ф!$K$4>=5,HE25,0)+IF(Ф!$K$4>=6,HY25,0)+IF(Ф!$K$4>=7,KG25,0)+IF(Ф!$K$4>=8,LA25,0)+IF(Ф!$K$4>=9,LU25,0)+IF(Ф!$K$4>=10,OC25,0)+IF(Ф!$K$4>=11,OW25,0)+IF(Ф!$K$4>=12,PQ25,0) -> 0 | BV25: =IF(Ф!$K$4>=1,DJ25,0)+IF(Ф!$K$4>=2,ED25,0)+IF(Ф!$K$4>=3,EX25,0)+IF(Ф!$K$4>=4,GL25,0)+IF(Ф!$K$4>=5,HF25,0)+IF(Ф!$K$4>=6,HZ25,0)+IF(Ф!$K$4>=7,KH25,0)+IF(Ф!$K$4>=8,LB25,0)+IF(Ф!$K$4>=9,LV25,0)+IF(Ф!$K$4>=10,OD25,0)+IF(Ф!$K$4>=11,OX25,0)+IF(Ф!$K$4>=12,PR25,0) -> 0 | BW25: =IF(Ф!$K$4>=1,DK25,0)+IF(Ф!$K$4>=2,EE25,0)+IF(Ф!$K$4>=3,EY25,0)+IF(Ф!$K$4>=4,GM25,0)+IF(Ф!$K$4>=5,HG25,0)+IF(Ф!$K$4>=6,IA25,0)+IF(Ф!$K$4>=7,KI25,0)+IF(Ф!$K$4>=8,LC25,0)+IF(Ф!$K$4>=9,LW25,0)+IF(Ф!$K$4>=10,OE25,0)+IF(Ф!$K$4>=11,OY25,0)+IF(Ф!$K$4>=12,PS25,0) -> 0 | BX25: =IF(Ф!$K$4>=1,DL25,0)+IF(Ф!$K$4>=2,EF25,0)+IF(Ф!$K$4>=3,EZ25,0)+IF(Ф!$K$4>=4,GN25,0)+IF(Ф!$K$4>=5,HH25,0)+IF(Ф!$K$4>=6,IB25,0)+IF(Ф!$K$4>=7,KJ25,0)+IF(Ф!$K$4>=8,LD25,0)+IF(Ф!$K$4>=9,LX25,0)+IF(Ф!$K$4>=10,OF25,0)+IF(Ф!$K$4>=11,OZ25,0)+IF(Ф!$K$4>=12,PT25,0) -> 0 | BY25: =IF(Ф!$K$4>=1,DM25,0)+IF(Ф!$K$4>=2,EG25,0)+IF(Ф!$K$4>=3,FA25,0)+IF(Ф!$K$4>=4,GO25,0)+IF(Ф!$K$4>=5,HI25,0)+IF(Ф!$K$4>=6,IC25,0)+IF(Ф!$K$4>=7,KK25,0)+IF(Ф!$K$4>=8,LE25,0)+IF(Ф!$K$4>=9,LY25,0)+IF(Ф!$K$4>=10,OG25,0)+IF(Ф!$K$4>=11,PA25,0)+IF(Ф!$K$4>=12,PU25,0) -> 0 | BZ25: =IF(Ф!$K$4>=1,DN25,0)+IF(Ф!$K$4>=2,EH25,0)+IF(Ф!$K$4>=3,FB25,0)+IF(Ф!$K$4>=4,GP25,0)+IF(Ф!$K$4>=5,HJ25,0)+IF(Ф!$K$4>=6,ID25,0)+IF(Ф!$K$4>=7,KL25,0)+IF(Ф!$K$4>=8,LF25,0)+IF(Ф!$K$4>=9,LZ25,0)+IF(Ф!$K$4>=10,OH25,0)+IF(Ф!$K$4>=11,PB25,0)+IF(Ф!$K$4>=12,PV25,0) -> 0 | CA25: =IF(Ф!$K$4>=1,DO25,0)+IF(Ф!$K$4>=2,EI25,0)+IF(Ф!$K$4>=3,FC25,0)+IF(Ф!$K$4>=4,GQ25,0)+IF(Ф!$K$4>=5,HK25,0)+IF(Ф!$K$4>=6,IE25,0)+IF(Ф!$K$4>=7,KM25,0)+IF(Ф!$K$4>=8,LG25,0)+IF(Ф!$K$4>=9,MA25,0)+IF(Ф!$K$4>=10,OI25,0)+IF(Ф!$K$4>=11,PC25,0)+IF(Ф!$K$4>=12,PW25,0) -> 0 | CB25: =IF(Ф!$K$4>=1,DP25,0)+IF(Ф!$K$4>=2,EJ25,0)+IF(Ф!$K$4>=3,FD25,0)+IF(Ф!$K$4>=4,GR25,0)+IF(Ф!$K$4>=5,HL25,0)+IF(Ф!$K$4>=6,IF25,0)+IF(Ф!$K$4>=7,KN25,0)+IF(Ф!$K$4>=8,LH25,0)+IF(Ф!$K$4>=9,MB25,0)+IF(Ф!$K$4>=10,OJ25,0)+IF(Ф!$K$4>=11,PD25,0)+IF(Ф!$K$4>=12,PX25,0) -> 0 | CC25: =IF(Ф!$K$4>=1,DQ25,0)+IF(Ф!$K$4>=2,EK25,0)+IF(Ф!$K$4>=3,FE25,0)+IF(Ф!$K$4>=4,GS25,0)+IF(Ф!$K$4>=5,HM25,0)+IF(Ф!$K$4>=6,IG25,0)+IF(Ф!$K$4>=7,KO25,0)+IF(Ф!$K$4>=8,LI25,0)+IF(Ф!$K$4>=9,MC25,0)+IF(Ф!$K$4>=10,OK25,0)+IF(Ф!$K$4>=11,PE25,0)+IF(Ф!$K$4>=12,PY25,0) -> 0 | CD25: 16,246 | CE25: 282 | CF25: 0 | CG25: 15,964 | CH25: 0 | CI25: 15,586 | CJ25: 624 | CK25: 0 | CL25: 14,962 | CM25: 0 | CN25: 0 | CO25: 0 | CP25: 0 | CQ25: 0 | CR25: 0 | CS25: 0 | CT25: 0 | CU25: 0 | CV25: 0 | CW25: 0 | CX25: 2,399 | CY25: 0 | CZ25: 0 | DA25: 2,399 | DB25: 0 | DC25: 0 | DD25: 0 | DE25: 0 | DF25: 0 | DG25: 0 | DH25: 0 | DI25: 0 | DJ25: 0 | DK25: 0 | DL25: 0 | DM25: 0 | DN25: 0 | DO25: 0 | DP25: 0 | DQ25: 0 | DR25: 6,947 | DS25: 82 | DT25: 0 | DU25: 6,865 | DV25: 0 | DW25: 6,079 | DX25: 374 | DY25: 0 | DZ25: 5,705 | EA25: 0 | EB25: 0 | EC25: 0 | ED25: 0 | EE25: 0 | EF25: 0 | EG25: 0 | EH25: 0 | EI25: 0 | EJ25: 0 | EK25: 0 | EL25: 6,900 | EM25: 200 | EN25: 0 | EO25: 6,700 | EP25: 0 | EQ25: 9,507 | ER25: 250 | ES25: 0 | ET25: 9,257 | EU25: 0 | EV25: 0 | EW25: 0 | EX25: 0 | EY25: 0 | EZ25: 0 | FA25: 0 | FB25: 0 | FC25: 0 | FD25: 0 | FE25: 0 | FF25: 23,154 | FG25: 2,050 | FH25: 0 | FI25: 21,104 | FJ25: 0 | FK25: 26,182 | FL25: 200 | FM25: 0 | FN25: 25,982 | FO25: 0 | FP25: 0 | FQ25: 0 | FR25: 0 | FS25: 0 | FT25: 0 | FU25: 0 | FV25: 0 | FW25: 0 | FX25: 0 | FY25: 0 | FZ25: 6,700 | GA25: 0 | GB25: 0 | GC25: 6,700 | GD25: 0 | GE25: 1,484 | GF25: 200 | GG25: 0 | GH25: 1,284 | GI25: 0 | GJ25: 0 | GK25: 0 | GL25: 0 | GM25: 0 | GN25: 0 | GO25: 0 | GP25: 0 | GQ25: 0 | GR25: 0 | GS25: 0 | GT25: 6,700 | GU25: 0 | GV25: 0 | GW25: 6,700 | GX25: 0 | GY25: 12,498 | GZ25: 0 | HA25: 0 | HB25: 12,498 | HC25: 0 | HD25: 0 | HE25: 0 | HF25: 0 | HG25: 0 | HH25: 0 | HI25: 0 | HJ25: 0 | HK25: 0 | HL25: 0 | HM25: 0 | HN25: 9,754 | HO25: 2,050 | HP25: 0 | HQ25: 7,704 | HR25: 0 | HS25: 12,200 | HT25: 0 | HU25: 0 | HV25: 12,200 | HW25: 0 | HX25: 0 | HY25: 0 | HZ25: 0 | IA25: 0 | IB25: 0 | IC25: 0 | ID25: 0 | IE25: 0 | IF25: 0 | IG25: 0 | IH25: 39,400 | II25: 2,332 | IJ25: 0 | IK25: 37,068 | IL25: 0 | IM25: 41,768 | IN25: 824 | IO25: 0 | IP25: 40,944 | IQ25: 0 | IR25: 0 | IS25: 0 | IT25: 0 | IU25: 0 | IV25: 0 | IW25: 0 | IX25: 0 | IY25: 0 | IZ25: 0 | JA25: 0 | JB25: 43,837 | JC25: 0 | JD25: 0 | JE25: 43,837 | JF25: 0 | JG25: 26,260 | JH25: 2,050 | JI25: 0 | JJ25: 24,210 | JK25: 0 | JL25: 0 | JM25: 0 | JN25: 0 | JO25: 0 | JP25: 0 | JQ25: 0 | JR25: 0 | JS25: 0 | JT25: 0 | JU25: 0 | JV25: 11,967 | JW25: 0 | JX25: 0 | JY25: 11,967 | JZ25: 0 | KA25: 8,827 | KB25: 0 | KC25: 0 | KD25: 8,827 | KE25: 0 | KF25: 0 | KG25: 0 | KH25: 0 | KI25: 0 | KJ25: 0 | KK25: 0 | KL25: 0 | KM25: 0 | KN25: 0 | KO25: 0 | KP25: 15,686 | KQ25: 0 | KR25: 0 | KS25: 15,686 | KT25: 0 | KU25: 8,200 | KV25: 0 | KW25: 0 | KX25: 8,200 | KY25: 0 | KZ25: 0 | LA25: 0 | LB25: 0 | LC25: 0 | LD25: 0 | LE25: 0 | LF25: 0 | LG25: 0 | LH25: 0 | LI25: 0 | LJ25: 16,184 | LK25: 0 | LL25: 0 | LM25: 16,184 | LN25: 0 | LO25: 9,233 | LP25: 2,050 | LQ25: 0 | LR25: 7,183 | LS25: 0 | LT25: 0 | LU25: 0 | LV25: 0 | LW25: 0 | LX25: 0 | LY25: 0 | LZ25: 0 | MA25: 0 | MB25: 0 | MC25: 0 | MD25: 83,237 | ME25: 2,332 | MF25: 0 | MG25: 80,905 | MH25: 0 | MI25: 68,028 | MJ25: 2,874 | MK25: 0 | ML25: 65,154 | MM25: 0 | MN25: 0 | MO25: 0 | MP25: 0 | MQ25: 0 | MR25: 0 | MS25: 0 | MT25: 0 | MU25: 0 | MV25: 0 | MW25: 0 | MX25: 6,277 | MY25: 0 | MZ25: 0 | NA25: 6,277 | NB25: 0 | NC25: 6,272 | ND25: 0 | NE25: 0 | NF25: 6,272 | NG25: 0 | NH25: 0 | NI25: 0 | NJ25: 0 | NK25: 0 | NL25: 0 | NM25: 0 | NN25: 0 | NO25: 0 | NP25: 0 | NQ25: 0 | NR25: 5,492 | NS25: 0 | NT25: 0 | NU25: 5,492 | NV25: 0 | NW25: 3,000 | NX25: 0 | NY25: 0 | NZ25: 3,000 | OA25: 0 | OB25: 0 | OC25: 0 | OD25: 0 | OE25: 0 | OF25: 0 | OG25: 0 | OH25: 0 | OI25: 0 | OJ25: 0 | OK25: 0 | OL25: 785 | OM25: 0 | ON25: 0 | OO25: 785 | OP25: 0 | OQ25: 2,500 | OR25: 0 | OS25: 0 | OT25: 2,500 | OU25: 0 | OV25: 0 | OW25: 0 | OX25: 0 | OY25: 0 | OZ25: 0 | PA25: 0 | PB25: 0 | PC25: 0 | PD25: 0 | PE25: 0 | PF25: 0 | PG25: 0 | PH25: 0 | PI25: 0 | PJ25: 0 | PK25: 772 | PL25: 0 | PM25: 0 | PN25: 772 | PO25: 0 | PP25: 0 | PQ25: 0 | PR25: 0 | PS25: 0 | PT25: 0 | PU25: 0 | PV25: 0 | PW25: 0 | PX25: 0 | PY25: 0 | PZ25: 89,514 | QA25: 2,332 | QB25: 0 | QC25: 87,182 | QD25: 0 | QE25: 74,300 | QF25: 2,874 | QG25: 0 | QH25: 71,426 | QI25: 0 | QJ25: 12,493 | QK25: 0 | QL25: 0 | QM25: 12,493 | QN25: 0 | QO25: 28,726 | QP25: 1 | QQ25: 0 | QR25: 28,725 | QS25: 0 | QT25: 34,417 | QU25: 5,666 | QV25: 0 | QW25: 28,751 | QX25: 0 | QY25: 33,398 | QZ25: 5,123 | RA25: 0 | RB25: 28,275 | RC25: 0 | RD25: 102,007 | RE25: 2,332 | RF25: 0 | RG25: 99,675 | RH25: 0 | RI25: 103,026 | RJ25: 2,875 | RK25: 0 | RL25: 100,151 | RM25: 0 | RN25: 1,019 | RO25: 543 | RP25: 0 | RQ25: 476 | RR25: 0 | RT25: =BO25+IF(Ф!$K$4=1,DW25+EQ25,0)+IF(Ф!$K$4=2,EQ25+GE25,0)+IF(Ф!$K$4=3,GE25+GY25,0)+IF(Ф!$K$4=4,GY25+HS25,0)+IF(Ф!$K$4=5,HS25+KA25,0)+IF(Ф!$K$4=6,KA25+KU25,0)+IF(Ф!$K$4=7,KU25+LO25,0)+IF(Ф!$K$4=8,LO25+NW25,0)+IF(Ф!$K$4=9,NW25+OQ25,0)+IF(Ф!$K$4=10,OQ25+PK25,0)+IF(Ф!$K$4=11,PK25,0)-BY25 -> 15,586 | RU25: =RT25*(1+Ф!$K$9) -> 18,391 | RX25: 87,674 | RY25: 137,669 | SA25: 18,391 | SB25: 87,674 | SC25: 137,669
B26: 4 | C26: 17 | K26: Белорецкий филиал | Q26: 146 | R26: 0 | S26: 0 | T26: 146 | V26: 0 | W26: 0 | X26: 0 | Y26: 0 | Z26: 0 | AA26: 0 | AB26: 0 | AC26: 0 | AD26: 0 | AE26: 0 | AF26: 146 | AG26: 0 | AH26: 0 | AI26: 146 | AJ26: 0 | AK26: 146 | AL26: 0 | AM26: 0 | AN26: 146 | AO26: 0 | AP26: 146 | AQ26: 0 | AR26: 0 | AS26: 146 | AT26: 0 | AU26: 146 | AV26: 0 | AW26: 0 | AX26: 146 | AY26: 0 | AZ26: 146 | BJ26: =IF(Ф!$K$4>=1,CX26,0)+IF(Ф!$K$4>=2,DR26,0)+IF(Ф!$K$4>=3,EL26,0)+IF(Ф!$K$4>=4,FZ26,0)+IF(Ф!$K$4>=5,GT26,0)+IF(Ф!$K$4>=6,HN26,0)+IF(Ф!$K$4>=7,JV26,0)+IF(Ф!$K$4>=8,KP26,0)+IF(Ф!$K$4>=9,LJ26,0)+IF(Ф!$K$4>=10,NR26,0)+IF(Ф!$K$4>=11,OL26,0)+IF(Ф!$K$4>=12,PF26,0) -> 0 | BK26: =IF(Ф!$K$4>=1,CY26,0)+IF(Ф!$K$4>=2,DS26,0)+IF(Ф!$K$4>=3,EM26,0)+IF(Ф!$K$4>=4,GA26,0)+IF(Ф!$K$4>=5,GU26,0)+IF(Ф!$K$4>=6,HO26,0)+IF(Ф!$K$4>=7,JW26,0)+IF(Ф!$K$4>=8,KQ26,0)+IF(Ф!$K$4>=9,LK26,0)+IF(Ф!$K$4>=10,NS26,0)+IF(Ф!$K$4>=11,OM26,0)+IF(Ф!$K$4>=12,PG26,0) -> 0 | BL26: =IF(Ф!$K$4>=1,CZ26,0)+IF(Ф!$K$4>=2,DT26,0)+IF(Ф!$K$4>=3,EN26,0)+IF(Ф!$K$4>=4,GB26,0)+IF(Ф!$K$4>=5,GV26,0)+IF(Ф!$K$4>=6,HP26,0)+IF(Ф!$K$4>=7,JX26,0)+IF(Ф!$K$4>=8,KR26,0)+IF(Ф!$K$4>=9,LL26,0)+IF(Ф!$K$4>=10,NT26,0)+IF(Ф!$K$4>=11,ON26,0)+IF(Ф!$K$4>=12,PH26,0) -> 0 | BM26: =IF(Ф!$K$4>=1,DA26,0)+IF(Ф!$K$4>=2,DU26,0)+IF(Ф!$K$4>=3,EO26,0)+IF(Ф!$K$4>=4,GC26,0)+IF(Ф!$K$4>=5,GW26,0)+IF(Ф!$K$4>=6,HQ26,0)+IF(Ф!$K$4>=7,JY26,0)+IF(Ф!$K$4>=8,KS26,0)+IF(Ф!$K$4>=9,LM26,0)+IF(Ф!$K$4>=10,NU26,0)+IF(Ф!$K$4>=11,OO26,0)+IF(Ф!$K$4>=12,PI26,0) -> 0 | BN26: =IF(Ф!$K$4>=1,DB26,0)+IF(Ф!$K$4>=2,DV26,0)+IF(Ф!$K$4>=3,EP26,0)+IF(Ф!$K$4>=4,GD26,0)+IF(Ф!$K$4>=5,GX26,0)+IF(Ф!$K$4>=6,HR26,0)+IF(Ф!$K$4>=7,JZ26,0)+IF(Ф!$K$4>=8,KT26,0)+IF(Ф!$K$4>=9,LN26,0)+IF(Ф!$K$4>=10,NV26,0)+IF(Ф!$K$4>=11,OP26,0)+IF(Ф!$K$4>=12,PJ26,0) -> 0 | BO26: =IF(Ф!$K$4>=1,DC26,0)+IF(Ф!$K$4>=2,DW26,0)+IF(Ф!$K$4>=3,EQ26,0)+IF(Ф!$K$4>=4,GE26,0)+IF(Ф!$K$4>=5,GY26,0)+IF(Ф!$K$4>=6,HS26,0)+IF(Ф!$K$4>=7,KA26,0)+IF(Ф!$K$4>=8,KU26,0)+IF(Ф!$K$4>=9,LO26,0)+IF(Ф!$K$4>=10,NW26,0)+IF(Ф!$K$4>=11,OQ26,0)+IF(Ф!$K$4>=12,PK26,0) -> 0 | BP26: =IF(Ф!$K$4>=1,DD26,0)+IF(Ф!$K$4>=2,DX26,0)+IF(Ф!$K$4>=3,ER26,0)+IF(Ф!$K$4>=4,GF26,0)+IF(Ф!$K$4>=5,GZ26,0)+IF(Ф!$K$4>=6,HT26,0)+IF(Ф!$K$4>=7,KB26,0)+IF(Ф!$K$4>=8,KV26,0)+IF(Ф!$K$4>=9,LP26,0)+IF(Ф!$K$4>=10,NX26,0)+IF(Ф!$K$4>=11,OR26,0)+IF(Ф!$K$4>=12,PL26,0) -> 0 | BQ26: =IF(Ф!$K$4>=1,DE26,0)+IF(Ф!$K$4>=2,DY26,0)+IF(Ф!$K$4>=3,ES26,0)+IF(Ф!$K$4>=4,GG26,0)+IF(Ф!$K$4>=5,HA26,0)+IF(Ф!$K$4>=6,HU26,0)+IF(Ф!$K$4>=7,KC26,0)+IF(Ф!$K$4>=8,KW26,0)+IF(Ф!$K$4>=9,LQ26,0)+IF(Ф!$K$4>=10,NY26,0)+IF(Ф!$K$4>=11,OS26,0)+IF(Ф!$K$4>=12,PM26,0) -> 0 | BR26: =IF(Ф!$K$4>=1,DF26,0)+IF(Ф!$K$4>=2,DZ26,0)+IF(Ф!$K$4>=3,ET26,0)+IF(Ф!$K$4>=4,GH26,0)+IF(Ф!$K$4>=5,HB26,0)+IF(Ф!$K$4>=6,HV26,0)+IF(Ф!$K$4>=7,KD26,0)+IF(Ф!$K$4>=8,KX26,0)+IF(Ф!$K$4>=9,LR26,0)+IF(Ф!$K$4>=10,NZ26,0)+IF(Ф!$K$4>=11,OT26,0)+IF(Ф!$K$4>=12,PN26,0) -> 0 | BS26: =IF(Ф!$K$4>=1,DG26,0)+IF(Ф!$K$4>=2,EA26,0)+IF(Ф!$K$4>=3,EU26,0)+IF(Ф!$K$4>=4,GI26,0)+IF(Ф!$K$4>=5,HC26,0)+IF(Ф!$K$4>=6,HW26,0)+IF(Ф!$K$4>=7,KE26,0)+IF(Ф!$K$4>=8,KY26,0)+IF(Ф!$K$4>=9,LS26,0)+IF(Ф!$K$4>=10,OA26,0)+IF(Ф!$K$4>=11,OU26,0)+IF(Ф!$K$4>=12,PO26,0) -> 0 | BT26: =IF(Ф!$K$4>=1,DH26,0)+IF(Ф!$K$4>=2,EB26,0)+IF(Ф!$K$4>=3,EV26,0)+IF(Ф!$K$4>=4,GJ26,0)+IF(Ф!$K$4>=5,HD26,0)+IF(Ф!$K$4>=6,HX26,0)+IF(Ф!$K$4>=7,KF26,0)+IF(Ф!$K$4>=8,KZ26,0)+IF(Ф!$K$4>=9,LT26,0)+IF(Ф!$K$4>=10,OB26,0)+IF(Ф!$K$4>=11,OV26,0)+IF(Ф!$K$4>=12,PP26,0) -> 0 | BU26: =IF(Ф!$K$4>=1,DI26,0)+IF(Ф!$K$4>=2,EC26,0)+IF(Ф!$K$4>=3,EW26,0)+IF(Ф!$K$4>=4,GK26,0)+IF(Ф!$K$4>=5,HE26,0)+IF(Ф!$K$4>=6,HY26,0)+IF(Ф!$K$4>=7,KG26,0)+IF(Ф!$K$4>=8,LA26,0)+IF(Ф!$K$4>=9,LU26,0)+IF(Ф!$K$4>=10,OC26,0)+IF(Ф!$K$4>=11,OW26,0)+IF(Ф!$K$4>=12,PQ26,0) -> 0 | BV26: =IF(Ф!$K$4>=1,DJ26,0)+IF(Ф!$K$4>=2,ED26,0)+IF(Ф!$K$4>=3,EX26,0)+IF(Ф!$K$4>=4,GL26,0)+IF(Ф!$K$4>=5,HF26,0)+IF(Ф!$K$4>=6,HZ26,0)+IF(Ф!$K$4>=7,KH26,0)+IF(Ф!$K$4>=8,LB26,0)+IF(Ф!$K$4>=9,LV26,0)+IF(Ф!$K$4>=10,OD26,0)+IF(Ф!$K$4>=11,OX26,0)+IF(Ф!$K$4>=12,PR26,0) -> 0 | BW26: =IF(Ф!$K$4>=1,DK26,0)+IF(Ф!$K$4>=2,EE26,0)+IF(Ф!$K$4>=3,EY26,0)+IF(Ф!$K$4>=4,GM26,0)+IF(Ф!$K$4>=5,HG26,0)+IF(Ф!$K$4>=6,IA26,0)+IF(Ф!$K$4>=7,KI26,0)+IF(Ф!$K$4>=8,LC26,0)+IF(Ф!$K$4>=9,LW26,0)+IF(Ф!$K$4>=10,OE26,0)+IF(Ф!$K$4>=11,OY26,0)+IF(Ф!$K$4>=12,PS26,0) -> 0 | BX26: =IF(Ф!$K$4>=1,DL26,0)+IF(Ф!$K$4>=2,EF26,0)+IF(Ф!$K$4>=3,EZ26,0)+IF(Ф!$K$4>=4,GN26,0)+IF(Ф!$K$4>=5,HH26,0)+IF(Ф!$K$4>=6,IB26,0)+IF(Ф!$K$4>=7,KJ26,0)+IF(Ф!$K$4>=8,LD26,0)+IF(Ф!$K$4>=9,LX26,0)+IF(Ф!$K$4>=10,OF26,0)+IF(Ф!$K$4>=11,OZ26,0)+IF(Ф!$K$4>=12,PT26,0) -> 0 | BY26: =IF(Ф!$K$4>=1,DM26,0)+IF(Ф!$K$4>=2,EG26,0)+IF(Ф!$K$4>=3,FA26,0)+IF(Ф!$K$4>=4,GO26,0)+IF(Ф!$K$4>=5,HI26,0)+IF(Ф!$K$4>=6,IC26,0)+IF(Ф!$K$4>=7,KK26,0)+IF(Ф!$K$4>=8,LE26,0)+IF(Ф!$K$4>=9,LY26,0)+IF(Ф!$K$4>=10,OG26,0)+IF(Ф!$K$4>=11,PA26,0)+IF(Ф!$K$4>=12,PU26,0) -> 0 | BZ26: =IF(Ф!$K$4>=1,DN26,0)+IF(Ф!$K$4>=2,EH26,0)+IF(Ф!$K$4>=3,FB26,0)+IF(Ф!$K$4>=4,GP26,0)+IF(Ф!$K$4>=5,HJ26,0)+IF(Ф!$K$4>=6,ID26,0)+IF(Ф!$K$4>=7,KL26,0)+IF(Ф!$K$4>=8,LF26,0)+IF(Ф!$K$4>=9,LZ26,0)+IF(Ф!$K$4>=10,OH26,0)+IF(Ф!$K$4>=11,PB26,0)+IF(Ф!$K$4>=12,PV26,0) -> 0 | CA26: =IF(Ф!$K$4>=1,DO26,0)+IF(Ф!$K$4>=2,EI26,0)+IF(Ф!$K$4>=3,FC26,0)+IF(Ф!$K$4>=4,GQ26,0)+IF(Ф!$K$4>=5,HK26,0)+IF(Ф!$K$4>=6,IE26,0)+IF(Ф!$K$4>=7,KM26,0)+IF(Ф!$K$4>=8,LG26,0)+IF(Ф!$K$4>=9,MA26,0)+IF(Ф!$K$4>=10,OI26,0)+IF(Ф!$K$4>=11,PC26,0)+IF(Ф!$K$4>=12,PW26,0) -> 0 | CB26: =IF(Ф!$K$4>=1,DP26,0)+IF(Ф!$K$4>=2,EJ26,0)+IF(Ф!$K$4>=3,FD26,0)+IF(Ф!$K$4>=4,GR26,0)+IF(Ф!$K$4>=5,HL26,0)+IF(Ф!$K$4>=6,IF26,0)+IF(Ф!$K$4>=7,KN26,0)+IF(Ф!$K$4>=8,LH26,0)+IF(Ф!$K$4>=9,MB26,0)+IF(Ф!$K$4>=10,OJ26,0)+IF(Ф!$K$4>=11,PD26,0)+IF(Ф!$K$4>=12,PX26,0) -> 0 | CC26: =IF(Ф!$K$4>=1,DQ26,0)+IF(Ф!$K$4>=2,EK26,0)+IF(Ф!$K$4>=3,FE26,0)+IF(Ф!$K$4>=4,GS26,0)+IF(Ф!$K$4>=5,HM26,0)+IF(Ф!$K$4>=6,IG26,0)+IF(Ф!$K$4>=7,KO26,0)+IF(Ф!$K$4>=8,LI26,0)+IF(Ф!$K$4>=9,MC26,0)+IF(Ф!$K$4>=10,OK26,0)+IF(Ф!$K$4>=11,PE26,0)+IF(Ф!$K$4>=12,PY26,0) -> 0 | CD26: 146 | CE26: 0 | CF26: 0 | CG26: 146 | CH26: 0 | CI26: 146 | CJ26: 0 | CK26: 0 | CL26: 146 | CM26: 0 | CN26: 0 | CO26: 0 | CP26: 0 | CQ26: 0 | CR26: 0 | CS26: 0 | CT26: 0 | CU26: 0 | CV26: 0 | CW26: 0 | CX26: 0 | CY26: 0 | CZ26: 0 | DA26: 0 | DB26: 0 | DC26: 0 | DD26: 0 | DE26: 0 | DF26: 0 | DG26: 0 | DH26: 0 | DI26: 0 | DJ26: 0 | DK26: 0 | DL26: 0 | DM26: 0 | DN26: 0 | DO26: 0 | DP26: 0 | DQ26: 0 | DR26: 146 | DS26: 0 | DT26: 0 | DU26: 146 | DV26: 0 | DW26: 0 | DX26: 0 | DY26: 0 | DZ26: 0 | EA26: 0 | EB26: 0 | EC26: 0 | ED26: 0 | EE26: 0 | EF26: 0 | EG26: 0 | EH26: 0 | EI26: 0 | EJ26: 0 | EK26: 0 | EL26: 0 | EM26: 0 | EN26: 0 | EO26: 0 | EP26: 0 | EQ26: 146 | ER26: 0 | ES26: 0 | ET26: 146 | EU26: 0 | EV26: 0 | EW26: 0 | EX26: 0 | EY26: 0 | EZ26: 0 | FA26: 0 | FB26: 0 | FC26: 0 | FD26: 0 | FE26: 0 | FF26: 0 | FG26: 0 | FH26: 0 | FI26: 0 | FJ26: 0 | FK26: 0 | FL26: 0 | FM26: 0 | FN26: 0 | FO26: 0 | FP26: 0 | FQ26: 0 | FR26: 0 | FS26: 0 | FT26: 0 | FU26: 0 | FV26: 0 | FW26: 0 | FX26: 0 | FY26: 0 | FZ26: 0 | GA26: 0 | GB26: 0 | GC26: 0 | GD26: 0 | GE26: 0 | GF26: 0 | GG26: 0 | GH26: 0 | GI26: 0 | GJ26: 0 | GK26: 0 | GL26: 0 | GM26: 0 | GN26: 0 | GO26: 0 | GP26: 0 | GQ26: 0 | GR26: 0 | GS26: 0 | GT26: 0 | GU26: 0 | GV26: 0 | GW26: 0 | GX26: 0 | GY26: 0 | GZ26: 0 | HA26: 0 | HB26: 0 | HC26: 0 | HD26: 0 | HE26: 0 | HF26: 0 | HG26: 0 | HH26: 0 | HI26: 0 | HJ26: 0 | HK26: 0 | HL26: 0 | HM26: 0 | HN26: 0 | HO26: 0 | HP26: 0 | HQ26: 0 | HR26: 0 | HS26: 0 | HT26: 0 | HU26: 0 | HV26: 0 | HW26: 0 | HX26: 0 | HY26: 0 | HZ26: 0 | IA26: 0 | IB26: 0 | IC26: 0 | ID26: 0 | IE26: 0 | IF26: 0 | IG26: 0 | IH26: 146 | II26: 0 | IJ26: 0 | IK26: 146 | IL26: 0 | IM26: 146 | IN26: 0 | IO26: 0 | IP26: 146 | IQ26: 0 | IR26: 0 | IS26: 0 | IT26: 0 | IU26: 0 | IV26: 0 | IW26: 0 | IX26: 0 | IY26: 0 | IZ26: 0 | JA26: 0 | JB26: 0 | JC26: 0 | JD26: 0 | JE26: 0 | JF26: 0 | JG26: 0 | JH26: 0 | JI26: 0 | JJ26: 0 | JK26: 0 | JL26: 0 | JM26: 0 | JN26: 0 | JO26: 0 | JP26: 0 | JQ26: 0 | JR26: 0 | JS26: 0 | JT26: 0 | JU26: 0 | JV26: 0 | JW26: 0 | JX26: 0 | JY26: 0 | JZ26: 0 | KA26: 0 | KB26: 0 | KC26: 0 | KD26: 0 | KE26: 0 | KF26: 0 | KG26: 0 | KH26: 0 | KI26: 0 | KJ26: 0 | KK26: 0 | KL26: 0 | KM26: 0 | KN26: 0 | KO26: 0 | KP26: 0 | KQ26: 0 | KR26: 0 | KS26: 0 | KT26: 0 | KU26: 0 | KV26: 0 | KW26: 0 | KX26: 0 | KY26: 0 | KZ26: 0 | LA26: 0 | LB26: 0 | LC26: 0 | LD26: 0 | LE26: 0 | LF26: 0 | LG26: 0 | LH26: 0 | LI26: 0 | LJ26: 0 | LK26: 0 | LL26: 0 | LM26: 0 | LN26: 0 | LO26: 0 | LP26: 0 | LQ26: 0 | LR26: 0 | LS26: 0 | LT26: 0 | LU26: 0 | LV26: 0 | LW26: 0 | LX26: 0 | LY26: 0 | LZ26: 0 | MA26: 0 | MB26: 0 | MC26: 0 | MD26: 146 | ME26: 0 | MF26: 0 | MG26: 146 | MH26: 0 | MI26: 146 | MJ26: 0 | MK26: 0 | ML26: 146 | MM26: 0 | MN26: 0 | MO26: 0 | MP26: 0 | MQ26: 0 | MR26: 0 | MS26: 0 | MT26: 0 | MU26: 0 | MV26: 0 | MW26: 0 | MX26: 0 | MY26: 0 | MZ26: 0 | NA26: 0 | NB26: 0 | NC26: 0 | ND26: 0 | NE26: 0 | NF26: 0 | NG26: 0 | NH26: 0 | NI26: 0 | NJ26: 0 | NK26: 0 | NL26: 0 | NM26: 0 | NN26: 0 | NO26: 0 | NP26: 0 | NQ26: 0 | NR26: 0 | NS26: 0 | NT26: 0 | NU26: 0 | NV26: 0 | NW26: 0 | NX26: 0 | NY26: 0 | NZ26: 0 | OA26: 0 | OB26: 0 | OC26: 0 | OD26: 0 | OE26: 0 | OF26: 0 | OG26: 0 | OH26: 0 | OI26: 0 | OJ26: 0 | OK26: 0 | OL26: 0 | OM26: 0 | ON26: 0 | OO26: 0 | OP26: 0 | OQ26: 0 | OR26: 0 | OS26: 0 | OT26: 0 | OU26: 0 | OV26: 0 | OW26: 0 | OX26: 0 | OY26: 0 | OZ26: 0 | PA26: 0 | PB26: 0 | PC26: 0 | PD26: 0 | PE26: 0 | PF26: 0 | PG26: 0 | PH26: 0 | PI26: 0 | PJ26: 0 | PK26: 0 | PL26: 0 | PM26: 0 | PN26: 0 | PO26: 0 | PP26: 0 | PQ26: 0 | PR26: 0 | PS26: 0 | PT26: 0 | PU26: 0 | PV26: 0 | PW26: 0 | PX26: 0 | PY26: 0 | PZ26: 146 | QA26: 0 | QB26: 0 | QC26: 146 | QD26: 0 | QE26: 146 | QF26: 0 | QG26: 0 | QH26: 146 | QI26: 0 | QJ26: 0 | QK26: 0 | QL26: 0 | QM26: 0 | QN26: 0 | QO26: 0 | QP26: 0 | QQ26: 0 | QR26: 0 | QS26: 0 | QT26: 0 | QU26: 0 | QV26: 0 | QW26: 0 | QX26: 0 | QY26: 0 | QZ26: 0 | RA26: 0 | RB26: 0 | RC26: 0 | RD26: 146 | RE26: 0 | RF26: 0 | RG26: 146 | RH26: 0 | RI26: 146 | RJ26: 0 | RK26: 0 | RL26: 146 | RM26: 0 | RN26: 0 | RO26: 0 | RP26: 0 | RQ26: 0 | RR26: 0 | RT26: =BO26+IF(Ф!$K$4=1,DW26+EQ26,0)+IF(Ф!$K$4=2,EQ26+GE26,0)+IF(Ф!$K$4=3,GE26+GY26,0)+IF(Ф!$K$4=4,GY26+HS26,0)+IF(Ф!$K$4=5,HS26+KA26,0)+IF(Ф!$K$4=6,KA26+KU26,0)+IF(Ф!$K$4=7,KU26+LO26,0)+IF(Ф!$K$4=8,LO26+NW26,0)+IF(Ф!$K$4=9,NW26+OQ26,0)+IF(Ф!$K$4=10,OQ26+PK26,0)+IF(Ф!$K$4=11,PK26,0)-BY26 -> 146 | RU26: =RT26*(1+Ф!$K$9) -> 172 | RX26: 172 | RY26: 190 | SA26: 172 | SB26: 172 | SC26: 190
B27: 18 | C27: 18 | K27: Поддержание существующих мощностей и техперевооружение | Q27: 146 | R27: 0 | S27: 0 | T27: 146 | V27: 0 | W27: 0 | X27: 0 | Y27: 0 | Z27: 0 | AA27: 0 | AB27: 0 | AC27: 0 | AD27: 0 | AE27: 0 | AF27: 146 | AG27: 0 | AH27: 0 | AI27: 146 | AJ27: 0 | AK27: 146 | AL27: 0 | AM27: 0 | AN27: 146 | AO27: 0 | AP27: 146 | AQ27: 0 | AR27: 0 | AS27: 146 | AT27: 0 | AU27: 146 | AV27: 0 | AW27: 0 | AX27: 146 | AY27: 0 | AZ27: 146 | BJ27: =IF(Ф!$K$4>=1,CX27,0)+IF(Ф!$K$4>=2,DR27,0)+IF(Ф!$K$4>=3,EL27,0)+IF(Ф!$K$4>=4,FZ27,0)+IF(Ф!$K$4>=5,GT27,0)+IF(Ф!$K$4>=6,HN27,0)+IF(Ф!$K$4>=7,JV27,0)+IF(Ф!$K$4>=8,KP27,0)+IF(Ф!$K$4>=9,LJ27,0)+IF(Ф!$K$4>=10,NR27,0)+IF(Ф!$K$4>=11,OL27,0)+IF(Ф!$K$4>=12,PF27,0) -> 0 | BK27: =IF(Ф!$K$4>=1,CY27,0)+IF(Ф!$K$4>=2,DS27,0)+IF(Ф!$K$4>=3,EM27,0)+IF(Ф!$K$4>=4,GA27,0)+IF(Ф!$K$4>=5,GU27,0)+IF(Ф!$K$4>=6,HO27,0)+IF(Ф!$K$4>=7,JW27,0)+IF(Ф!$K$4>=8,KQ27,0)+IF(Ф!$K$4>=9,LK27,0)+IF(Ф!$K$4>=10,NS27,0)+IF(Ф!$K$4>=11,OM27,0)+IF(Ф!$K$4>=12,PG27,0) -> 0 | BL27: =IF(Ф!$K$4>=1,CZ27,0)+IF(Ф!$K$4>=2,DT27,0)+IF(Ф!$K$4>=3,EN27,0)+IF(Ф!$K$4>=4,GB27,0)+IF(Ф!$K$4>=5,GV27,0)+IF(Ф!$K$4>=6,HP27,0)+IF(Ф!$K$4>=7,JX27,0)+IF(Ф!$K$4>=8,KR27,0)+IF(Ф!$K$4>=9,LL27,0)+IF(Ф!$K$4>=10,NT27,0)+IF(Ф!$K$4>=11,ON27,0)+IF(Ф!$K$4>=12,PH27,0) -> 0 | BM27: =IF(Ф!$K$4>=1,DA27,0)+IF(Ф!$K$4>=2,DU27,0)+IF(Ф!$K$4>=3,EO27,0)+IF(Ф!$K$4>=4,GC27,0)+IF(Ф!$K$4>=5,GW27,0)+IF(Ф!$K$4>=6,HQ27,0)+IF(Ф!$K$4>=7,JY27,0)+IF(Ф!$K$4>=8,KS27,0)+IF(Ф!$K$4>=9,LM27,0)+IF(Ф!$K$4>=10,NU27,0)+IF(Ф!$K$4>=11,OO27,0)+IF(Ф!$K$4>=12,PI27,0) -> 0 | BN27: =IF(Ф!$K$4>=1,DB27,0)+IF(Ф!$K$4>=2,DV27,0)+IF(Ф!$K$4>=3,EP27,0)+IF(Ф!$K$4>=4,GD27,0)+IF(Ф!$K$4>=5,GX27,0)+IF(Ф!$K$4>=6,HR27,0)+IF(Ф!$K$4>=7,JZ27,0)+IF(Ф!$K$4>=8,KT27,0)+IF(Ф!$K$4>=9,LN27,0)+IF(Ф!$K$4>=10,NV27,0)+IF(Ф!$K$4>=11,OP27,0)+IF(Ф!$K$4>=12,PJ27,0) -> 0 | BO27: =IF(Ф!$K$4>=1,DC27,0)+IF(Ф!$K$4>=2,DW27,0)+IF(Ф!$K$4>=3,EQ27,0)+IF(Ф!$K$4>=4,GE27,0)+IF(Ф!$K$4>=5,GY27,0)+IF(Ф!$K$4>=6,HS27,0)+IF(Ф!$K$4>=7,KA27,0)+IF(Ф!$K$4>=8,KU27,0)+IF(Ф!$K$4>=9,LO27,0)+IF(Ф!$K$4>=10,NW27,0)+IF(Ф!$K$4>=11,OQ27,0)+IF(Ф!$K$4>=12,PK27,0) -> 0 | BP27: =IF(Ф!$K$4>=1,DD27,0)+IF(Ф!$K$4>=2,DX27,0)+IF(Ф!$K$4>=3,ER27,0)+IF(Ф!$K$4>=4,GF27,0)+IF(Ф!$K$4>=5,GZ27,0)+IF(Ф!$K$4>=6,HT27,0)+IF(Ф!$K$4>=7,KB27,0)+IF(Ф!$K$4>=8,KV27,0)+IF(Ф!$K$4>=9,LP27,0)+IF(Ф!$K$4>=10,NX27,0)+IF(Ф!$K$4>=11,OR27,0)+IF(Ф!$K$4>=12,PL27,0) -> 0 | BQ27: =IF(Ф!$K$4>=1,DE27,0)+IF(Ф!$K$4>=2,DY27,0)+IF(Ф!$K$4>=3,ES27,0)+IF(Ф!$K$4>=4,GG27,0)+IF(Ф!$K$4>=5,HA27,0)+IF(Ф!$K$4>=6,HU27,0)+IF(Ф!$K$4>=7,KC27,0)+IF(Ф!$K$4>=8,KW27,0)+IF(Ф!$K$4>=9,LQ27,0)+IF(Ф!$K$4>=10,NY27,0)+IF(Ф!$K$4>=11,OS27,0)+IF(Ф!$K$4>=12,PM27,0) -> 0 | BR27: =IF(Ф!$K$4>=1,DF27,0)+IF(Ф!$K$4>=2,DZ27,0)+IF(Ф!$K$4>=3,ET27,0)+IF(Ф!$K$4>=4,GH27,0)+IF(Ф!$K$4>=5,HB27,0)+IF(Ф!$K$4>=6,HV27,0)+IF(Ф!$K$4>=7,KD27,0)+IF(Ф!$K$4>=8,KX27,0)+IF(Ф!$K$4>=9,LR27,0)+IF(Ф!$K$4>=10,NZ27,0)+IF(Ф!$K$4>=11,OT27,0)+IF(Ф!$K$4>=12,PN27,0) -> 0 | BS27: =IF(Ф!$K$4>=1,DG27,0)+IF(Ф!$K$4>=2,EA27,0)+IF(Ф!$K$4>=3,EU27,0)+IF(Ф!$K$4>=4,GI27,0)+IF(Ф!$K$4>=5,HC27,0)+IF(Ф!$K$4>=6,HW27,0)+IF(Ф!$K$4>=7,KE27,0)+IF(Ф!$K$4>=8,KY27,0)+IF(Ф!$K$4>=9,LS27,0)+IF(Ф!$K$4>=10,OA27,0)+IF(Ф!$K$4>=11,OU27,0)+IF(Ф!$K$4>=12,PO27,0) -> 0 | BT27: =IF(Ф!$K$4>=1,DH27,0)+IF(Ф!$K$4>=2,EB27,0)+IF(Ф!$K$4>=3,EV27,0)+IF(Ф!$K$4>=4,GJ27,0)+IF(Ф!$K$4>=5,HD27,0)+IF(Ф!$K$4>=6,HX27,0)+IF(Ф!$K$4>=7,KF27,0)+IF(Ф!$K$4>=8,KZ27,0)+IF(Ф!$K$4>=9,LT27,0)+IF(Ф!$K$4>=10,OB27,0)+IF(Ф!$K$4>=11,OV27,0)+IF(Ф!$K$4>=12,PP27,0) -> 0 | BU27: =IF(Ф!$K$4>=1,DI27,0)+IF(Ф!$K$4>=2,EC27,0)+IF(Ф!$K$4>=3,EW27,0)+IF(Ф!$K$4>=4,GK27,0)+IF(Ф!$K$4>=5,HE27,0)+IF(Ф!$K$4>=6,HY27,0)+IF(Ф!$K$4>=7,KG27,0)+IF(Ф!$K$4>=8,LA27,0)+IF(Ф!$K$4>=9,LU27,0)+IF(Ф!$K$4>=10,OC27,0)+IF(Ф!$K$4>=11,OW27,0)+IF(Ф!$K$4>=12,PQ27,0) -> 0 | BV27: =IF(Ф!$K$4>=1,DJ27,0)+IF(Ф!$K$4>=2,ED27,0)+IF(Ф!$K$4>=3,EX27,0)+IF(Ф!$K$4>=4,GL27,0)+IF(Ф!$K$4>=5,HF27,0)+IF(Ф!$K$4>=6,HZ27,0)+IF(Ф!$K$4>=7,KH27,0)+IF(Ф!$K$4>=8,LB27,0)+IF(Ф!$K$4>=9,LV27,0)+IF(Ф!$K$4>=10,OD27,0)+IF(Ф!$K$4>=11,OX27,0)+IF(Ф!$K$4>=12,PR27,0) -> 0 | BW27: =IF(Ф!$K$4>=1,DK27,0)+IF(Ф!$K$4>=2,EE27,0)+IF(Ф!$K$4>=3,EY27,0)+IF(Ф!$K$4>=4,GM27,0)+IF(Ф!$K$4>=5,HG27,0)+IF(Ф!$K$4>=6,IA27,0)+IF(Ф!$K$4>=7,KI27,0)+IF(Ф!$K$4>=8,LC27,0)+IF(Ф!$K$4>=9,LW27,0)+IF(Ф!$K$4>=10,OE27,0)+IF(Ф!$K$4>=11,OY27,0)+IF(Ф!$K$4>=12,PS27,0) -> 0 | BX27: =IF(Ф!$K$4>=1,DL27,0)+IF(Ф!$K$4>=2,EF27,0)+IF(Ф!$K$4>=3,EZ27,0)+IF(Ф!$K$4>=4,GN27,0)+IF(Ф!$K$4>=5,HH27,0)+IF(Ф!$K$4>=6,IB27,0)+IF(Ф!$K$4>=7,KJ27,0)+IF(Ф!$K$4>=8,LD27,0)+IF(Ф!$K$4>=9,LX27,0)+IF(Ф!$K$4>=10,OF27,0)+IF(Ф!$K$4>=11,OZ27,0)+IF(Ф!$K$4>=12,PT27,0) -> 0 | BY27: =IF(Ф!$K$4>=1,DM27,0)+IF(Ф!$K$4>=2,EG27,0)+IF(Ф!$K$4>=3,FA27,0)+IF(Ф!$K$4>=4,GO27,0)+IF(Ф!$K$4>=5,HI27,0)+IF(Ф!$K$4>=6,IC27,0)+IF(Ф!$K$4>=7,KK27,0)+IF(Ф!$K$4>=8,LE27,0)+IF(Ф!$K$4>=9,LY27,0)+IF(Ф!$K$4>=10,OG27,0)+IF(Ф!$K$4>=11,PA27,0)+IF(Ф!$K$4>=12,PU27,0) -> 0 | BZ27: =IF(Ф!$K$4>=1,DN27,0)+IF(Ф!$K$4>=2,EH27,0)+IF(Ф!$K$4>=3,FB27,0)+IF(Ф!$K$4>=4,GP27,0)+IF(Ф!$K$4>=5,HJ27,0)+IF(Ф!$K$4>=6,ID27,0)+IF(Ф!$K$4>=7,KL27,0)+IF(Ф!$K$4>=8,LF27,0)+IF(Ф!$K$4>=9,LZ27,0)+IF(Ф!$K$4>=10,OH27,0)+IF(Ф!$K$4>=11,PB27,0)+IF(Ф!$K$4>=12,PV27,0) -> 0 | CA27: =IF(Ф!$K$4>=1,DO27,0)+IF(Ф!$K$4>=2,EI27,0)+IF(Ф!$K$4>=3,FC27,0)+IF(Ф!$K$4>=4,GQ27,0)+IF(Ф!$K$4>=5,HK27,0)+IF(Ф!$K$4>=6,IE27,0)+IF(Ф!$K$4>=7,KM27,0)+IF(Ф!$K$4>=8,LG27,0)+IF(Ф!$K$4>=9,MA27,0)+IF(Ф!$K$4>=10,OI27,0)+IF(Ф!$K$4>=11,PC27,0)+IF(Ф!$K$4>=12,PW27,0) -> 0 | CB27: =IF(Ф!$K$4>=1,DP27,0)+IF(Ф!$K$4>=2,EJ27,0)+IF(Ф!$K$4>=3,FD27,0)+IF(Ф!$K$4>=4,GR27,0)+IF(Ф!$K$4>=5,HL27,0)+IF(Ф!$K$4>=6,IF27,0)+IF(Ф!$K$4>=7,KN27,0)+IF(Ф!$K$4>=8,LH27,0)+IF(Ф!$K$4>=9,MB27,0)+IF(Ф!$K$4>=10,OJ27,0)+IF(Ф!$K$4>=11,PD27,0)+IF(Ф!$K$4>=12,PX27,0) -> 0 | CC27: =IF(Ф!$K$4>=1,DQ27,0)+IF(Ф!$K$4>=2,EK27,0)+IF(Ф!$K$4>=3,FE27,0)+IF(Ф!$K$4>=4,GS27,0)+IF(Ф!$K$4>=5,HM27,0)+IF(Ф!$K$4>=6,IG27,0)+IF(Ф!$K$4>=7,KO27,0)+IF(Ф!$K$4>=8,LI27,0)+IF(Ф!$K$4>=9,MC27,0)+IF(Ф!$K$4>=10,OK27,0)+IF(Ф!$K$4>=11,PE27,0)+IF(Ф!$K$4>=12,PY27,0) -> 0 | CD27: 146 | CE27: 0 | CF27: 0 | CG27: 146 | CH27: 0 | CI27: 146 | CJ27: 0 | CK27: 0 | CL27: 146 | CM27: 0 | CN27: 0 | CO27: 0 | CP27: 0 | CQ27: 0 | CR27: 0 | CS27: 0 | CT27: 0 | CU27: 0 | CV27: 0 | CW27: 0 | CX27: 0 | CY27: 0 | CZ27: 0 | DA27: 0 | DB27: 0 | DC27: 0 | DD27: 0 | DE27: 0 | DF27: 0 | DG27: 0 | DH27: 0 | DI27: 0 | DJ27: 0 | DK27: 0 | DL27: 0 | DM27: 0 | DN27: 0 | DO27: 0 | DP27: 0 | DQ27: 0 | DR27: 146 | DS27: 0 | DT27: 0 | DU27: 146 | DV27: 0 | DW27: 0 | DX27: 0 | DY27: 0 | DZ27: 0 | EA27: 0 | EB27: 0 | EC27: 0 | ED27: 0 | EE27: 0 | EF27: 0 | EG27: 0 | EH27: 0 | EI27: 0 | EJ27: 0 | EK27: 0 | EL27: 0 | EM27: 0 | EN27: 0 | EO27: 0 | EP27: 0 | EQ27: 146 | ER27: 0 | ES27: 0 | ET27: 146 | EU27: 0 | EV27: 0 | EW27: 0 | EX27: 0 | EY27: 0 | EZ27: 0 | FA27: 0 | FB27: 0 | FC27: 0 | FD27: 0 | FE27: 0 | FF27: 0 | FG27: 0 | FH27: 0 | FI27: 0 | FJ27: 0 | FK27: 0 | FL27: 0 | FM27: 0 | FN27: 0 | FO27: 0 | FP27: 0 | FQ27: 0 | FR27: 0 | FS27: 0 | FT27: 0 | FU27: 0 | FV27: 0 | FW27: 0 | FX27: 0 | FY27: 0 | FZ27: 0 | GA27: 0 | GB27: 0 | GC27: 0 | GD27: 0 | GE27: 0 | GF27: 0 | GG27: 0 | GH27: 0 | GI27: 0 | GJ27: 0 | GK27: 0 | GL27: 0 | GM27: 0 | GN27: 0 | GO27: 0 | GP27: 0 | GQ27: 0 | GR27: 0 | GS27: 0 | GT27: 0 | GU27: 0 | GV27: 0 | GW27: 0 | GX27: 0 | GY27: 0 | GZ27: 0 | HA27: 0 | HB27: 0 | HC27: 0 | HD27: 0 | HE27: 0 | HF27: 0 | HG27: 0 | HH27: 0 | HI27: 0 | HJ27: 0 | HK27: 0 | HL27: 0 | HM27: 0 | HN27: 0 | HO27: 0 | HP27: 0 | HQ27: 0 | HR27: 0 | HS27: 0 | HT27: 0 | HU27: 0 | HV27: 0 | HW27: 0 | HX27: 0 | HY27: 0 | HZ27: 0 | IA27: 0 | IB27: 0 | IC27: 0 | ID27: 0 | IE27: 0 | IF27: 0 | IG27: 0 | IH27: 146 | II27: 0 | IJ27: 0 | IK27: 146 | IL27: 0 | IM27: 146 | IN27: 0 | IO27: 0 | IP27: 146 | IQ27: 0 | IR27: 0 | IS27: 0 | IT27: 0 | IU27: 0 | IV27: 0 | IW27: 0 | IX27: 0 | IY27: 0 | IZ27: 0 | JA27: 0 | JB27: 0 | JC27: 0 | JD27: 0 | JE27: 0 | JF27: 0 | JG27: 0 | JH27: 0 | JI27: 0 | JJ27: 0 | JK27: 0 | JL27: 0 | JM27: 0 | JN27: 0 | JO27: 0 | JP27: 0 | JQ27: 0 | JR27: 0 | JS27: 0 | JT27: 0 | JU27: 0 | JV27: 0 | JW27: 0 | JX27: 0 | JY27: 0 | JZ27: 0 | KA27: 0 | KB27: 0 | KC27: 0 | KD27: 0 | KE27: 0 | KF27: 0 | KG27: 0 | KH27: 0 | KI27: 0 | KJ27: 0 | KK27: 0 | KL27: 0 | KM27: 0 | KN27: 0 | KO27: 0 | KP27: 0 | KQ27: 0 | KR27: 0 | KS27: 0 | KT27: 0 | KU27: 0 | KV27: 0 | KW27: 0 | KX27: 0 | KY27: 0 | KZ27: 0 | LA27: 0 | LB27: 0 | LC27: 0 | LD27: 0 | LE27: 0 | LF27: 0 | LG27: 0 | LH27: 0 | LI27: 0 | LJ27: 0 | LK27: 0 | LL27: 0 | LM27: 0 | LN27: 0 | LO27: 0 | LP27: 0 | LQ27: 0 | LR27: 0 | LS27: 0 | LT27: 0 | LU27: 0 | LV27: 0 | LW27: 0 | LX27: 0 | LY27: 0 | LZ27: 0 | MA27: 0 | MB27: 0 | MC27: 0 | MD27: 146 | ME27: 0 | MF27: 0 | MG27: 146 | MH27: 0 | MI27: 146 | MJ27: 0 | MK27: 0 | ML27: 146 | MM27: 0 | MN27: 0 | MO27: 0 | MP27: 0 | MQ27: 0 | MR27: 0 | MS27: 0 | MT27: 0 | MU27: 0 | MV27: 0 | MW27: 0 | MX27: 0 | MY27: 0 | MZ27: 0 | NA27: 0 | NB27: 0 | NC27: 0 | ND27: 0 | NE27: 0 | NF27: 0 | NG27: 0 | NH27: 0 | NI27: 0 | NJ27: 0 | NK27: 0 | NL27: 0 | NM27: 0 | NN27: 0 | NO27: 0 | NP27: 0 | NQ27: 0 | NR27: 0 | NS27: 0 | NT27: 0 | NU27: 0 | NV27: 0 | NW27: 0 | NX27: 0 | NY27: 0 | NZ27: 0 | OA27: 0 | OB27: 0 | OC27: 0 | OD27: 0 | OE27: 0 | OF27: 0 | OG27: 0 | OH27: 0 | OI27: 0 | OJ27: 0 | OK27: 0 | OL27: 0 | OM27: 0 | ON27: 0 | OO27: 0 | OP27: 0 | OQ27: 0 | OR27: 0 | OS27: 0 | OT27: 0 | OU27: 0 | OV27: 0 | OW27: 0 | OX27: 0 | OY27: 0 | OZ27: 0 | PA27: 0 | PB27: 0 | PC27: 0 | PD27: 0 | PE27: 0 | PF27: 0 | PG27: 0 | PH27: 0 | PI27: 0 | PJ27: 0 | PK27: 0 | PL27: 0 | PM27: 0 | PN27: 0 | PO27: 0 | PP27: 0 | PQ27: 0 | PR27: 0 | PS27: 0 | PT27: 0 | PU27: 0 | PV27: 0 | PW27: 0 | PX27: 0 | PY27: 0 | PZ27: 146 | QA27: 0 | QB27: 0 | QC27: 146 | QD27: 0 | QE27: 146 | QF27: 0 | QG27: 0 | QH27: 146 | QI27: 0 | QJ27: 0 | QK27: 0 | QL27: 0 | QM27: 0 | QN27: 0 | QO27: 0 | QP27: 0 | QQ27: 0 | QR27: 0 | QS27: 0 | QT27: 0 | QU27: 0 | QV27: 0 | QW27: 0 | QX27: 0 | QY27: 0 | QZ27: 0 | RA27: 0 | RB27: 0 | RC27: 0 | RD27: 146 | RE27: 0 | RF27: 0 | RG27: 146 | RH27: 0 | RI27: 146 | RJ27: 0 | RK27: 0 | RL27: 146 | RM27: 0 | RN27: 0 | RO27: 0 | RP27: 0 | RQ27: 0 | RR27: 0 | RT27: =BO27+IF(Ф!$K$4=1,DW27+EQ27,0)+IF(Ф!$K$4=2,EQ27+GE27,0)+IF(Ф!$K$4=3,GE27+GY27,0)+IF(Ф!$K$4=4,GY27+HS27,0)+IF(Ф!$K$4=5,HS27+KA27,0)+IF(Ф!$K$4=6,KA27+KU27,0)+IF(Ф!$K$4=7,KU27+LO27,0)+IF(Ф!$K$4=8,LO27+NW27,0)+IF(Ф!$K$4=9,NW27+OQ27,0)+IF(Ф!$K$4=10,OQ27+PK27,0)+IF(Ф!$K$4=11,PK27,0)-BY27 -> 146 | RU27: =RT27*(1+Ф!$K$9) -> 172 | RX27: 172 | RY27: 190 | SA27: 172 | SB27: 172 | SC27: 190
B28: 99 | C28: 19 | G28: МЭ-ТЭЦБМК-1-П-901 | I28: Утв.16 | K28: Модернизация узла учета тепловой энергии в направлении "Город" | L28: 2015-10-01 | M28: 2016-02-29 | N28: система | O28: 1 | P28: (З) | Q28: 146 | R28: 0 | S28: 0 | T28: 146 | V28: 0 | W28: 0 | X28: 0 | Y28: 0 | Z28: 0 | AA28: 0 | AB28: 0 | AC28: 0 | AD28: 0 | AE28: 0 | AF28: 146 | AG28: 0 | AH28: 0 | AI28: 146 | AJ28: 0 | AK28: 146 | AL28: 0 | AM28: 0 | AN28: 146 | AO28: 0 | AP28: 146 | AQ28: 0 | AR28: 0 | AS28: 146 | AT28: 0 | AU28: 146 | AV28: 0 | AW28: 0 | AX28: 146 | AY28: 0 | AZ28: 146 | BJ28: =IF(Ф!$K$4>=1,CX28,0)+IF(Ф!$K$4>=2,DR28,0)+IF(Ф!$K$4>=3,EL28,0)+IF(Ф!$K$4>=4,FZ28,0)+IF(Ф!$K$4>=5,GT28,0)+IF(Ф!$K$4>=6,HN28,0)+IF(Ф!$K$4>=7,JV28,0)+IF(Ф!$K$4>=8,KP28,0)+IF(Ф!$K$4>=9,LJ28,0)+IF(Ф!$K$4>=10,NR28,0)+IF(Ф!$K$4>=11,OL28,0)+IF(Ф!$K$4>=12,PF28,0) -> 0 | BK28: =IF(Ф!$K$4>=1,CY28,0)+IF(Ф!$K$4>=2,DS28,0)+IF(Ф!$K$4>=3,EM28,0)+IF(Ф!$K$4>=4,GA28,0)+IF(Ф!$K$4>=5,GU28,0)+IF(Ф!$K$4>=6,HO28,0)+IF(Ф!$K$4>=7,JW28,0)+IF(Ф!$K$4>=8,KQ28,0)+IF(Ф!$K$4>=9,LK28,0)+IF(Ф!$K$4>=10,NS28,0)+IF(Ф!$K$4>=11,OM28,0)+IF(Ф!$K$4>=12,PG28,0) -> 0 | BL28: =IF(Ф!$K$4>=1,CZ28,0)+IF(Ф!$K$4>=2,DT28,0)+IF(Ф!$K$4>=3,EN28,0)+IF(Ф!$K$4>=4,GB28,0)+IF(Ф!$K$4>=5,GV28,0)+IF(Ф!$K$4>=6,HP28,0)+IF(Ф!$K$4>=7,JX28,0)+IF(Ф!$K$4>=8,KR28,0)+IF(Ф!$K$4>=9,LL28,0)+IF(Ф!$K$4>=10,NT28,0)+IF(Ф!$K$4>=11,ON28,0)+IF(Ф!$K$4>=12,PH28,0) -> 0 | BM28: =IF(Ф!$K$4>=1,DA28,0)+IF(Ф!$K$4>=2,DU28,0)+IF(Ф!$K$4>=3,EO28,0)+IF(Ф!$K$4>=4,GC28,0)+IF(Ф!$K$4>=5,GW28,0)+IF(Ф!$K$4>=6,HQ28,0)+IF(Ф!$K$4>=7,JY28,0)+IF(Ф!$K$4>=8,KS28,0)+IF(Ф!$K$4>=9,LM28,0)+IF(Ф!$K$4>=10,NU28,0)+IF(Ф!$K$4>=11,OO28,0)+IF(Ф!$K$4>=12,PI28,0) -> 0 | BN28: =IF(Ф!$K$4>=1,DB28,0)+IF(Ф!$K$4>=2,DV28,0)+IF(Ф!$K$4>=3,EP28,0)+IF(Ф!$K$4>=4,GD28,0)+IF(Ф!$K$4>=5,GX28,0)+IF(Ф!$K$4>=6,HR28,0)+IF(Ф!$K$4>=7,JZ28,0)+IF(Ф!$K$4>=8,KT28,0)+IF(Ф!$K$4>=9,LN28,0)+IF(Ф!$K$4>=10,NV28,0)+IF(Ф!$K$4>=11,OP28,0)+IF(Ф!$K$4>=12,PJ28,0) -> 0 | BO28: =IF(Ф!$K$4>=1,DC28,0)+IF(Ф!$K$4>=2,DW28,0)+IF(Ф!$K$4>=3,EQ28,0)+IF(Ф!$K$4>=4,GE28,0)+IF(Ф!$K$4>=5,GY28,0)+IF(Ф!$K$4>=6,HS28,0)+IF(Ф!$K$4>=7,KA28,0)+IF(Ф!$K$4>=8,KU28,0)+IF(Ф!$K$4>=9,LO28,0)+IF(Ф!$K$4>=10,NW28,0)+IF(Ф!$K$4>=11,OQ28,0)+IF(Ф!$K$4>=12,PK28,0) -> 0 | BP28: =IF(Ф!$K$4>=1,DD28,0)+IF(Ф!$K$4>=2,DX28,0)+IF(Ф!$K$4>=3,ER28,0)+IF(Ф!$K$4>=4,GF28,0)+IF(Ф!$K$4>=5,GZ28,0)+IF(Ф!$K$4>=6,HT28,0)+IF(Ф!$K$4>=7,KB28,0)+IF(Ф!$K$4>=8,KV28,0)+IF(Ф!$K$4>=9,LP28,0)+IF(Ф!$K$4>=10,NX28,0)+IF(Ф!$K$4>=11,OR28,0)+IF(Ф!$K$4>=12,PL28,0) -> 0 | BQ28: =IF(Ф!$K$4>=1,DE28,0)+IF(Ф!$K$4>=2,DY28,0)+IF(Ф!$K$4>=3,ES28,0)+IF(Ф!$K$4>=4,GG28,0)+IF(Ф!$K$4>=5,HA28,0)+IF(Ф!$K$4>=6,HU28,0)+IF(Ф!$K$4>=7,KC28,0)+IF(Ф!$K$4>=8,KW28,0)+IF(Ф!$K$4>=9,LQ28,0)+IF(Ф!$K$4>=10,NY28,0)+IF(Ф!$K$4>=11,OS28,0)+IF(Ф!$K$4>=12,PM28,0) -> 0 | BR28: =IF(Ф!$K$4>=1,DF28,0)+IF(Ф!$K$4>=2,DZ28,0)+IF(Ф!$K$4>=3,ET28,0)+IF(Ф!$K$4>=4,GH28,0)+IF(Ф!$K$4>=5,HB28,0)+IF(Ф!$K$4>=6,HV28,0)+IF(Ф!$K$4>=7,KD28,0)+IF(Ф!$K$4>=8,KX28,0)+IF(Ф!$K$4>=9,LR28,0)+IF(Ф!$K$4>=10,NZ28,0)+IF(Ф!$K$4>=11,OT28,0)+IF(Ф!$K$4>=12,PN28,0) -> 0 | BS28: =IF(Ф!$K$4>=1,DG28,0)+IF(Ф!$K$4>=2,EA28,0)+IF(Ф!$K$4>=3,EU28,0)+IF(Ф!$K$4>=4,GI28,0)+IF(Ф!$K$4>=5,HC28,0)+IF(Ф!$K$4>=6,HW28,0)+IF(Ф!$K$4>=7,KE28,0)+IF(Ф!$K$4>=8,KY28,0)+IF(Ф!$K$4>=9,LS28,0)+IF(Ф!$K$4>=10,OA28,0)+IF(Ф!$K$4>=11,OU28,0)+IF(Ф!$K$4>=12,PO28,0) -> 0 | BT28: =IF(Ф!$K$4>=1,DH28,0)+IF(Ф!$K$4>=2,EB28,0)+IF(Ф!$K$4>=3,EV28,0)+IF(Ф!$K$4>=4,GJ28,0)+IF(Ф!$K$4>=5,HD28,0)+IF(Ф!$K$4>=6,HX28,0)+IF(Ф!$K$4>=7,KF28,0)+IF(Ф!$K$4>=8,KZ28,0)+IF(Ф!$K$4>=9,LT28,0)+IF(Ф!$K$4>=10,OB28,0)+IF(Ф!$K$4>=11,OV28,0)+IF(Ф!$K$4>=12,PP28,0) -> 0 | BU28: =IF(Ф!$K$4>=1,DI28,0)+IF(Ф!$K$4>=2,EC28,0)+IF(Ф!$K$4>=3,EW28,0)+IF(Ф!$K$4>=4,GK28,0)+IF(Ф!$K$4>=5,HE28,0)+IF(Ф!$K$4>=6,HY28,0)+IF(Ф!$K$4>=7,KG28,0)+IF(Ф!$K$4>=8,LA28,0)+IF(Ф!$K$4>=9,LU28,0)+IF(Ф!$K$4>=10,OC28,0)+IF(Ф!$K$4>=11,OW28,0)+IF(Ф!$K$4>=12,PQ28,0) -> 0 | BV28: =IF(Ф!$K$4>=1,DJ28,0)+IF(Ф!$K$4>=2,ED28,0)+IF(Ф!$K$4>=3,EX28,0)+IF(Ф!$K$4>=4,GL28,0)+IF(Ф!$K$4>=5,HF28,0)+IF(Ф!$K$4>=6,HZ28,0)+IF(Ф!$K$4>=7,KH28,0)+IF(Ф!$K$4>=8,LB28,0)+IF(Ф!$K$4>=9,LV28,0)+IF(Ф!$K$4>=10,OD28,0)+IF(Ф!$K$4>=11,OX28,0)+IF(Ф!$K$4>=12,PR28,0) -> 0 | BW28: =IF(Ф!$K$4>=1,DK28,0)+IF(Ф!$K$4>=2,EE28,0)+IF(Ф!$K$4>=3,EY28,0)+IF(Ф!$K$4>=4,GM28,0)+IF(Ф!$K$4>=5,HG28,0)+IF(Ф!$K$4>=6,IA28,0)+IF(Ф!$K$4>=7,KI28,0)+IF(Ф!$K$4>=8,LC28,0)+IF(Ф!$K$4>=9,LW28,0)+IF(Ф!$K$4>=10,OE28,0)+IF(Ф!$K$4>=11,OY28,0)+IF(Ф!$K$4>=12,PS28,0) -> 0 | BX28: =IF(Ф!$K$4>=1,DL28,0)+IF(Ф!$K$4>=2,EF28,0)+IF(Ф!$K$4>=3,EZ28,0)+IF(Ф!$K$4>=4,GN28,0)+IF(Ф!$K$4>=5,HH28,0)+IF(Ф!$K$4>=6,IB28,0)+IF(Ф!$K$4>=7,KJ28,0)+IF(Ф!$K$4>=8,LD28,0)+IF(Ф!$K$4>=9,LX28,0)+IF(Ф!$K$4>=10,OF28,0)+IF(Ф!$K$4>=11,OZ28,0)+IF(Ф!$K$4>=12,PT28,0) -> 0 | BY28: =IF(Ф!$K$4>=1,DM28,0)+IF(Ф!$K$4>=2,EG28,0)+IF(Ф!$K$4>=3,FA28,0)+IF(Ф!$K$4>=4,GO28,0)+IF(Ф!$K$4>=5,HI28,0)+IF(Ф!$K$4>=6,IC28,0)+IF(Ф!$K$4>=7,KK28,0)+IF(Ф!$K$4>=8,LE28,0)+IF(Ф!$K$4>=9,LY28,0)+IF(Ф!$K$4>=10,OG28,0)+IF(Ф!$K$4>=11,PA28,0)+IF(Ф!$K$4>=12,PU28,0) -> 0 | BZ28: =IF(Ф!$K$4>=1,DN28,0)+IF(Ф!$K$4>=2,EH28,0)+IF(Ф!$K$4>=3,FB28,0)+IF(Ф!$K$4>=4,GP28,0)+IF(Ф!$K$4>=5,HJ28,0)+IF(Ф!$K$4>=6,ID28,0)+IF(Ф!$K$4>=7,KL28,0)+IF(Ф!$K$4>=8,LF28,0)+IF(Ф!$K$4>=9,LZ28,0)+IF(Ф!$K$4>=10,OH28,0)+IF(Ф!$K$4>=11,PB28,0)+IF(Ф!$K$4>=12,PV28,0) -> 0 | CA28: =IF(Ф!$K$4>=1,DO28,0)+IF(Ф!$K$4>=2,EI28,0)+IF(Ф!$K$4>=3,FC28,0)+IF(Ф!$K$4>=4,GQ28,0)+IF(Ф!$K$4>=5,HK28,0)+IF(Ф!$K$4>=6,IE28,0)+IF(Ф!$K$4>=7,KM28,0)+IF(Ф!$K$4>=8,LG28,0)+IF(Ф!$K$4>=9,MA28,0)+IF(Ф!$K$4>=10,OI28,0)+IF(Ф!$K$4>=11,PC28,0)+IF(Ф!$K$4>=12,PW28,0) -> 0 | CB28: =IF(Ф!$K$4>=1,DP28,0)+IF(Ф!$K$4>=2,EJ28,0)+IF(Ф!$K$4>=3,FD28,0)+IF(Ф!$K$4>=4,GR28,0)+IF(Ф!$K$4>=5,HL28,0)+IF(Ф!$K$4>=6,IF28,0)+IF(Ф!$K$4>=7,KN28,0)+IF(Ф!$K$4>=8,LH28,0)+IF(Ф!$K$4>=9,MB28,0)+IF(Ф!$K$4>=10,OJ28,0)+IF(Ф!$K$4>=11,PD28,0)+IF(Ф!$K$4>=12,PX28,0) -> 0 | CC28: =IF(Ф!$K$4>=1,DQ28,0)+IF(Ф!$K$4>=2,EK28,0)+IF(Ф!$K$4>=3,FE28,0)+IF(Ф!$K$4>=4,GS28,0)+IF(Ф!$K$4>=5,HM28,0)+IF(Ф!$K$4>=6,IG28,0)+IF(Ф!$K$4>=7,KO28,0)+IF(Ф!$K$4>=8,LI28,0)+IF(Ф!$K$4>=9,MC28,0)+IF(Ф!$K$4>=10,OK28,0)+IF(Ф!$K$4>=11,PE28,0)+IF(Ф!$K$4>=12,PY28,0) -> 0 | CD28: 146 | CE28: 0 | CF28: 0 | CG28: 146 | CH28: 0 | CI28: 146 | CJ28: 0 | CK28: 0 | CL28: 146 | CM28: 0 | CN28: 0 | CO28: 0 | CP28: 0 | CQ28: 0 | CR28: 0 | CS28: 0 | CT28: 0 | CU28: 0 | CV28: 0 | CW28: 0 | CX28: 0 | CY28: 0 | CZ28: 0 | DA28: 0 | DB28: 0 | DC28: 0 | DD28: 0 | DE28: 0 | DF28: 0 | DG28: 0 | DH28: 0 | DI28: 0 | DJ28: 0 | DK28: 0 | DL28: 0 | DM28: 0 | DN28: 0 | DO28: 0 | DP28: 0 | DQ28: 0 | DR28: 146 | DS28: 0 | DT28: 0 | DU28: 146 | DV28: 0 | DW28: 0 | DX28: 0 | DY28: 0 | DZ28: 0 | EA28: 0 | EB28: 0 | EC28: 0 | ED28: 0 | EE28: 0 | EF28: 0 | EG28: 0 | EH28: 0 | EI28: 0 | EJ28: 0 | EK28: 0 | EL28: 0 | EM28: 0 | EN28: 0 | EO28: 0 | EP28: 0 | EQ28: 146 | ER28: 0 | ES28: 0 | ET28: 146 | EU28: 0 | EV28: 0 | EW28: 0 | EX28: 0 | EY28: 0 | EZ28: 0 | FA28: 0 | FB28: 0 | FC28: 0 | FD28: 0 | FE28: 0 | FF28: 0 | FG28: 0 | FH28: 0 | FI28: 0 | FJ28: 0 | FK28: 0 | FL28: 0 | FM28: 0 | FN28: 0 | FO28: 0 | FP28: 0 | FQ28: 0 | FR28: 0 | FS28: 0 | FT28: 0 | FU28: 0 | FV28: 0 | FW28: 0 | FX28: 0 | FY28: 0 | FZ28: 0 | GA28: 0 | GB28: 0 | GC28: 0 | GD28: 0 | GE28: 0 | GF28: 0 | GG28: 0 | GH28: 0 | GI28: 0 | GJ28: 0 | GK28: 0 | GL28: 0 | GM28: 0 | GN28: 0 | GO28: 0 | GP28: 0 | GQ28: 0 | GR28: 0 | GS28: 0 | GT28: 0 | GU28: 0 | GV28: 0 | GW28: 0 | GX28: 0 | GY28: 0 | GZ28: 0 | HA28: 0 | HB28: 0 | HC28: 0 | HD28: 0 | HE28: 0 | HF28: 0 | HG28: 0 | HH28: 0 | HI28: 0 | HJ28: 0 | HK28: 0 | HL28: 0 | HM28: 0 | HN28: 0 | HO28: 0 | HP28: 0 | HQ28: 0 | HR28: 0 | HS28: 0 | HT28: 0 | HU28: 0 | HV28: 0 | HW28: 0 | HX28: 0 | HY28: 0 | HZ28: 0 | IA28: 0 | IB28: 0 | IC28: 0 | ID28: 0 | IE28: 0 | IF28: 0 | IG28: 0 | IH28: 146 | II28: 0 | IJ28: 0 | IK28: 146 | IL28: 0 | IM28: 146 | IN28: 0 | IO28: 0 | IP28: 146 | IQ28: 0 | IR28: 0 | IS28: 0 | IT28: 0 | IU28: 0 | IV28: 0 | IW28: 0 | IX28: 0 | IY28: 0 | IZ28: 0 | JA28: 0 | JB28: 0 | JC28: 0 | JD28: 0 | JE28: 0 | JF28: 0 | JG28: 0 | JH28: 0 | JI28: 0 | JJ28: 0 | JK28: 0 | JL28: 0 | JM28: 0 | JN28: 0 | JO28: 0 | JP28: 0 | JQ28: 0 | JR28: 0 | JS28: 0 | JT28: 0 | JU28: 0 | JV28: 0 | JW28: 0 | JX28: 0 | JY28: 0 | JZ28: 0 | KA28: 0 | KB28: 0 | KC28: 0 | KD28: 0 | KE28: 0 | KF28: 0 | KG28: 0 | KH28: 0 | KI28: 0 | KJ28: 0 | KK28: 0 | KL28: 0 | KM28: 0 | KN28: 0 | KO28: 0 | KP28: 0 | KQ28: 0 | KR28: 0 | KS28: 0 | KT28: 0 | KU28: 0 | KV28: 0 | KW28: 0 | KX28: 0 | KY28: 0 | KZ28: 0 | LA28: 0 | LB28: 0 | LC28: 0 | LD28: 0 | LE28: 0 | LF28: 0 | LG28: 0 | LH28: 0 | LI28: 0 | LJ28: 0 | LK28: 0 | LL28: 0 | LM28: 0 | LN28: 0 | LO28: 0 | LP28: 0 | LQ28: 0 | LR28: 0 | LS28: 0 | LT28: 0 | LU28: 0 | LV28: 0 | LW28: 0 | LX28: 0 | LY28: 0 | LZ28: 0 | MA28: 0 | MB28: 0 | MC28: 0 | MD28: 146 | ME28: 0 | MF28: 0 | MG28: 146 | MH28: 0 | MI28: 146 | MJ28: 0 | MK28: 0 | ML28: 146 | MM28: 0 | MN28: 0 | MO28: 0 | MP28: 0 | MQ28: 0 | MR28: 0 | MS28: 0 | MT28: 0 | MU28: 0 | MV28: 0 | MW28: 0 | MX28: 0 | MY28: 0 | MZ28: 0 | NA28: 0 | NB28: 0 | NC28: 0 | ND28: 0 | NE28: 0 | NF28: 0 | NG28: 0 | NH28: 0 | NI28: 0 | NJ28: 0 | NK28: 0 | NL28: 0 | NM28: 0 | NN28: 0 | NO28: 0 | NP28: 0 | NQ28: 0 | NR28: 0 | NS28: 0 | NT28: 0 | NU28: 0 | NV28: 0 | NW28: 0 | NX28: 0 | NY28: 0 | NZ28: 0 | OA28: 0 | OB28: 0 | OC28: 0 | OD28: 0 | OE28: 0 | OF28: 0 | OG28: 0 | OH28: 0 | OI28: 0 | OJ28: 0 | OK28: 0 | OL28: 0 | OM28: 0 | ON28: 0 | OO28: 0 | OP28: 0 | OQ28: 0 | OR28: 0 | OS28: 0 | OT28: 0 | OU28: 0 | OV28: 0 | OW28: 0 | OX28: 0 | OY28: 0 | OZ28: 0 | PA28: 0 | PB28: 0 | PC28: 0 | PD28: 0 | PE28: 0 | PF28: 0 | PG28: 0 | PH28: 0 | PI28: 0 | PJ28: 0 | PK28: 0 | PL28: 0 | PM28: 0 | PN28: 0 | PO28: 0 | PP28: 0 | PQ28: 0 | PR28: 0 | PS28: 0 | PT28: 0 | PU28: 0 | PV28: 0 | PW28: 0 | PX28: 0 | PY28: 0 | PZ28: 146 | QA28: 0 | QB28: 0 | QC28: 146 | QD28: 0 | QE28: 146 | QF28: 0 | QG28: 0 | QH28: 146 | QI28: 0 | QJ28: 0 | QK28: 0 | QL28: 0 | QM28: 0 | QN28: 0 | QO28: 0 | QP28: 0 | QQ28: 0 | QR28: 0 | QS28: 0 | QT28: 0 | QU28: 0 | QV28: 0 | QW28: 0 | QX28: 0 | QY28: 0 | QZ28: 0 | RA28: 0 | RB28: 0 | RC28: 0 | RD28: 146 | RE28: 0 | RF28: 0 | RG28: 146 | RH28: 0 | RI28: 146 | RJ28: 0 | RK28: 0 | RL28: 146 | RM28: 0 | RN28: 0 | RO28: 0 | RP28: 0 | RQ28: 0 | RR28: 0 | RS28: ИК-Пр. Протокол №ИК-005-П05 от 07.04.2015 | RT28: =BO28+IF(Ф!$K$4=1,DW28+EQ28,0)+IF(Ф!$K$4=2,EQ28+GE28,0)+IF(Ф!$K$4=3,GE28+GY28,0)+IF(Ф!$K$4=4,GY28+HS28,0)+IF(Ф!$K$4=5,HS28+KA28,0)+IF(Ф!$K$4=6,KA28+KU28,0)+IF(Ф!$K$4=7,KU28+LO28,0)+IF(Ф!$K$4=8,LO28+NW28,0)+IF(Ф!$K$4=9,NW28+OQ28,0)+IF(Ф!$K$4=10,OQ28+PK28,0)+IF(Ф!$K$4=11,PK28,0)-BY28 -> 146 | RU28: =RT28*(1+Ф!$K$9) -> 172 | RX28: 172 | RY28: 190 | SA28: 172 | SB28: 172 | SC28: 190
B29: 4 | C29: 17 | K29: Челябинский филиал | Q29: 129,708 | R29: 7,804 | S29: 0 | T29: 121,904 | U29: 0 | V29: 30,667 | W29: 5,472 | X29: 0 | Y29: 25,195 | Z29: 0 | AA29: 32,741 | AB29: 5,123 | AC29: 0 | AD29: 27,618 | AE29: 0 | AF29: 99,041 | AG29: 2,332 | AH29: 0 | AI29: 96,709 | AJ29: 0 | AK29: 96,967 | AL29: 2,681 | AM29: 0 | AN29: 94,286 | AO29: 0 | AP29: 86,548 | AQ29: 2,332 | AR29: 0 | AS29: 84,216 | AT29: 0 | AU29: 68,341 | AV29: 2,680 | AW29: 0 | AX29: 65,661 | AY29: 0 | AZ29: 68,341 | BJ29: =IF(Ф!$K$4>=1,CX29,0)+IF(Ф!$K$4>=2,DR29,0)+IF(Ф!$K$4>=3,EL29,0)+IF(Ф!$K$4>=4,FZ29,0)+IF(Ф!$K$4>=5,GT29,0)+IF(Ф!$K$4>=6,HN29,0)+IF(Ф!$K$4>=7,JV29,0)+IF(Ф!$K$4>=8,KP29,0)+IF(Ф!$K$4>=9,LJ29,0)+IF(Ф!$K$4>=10,NR29,0)+IF(Ф!$K$4>=11,OL29,0)+IF(Ф!$K$4>=12,PF29,0) -> 1,279 | BK29: =IF(Ф!$K$4>=1,CY29,0)+IF(Ф!$K$4>=2,DS29,0)+IF(Ф!$K$4>=3,EM29,0)+IF(Ф!$K$4>=4,GA29,0)+IF(Ф!$K$4>=5,GU29,0)+IF(Ф!$K$4>=6,HO29,0)+IF(Ф!$K$4>=7,JW29,0)+IF(Ф!$K$4>=8,KQ29,0)+IF(Ф!$K$4>=9,LK29,0)+IF(Ф!$K$4>=10,NS29,0)+IF(Ф!$K$4>=11,OM29,0)+IF(Ф!$K$4>=12,PG29,0) -> 0 | BL29: =IF(Ф!$K$4>=1,CZ29,0)+IF(Ф!$K$4>=2,DT29,0)+IF(Ф!$K$4>=3,EN29,0)+IF(Ф!$K$4>=4,GB29,0)+IF(Ф!$K$4>=5,GV29,0)+IF(Ф!$K$4>=6,HP29,0)+IF(Ф!$K$4>=7,JX29,0)+IF(Ф!$K$4>=8,KR29,0)+IF(Ф!$K$4>=9,LL29,0)+IF(Ф!$K$4>=10,NT29,0)+IF(Ф!$K$4>=11,ON29,0)+IF(Ф!$K$4>=12,PH29,0) -> 0 | BM29: =IF(Ф!$K$4>=1,DA29,0)+IF(Ф!$K$4>=2,DU29,0)+IF(Ф!$K$4>=3,EO29,0)+IF(Ф!$K$4>=4,GC29,0)+IF(Ф!$K$4>=5,GW29,0)+IF(Ф!$K$4>=6,HQ29,0)+IF(Ф!$K$4>=7,JY29,0)+IF(Ф!$K$4>=8,KS29,0)+IF(Ф!$K$4>=9,LM29,0)+IF(Ф!$K$4>=10,NU29,0)+IF(Ф!$K$4>=11,OO29,0)+IF(Ф!$K$4>=12,PI29,0) -> 1,279 | BN29: =IF(Ф!$K$4>=1,DB29,0)+IF(Ф!$K$4>=2,DV29,0)+IF(Ф!$K$4>=3,EP29,0)+IF(Ф!$K$4>=4,GD29,0)+IF(Ф!$K$4>=5,GX29,0)+IF(Ф!$K$4>=6,HR29,0)+IF(Ф!$K$4>=7,JZ29,0)+IF(Ф!$K$4>=8,KT29,0)+IF(Ф!$K$4>=9,LN29,0)+IF(Ф!$K$4>=10,NV29,0)+IF(Ф!$K$4>=11,OP29,0)+IF(Ф!$K$4>=12,PJ29,0) -> 0 | BO29: =IF(Ф!$K$4>=1,DC29,0)+IF(Ф!$K$4>=2,DW29,0)+IF(Ф!$K$4>=3,EQ29,0)+IF(Ф!$K$4>=4,GE29,0)+IF(Ф!$K$4>=5,GY29,0)+IF(Ф!$K$4>=6,HS29,0)+IF(Ф!$K$4>=7,KA29,0)+IF(Ф!$K$4>=8,KU29,0)+IF(Ф!$K$4>=9,LO29,0)+IF(Ф!$K$4>=10,NW29,0)+IF(Ф!$K$4>=11,OQ29,0)+IF(Ф!$K$4>=12,PK29,0) -> 0 | BP29: =IF(Ф!$K$4>=1,DD29,0)+IF(Ф!$K$4>=2,DX29,0)+IF(Ф!$K$4>=3,ER29,0)+IF(Ф!$K$4>=4,GF29,0)+IF(Ф!$K$4>=5,GZ29,0)+IF(Ф!$K$4>=6,HT29,0)+IF(Ф!$K$4>=7,KB29,0)+IF(Ф!$K$4>=8,KV29,0)+IF(Ф!$K$4>=9,LP29,0)+IF(Ф!$K$4>=10,NX29,0)+IF(Ф!$K$4>=11,OR29,0)+IF(Ф!$K$4>=12,PL29,0) -> 0 | BQ29: =IF(Ф!$K$4>=1,DE29,0)+IF(Ф!$K$4>=2,DY29,0)+IF(Ф!$K$4>=3,ES29,0)+IF(Ф!$K$4>=4,GG29,0)+IF(Ф!$K$4>=5,HA29,0)+IF(Ф!$K$4>=6,HU29,0)+IF(Ф!$K$4>=7,KC29,0)+IF(Ф!$K$4>=8,KW29,0)+IF(Ф!$K$4>=9,LQ29,0)+IF(Ф!$K$4>=10,NY29,0)+IF(Ф!$K$4>=11,OS29,0)+IF(Ф!$K$4>=12,PM29,0) -> 0 | BR29: =IF(Ф!$K$4>=1,DF29,0)+IF(Ф!$K$4>=2,DZ29,0)+IF(Ф!$K$4>=3,ET29,0)+IF(Ф!$K$4>=4,GH29,0)+IF(Ф!$K$4>=5,HB29,0)+IF(Ф!$K$4>=6,HV29,0)+IF(Ф!$K$4>=7,KD29,0)+IF(Ф!$K$4>=8,KX29,0)+IF(Ф!$K$4>=9,LR29,0)+IF(Ф!$K$4>=10,NZ29,0)+IF(Ф!$K$4>=11,OT29,0)+IF(Ф!$K$4>=12,PN29,0) -> 0 | BS29: =IF(Ф!$K$4>=1,DG29,0)+IF(Ф!$K$4>=2,EA29,0)+IF(Ф!$K$4>=3,EU29,0)+IF(Ф!$K$4>=4,GI29,0)+IF(Ф!$K$4>=5,HC29,0)+IF(Ф!$K$4>=6,HW29,0)+IF(Ф!$K$4>=7,KE29,0)+IF(Ф!$K$4>=8,KY29,0)+IF(Ф!$K$4>=9,LS29,0)+IF(Ф!$K$4>=10,OA29,0)+IF(Ф!$K$4>=11,OU29,0)+IF(Ф!$K$4>=12,PO29,0) -> 0 | BT29: =IF(Ф!$K$4>=1,DH29,0)+IF(Ф!$K$4>=2,EB29,0)+IF(Ф!$K$4>=3,EV29,0)+IF(Ф!$K$4>=4,GJ29,0)+IF(Ф!$K$4>=5,HD29,0)+IF(Ф!$K$4>=6,HX29,0)+IF(Ф!$K$4>=7,KF29,0)+IF(Ф!$K$4>=8,KZ29,0)+IF(Ф!$K$4>=9,LT29,0)+IF(Ф!$K$4>=10,OB29,0)+IF(Ф!$K$4>=11,OV29,0)+IF(Ф!$K$4>=12,PP29,0) -> 0 | BU29: =IF(Ф!$K$4>=1,DI29,0)+IF(Ф!$K$4>=2,EC29,0)+IF(Ф!$K$4>=3,EW29,0)+IF(Ф!$K$4>=4,GK29,0)+IF(Ф!$K$4>=5,HE29,0)+IF(Ф!$K$4>=6,HY29,0)+IF(Ф!$K$4>=7,KG29,0)+IF(Ф!$K$4>=8,LA29,0)+IF(Ф!$K$4>=9,LU29,0)+IF(Ф!$K$4>=10,OC29,0)+IF(Ф!$K$4>=11,OW29,0)+IF(Ф!$K$4>=12,PQ29,0) -> 0 | BV29: =IF(Ф!$K$4>=1,DJ29,0)+IF(Ф!$K$4>=2,ED29,0)+IF(Ф!$K$4>=3,EX29,0)+IF(Ф!$K$4>=4,GL29,0)+IF(Ф!$K$4>=5,HF29,0)+IF(Ф!$K$4>=6,HZ29,0)+IF(Ф!$K$4>=7,KH29,0)+IF(Ф!$K$4>=8,LB29,0)+IF(Ф!$K$4>=9,LV29,0)+IF(Ф!$K$4>=10,OD29,0)+IF(Ф!$K$4>=11,OX29,0)+IF(Ф!$K$4>=12,PR29,0) -> 0 | BW29: =IF(Ф!$K$4>=1,DK29,0)+IF(Ф!$K$4>=2,EE29,0)+IF(Ф!$K$4>=3,EY29,0)+IF(Ф!$K$4>=4,GM29,0)+IF(Ф!$K$4>=5,HG29,0)+IF(Ф!$K$4>=6,IA29,0)+IF(Ф!$K$4>=7,KI29,0)+IF(Ф!$K$4>=8,LC29,0)+IF(Ф!$K$4>=9,LW29,0)+IF(Ф!$K$4>=10,OE29,0)+IF(Ф!$K$4>=11,OY29,0)+IF(Ф!$K$4>=12,PS29,0) -> 0 | BX29: =IF(Ф!$K$4>=1,DL29,0)+IF(Ф!$K$4>=2,EF29,0)+IF(Ф!$K$4>=3,EZ29,0)+IF(Ф!$K$4>=4,GN29,0)+IF(Ф!$K$4>=5,HH29,0)+IF(Ф!$K$4>=6,IB29,0)+IF(Ф!$K$4>=7,KJ29,0)+IF(Ф!$K$4>=8,LD29,0)+IF(Ф!$K$4>=9,LX29,0)+IF(Ф!$K$4>=10,OF29,0)+IF(Ф!$K$4>=11,OZ29,0)+IF(Ф!$K$4>=12,PT29,0) -> 0 | BY29: =IF(Ф!$K$4>=1,DM29,0)+IF(Ф!$K$4>=2,EG29,0)+IF(Ф!$K$4>=3,FA29,0)+IF(Ф!$K$4>=4,GO29,0)+IF(Ф!$K$4>=5,HI29,0)+IF(Ф!$K$4>=6,IC29,0)+IF(Ф!$K$4>=7,KK29,0)+IF(Ф!$K$4>=8,LE29,0)+IF(Ф!$K$4>=9,LY29,0)+IF(Ф!$K$4>=10,OG29,0)+IF(Ф!$K$4>=11,PA29,0)+IF(Ф!$K$4>=12,PU29,0) -> 0 | BZ29: =IF(Ф!$K$4>=1,DN29,0)+IF(Ф!$K$4>=2,EH29,0)+IF(Ф!$K$4>=3,FB29,0)+IF(Ф!$K$4>=4,GP29,0)+IF(Ф!$K$4>=5,HJ29,0)+IF(Ф!$K$4>=6,ID29,0)+IF(Ф!$K$4>=7,KL29,0)+IF(Ф!$K$4>=8,LF29,0)+IF(Ф!$K$4>=9,LZ29,0)+IF(Ф!$K$4>=10,OH29,0)+IF(Ф!$K$4>=11,PB29,0)+IF(Ф!$K$4>=12,PV29,0) -> 0 | CA29: =IF(Ф!$K$4>=1,DO29,0)+IF(Ф!$K$4>=2,EI29,0)+IF(Ф!$K$4>=3,FC29,0)+IF(Ф!$K$4>=4,GQ29,0)+IF(Ф!$K$4>=5,HK29,0)+IF(Ф!$K$4>=6,IE29,0)+IF(Ф!$K$4>=7,KM29,0)+IF(Ф!$K$4>=8,LG29,0)+IF(Ф!$K$4>=9,MA29,0)+IF(Ф!$K$4>=10,OI29,0)+IF(Ф!$K$4>=11,PC29,0)+IF(Ф!$K$4>=12,PW29,0) -> 0 | CB29: =IF(Ф!$K$4>=1,DP29,0)+IF(Ф!$K$4>=2,EJ29,0)+IF(Ф!$K$4>=3,FD29,0)+IF(Ф!$K$4>=4,GR29,0)+IF(Ф!$K$4>=5,HL29,0)+IF(Ф!$K$4>=6,IF29,0)+IF(Ф!$K$4>=7,KN29,0)+IF(Ф!$K$4>=8,LH29,0)+IF(Ф!$K$4>=9,MB29,0)+IF(Ф!$K$4>=10,OJ29,0)+IF(Ф!$K$4>=11,PD29,0)+IF(Ф!$K$4>=12,PX29,0) -> 0 | CC29: =IF(Ф!$K$4>=1,DQ29,0)+IF(Ф!$K$4>=2,EK29,0)+IF(Ф!$K$4>=3,FE29,0)+IF(Ф!$K$4>=4,GS29,0)+IF(Ф!$K$4>=5,HM29,0)+IF(Ф!$K$4>=6,IG29,0)+IF(Ф!$K$4>=7,KO29,0)+IF(Ф!$K$4>=8,LI29,0)+IF(Ф!$K$4>=9,MC29,0)+IF(Ф!$K$4>=10,OK29,0)+IF(Ф!$K$4>=11,PE29,0)+IF(Ф!$K$4>=12,PY29,0) -> 0 | CD29: 14,980 | CE29: 282 | CF29: 0 | CG29: 14,698 | CH29: 0 | CI29: 11,227 | CJ29: 430 | CK29: 0 | CL29: 10,797 | CM29: 0 | CN29: 0 | CO29: 0 | CP29: 0 | CQ29: 0 | CR29: 0 | CS29: 0 | CT29: 0 | CU29: 0 | CV29: 0 | CW29: 0 | CX29: 1,279 | CY29: 0 | CZ29: 0 | DA29: 1,279 | DB29: 0 | DC29: 0 | DD29: 0 | DE29: 0 | DF29: 0 | DG29: 0 | DH29: 0 | DI29: 0 | DJ29: 0 | DK29: 0 | DL29: 0 | DM29: 0 | DN29: 0 | DO29: 0 | DP29: 0 | DQ29: 0 | DR29: 6,801 | DS29: 82 | DT29: 0 | DU29: 6,719 | DV29: 0 | DW29: 5,885 | DX29: 180 | DY29: 0 | DZ29: 5,705 | EA29: 0 | EB29: 0 | EC29: 0 | ED29: 0 | EE29: 0 | EF29: 0 | EG29: 0 | EH29: 0 | EI29: 0 | EJ29: 0 | EK29: 0 | EL29: 6,900 | EM29: 200 | EN29: 0 | EO29: 6,700 | EP29: 0 | EQ29: 5,342 | ER29: 250 | ES29: 0 | ET29: 5,092 | EU29: 0 | EV29: 0 | EW29: 0 | EX29: 0 | EY29: 0 | EZ29: 0 | FA29: 0 | FB29: 0 | FC29: 0 | FD29: 0 | FE29: 0 | FF29: 23,154 | FG29: 2,050 | FH29: 0 | FI29: 21,104 | FJ29: 0 | FK29: 26,182 | FL29: 200 | FM29: 0 | FN29: 25,982 | FO29: 0 | FP29: 0 | FQ29: 0 | FR29: 0 | FS29: 0 | FT29: 0 | FU29: 0 | FV29: 0 | FW29: 0 | FX29: 0 | FY29: 0 | FZ29: 6,700 | GA29: 0 | GB29: 0 | GC29: 6,700 | GD29: 0 | GE29: 1,484 | GF29: 200 | GG29: 0 | GH29: 1,284 | GI29: 0 | GJ29: 0 | GK29: 0 | GL29: 0 | GM29: 0 | GN29: 0 | GO29: 0 | GP29: 0 | GQ29: 0 | GR29: 0 | GS29: 0 | GT29: 6,700 | GU29: 0 | GV29: 0 | GW29: 6,700 | GX29: 0 | GY29: 12,498 | GZ29: 0 | HA29: 0 | HB29: 12,498 | HC29: 0 | HD29: 0 | HE29: 0 | HF29: 0 | HG29: 0 | HH29: 0 | HI29: 0 | HJ29: 0 | HK29: 0 | HL29: 0 | HM29: 0 | HN29: 9,754 | HO29: 2,050 | HP29: 0 | HQ29: 7,704 | HR29: 0 | HS29: 12,200 | HT29: 0 | HU29: 0 | HV29: 12,200 | HW29: 0 | HX29: 0 | HY29: 0 | HZ29: 0 | IA29: 0 | IB29: 0 | IC29: 0 | ID29: 0 | IE29: 0 | IF29: 0 | IG29: 0 | IH29: 38,134 | II29: 2,332 | IJ29: 0 | IK29: 35,802 | IL29: 0 | IM29: 37,409 | IN29: 630 | IO29: 0 | IP29: 36,779 | IQ29: 0 | IR29: 0 | IS29: 0 | IT29: 0 | IU29: 0 | IV29: 0 | IW29: 0 | IX29: 0 | IY29: 0 | IZ29: 0 | JA29: 0 | JB29: 42,137 | JC29: 0 | JD29: 0 | JE29: 42,137 | JF29: 0 | JG29: 24,660 | JH29: 2,050 | JI29: 0 | JJ29: 22,610 | JK29: 0 | JL29: 0 | JM29: 0 | JN29: 0 | JO29: 0 | JP29: 0 | JQ29: 0 | JR29: 0 | JS29: 0 | JT29: 0 | JU29: 0 | JV29: 11,967 | JW29: 0 | JX29: 0 | JY29: 11,967 | JZ29: 0 | KA29: 8,827 | KB29: 0 | KC29: 0 | KD29: 8,827 | KE29: 0 | KF29: 0 | KG29: 0 | KH29: 0 | KI29: 0 | KJ29: 0 | KK29: 0 | KL29: 0 | KM29: 0 | KN29: 0 | KO29: 0 | KP29: 13,986 | KQ29: 0 | KR29: 0 | KS29: 13,986 | KT29: 0 | KU29: 8,200 | KV29: 0 | KW29: 0 | KX29: 8,200 | KY29: 0 | KZ29: 0 | LA29: 0 | LB29: 0 | LC29: 0 | LD29: 0 | LE29: 0 | LF29: 0 | LG29: 0 | LH29: 0 | LI29: 0 | LJ29: 16,184 | LK29: 0 | LL29: 0 | LM29: 16,184 | LN29: 0 | LO29: 7,633 | LP29: 2,050 | LQ29: 0 | LR29: 5,583 | LS29: 0 | LT29: 0 | LU29: 0 | LV29: 0 | LW29: 0 | LX29: 0 | LY29: 0 | LZ29: 0 | MA29: 0 | MB29: 0 | MC29: 0 | MD29: 80,271 | ME29: 2,332 | MF29: 0 | MG29: 77,939 | MH29: 0 | MI29: 62,069 | MJ29: 2,680 | MK29: 0 | ML29: 59,389 | MM29: 0 | MN29: 0 | MO29: 0 | MP29: 0 | MQ29: 0 | MR29: 0 | MS29: 0 | MT29: 0 | MU29: 0 | MV29: 0 | MW29: 0 | MX29: 6,277 | MY29: 0 | MZ29: 0 | NA29: 6,277 | NB29: 0 | NC29: 6,272 | ND29: 0 | NE29: 0 | NF29: 6,272 | NG29: 0 | NH29: 0 | NI29: 0 | NJ29: 0 | NK29: 0 | NL29: 0 | NM29: 0 | NN29: 0 | NO29: 0 | NP29: 0 | NQ29: 0 | NR29: 5,492 | NS29: 0 | NT29: 0 | NU29: 5,492 | NV29: 0 | NW29: 3,000 | NX29: 0 | NY29: 0 | NZ29: 3,000 | OA29: 0 | OB29: 0 | OC29: 0 | OD29: 0 | OE29: 0 | OF29: 0 | OG29: 0 | OH29: 0 | OI29: 0 | OJ29: 0 | OK29: 0 | OL29: 785 | OM29: 0 | ON29: 0 | OO29: 785 | OP29: 0 | OQ29: 2,500 | OR29: 0 | OS29: 0 | OT29: 2,500 | OU29: 0 | OV29: 0 | OW29: 0 | OX29: 0 | OY29: 0 | OZ29: 0 | PA29: 0 | PB29: 0 | PC29: 0 | PD29: 0 | PE29: 0 | PF29: 0 | PG29: 0 | PH29: 0 | PI29: 0 | PJ29: 0 | PK29: 772 | PL29: 0 | PM29: 0 | PN29: 772 | PO29: 0 | PP29: 0 | PQ29: 0 | PR29: 0 | PS29: 0 | PT29: 0 | PU29: 0 | PV29: 0 | PW29: 0 | PX29: 0 | PY29: 0 | PZ29: 86,548 | QA29: 2,332 | QB29: 0 | QC29: 84,216 | QD29: 0 | QE29: 68,341 | QF29: 2,680 | QG29: 0 | QH29: 65,661 | QI29: 0 | QJ29: 12,493 | QK29: 0 | QL29: 0 | QM29: 12,493 | QN29: 0 | QO29: 28,626 | QP29: 1 | QQ29: 0 | QR29: 28,625 | QS29: 0 | QT29: 30,667 | QU29: 5,472 | QV29: 0 | QW29: 25,195 | QX29: 0 | QY29: 32,741 | QZ29: 5,123 | RA29: 0 | RB29: 27,618 | RC29: 0 | RD29: 99,041 | RE29: 2,332 | RF29: 0 | RG29: 96,709 | RH29: 0 | RI29: 96,967 | RJ29: 2,681 | RK29: 0 | RL29: 94,286 | RM29: 0 | RN29: -2,074 | RO29: 349 | RP29: 0 | RQ29: -2,423 | RR29: 0 | RT29: =BO29+IF(Ф!$K$4=1,DW29+EQ29,0)+IF(Ф!$K$4=2,EQ29+GE29,0)+IF(Ф!$K$4=3,GE29+GY29,0)+IF(Ф!$K$4=4,GY29+HS29,0)+IF(Ф!$K$4=5,HS29+KA29,0)+IF(Ф!$K$4=6,KA29+KU29,0)+IF(Ф!$K$4=7,KU29+LO29,0)+IF(Ф!$K$4=8,LO29+NW29,0)+IF(Ф!$K$4=9,NW29+OQ29,0)+IF(Ф!$K$4=10,OQ29+PK29,0)+IF(Ф!$K$4=11,PK29,0)-BY29 -> 11,227 | RU29: =RT29*(1+Ф!$K$9) -> 13,248 | RX29: 80,642 | RY29: 129,727 | SA29: 13,248 | SB29: 80,642 | SC29: 129,727
B30: 18 | C30: 18 | K30: Поддержание существующих мощностей и техперевооружение | Q30: 129,708 | R30: 7,804 | S30: 0 | T30: 121,904 | U30: 0 | V30: 30,667 | W30: 5,472 | X30: 0 | Y30: 25,195 | Z30: 0 | AA30: 32,741 | AB30: 5,123 | AC30: 0 | AD30: 27,618 | AE30: 0 | AF30: 99,041 | AG30: 2,332 | AH30: 0 | AI30: 96,709 | AJ30: 0 | AK30: 96,967 | AL30: 2,681 | AM30: 0 | AN30: 94,286 | AO30: 0 | AP30: 86,548 | AQ30: 2,332 | AR30: 0 | AS30: 84,216 | AT30: 0 | AU30: 68,341 | AV30: 2,680 | AW30: 0 | AX30: 65,661 | AY30: 0 | AZ30: 68,341 | BJ30: =IF(Ф!$K$4>=1,CX30,0)+IF(Ф!$K$4>=2,DR30,0)+IF(Ф!$K$4>=3,EL30,0)+IF(Ф!$K$4>=4,FZ30,0)+IF(Ф!$K$4>=5,GT30,0)+IF(Ф!$K$4>=6,HN30,0)+IF(Ф!$K$4>=7,JV30,0)+IF(Ф!$K$4>=8,KP30,0)+IF(Ф!$K$4>=9,LJ30,0)+IF(Ф!$K$4>=10,NR30,0)+IF(Ф!$K$4>=11,OL30,0)+IF(Ф!$K$4>=12,PF30,0) -> 1,279 | BK30: =IF(Ф!$K$4>=1,CY30,0)+IF(Ф!$K$4>=2,DS30,0)+IF(Ф!$K$4>=3,EM30,0)+IF(Ф!$K$4>=4,GA30,0)+IF(Ф!$K$4>=5,GU30,0)+IF(Ф!$K$4>=6,HO30,0)+IF(Ф!$K$4>=7,JW30,0)+IF(Ф!$K$4>=8,KQ30,0)+IF(Ф!$K$4>=9,LK30,0)+IF(Ф!$K$4>=10,NS30,0)+IF(Ф!$K$4>=11,OM30,0)+IF(Ф!$K$4>=12,PG30,0) -> 0 | BL30: =IF(Ф!$K$4>=1,CZ30,0)+IF(Ф!$K$4>=2,DT30,0)+IF(Ф!$K$4>=3,EN30,0)+IF(Ф!$K$4>=4,GB30,0)+IF(Ф!$K$4>=5,GV30,0)+IF(Ф!$K$4>=6,HP30,0)+IF(Ф!$K$4>=7,JX30,0)+IF(Ф!$K$4>=8,KR30,0)+IF(Ф!$K$4>=9,LL30,0)+IF(Ф!$K$4>=10,NT30,0)+IF(Ф!$K$4>=11,ON30,0)+IF(Ф!$K$4>=12,PH30,0) -> 0 | BM30: =IF(Ф!$K$4>=1,DA30,0)+IF(Ф!$K$4>=2,DU30,0)+IF(Ф!$K$4>=3,EO30,0)+IF(Ф!$K$4>=4,GC30,0)+IF(Ф!$K$4>=5,GW30,0)+IF(Ф!$K$4>=6,HQ30,0)+IF(Ф!$K$4>=7,JY30,0)+IF(Ф!$K$4>=8,KS30,0)+IF(Ф!$K$4>=9,LM30,0)+IF(Ф!$K$4>=10,NU30,0)+IF(Ф!$K$4>=11,OO30,0)+IF(Ф!$K$4>=12,PI30,0) -> 1,279 | BN30: =IF(Ф!$K$4>=1,DB30,0)+IF(Ф!$K$4>=2,DV30,0)+IF(Ф!$K$4>=3,EP30,0)+IF(Ф!$K$4>=4,GD30,0)+IF(Ф!$K$4>=5,GX30,0)+IF(Ф!$K$4>=6,HR30,0)+IF(Ф!$K$4>=7,JZ30,0)+IF(Ф!$K$4>=8,KT30,0)+IF(Ф!$K$4>=9,LN30,0)+IF(Ф!$K$4>=10,NV30,0)+IF(Ф!$K$4>=11,OP30,0)+IF(Ф!$K$4>=12,PJ30,0) -> 0 | BO30: =IF(Ф!$K$4>=1,DC30,0)+IF(Ф!$K$4>=2,DW30,0)+IF(Ф!$K$4>=3,EQ30,0)+IF(Ф!$K$4>=4,GE30,0)+IF(Ф!$K$4>=5,GY30,0)+IF(Ф!$K$4>=6,HS30,0)+IF(Ф!$K$4>=7,KA30,0)+IF(Ф!$K$4>=8,KU30,0)+IF(Ф!$K$4>=9,LO30,0)+IF(Ф!$K$4>=10,NW30,0)+IF(Ф!$K$4>=11,OQ30,0)+IF(Ф!$K$4>=12,PK30,0) -> 0 | BP30: =IF(Ф!$K$4>=1,DD30,0)+IF(Ф!$K$4>=2,DX30,0)+IF(Ф!$K$4>=3,ER30,0)+IF(Ф!$K$4>=4,GF30,0)+IF(Ф!$K$4>=5,GZ30,0)+IF(Ф!$K$4>=6,HT30,0)+IF(Ф!$K$4>=7,KB30,0)+IF(Ф!$K$4>=8,KV30,0)+IF(Ф!$K$4>=9,LP30,0)+IF(Ф!$K$4>=10,NX30,0)+IF(Ф!$K$4>=11,OR30,0)+IF(Ф!$K$4>=12,PL30,0) -> 0 | BQ30: =IF(Ф!$K$4>=1,DE30,0)+IF(Ф!$K$4>=2,DY30,0)+IF(Ф!$K$4>=3,ES30,0)+IF(Ф!$K$4>=4,GG30,0)+IF(Ф!$K$4>=5,HA30,0)+IF(Ф!$K$4>=6,HU30,0)+IF(Ф!$K$4>=7,KC30,0)+IF(Ф!$K$4>=8,KW30,0)+IF(Ф!$K$4>=9,LQ30,0)+IF(Ф!$K$4>=10,NY30,0)+IF(Ф!$K$4>=11,OS30,0)+IF(Ф!$K$4>=12,PM30,0) -> 0 | BR30: =IF(Ф!$K$4>=1,DF30,0)+IF(Ф!$K$4>=2,DZ30,0)+IF(Ф!$K$4>=3,ET30,0)+IF(Ф!$K$4>=4,GH30,0)+IF(Ф!$K$4>=5,HB30,0)+IF(Ф!$K$4>=6,HV30,0)+IF(Ф!$K$4>=7,KD30,0)+IF(Ф!$K$4>=8,KX30,0)+IF(Ф!$K$4>=9,LR30,0)+IF(Ф!$K$4>=10,NZ30,0)+IF(Ф!$K$4>=11,OT30,0)+IF(Ф!$K$4>=12,PN30,0) -> 0 | BS30: =IF(Ф!$K$4>=1,DG30,0)+IF(Ф!$K$4>=2,EA30,0)+IF(Ф!$K$4>=3,EU30,0)+IF(Ф!$K$4>=4,GI30,0)+IF(Ф!$K$4>=5,HC30,0)+IF(Ф!$K$4>=6,HW30,0)+IF(Ф!$K$4>=7,KE30,0)+IF(Ф!$K$4>=8,KY30,0)+IF(Ф!$K$4>=9,LS30,0)+IF(Ф!$K$4>=10,OA30,0)+IF(Ф!$K$4>=11,OU30,0)+IF(Ф!$K$4>=12,PO30,0) -> 0 | BT30: =IF(Ф!$K$4>=1,DH30,0)+IF(Ф!$K$4>=2,EB30,0)+IF(Ф!$K$4>=3,EV30,0)+IF(Ф!$K$4>=4,GJ30,0)+IF(Ф!$K$4>=5,HD30,0)+IF(Ф!$K$4>=6,HX30,0)+IF(Ф!$K$4>=7,KF30,0)+IF(Ф!$K$4>=8,KZ30,0)+IF(Ф!$K$4>=9,LT30,0)+IF(Ф!$K$4>=10,OB30,0)+IF(Ф!$K$4>=11,OV30,0)+IF(Ф!$K$4>=12,PP30,0) -> 0 | BU30: =IF(Ф!$K$4>=1,DI30,0)+IF(Ф!$K$4>=2,EC30,0)+IF(Ф!$K$4>=3,EW30,0)+IF(Ф!$K$4>=4,GK30,0)+IF(Ф!$K$4>=5,HE30,0)+IF(Ф!$K$4>=6,HY30,0)+IF(Ф!$K$4>=7,KG30,0)+IF(Ф!$K$4>=8,LA30,0)+IF(Ф!$K$4>=9,LU30,0)+IF(Ф!$K$4>=10,OC30,0)+IF(Ф!$K$4>=11,OW30,0)+IF(Ф!$K$4>=12,PQ30,0) -> 0 | BV30: =IF(Ф!$K$4>=1,DJ30,0)+IF(Ф!$K$4>=2,ED30,0)+IF(Ф!$K$4>=3,EX30,0)+IF(Ф!$K$4>=4,GL30,0)+IF(Ф!$K$4>=5,HF30,0)+IF(Ф!$K$4>=6,HZ30,0)+IF(Ф!$K$4>=7,KH30,0)+IF(Ф!$K$4>=8,LB30,0)+IF(Ф!$K$4>=9,LV30,0)+IF(Ф!$K$4>=10,OD30,0)+IF(Ф!$K$4>=11,OX30,0)+IF(Ф!$K$4>=12,PR30,0) -> 0 | BW30: =IF(Ф!$K$4>=1,DK30,0)+IF(Ф!$K$4>=2,EE30,0)+IF(Ф!$K$4>=3,EY30,0)+IF(Ф!$K$4>=4,GM30,0)+IF(Ф!$K$4>=5,HG30,0)+IF(Ф!$K$4>=6,IA30,0)+IF(Ф!$K$4>=7,KI30,0)+IF(Ф!$K$4>=8,LC30,0)+IF(Ф!$K$4>=9,LW30,0)+IF(Ф!$K$4>=10,OE30,0)+IF(Ф!$K$4>=11,OY30,0)+IF(Ф!$K$4>=12,PS30,0) -> 0 | BX30: =IF(Ф!$K$4>=1,DL30,0)+IF(Ф!$K$4>=2,EF30,0)+IF(Ф!$K$4>=3,EZ30,0)+IF(Ф!$K$4>=4,GN30,0)+IF(Ф!$K$4>=5,HH30,0)+IF(Ф!$K$4>=6,IB30,0)+IF(Ф!$K$4>=7,KJ30,0)+IF(Ф!$K$4>=8,LD30,0)+IF(Ф!$K$4>=9,LX30,0)+IF(Ф!$K$4>=10,OF30,0)+IF(Ф!$K$4>=11,OZ30,0)+IF(Ф!$K$4>=12,PT30,0) -> 0 | BY30: =IF(Ф!$K$4>=1,DM30,0)+IF(Ф!$K$4>=2,EG30,0)+IF(Ф!$K$4>=3,FA30,0)+IF(Ф!$K$4>=4,GO30,0)+IF(Ф!$K$4>=5,HI30,0)+IF(Ф!$K$4>=6,IC30,0)+IF(Ф!$K$4>=7,KK30,0)+IF(Ф!$K$4>=8,LE30,0)+IF(Ф!$K$4>=9,LY30,0)+IF(Ф!$K$4>=10,OG30,0)+IF(Ф!$K$4>=11,PA30,0)+IF(Ф!$K$4>=12,PU30,0) -> 0 | BZ30: =IF(Ф!$K$4>=1,DN30,0)+IF(Ф!$K$4>=2,EH30,0)+IF(Ф!$K$4>=3,FB30,0)+IF(Ф!$K$4>=4,GP30,0)+IF(Ф!$K$4>=5,HJ30,0)+IF(Ф!$K$4>=6,ID30,0)+IF(Ф!$K$4>=7,KL30,0)+IF(Ф!$K$4>=8,LF30,0)+IF(Ф!$K$4>=9,LZ30,0)+IF(Ф!$K$4>=10,OH30,0)+IF(Ф!$K$4>=11,PB30,0)+IF(Ф!$K$4>=12,PV30,0) -> 0 | CA30: =IF(Ф!$K$4>=1,DO30,0)+IF(Ф!$K$4>=2,EI30,0)+IF(Ф!$K$4>=3,FC30,0)+IF(Ф!$K$4>=4,GQ30,0)+IF(Ф!$K$4>=5,HK30,0)+IF(Ф!$K$4>=6,IE30,0)+IF(Ф!$K$4>=7,KM30,0)+IF(Ф!$K$4>=8,LG30,0)+IF(Ф!$K$4>=9,MA30,0)+IF(Ф!$K$4>=10,OI30,0)+IF(Ф!$K$4>=11,PC30,0)+IF(Ф!$K$4>=12,PW30,0) -> 0 | CB30: =IF(Ф!$K$4>=1,DP30,0)+IF(Ф!$K$4>=2,EJ30,0)+IF(Ф!$K$4>=3,FD30,0)+IF(Ф!$K$4>=4,GR30,0)+IF(Ф!$K$4>=5,HL30,0)+IF(Ф!$K$4>=6,IF30,0)+IF(Ф!$K$4>=7,KN30,0)+IF(Ф!$K$4>=8,LH30,0)+IF(Ф!$K$4>=9,MB30,0)+IF(Ф!$K$4>=10,OJ30,0)+IF(Ф!$K$4>=11,PD30,0)+IF(Ф!$K$4>=12,PX30,0) -> 0 | CC30: =IF(Ф!$K$4>=1,DQ30,0)+IF(Ф!$K$4>=2,EK30,0)+IF(Ф!$K$4>=3,FE30,0)+IF(Ф!$K$4>=4,GS30,0)+IF(Ф!$K$4>=5,HM30,0)+IF(Ф!$K$4>=6,IG30,0)+IF(Ф!$K$4>=7,KO30,0)+IF(Ф!$K$4>=8,LI30,0)+IF(Ф!$K$4>=9,MC30,0)+IF(Ф!$K$4>=10,OK30,0)+IF(Ф!$K$4>=11,PE30,0)+IF(Ф!$K$4>=12,PY30,0) -> 0 | CD30: 14,980 | CE30: 282 | CF30: 0 | CG30: 14,698 | CH30: 0 | CI30: 11,227 | CJ30: 430 | CK30: 0 | CL30: 10,797 | CM30: 0 | CN30: 0 | CO30: 0 | CP30: 0 | CQ30: 0 | CR30: 0 | CS30: 0 | CT30: 0 | CU30: 0 | CV30: 0 | CW30: 0 | CX30: 1,279 | CY30: 0 | CZ30: 0 | DA30: 1,279 | DB30: 0 | DC30: 0 | DD30: 0 | DE30: 0 | DF30: 0 | DG30: 0 | DH30: 0 | DI30: 0 | DJ30: 0 | DK30: 0 | DL30: 0 | DM30: 0 | DN30: 0 | DO30: 0 | DP30: 0 | DQ30: 0 | DR30: 6,801 | DS30: 82 | DT30: 0 | DU30: 6,719 | DV30: 0 | DW30: 5,885 | DX30: 180 | DY30: 0 | DZ30: 5,705 | EA30: 0 | EB30: 0 | EC30: 0 | ED30: 0 | EE30: 0 | EF30: 0 | EG30: 0 | EH30: 0 | EI30: 0 | EJ30: 0 | EK30: 0 | EL30: 6,900 | EM30: 200 | EN30: 0 | EO30: 6,700 | EP30: 0 | EQ30: 5,342 | ER30: 250 | ES30: 0 | ET30: 5,092 | EU30: 0 | EV30: 0 | EW30: 0 | EX30: 0 | EY30: 0 | EZ30: 0 | FA30: 0 | FB30: 0 | FC30: 0 | FD30: 0 | FE30: 0 | FF30: 23,154 | FG30: 2,050 | FH30: 0 | FI30: 21,104 | FJ30: 0 | FK30: 26,182 | FL30: 200 | FM30: 0 | FN30: 25,982 | FO30: 0 | FP30: 0 | FQ30: 0 | FR30: 0 | FS30: 0 | FT30: 0 | FU30: 0 | FV30: 0 | FW30: 0 | FX30: 0 | FY30: 0 | FZ30: 6,700 | GA30: 0 | GB30: 0 | GC30: 6,700 | GD30: 0 | GE30: 1,484 | GF30: 200 | GG30: 0 | GH30: 1,284 | GI30: 0 | GJ30: 0 | GK30: 0 | GL30: 0 | GM30: 0 | GN30: 0 | GO30: 0 | GP30: 0 | GQ30: 0 | GR30: 0 | GS30: 0 | GT30: 6,700 | GU30: 0 | GV30: 0 | GW30: 6,700 | GX30: 0 | GY30: 12,498 | GZ30: 0 | HA30: 0 | HB30: 12,498 | HC30: 0 | HD30: 0 | HE30: 0 | HF30: 0 | HG30: 0 | HH30: 0 | HI30: 0 | HJ30: 0 | HK30: 0 | HL30: 0 | HM30: 0 | HN30: 9,754 | HO30: 2,050 | HP30: 0 | HQ30: 7,704 | HR30: 0 | HS30: 12,200 | HT30: 0 | HU30: 0 | HV30: 12,200 | HW30: 0 | HX30: 0 | HY30: 0 | HZ30: 0 | IA30: 0 | IB30: 0 | IC30: 0 | ID30: 0 | IE30: 0 | IF30: 0 | IG30: 0 | IH30: 38,134 | II30: 2,332 | IJ30: 0 | IK30: 35,802 | IL30: 0 | IM30: 37,409 | IN30: 630 | IO30: 0 | IP30: 36,779 | IQ30: 0 | IR30: 0 | IS30: 0 | IT30: 0 | IU30: 0 | IV30: 0 | IW30: 0 | IX30: 0 | IY30: 0 | IZ30: 0 | JA30: 0 | JB30: 42,137 | JC30: 0 | JD30: 0 | JE30: 42,137 | JF30: 0 | JG30: 24,660 | JH30: 2,050 | JI30: 0 | JJ30: 22,610 | JK30: 0 | JL30: 0 | JM30: 0 | JN30: 0 | JO30: 0 | JP30: 0 | JQ30: 0 | JR30: 0 | JS30: 0 | JT30: 0 | JU30: 0 | JV30: 11,967 | JW30: 0 | JX30: 0 | JY30: 11,967 | JZ30: 0 | KA30: 8,827 | KB30: 0 | KC30: 0 | KD30: 8,827 | KE30: 0 | KF30: 0 | KG30: 0 | KH30: 0 | KI30: 0 | KJ30: 0 | KK30: 0 | KL30: 0 | KM30: 0 | KN30: 0 | KO30: 0 | KP30: 13,986 | KQ30: 0 | KR30: 0 | KS30: 13,986 | KT30: 0 | KU30: 8,200 | KV30: 0 | KW30: 0 | KX30: 8,200 | KY30: 0 | KZ30: 0 | LA30: 0 | LB30: 0 | LC30: 0 | LD30: 0 | LE30: 0 | LF30: 0 | LG30: 0 | LH30: 0 | LI30: 0 | LJ30: 16,184 | LK30: 0 | LL30: 0 | LM30: 16,184 | LN30: 0 | LO30: 7,633 | LP30: 2,050 | LQ30: 0 | LR30: 5,583 | LS30: 0 | LT30: 0 | LU30: 0 | LV30: 0 | LW30: 0 | LX30: 0 | LY30: 0 | LZ30: 0 | MA30: 0 | MB30: 0 | MC30: 0 | MD30: 80,271 | ME30: 2,332 | MF30: 0 | MG30: 77,939 | MH30: 0 | MI30: 62,069 | MJ30: 2,680 | MK30: 0 | ML30: 59,389 | MM30: 0 | MN30: 0 | MO30: 0 | MP30: 0 | MQ30: 0 | MR30: 0 | MS30: 0 | MT30: 0 | MU30: 0 | MV30: 0 | MW30: 0 | MX30: 6,277 | MY30: 0 | MZ30: 0 | NA30: 6,277 | NB30: 0 | NC30: 6,272 | ND30: 0 | NE30: 0 | NF30: 6,272 | NG30: 0 | NH30: 0 | NI30: 0 | NJ30: 0 | NK30: 0 | NL30: 0 | NM30: 0 | NN30: 0 | NO30: 0 | NP30: 0 | NQ30: 0 | NR30: 5,492 | NS30: 0 | NT30: 0 | NU30: 5,492 | NV30: 0 | NW30: 3,000 | NX30: 0 | NY30: 0 | NZ30: 3,000 | OA30: 0 | OB30: 0 | OC30: 0 | OD30: 0 | OE30: 0 | OF30: 0 | OG30: 0 | OH30: 0 | OI30: 0 | OJ30: 0 | OK30: 0 | OL30: 785 | OM30: 0 | ON30: 0 | OO30: 785 | OP30: 0 | OQ30: 2,500 | OR30: 0 | OS30: 0 | OT30: 2,500 | OU30: 0 | OV30: 0 | OW30: 0 | OX30: 0 | OY30: 0 | OZ30: 0 | PA30: 0 | PB30: 0 | PC30: 0 | PD30: 0 | PE30: 0 | PF30: 0 | PG30: 0 | PH30: 0 | PI30: 0 | PJ30: 0 | PK30: 772 | PL30: 0 | PM30: 0 | PN30: 772 | PO30: 0 | PP30: 0 | PQ30: 0 | PR30: 0 | PS30: 0 | PT30: 0 | PU30: 0 | PV30: 0 | PW30: 0 | PX30: 0 | PY30: 0 | PZ30: 86,548 | QA30: 2,332 | QB30: 0 | QC30: 84,216 | QD30: 0 | QE30: 68,341 | QF30: 2,680 | QG30: 0 | QH30: 65,661 | QI30: 0 | QJ30: 12,493 | QK30: 0 | QL30: 0 | QM30: 12,493 | QN30: 0 | QO30: 28,626 | QP30: 1 | QQ30: 0 | QR30: 28,625 | QS30: 0 | QT30: 30,667 | QU30: 5,472 | QV30: 0 | QW30: 25,195 | QX30: 0 | QY30: 32,741 | QZ30: 5,123 | RA30: 0 | RB30: 27,618 | RC30: 0 | RD30: 99,041 | RE30: 2,332 | RF30: 0 | RG30: 96,709 | RH30: 0 | RI30: 96,967 | RJ30: 2,681 | RK30: 0 | RL30: 94,286 | RM30: 0 | RN30: -2,074 | RO30: 349 | RP30: 0 | RQ30: -2,423 | RR30: 0 | RT30: =BO30+IF(Ф!$K$4=1,DW30+EQ30,0)+IF(Ф!$K$4=2,EQ30+GE30,0)+IF(Ф!$K$4=3,GE30+GY30,0)+IF(Ф!$K$4=4,GY30+HS30,0)+IF(Ф!$K$4=5,HS30+KA30,0)+IF(Ф!$K$4=6,KA30+KU30,0)+IF(Ф!$K$4=7,KU30+LO30,0)+IF(Ф!$K$4=8,LO30+NW30,0)+IF(Ф!$K$4=9,NW30+OQ30,0)+IF(Ф!$K$4=10,OQ30+PK30,0)+IF(Ф!$K$4=11,PK30,0)-BY30 -> 11,227 | RU30: =RT30*(1+Ф!$K$9) -> 13,248 | RX30: 80,642 | RY30: 129,727 | SA30: 13,248 | SB30: 80,642 | SC30: 129,727
B31: 99 | C31: 19 | G31: МЭ-ТЭЦЧМК-1-П-901 | I31: Утв.16 | K31: Замена паропровода №2 на ЦКВ | L31: 2011-10-01 | M31: 2016-09-30 | N31: система | O31: 1 | P31: (З) | Q31: 61,162 | R31: 845 | S31: 0 | T31: 60,317 | U31: 0 | V31: 18,387 | W31: 845 | X31: 0 | Y31: 17,542 | Z31: 0 | AA31: 26,309 | AB31: 844 | AC31: 0 | AD31: 25,465 | AE31: 0 | AF31: 42,775 | AG31: 0 | AH31: 0 | AI31: 42,775 | AJ31: 0 | AK31: 34,853 | AL31: 1 | AM31: 0 | AN31: 34,852 | AO31: 0 | AP31: 42,775 | AQ31: 0 | AR31: 0 | AS31: 42,775 | AT31: 0 | AU31: 22,600 | AV31: 0 | AW31: 0 | AX31: 22,600 | AY31: 0 | AZ31: 22,600 | BJ31: =IF(Ф!$K$4>=1,CX31,0)+IF(Ф!$K$4>=2,DR31,0)+IF(Ф!$K$4>=3,EL31,0)+IF(Ф!$K$4>=4,FZ31,0)+IF(Ф!$K$4>=5,GT31,0)+IF(Ф!$K$4>=6,HN31,0)+IF(Ф!$K$4>=7,JV31,0)+IF(Ф!$K$4>=8,KP31,0)+IF(Ф!$K$4>=9,LJ31,0)+IF(Ф!$K$4>=10,NR31,0)+IF(Ф!$K$4>=11,OL31,0)+IF(Ф!$K$4>=12,PF31,0) -> 0 | BK31: =IF(Ф!$K$4>=1,CY31,0)+IF(Ф!$K$4>=2,DS31,0)+IF(Ф!$K$4>=3,EM31,0)+IF(Ф!$K$4>=4,GA31,0)+IF(Ф!$K$4>=5,GU31,0)+IF(Ф!$K$4>=6,HO31,0)+IF(Ф!$K$4>=7,JW31,0)+IF(Ф!$K$4>=8,KQ31,0)+IF(Ф!$K$4>=9,LK31,0)+IF(Ф!$K$4>=10,NS31,0)+IF(Ф!$K$4>=11,OM31,0)+IF(Ф!$K$4>=12,PG31,0) -> 0 | BL31: =IF(Ф!$K$4>=1,CZ31,0)+IF(Ф!$K$4>=2,DT31,0)+IF(Ф!$K$4>=3,EN31,0)+IF(Ф!$K$4>=4,GB31,0)+IF(Ф!$K$4>=5,GV31,0)+IF(Ф!$K$4>=6,HP31,0)+IF(Ф!$K$4>=7,JX31,0)+IF(Ф!$K$4>=8,KR31,0)+IF(Ф!$K$4>=9,LL31,0)+IF(Ф!$K$4>=10,NT31,0)+IF(Ф!$K$4>=11,ON31,0)+IF(Ф!$K$4>=12,PH31,0) -> 0 | BM31: =IF(Ф!$K$4>=1,DA31,0)+IF(Ф!$K$4>=2,DU31,0)+IF(Ф!$K$4>=3,EO31,0)+IF(Ф!$K$4>=4,GC31,0)+IF(Ф!$K$4>=5,GW31,0)+IF(Ф!$K$4>=6,HQ31,0)+IF(Ф!$K$4>=7,JY31,0)+IF(Ф!$K$4>=8,KS31,0)+IF(Ф!$K$4>=9,LM31,0)+IF(Ф!$K$4>=10,NU31,0)+IF(Ф!$K$4>=11,OO31,0)+IF(Ф!$K$4>=12,PI31,0) -> 0 | BN31: =IF(Ф!$K$4>=1,DB31,0)+IF(Ф!$K$4>=2,DV31,0)+IF(Ф!$K$4>=3,EP31,0)+IF(Ф!$K$4>=4,GD31,0)+IF(Ф!$K$4>=5,GX31,0)+IF(Ф!$K$4>=6,HR31,0)+IF(Ф!$K$4>=7,JZ31,0)+IF(Ф!$K$4>=8,KT31,0)+IF(Ф!$K$4>=9,LN31,0)+IF(Ф!$K$4>=10,NV31,0)+IF(Ф!$K$4>=11,OP31,0)+IF(Ф!$K$4>=12,PJ31,0) -> 0 | BO31: =IF(Ф!$K$4>=1,DC31,0)+IF(Ф!$K$4>=2,DW31,0)+IF(Ф!$K$4>=3,EQ31,0)+IF(Ф!$K$4>=4,GE31,0)+IF(Ф!$K$4>=5,GY31,0)+IF(Ф!$K$4>=6,HS31,0)+IF(Ф!$K$4>=7,KA31,0)+IF(Ф!$K$4>=8,KU31,0)+IF(Ф!$K$4>=9,LO31,0)+IF(Ф!$K$4>=10,NW31,0)+IF(Ф!$K$4>=11,OQ31,0)+IF(Ф!$K$4>=12,PK31,0) -> 0 | BP31: =IF(Ф!$K$4>=1,DD31,0)+IF(Ф!$K$4>=2,DX31,0)+IF(Ф!$K$4>=3,ER31,0)+IF(Ф!$K$4>=4,GF31,0)+IF(Ф!$K$4>=5,GZ31,0)+IF(Ф!$K$4>=6,HT31,0)+IF(Ф!$K$4>=7,KB31,0)+IF(Ф!$K$4>=8,KV31,0)+IF(Ф!$K$4>=9,LP31,0)+IF(Ф!$K$4>=10,NX31,0)+IF(Ф!$K$4>=11,OR31,0)+IF(Ф!$K$4>=12,PL31,0) -> 0 | BQ31: =IF(Ф!$K$4>=1,DE31,0)+IF(Ф!$K$4>=2,DY31,0)+IF(Ф!$K$4>=3,ES31,0)+IF(Ф!$K$4>=4,GG31,0)+IF(Ф!$K$4>=5,HA31,0)+IF(Ф!$K$4>=6,HU31,0)+IF(Ф!$K$4>=7,KC31,0)+IF(Ф!$K$4>=8,KW31,0)+IF(Ф!$K$4>=9,LQ31,0)+IF(Ф!$K$4>=10,NY31,0)+IF(Ф!$K$4>=11,OS31,0)+IF(Ф!$K$4>=12,PM31,0) -> 0 | BR31: =IF(Ф!$K$4>=1,DF31,0)+IF(Ф!$K$4>=2,DZ31,0)+IF(Ф!$K$4>=3,ET31,0)+IF(Ф!$K$4>=4,GH31,0)+IF(Ф!$K$4>=5,HB31,0)+IF(Ф!$K$4>=6,HV31,0)+IF(Ф!$K$4>=7,KD31,0)+IF(Ф!$K$4>=8,KX31,0)+IF(Ф!$K$4>=9,LR31,0)+IF(Ф!$K$4>=10,NZ31,0)+IF(Ф!$K$4>=11,OT31,0)+IF(Ф!$K$4>=12,PN31,0) -> 0 | BS31: =IF(Ф!$K$4>=1,DG31,0)+IF(Ф!$K$4>=2,EA31,0)+IF(Ф!$K$4>=3,EU31,0)+IF(Ф!$K$4>=4,GI31,0)+IF(Ф!$K$4>=5,HC31,0)+IF(Ф!$K$4>=6,HW31,0)+IF(Ф!$K$4>=7,KE31,0)+IF(Ф!$K$4>=8,KY31,0)+IF(Ф!$K$4>=9,LS31,0)+IF(Ф!$K$4>=10,OA31,0)+IF(Ф!$K$4>=11,OU31,0)+IF(Ф!$K$4>=12,PO31,0) -> 0 | BT31: =IF(Ф!$K$4>=1,DH31,0)+IF(Ф!$K$4>=2,EB31,0)+IF(Ф!$K$4>=3,EV31,0)+IF(Ф!$K$4>=4,GJ31,0)+IF(Ф!$K$4>=5,HD31,0)+IF(Ф!$K$4>=6,HX31,0)+IF(Ф!$K$4>=7,KF31,0)+IF(Ф!$K$4>=8,KZ31,0)+IF(Ф!$K$4>=9,LT31,0)+IF(Ф!$K$4>=10,OB31,0)+IF(Ф!$K$4>=11,OV31,0)+IF(Ф!$K$4>=12,PP31,0) -> 0 | BU31: =IF(Ф!$K$4>=1,DI31,0)+IF(Ф!$K$4>=2,EC31,0)+IF(Ф!$K$4>=3,EW31,0)+IF(Ф!$K$4>=4,GK31,0)+IF(Ф!$K$4>=5,HE31,0)+IF(Ф!$K$4>=6,HY31,0)+IF(Ф!$K$4>=7,KG31,0)+IF(Ф!$K$4>=8,LA31,0)+IF(Ф!$K$4>=9,LU31,0)+IF(Ф!$K$4>=10,OC31,0)+IF(Ф!$K$4>=11,OW31,0)+IF(Ф!$K$4>=12,PQ31,0) -> 0 | BV31: =IF(Ф!$K$4>=1,DJ31,0)+IF(Ф!$K$4>=2,ED31,0)+IF(Ф!$K$4>=3,EX31,0)+IF(Ф!$K$4>=4,GL31,0)+IF(Ф!$K$4>=5,HF31,0)+IF(Ф!$K$4>=6,HZ31,0)+IF(Ф!$K$4>=7,KH31,0)+IF(Ф!$K$4>=8,LB31,0)+IF(Ф!$K$4>=9,LV31,0)+IF(Ф!$K$4>=10,OD31,0)+IF(Ф!$K$4>=11,OX31,0)+IF(Ф!$K$4>=12,PR31,0) -> 0 | BW31: =IF(Ф!$K$4>=1,DK31,0)+IF(Ф!$K$4>=2,EE31,0)+IF(Ф!$K$4>=3,EY31,0)+IF(Ф!$K$4>=4,GM31,0)+IF(Ф!$K$4>=5,HG31,0)+IF(Ф!$K$4>=6,IA31,0)+IF(Ф!$K$4>=7,KI31,0)+IF(Ф!$K$4>=8,LC31,0)+IF(Ф!$K$4>=9,LW31,0)+IF(Ф!$K$4>=10,OE31,0)+IF(Ф!$K$4>=11,OY31,0)+IF(Ф!$K$4>=12,PS31,0) -> 0 | BX31: =IF(Ф!$K$4>=1,DL31,0)+IF(Ф!$K$4>=2,EF31,0)+IF(Ф!$K$4>=3,EZ31,0)+IF(Ф!$K$4>=4,GN31,0)+IF(Ф!$K$4>=5,HH31,0)+IF(Ф!$K$4>=6,IB31,0)+IF(Ф!$K$4>=7,KJ31,0)+IF(Ф!$K$4>=8,LD31,0)+IF(Ф!$K$4>=9,LX31,0)+IF(Ф!$K$4>=10,OF31,0)+IF(Ф!$K$4>=11,OZ31,0)+IF(Ф!$K$4>=12,PT31,0) -> 0 | BY31: =IF(Ф!$K$4>=1,DM31,0)+IF(Ф!$K$4>=2,EG31,0)+IF(Ф!$K$4>=3,FA31,0)+IF(Ф!$K$4>=4,GO31,0)+IF(Ф!$K$4>=5,HI31,0)+IF(Ф!$K$4>=6,IC31,0)+IF(Ф!$K$4>=7,KK31,0)+IF(Ф!$K$4>=8,LE31,0)+IF(Ф!$K$4>=9,LY31,0)+IF(Ф!$K$4>=10,OG31,0)+IF(Ф!$K$4>=11,PA31,0)+IF(Ф!$K$4>=12,PU31,0) -> 0 | BZ31: =IF(Ф!$K$4>=1,DN31,0)+IF(Ф!$K$4>=2,EH31,0)+IF(Ф!$K$4>=3,FB31,0)+IF(Ф!$K$4>=4,GP31,0)+IF(Ф!$K$4>=5,HJ31,0)+IF(Ф!$K$4>=6,ID31,0)+IF(Ф!$K$4>=7,KL31,0)+IF(Ф!$K$4>=8,LF31,0)+IF(Ф!$K$4>=9,LZ31,0)+IF(Ф!$K$4>=10,OH31,0)+IF(Ф!$K$4>=11,PB31,0)+IF(Ф!$K$4>=12,PV31,0) -> 0 | CA31: =IF(Ф!$K$4>=1,DO31,0)+IF(Ф!$K$4>=2,EI31,0)+IF(Ф!$K$4>=3,FC31,0)+IF(Ф!$K$4>=4,GQ31,0)+IF(Ф!$K$4>=5,HK31,0)+IF(Ф!$K$4>=6,IE31,0)+IF(Ф!$K$4>=7,KM31,0)+IF(Ф!$K$4>=8,LG31,0)+IF(Ф!$K$4>=9,MA31,0)+IF(Ф!$K$4>=10,OI31,0)+IF(Ф!$K$4>=11,PC31,0)+IF(Ф!$K$4>=12,PW31,0) -> 0 | CB31: =IF(Ф!$K$4>=1,DP31,0)+IF(Ф!$K$4>=2,EJ31,0)+IF(Ф!$K$4>=3,FD31,0)+IF(Ф!$K$4>=4,GR31,0)+IF(Ф!$K$4>=5,HL31,0)+IF(Ф!$K$4>=6,IF31,0)+IF(Ф!$K$4>=7,KN31,0)+IF(Ф!$K$4>=8,LH31,0)+IF(Ф!$K$4>=9,MB31,0)+IF(Ф!$K$4>=10,OJ31,0)+IF(Ф!$K$4>=11,PD31,0)+IF(Ф!$K$4>=12,PX31,0) -> 0 | CC31: =IF(Ф!$K$4>=1,DQ31,0)+IF(Ф!$K$4>=2,EK31,0)+IF(Ф!$K$4>=3,FE31,0)+IF(Ф!$K$4>=4,GS31,0)+IF(Ф!$K$4>=5,HM31,0)+IF(Ф!$K$4>=6,IG31,0)+IF(Ф!$K$4>=7,KO31,0)+IF(Ф!$K$4>=8,LI31,0)+IF(Ф!$K$4>=9,MC31,0)+IF(Ф!$K$4>=10,OK31,0)+IF(Ф!$K$4>=11,PE31,0)+IF(Ф!$K$4>=12,PY31,0) -> 0 | CD31: 13,419 | CE31: 0 | CF31: 0 | CG31: 13,419 | CH31: 0 | CI31: 5,297 | CJ31: 0 | CK31: 0 | CL31: 5,297 | CM31: 0 | CN31: 0 | CO31: 0 | CP31: 0 | CQ31: 0 | CR31: 0 | CS31: 0 | CT31: 0 | CU31: 0 | CV31: 0 | CW31: 0 | CX31: 0 | CY31: 0 | CZ31: 0 | DA31: 0 | DB31: 0 | DC31: 0 | DD31: 0 | DE31: 0 | DF31: 0 | DG31: 0 | DH31: 0 | DI31: 0 | DJ31: 0 | DK31: 0 | DL31: 0 | DM31: 0 | DN31: 0 | DO31: 0 | DP31: 0 | DQ31: 0 | DR31: 6,719 | DS31: 0 | DT31: 0 | DU31: 6,719 | DV31: 0 | DW31: 2,955 | DX31: 0 | DY31: 0 | DZ31: 2,955 | EA31: 0 | EB31: 0 | EC31: 0 | ED31: 0 | EE31: 0 | EF31: 0 | EG31: 0 | EH31: 0 | EI31: 0 | EJ31: 0 | EK31: 0 | EL31: 6,700 | EM31: 0 | EN31: 0 | EO31: 6,700 | EP31: 0 | EQ31: 2,342 | ER31: 0 | ES31: 0 | ET31: 2,342 | EU31: 0 | EV31: 0 | EW31: 0 | EX31: 0 | EY31: 0 | EZ31: 0 | FA31: 0 | FB31: 0 | FC31: 0 | FD31: 0 | FE31: 0 | FF31: 17,104 | FG31: 0 | FH31: 0 | FI31: 17,104 | FJ31: 0 | FK31: 7,703 | FL31: 0 | FM31: 0 | FN31: 7,703 | FO31: 0 | FP31: 0 | FQ31: 0 | FR31: 0 | FS31: 0 | FT31: 0 | FU31: 0 | FV31: 0 | FW31: 0 | FX31: 0 | FY31: 0 | FZ31: 6,700 | GA31: 0 | GB31: 0 | GC31: 6,700 | GD31: 0 | GE31: 1,284 | GF31: 0 | GG31: 0 | GH31: 1,284 | GI31: 0 | GJ31: 0 | GK31: 0 | GL31: 0 | GM31: 0 | GN31: 0 | GO31: 0 | GP31: 0 | GQ31: 0 | GR31: 0 | GS31: 0 | GT31: 6,700 | GU31: 0 | GV31: 0 | GW31: 6,700 | GX31: 0 | GY31: 3,219 | GZ31: 0 | HA31: 0 | HB31: 3,219 | HC31: 0 | HD31: 0 | HE31: 0 | HF31: 0 | HG31: 0 | HH31: 0 | HI31: 0 | HJ31: 0 | HK31: 0 | HL31: 0 | HM31: 0 | HN31: 3,704 | HO31: 0 | HP31: 0 | HQ31: 3,704 | HR31: 0 | HS31: 3,200 | HT31: 0 | HU31: 0 | HV31: 3,200 | HW31: 0 | HX31: 0 | HY31: 0 | HZ31: 0 | IA31: 0 | IB31: 0 | IC31: 0 | ID31: 0 | IE31: 0 | IF31: 0 | IG31: 0 | IH31: 30,523 | II31: 0 | IJ31: 0 | IK31: 30,523 | IL31: 0 | IM31: 13,000 | IN31: 0 | IO31: 0 | IP31: 13,000 | IQ31: 0 | IR31: 0 | IS31: 0 | IT31: 0 | IU31: 0 | IV31: 0 | IW31: 0 | IX31: 0 | IY31: 0 | IZ31: 0 | JA31: 0 | JB31: 12,252 | JC31: 0 | JD31: 0 | JE31: 12,252 | JF31: 0 | JG31: 9,600 | JH31: 0 | JI31: 0 | JJ31: 9,600 | JK31: 0 | JL31: 0 | JM31: 0 | JN31: 0 | JO31: 0 | JP31: 0 | JQ31: 0 | JR31: 0 | JS31: 0 | JT31: 0 | JU31: 0 | JV31: 4,084 | JW31: 0 | JX31: 0 | JY31: 4,084 | JZ31: 0 | KA31: 3,200 | KB31: 0 | KC31: 0 | KD31: 3,200 | KE31: 0 | KF31: 0 | KG31: 0 | KH31: 0 | KI31: 0 | KJ31: 0 | KK31: 0 | KL31: 0 | KM31: 0 | KN31: 0 | KO31: 0 | KP31: 4,084 | KQ31: 0 | KR31: 0 | KS31: 4,084 | KT31: 0 | KU31: 3,200 | KV31: 0 | KW31: 0 | KX31: 3,200 | KY31: 0 | KZ31: 0 | LA31: 0 | LB31: 0 | LC31: 0 | LD31: 0 | LE31: 0 | LF31: 0 | LG31: 0 | LH31: 0 | LI31: 0 | LJ31: 4,084 | LK31: 0 | LL31: 0 | LM31: 4,084 | LN31: 0 | LO31: 3,200 | LP31: 0 | LQ31: 0 | LR31: 3,200 | LS31: 0 | LT31: 0 | LU31: 0 | LV31: 0 | LW31: 0 | LX31: 0 | LY31: 0 | LZ31: 0 | MA31: 0 | MB31: 0 | MC31: 0 | MD31: 42,775 | ME31: 0 | MF31: 0 | MG31: 42,775 | MH31: 0 | MI31: 22,600 | MJ31: 0 | MK31: 0 | ML31: 22,600 | MM31: 0 | MN31: 0 | MO31: 0 | MP31: 0 | MQ31: 0 | MR31: 0 | MS31: 0 | MT31: 0 | MU31: 0 | MV31: 0 | MW31: 0 | MX31: 0 | MY31: 0 | MZ31: 0 | NA31: 0 | NB31: 0 | NC31: 0 | ND31: 0 | NE31: 0 | NF31: 0 | NG31: 0 | NH31: 0 | NI31: 0 | NJ31: 0 | NK31: 0 | NL31: 0 | NM31: 0 | NN31: 0 | NO31: 0 | NP31: 0 | NQ31: 0 | NR31: 0 | NS31: 0 | NT31: 0 | NU31: 0 | NV31: 0 | NW31: 0 | NX31: 0 | NY31: 0 | NZ31: 0 | OA31: 0 | OB31: 0 | OC31: 0 | OD31: 0 | OE31: 0 | OF31: 0 | OG31: 0 | OH31: 0 | OI31: 0 | OJ31: 0 | OK31: 0 | OL31: 0 | OM31: 0 | ON31: 0 | OO31: 0 | OP31: 0 | OQ31: 0 | OR31: 0 | OS31: 0 | OT31: 0 | OU31: 0 | OV31: 0 | OW31: 0 | OX31: 0 | OY31: 0 | OZ31: 0 | PA31: 0 | PB31: 0 | PC31: 0 | PD31: 0 | PE31: 0 | PF31: 0 | PG31: 0 | PH31: 0 | PI31: 0 | PJ31: 0 | PK31: 0 | PL31: 0 | PM31: 0 | PN31: 0 | PO31: 0 | PP31: 0 | PQ31: 0 | PR31: 0 | PS31: 0 | PT31: 0 | PU31: 0 | PV31: 0 | PW31: 0 | PX31: 0 | PY31: 0 | PZ31: 42,775 | QA31: 0 | QB31: 0 | QC31: 42,775 | QD31: 0 | QE31: 22,600 | QF31: 0 | QG31: 0 | QH31: 22,600 | QI31: 0 | QJ31: 0 | QK31: 0 | QL31: 0 | QM31: 0 | QN31: 0 | QO31: 12,253 | QP31: 1 | QQ31: 0 | QR31: 12,252 | QS31: 0 | QT31: 18,387 | QU31: 845 | QV31: 0 | QW31: 17,542 | QX31: 0 | QY31: 26,309 | QZ31: 844 | RA31: 0 | RB31: 25,465 | RC31: 0 | RD31: 42,775 | RE31: 0 | RF31: 0 | RG31: 42,775 | RH31: 0 | RI31: 34,853 | RJ31: 1 | RK31: 0 | RL31: 34,852 | RM31: 0 | RN31: -7,922 | RO31: 1 | RP31: 0 | RQ31: -7,923 | RR31: 0 | RS31: (Отс) Протокол ИК ООО "МЕЧЕЛ-ЭНЕРГО" №01-17 от 15.03.2011г. | RT31: =BO31+IF(Ф!$K$4=1,DW31+EQ31,0)+IF(Ф!$K$4=2,EQ31+GE31,0)+IF(Ф!$K$4=3,GE31+GY31,0)+IF(Ф!$K$4=4,GY31+HS31,0)+IF(Ф!$K$4=5,HS31+KA31,0)+IF(Ф!$K$4=6,KA31+KU31,0)+IF(Ф!$K$4=7,KU31+LO31,0)+IF(Ф!$K$4=8,LO31+NW31,0)+IF(Ф!$K$4=9,NW31+OQ31,0)+IF(Ф!$K$4=10,OQ31+PK31,0)+IF(Ф!$K$4=11,PK31,0)-BY31 -> 5,297 | RU31: =RT31*(1+Ф!$K$9) -> 6,250 | RX31: 26,668 | RY31: 48,344 | SA31: 6,250 | SB31: 26,668 | SC31: 48,344
B32: 99 | C32: 19 | G32: МЭ-ТЭЦЧМК-1-П-510 | I32: Утв.16 | K32: Установка приборов учета Энергоэффективность | L32: 2011-05-01 | M32: 2017-12-31 | N32: система | O32: 1 | P32: (З) | Q32: 42,516 | R32: 5,799 | S32: 0 | T32: 36,717 | U32: 0 | V32: 6,570 | W32: 3,667 | X32: 0 | Y32: 2,903 | Z32: 0 | AA32: 5,902 | AB32: 3,749 | AC32: 0 | AD32: 2,153 | AE32: 0 | AF32: 35,946 | AG32: 2,132 | AH32: 0 | AI32: 33,814 | AJ32: 0 | AK32: 36,614 | AL32: 2,050 | AM32: 0 | AN32: 34,564 | AO32: 0 | AP32: 26,294 | AQ32: 2,132 | AR32: 0 | AS32: 24,162 | AT32: 0 | AU32: 23,082 | AV32: 2,050 | AW32: 0 | AX32: 21,032 | AY32: 0 | AZ32: 23,082 | BJ32: =IF(Ф!$K$4>=1,CX32,0)+IF(Ф!$K$4>=2,DR32,0)+IF(Ф!$K$4>=3,EL32,0)+IF(Ф!$K$4>=4,FZ32,0)+IF(Ф!$K$4>=5,GT32,0)+IF(Ф!$K$4>=6,HN32,0)+IF(Ф!$K$4>=7,JV32,0)+IF(Ф!$K$4>=8,KP32,0)+IF(Ф!$K$4>=9,LJ32,0)+IF(Ф!$K$4>=10,NR32,0)+IF(Ф!$K$4>=11,OL32,0)+IF(Ф!$K$4>=12,PF32,0) -> 0 | BK32: =IF(Ф!$K$4>=1,CY32,0)+IF(Ф!$K$4>=2,DS32,0)+IF(Ф!$K$4>=3,EM32,0)+IF(Ф!$K$4>=4,GA32,0)+IF(Ф!$K$4>=5,GU32,0)+IF(Ф!$K$4>=6,HO32,0)+IF(Ф!$K$4>=7,JW32,0)+IF(Ф!$K$4>=8,KQ32,0)+IF(Ф!$K$4>=9,LK32,0)+IF(Ф!$K$4>=10,NS32,0)+IF(Ф!$K$4>=11,OM32,0)+IF(Ф!$K$4>=12,PG32,0) -> 0 | BL32: =IF(Ф!$K$4>=1,CZ32,0)+IF(Ф!$K$4>=2,DT32,0)+IF(Ф!$K$4>=3,EN32,0)+IF(Ф!$K$4>=4,GB32,0)+IF(Ф!$K$4>=5,GV32,0)+IF(Ф!$K$4>=6,HP32,0)+IF(Ф!$K$4>=7,JX32,0)+IF(Ф!$K$4>=8,KR32,0)+IF(Ф!$K$4>=9,LL32,0)+IF(Ф!$K$4>=10,NT32,0)+IF(Ф!$K$4>=11,ON32,0)+IF(Ф!$K$4>=12,PH32,0) -> 0 | BM32: =IF(Ф!$K$4>=1,DA32,0)+IF(Ф!$K$4>=2,DU32,0)+IF(Ф!$K$4>=3,EO32,0)+IF(Ф!$K$4>=4,GC32,0)+IF(Ф!$K$4>=5,GW32,0)+IF(Ф!$K$4>=6,HQ32,0)+IF(Ф!$K$4>=7,JY32,0)+IF(Ф!$K$4>=8,KS32,0)+IF(Ф!$K$4>=9,LM32,0)+IF(Ф!$K$4>=10,NU32,0)+IF(Ф!$K$4>=11,OO32,0)+IF(Ф!$K$4>=12,PI32,0) -> 0 | BN32: =IF(Ф!$K$4>=1,DB32,0)+IF(Ф!$K$4>=2,DV32,0)+IF(Ф!$K$4>=3,EP32,0)+IF(Ф!$K$4>=4,GD32,0)+IF(Ф!$K$4>=5,GX32,0)+IF(Ф!$K$4>=6,HR32,0)+IF(Ф!$K$4>=7,JZ32,0)+IF(Ф!$K$4>=8,KT32,0)+IF(Ф!$K$4>=9,LN32,0)+IF(Ф!$K$4>=10,NV32,0)+IF(Ф!$K$4>=11,OP32,0)+IF(Ф!$K$4>=12,PJ32,0) -> 0 | BO32: =IF(Ф!$K$4>=1,DC32,0)+IF(Ф!$K$4>=2,DW32,0)+IF(Ф!$K$4>=3,EQ32,0)+IF(Ф!$K$4>=4,GE32,0)+IF(Ф!$K$4>=5,GY32,0)+IF(Ф!$K$4>=6,HS32,0)+IF(Ф!$K$4>=7,KA32,0)+IF(Ф!$K$4>=8,KU32,0)+IF(Ф!$K$4>=9,LO32,0)+IF(Ф!$K$4>=10,NW32,0)+IF(Ф!$K$4>=11,OQ32,0)+IF(Ф!$K$4>=12,PK32,0) -> 0 | BP32: =IF(Ф!$K$4>=1,DD32,0)+IF(Ф!$K$4>=2,DX32,0)+IF(Ф!$K$4>=3,ER32,0)+IF(Ф!$K$4>=4,GF32,0)+IF(Ф!$K$4>=5,GZ32,0)+IF(Ф!$K$4>=6,HT32,0)+IF(Ф!$K$4>=7,KB32,0)+IF(Ф!$K$4>=8,KV32,0)+IF(Ф!$K$4>=9,LP32,0)+IF(Ф!$K$4>=10,NX32,0)+IF(Ф!$K$4>=11,OR32,0)+IF(Ф!$K$4>=12,PL32,0) -> 0 | BQ32: =IF(Ф!$K$4>=1,DE32,0)+IF(Ф!$K$4>=2,DY32,0)+IF(Ф!$K$4>=3,ES32,0)+IF(Ф!$K$4>=4,GG32,0)+IF(Ф!$K$4>=5,HA32,0)+IF(Ф!$K$4>=6,HU32,0)+IF(Ф!$K$4>=7,KC32,0)+IF(Ф!$K$4>=8,KW32,0)+IF(Ф!$K$4>=9,LQ32,0)+IF(Ф!$K$4>=10,NY32,0)+IF(Ф!$K$4>=11,OS32,0)+IF(Ф!$K$4>=12,PM32,0) -> 0 | BR32: =IF(Ф!$K$4>=1,DF32,0)+IF(Ф!$K$4>=2,DZ32,0)+IF(Ф!$K$4>=3,ET32,0)+IF(Ф!$K$4>=4,GH32,0)+IF(Ф!$K$4>=5,HB32,0)+IF(Ф!$K$4>=6,HV32,0)+IF(Ф!$K$4>=7,KD32,0)+IF(Ф!$K$4>=8,KX32,0)+IF(Ф!$K$4>=9,LR32,0)+IF(Ф!$K$4>=10,NZ32,0)+IF(Ф!$K$4>=11,OT32,0)+IF(Ф!$K$4>=12,PN32,0) -> 0 | BS32: =IF(Ф!$K$4>=1,DG32,0)+IF(Ф!$K$4>=2,EA32,0)+IF(Ф!$K$4>=3,EU32,0)+IF(Ф!$K$4>=4,GI32,0)+IF(Ф!$K$4>=5,HC32,0)+IF(Ф!$K$4>=6,HW32,0)+IF(Ф!$K$4>=7,KE32,0)+IF(Ф!$K$4>=8,KY32,0)+IF(Ф!$K$4>=9,LS32,0)+IF(Ф!$K$4>=10,OA32,0)+IF(Ф!$K$4>=11,OU32,0)+IF(Ф!$K$4>=12,PO32,0) -> 0 | BT32: =IF(Ф!$K$4>=1,DH32,0)+IF(Ф!$K$4>=2,EB32,0)+IF(Ф!$K$4>=3,EV32,0)+IF(Ф!$K$4>=4,GJ32,0)+IF(Ф!$K$4>=5,HD32,0)+IF(Ф!$K$4>=6,HX32,0)+IF(Ф!$K$4>=7,KF32,0)+IF(Ф!$K$4>=8,KZ32,0)+IF(Ф!$K$4>=9,LT32,0)+IF(Ф!$K$4>=10,OB32,0)+IF(Ф!$K$4>=11,OV32,0)+IF(Ф!$K$4>=12,PP32,0) -> 0 | BU32: =IF(Ф!$K$4>=1,DI32,0)+IF(Ф!$K$4>=2,EC32,0)+IF(Ф!$K$4>=3,EW32,0)+IF(Ф!$K$4>=4,GK32,0)+IF(Ф!$K$4>=5,HE32,0)+IF(Ф!$K$4>=6,HY32,0)+IF(Ф!$K$4>=7,KG32,0)+IF(Ф!$K$4>=8,LA32,0)+IF(Ф!$K$4>=9,LU32,0)+IF(Ф!$K$4>=10,OC32,0)+IF(Ф!$K$4>=11,OW32,0)+IF(Ф!$K$4>=12,PQ32,0) -> 0 | BV32: =IF(Ф!$K$4>=1,DJ32,0)+IF(Ф!$K$4>=2,ED32,0)+IF(Ф!$K$4>=3,EX32,0)+IF(Ф!$K$4>=4,GL32,0)+IF(Ф!$K$4>=5,HF32,0)+IF(Ф!$K$4>=6,HZ32,0)+IF(Ф!$K$4>=7,KH32,0)+IF(Ф!$K$4>=8,LB32,0)+IF(Ф!$K$4>=9,LV32,0)+IF(Ф!$K$4>=10,OD32,0)+IF(Ф!$K$4>=11,OX32,0)+IF(Ф!$K$4>=12,PR32,0) -> 0 | BW32: =IF(Ф!$K$4>=1,DK32,0)+IF(Ф!$K$4>=2,EE32,0)+IF(Ф!$K$4>=3,EY32,0)+IF(Ф!$K$4>=4,GM32,0)+IF(Ф!$K$4>=5,HG32,0)+IF(Ф!$K$4>=6,IA32,0)+IF(Ф!$K$4>=7,KI32,0)+IF(Ф!$K$4>=8,LC32,0)+IF(Ф!$K$4>=9,LW32,0)+IF(Ф!$K$4>=10,OE32,0)+IF(Ф!$K$4>=11,OY32,0)+IF(Ф!$K$4>=12,PS32,0) -> 0 | BX32: =IF(Ф!$K$4>=1,DL32,0)+IF(Ф!$K$4>=2,EF32,0)+IF(Ф!$K$4>=3,EZ32,0)+IF(Ф!$K$4>=4,GN32,0)+IF(Ф!$K$4>=5,HH32,0)+IF(Ф!$K$4>=6,IB32,0)+IF(Ф!$K$4>=7,KJ32,0)+IF(Ф!$K$4>=8,LD32,0)+IF(Ф!$K$4>=9,LX32,0)+IF(Ф!$K$4>=10,OF32,0)+IF(Ф!$K$4>=11,OZ32,0)+IF(Ф!$K$4>=12,PT32,0) -> 0 | BY32: =IF(Ф!$K$4>=1,DM32,0)+IF(Ф!$K$4>=2,EG32,0)+IF(Ф!$K$4>=3,FA32,0)+IF(Ф!$K$4>=4,GO32,0)+IF(Ф!$K$4>=5,HI32,0)+IF(Ф!$K$4>=6,IC32,0)+IF(Ф!$K$4>=7,KK32,0)+IF(Ф!$K$4>=8,LE32,0)+IF(Ф!$K$4>=9,LY32,0)+IF(Ф!$K$4>=10,OG32,0)+IF(Ф!$K$4>=11,PA32,0)+IF(Ф!$K$4>=12,PU32,0) -> 0 | BZ32: =IF(Ф!$K$4>=1,DN32,0)+IF(Ф!$K$4>=2,EH32,0)+IF(Ф!$K$4>=3,FB32,0)+IF(Ф!$K$4>=4,GP32,0)+IF(Ф!$K$4>=5,HJ32,0)+IF(Ф!$K$4>=6,ID32,0)+IF(Ф!$K$4>=7,KL32,0)+IF(Ф!$K$4>=8,LF32,0)+IF(Ф!$K$4>=9,LZ32,0)+IF(Ф!$K$4>=10,OH32,0)+IF(Ф!$K$4>=11,PB32,0)+IF(Ф!$K$4>=12,PV32,0) -> 0 | CA32: =IF(Ф!$K$4>=1,DO32,0)+IF(Ф!$K$4>=2,EI32,0)+IF(Ф!$K$4>=3,FC32,0)+IF(Ф!$K$4>=4,GQ32,0)+IF(Ф!$K$4>=5,HK32,0)+IF(Ф!$K$4>=6,IE32,0)+IF(Ф!$K$4>=7,KM32,0)+IF(Ф!$K$4>=8,LG32,0)+IF(Ф!$K$4>=9,MA32,0)+IF(Ф!$K$4>=10,OI32,0)+IF(Ф!$K$4>=11,PC32,0)+IF(Ф!$K$4>=12,PW32,0) -> 0 | CB32: =IF(Ф!$K$4>=1,DP32,0)+IF(Ф!$K$4>=2,EJ32,0)+IF(Ф!$K$4>=3,FD32,0)+IF(Ф!$K$4>=4,GR32,0)+IF(Ф!$K$4>=5,HL32,0)+IF(Ф!$K$4>=6,IF32,0)+IF(Ф!$K$4>=7,KN32,0)+IF(Ф!$K$4>=8,LH32,0)+IF(Ф!$K$4>=9,MB32,0)+IF(Ф!$K$4>=10,OJ32,0)+IF(Ф!$K$4>=11,PD32,0)+IF(Ф!$K$4>=12,PX32,0) -> 0 | CC32: =IF(Ф!$K$4>=1,DQ32,0)+IF(Ф!$K$4>=2,EK32,0)+IF(Ф!$K$4>=3,FE32,0)+IF(Ф!$K$4>=4,GS32,0)+IF(Ф!$K$4>=5,HM32,0)+IF(Ф!$K$4>=6,IG32,0)+IF(Ф!$K$4>=7,KO32,0)+IF(Ф!$K$4>=8,LI32,0)+IF(Ф!$K$4>=9,MC32,0)+IF(Ф!$K$4>=10,OK32,0)+IF(Ф!$K$4>=11,PE32,0)+IF(Ф!$K$4>=12,PY32,0) -> 0 | CD32: 82 | CE32: 82 | CF32: 0 | CG32: 0 | CH32: 0 | CI32: 750 | CJ32: 0 | CK32: 0 | CL32: 750 | CM32: 0 | CN32: 0 | CO32: 0 | CP32: 0 | CQ32: 0 | CR32: 0 | CS32: 0 | CT32: 0 | CU32: 0 | CV32: 0 | CW32: 0 | CX32: 0 | CY32: 0 | CZ32: 0 | DA32: 0 | DB32: 0 | DC32: 0 | DD32: 0 | DE32: 0 | DF32: 0 | DG32: 0 | DH32: 0 | DI32: 0 | DJ32: 0 | DK32: 0 | DL32: 0 | DM32: 0 | DN32: 0 | DO32: 0 | DP32: 0 | DQ32: 0 | DR32: 82 | DS32: 82 | DT32: 0 | DU32: 0 | DV32: 0 | DW32: 750 | DX32: 0 | DY32: 0 | DZ32: 750 | EA32: 0 | EB32: 0 | EC32: 0 | ED32: 0 | EE32: 0 | EF32: 0 | EG32: 0 | EH32: 0 | EI32: 0 | EJ32: 0 | EK32: 0 | EL32: 0 | EM32: 0 | EN32: 0 | EO32: 0 | EP32: 0 | EQ32: 0 | ER32: 0 | ES32: 0 | ET32: 0 | EU32: 0 | EV32: 0 | EW32: 0 | EX32: 0 | EY32: 0 | EZ32: 0 | FA32: 0 | FB32: 0 | FC32: 0 | FD32: 0 | FE32: 0 | FF32: 2,050 | FG32: 2,050 | FH32: 0 | FI32: 0 | FJ32: 0 | FK32: 5,000 | FL32: 0 | FM32: 0 | FN32: 5,000 | FO32: 0 | FP32: 0 | FQ32: 0 | FR32: 0 | FS32: 0 | FT32: 0 | FU32: 0 | FV32: 0 | FW32: 0 | FX32: 0 | FY32: 0 | FZ32: 0 | GA32: 0 | GB32: 0 | GC32: 0 | GD32: 0 | GE32: 0 | GF32: 0 | GG32: 0 | GH32: 0 | GI32: 0 | GJ32: 0 | GK32: 0 | GL32: 0 | GM32: 0 | GN32: 0 | GO32: 0 | GP32: 0 | GQ32: 0 | GR32: 0 | GS32: 0 | GT32: 0 | GU32: 0 | GV32: 0 | GW32: 0 | GX32: 0 | GY32: 2,000 | GZ32: 0 | HA32: 0 | HB32: 2,000 | HC32: 0 | HD32: 0 | HE32: 0 | HF32: 0 | HG32: 0 | HH32: 0 | HI32: 0 | HJ32: 0 | HK32: 0 | HL32: 0 | HM32: 0 | HN32: 2,050 | HO32: 2,050 | HP32: 0 | HQ32: 0 | HR32: 0 | HS32: 3,000 | HT32: 0 | HU32: 0 | HV32: 3,000 | HW32: 0 | HX32: 0 | HY32: 0 | HZ32: 0 | IA32: 0 | IB32: 0 | IC32: 0 | ID32: 0 | IE32: 0 | IF32: 0 | IG32: 0 | IH32: 2,132 | II32: 2,132 | IJ32: 0 | IK32: 0 | IL32: 0 | IM32: 5,750 | IN32: 0 | IO32: 0 | IP32: 5,750 | IQ32: 0 | IR32: 0 | IS32: 0 | IT32: 0 | IU32: 0 | IV32: 0 | IW32: 0 | IX32: 0 | IY32: 0 | IZ32: 0 | JA32: 0 | JB32: 17,885 | JC32: 0 | JD32: 0 | JE32: 17,885 | JF32: 0 | JG32: 13,060 | JH32: 2,050 | JI32: 0 | JJ32: 11,010 | JK32: 0 | JL32: 0 | JM32: 0 | JN32: 0 | JO32: 0 | JP32: 0 | JQ32: 0 | JR32: 0 | JS32: 0 | JT32: 0 | JU32: 0 | JV32: 3,883 | JW32: 0 | JX32: 0 | JY32: 3,883 | JZ32: 0 | KA32: 5,627 | KB32: 0 | KC32: 0 | KD32: 5,627 | KE32: 0 | KF32: 0 | KG32: 0 | KH32: 0 | KI32: 0 | KJ32: 0 | KK32: 0 | KL32: 0 | KM32: 0 | KN32: 0 | KO32: 0 | KP32: 5,902 | KQ32: 0 | KR32: 0 | KS32: 5,902 | KT32: 0 | KU32: 4,000 | KV32: 0 | KW32: 0 | KX32: 4,000 | KY32: 0 | KZ32: 0 | LA32: 0 | LB32: 0 | LC32: 0 | LD32: 0 | LE32: 0 | LF32: 0 | LG32: 0 | LH32: 0 | LI32: 0 | LJ32: 8,100 | LK32: 0 | LL32: 0 | LM32: 8,100 | LN32: 0 | LO32: 3,433 | LP32: 2,050 | LQ32: 0 | LR32: 1,383 | LS32: 0 | LT32: 0 | LU32: 0 | LV32: 0 | LW32: 0 | LX32: 0 | LY32: 0 | LZ32: 0 | MA32: 0 | MB32: 0 | MC32: 0 | MD32: 20,017 | ME32: 2,132 | MF32: 0 | MG32: 17,885 | MH32: 0 | MI32: 18,810 | MJ32: 2,050 | MK32: 0 | ML32: 16,760 | MM32: 0 | MN32: 0 | MO32: 0 | MP32: 0 | MQ32: 0 | MR32: 0 | MS32: 0 | MT32: 0 | MU32: 0 | MV32: 0 | MW32: 0 | MX32: 6,277 | MY32: 0 | MZ32: 0 | NA32: 6,277 | NB32: 0 | NC32: 4,272 | ND32: 0 | NE32: 0 | NF32: 4,272 | NG32: 0 | NH32: 0 | NI32: 0 | NJ32: 0 | NK32: 0 | NL32: 0 | NM32: 0 | NN32: 0 | NO32: 0 | NP32: 0 | NQ32: 0 | NR32: 5,492 | NS32: 0 | NT32: 0 | NU32: 5,492 | NV32: 0 | NW32: 2,000 | NX32: 0 | NY32: 0 | NZ32: 2,000 | OA32: 0 | OB32: 0 | OC32: 0 | OD32: 0 | OE32: 0 | OF32: 0 | OG32: 0 | OH32: 0 | OI32: 0 | OJ32: 0 | OK32: 0 | OL32: 785 | OM32: 0 | ON32: 0 | OO32: 785 | OP32: 0 | OQ32: 1,500 | OR32: 0 | OS32: 0 | OT32: 1,500 | OU32: 0 | OV32: 0 | OW32: 0 | OX32: 0 | OY32: 0 | OZ32: 0 | PA32: 0 | PB32: 0 | PC32: 0 | PD32: 0 | PE32: 0 | PF32: 0 | PG32: 0 | PH32: 0 | PI32: 0 | PJ32: 0 | PK32: 772 | PL32: 0 | PM32: 0 | PN32: 772 | PO32: 0 | PP32: 0 | PQ32: 0 | PR32: 0 | PS32: 0 | PT32: 0 | PU32: 0 | PV32: 0 | PW32: 0 | PX32: 0 | PY32: 0 | PZ32: 26,294 | QA32: 2,132 | QB32: 0 | QC32: 24,162 | QD32: 0 | QE32: 23,082 | QF32: 2,050 | QG32: 0 | QH32: 21,032 | QI32: 0 | QJ32: 9,652 | QK32: 0 | QL32: 0 | QM32: 9,652 | QN32: 0 | QO32: 13,532 | QP32: 0 | QQ32: 0 | QR32: 13,532 | QS32: 0 | QT32: 6,570 | QU32: 3,667 | QV32: 0 | QW32: 2,903 | QX32: 0 | QY32: 5,902 | QZ32: 3,749 | RA32: 0 | RB32: 2,153 | RC32: 0 | RD32: 35,946 | RE32: 2,132 | RF32: 0 | RG32: 33,814 | RH32: 0 | RI32: 36,614 | RJ32: 2,050 | RK32: 0 | RL32: 34,564 | RM32: 0 | RN32: 668 | RO32: -82 | RP32: 0 | RQ32: 750 | RR32: 0 | RS32: ИК-Див. Протокол ИК ООО "МЕЧЕЛ-ЭНЕРГО" №01-17 от 15.03.11г. | RT32: =BO32+IF(Ф!$K$4=1,DW32+EQ32,0)+IF(Ф!$K$4=2,EQ32+GE32,0)+IF(Ф!$K$4=3,GE32+GY32,0)+IF(Ф!$K$4=4,GY32+HS32,0)+IF(Ф!$K$4=5,HS32+KA32,0)+IF(Ф!$K$4=6,KA32+KU32,0)+IF(Ф!$K$4=7,KU32+LO32,0)+IF(Ф!$K$4=8,LO32+NW32,0)+IF(Ф!$K$4=9,NW32+OQ32,0)+IF(Ф!$K$4=10,OQ32+PK32,0)+IF(Ф!$K$4=11,PK32,0)-BY32 -> 750 | RU32: =RT32*(1+Ф!$K$9) -> 885 | RX32: 27,237 | RY32: 48,221 | SA32: 885 | SB32: 27,237 | SC32: 48,221
B33: 99 | C33: 19 | G33: МЭ-ТЭЦЧМК-1-П-704 | I33: Утв.16 | K33: Система пожаротушения ТЭЦ | L33: 2013-10-04 | M33: 2017-01-31 | N33: система | O33: 1 | P33: (З) | Q33: 9,830 | R33: 960 | S33: 0 | T33: 8,870 | U33: 0 | V33: 5,710 | W33: 960 | X33: 0 | Y33: 4,750 | Z33: 0 | AA33: 530 | AB33: 530 | AC33: 0 | AD33: 0 | AE33: 0 | AF33: 4,120 | AG33: 0 | AH33: 0 | AI33: 4,120 | AJ33: 0 | AK33: 9,300 | AL33: 430 | AM33: 0 | AN33: 8,870 | AO33: 0 | AP33: 1,279 | AQ33: 0 | AR33: 0 | AS33: 1,279 | AT33: 0 | AU33: 6,459 | AV33: 430 | AW33: 0 | AX33: 6,029 | AY33: 0 | AZ33: 6,459 | BJ33: =IF(Ф!$K$4>=1,CX33,0)+IF(Ф!$K$4>=2,DR33,0)+IF(Ф!$K$4>=3,EL33,0)+IF(Ф!$K$4>=4,FZ33,0)+IF(Ф!$K$4>=5,GT33,0)+IF(Ф!$K$4>=6,HN33,0)+IF(Ф!$K$4>=7,JV33,0)+IF(Ф!$K$4>=8,KP33,0)+IF(Ф!$K$4>=9,LJ33,0)+IF(Ф!$K$4>=10,NR33,0)+IF(Ф!$K$4>=11,OL33,0)+IF(Ф!$K$4>=12,PF33,0) -> 1,279 | BK33: =IF(Ф!$K$4>=1,CY33,0)+IF(Ф!$K$4>=2,DS33,0)+IF(Ф!$K$4>=3,EM33,0)+IF(Ф!$K$4>=4,GA33,0)+IF(Ф!$K$4>=5,GU33,0)+IF(Ф!$K$4>=6,HO33,0)+IF(Ф!$K$4>=7,JW33,0)+IF(Ф!$K$4>=8,KQ33,0)+IF(Ф!$K$4>=9,LK33,0)+IF(Ф!$K$4>=10,NS33,0)+IF(Ф!$K$4>=11,OM33,0)+IF(Ф!$K$4>=12,PG33,0) -> 0 | BL33: =IF(Ф!$K$4>=1,CZ33,0)+IF(Ф!$K$4>=2,DT33,0)+IF(Ф!$K$4>=3,EN33,0)+IF(Ф!$K$4>=4,GB33,0)+IF(Ф!$K$4>=5,GV33,0)+IF(Ф!$K$4>=6,HP33,0)+IF(Ф!$K$4>=7,JX33,0)+IF(Ф!$K$4>=8,KR33,0)+IF(Ф!$K$4>=9,LL33,0)+IF(Ф!$K$4>=10,NT33,0)+IF(Ф!$K$4>=11,ON33,0)+IF(Ф!$K$4>=12,PH33,0) -> 0 | BM33: =IF(Ф!$K$4>=1,DA33,0)+IF(Ф!$K$4>=2,DU33,0)+IF(Ф!$K$4>=3,EO33,0)+IF(Ф!$K$4>=4,GC33,0)+IF(Ф!$K$4>=5,GW33,0)+IF(Ф!$K$4>=6,HQ33,0)+IF(Ф!$K$4>=7,JY33,0)+IF(Ф!$K$4>=8,KS33,0)+IF(Ф!$K$4>=9,LM33,0)+IF(Ф!$K$4>=10,NU33,0)+IF(Ф!$K$4>=11,OO33,0)+IF(Ф!$K$4>=12,PI33,0) -> 1,279 | BN33: =IF(Ф!$K$4>=1,DB33,0)+IF(Ф!$K$4>=2,DV33,0)+IF(Ф!$K$4>=3,EP33,0)+IF(Ф!$K$4>=4,GD33,0)+IF(Ф!$K$4>=5,GX33,0)+IF(Ф!$K$4>=6,HR33,0)+IF(Ф!$K$4>=7,JZ33,0)+IF(Ф!$K$4>=8,KT33,0)+IF(Ф!$K$4>=9,LN33,0)+IF(Ф!$K$4>=10,NV33,0)+IF(Ф!$K$4>=11,OP33,0)+IF(Ф!$K$4>=12,PJ33,0) -> 0 | BO33: =IF(Ф!$K$4>=1,DC33,0)+IF(Ф!$K$4>=2,DW33,0)+IF(Ф!$K$4>=3,EQ33,0)+IF(Ф!$K$4>=4,GE33,0)+IF(Ф!$K$4>=5,GY33,0)+IF(Ф!$K$4>=6,HS33,0)+IF(Ф!$K$4>=7,KA33,0)+IF(Ф!$K$4>=8,KU33,0)+IF(Ф!$K$4>=9,LO33,0)+IF(Ф!$K$4>=10,NW33,0)+IF(Ф!$K$4>=11,OQ33,0)+IF(Ф!$K$4>=12,PK33,0) -> 0 | BP33: =IF(Ф!$K$4>=1,DD33,0)+IF(Ф!$K$4>=2,DX33,0)+IF(Ф!$K$4>=3,ER33,0)+IF(Ф!$K$4>=4,GF33,0)+IF(Ф!$K$4>=5,GZ33,0)+IF(Ф!$K$4>=6,HT33,0)+IF(Ф!$K$4>=7,KB33,0)+IF(Ф!$K$4>=8,KV33,0)+IF(Ф!$K$4>=9,LP33,0)+IF(Ф!$K$4>=10,NX33,0)+IF(Ф!$K$4>=11,OR33,0)+IF(Ф!$K$4>=12,PL33,0) -> 0 | BQ33: =IF(Ф!$K$4>=1,DE33,0)+IF(Ф!$K$4>=2,DY33,0)+IF(Ф!$K$4>=3,ES33,0)+IF(Ф!$K$4>=4,GG33,0)+IF(Ф!$K$4>=5,HA33,0)+IF(Ф!$K$4>=6,HU33,0)+IF(Ф!$K$4>=7,KC33,0)+IF(Ф!$K$4>=8,KW33,0)+IF(Ф!$K$4>=9,LQ33,0)+IF(Ф!$K$4>=10,NY33,0)+IF(Ф!$K$4>=11,OS33,0)+IF(Ф!$K$4>=12,PM33,0) -> 0 | BR33: =IF(Ф!$K$4>=1,DF33,0)+IF(Ф!$K$4>=2,DZ33,0)+IF(Ф!$K$4>=3,ET33,0)+IF(Ф!$K$4>=4,GH33,0)+IF(Ф!$K$4>=5,HB33,0)+IF(Ф!$K$4>=6,HV33,0)+IF(Ф!$K$4>=7,KD33,0)+IF(Ф!$K$4>=8,KX33,0)+IF(Ф!$K$4>=9,LR33,0)+IF(Ф!$K$4>=10,NZ33,0)+IF(Ф!$K$4>=11,OT33,0)+IF(Ф!$K$4>=12,PN33,0) -> 0 | BS33: =IF(Ф!$K$4>=1,DG33,0)+IF(Ф!$K$4>=2,EA33,0)+IF(Ф!$K$4>=3,EU33,0)+IF(Ф!$K$4>=4,GI33,0)+IF(Ф!$K$4>=5,HC33,0)+IF(Ф!$K$4>=6,HW33,0)+IF(Ф!$K$4>=7,KE33,0)+IF(Ф!$K$4>=8,KY33,0)+IF(Ф!$K$4>=9,LS33,0)+IF(Ф!$K$4>=10,OA33,0)+IF(Ф!$K$4>=11,OU33,0)+IF(Ф!$K$4>=12,PO33,0) -> 0 | BT33: =IF(Ф!$K$4>=1,DH33,0)+IF(Ф!$K$4>=2,EB33,0)+IF(Ф!$K$4>=3,EV33,0)+IF(Ф!$K$4>=4,GJ33,0)+IF(Ф!$K$4>=5,HD33,0)+IF(Ф!$K$4>=6,HX33,0)+IF(Ф!$K$4>=7,KF33,0)+IF(Ф!$K$4>=8,KZ33,0)+IF(Ф!$K$4>=9,LT33,0)+IF(Ф!$K$4>=10,OB33,0)+IF(Ф!$K$4>=11,OV33,0)+IF(Ф!$K$4>=12,PP33,0) -> 0 | BU33: =IF(Ф!$K$4>=1,DI33,0)+IF(Ф!$K$4>=2,EC33,0)+IF(Ф!$K$4>=3,EW33,0)+IF(Ф!$K$4>=4,GK33,0)+IF(Ф!$K$4>=5,HE33,0)+IF(Ф!$K$4>=6,HY33,0)+IF(Ф!$K$4>=7,KG33,0)+IF(Ф!$K$4>=8,LA33,0)+IF(Ф!$K$4>=9,LU33,0)+IF(Ф!$K$4>=10,OC33,0)+IF(Ф!$K$4>=11,OW33,0)+IF(Ф!$K$4>=12,PQ33,0) -> 0 | BV33: =IF(Ф!$K$4>=1,DJ33,0)+IF(Ф!$K$4>=2,ED33,0)+IF(Ф!$K$4>=3,EX33,0)+IF(Ф!$K$4>=4,GL33,0)+IF(Ф!$K$4>=5,HF33,0)+IF(Ф!$K$4>=6,HZ33,0)+IF(Ф!$K$4>=7,KH33,0)+IF(Ф!$K$4>=8,LB33,0)+IF(Ф!$K$4>=9,LV33,0)+IF(Ф!$K$4>=10,OD33,0)+IF(Ф!$K$4>=11,OX33,0)+IF(Ф!$K$4>=12,PR33,0) -> 0 | BW33: =IF(Ф!$K$4>=1,DK33,0)+IF(Ф!$K$4>=2,EE33,0)+IF(Ф!$K$4>=3,EY33,0)+IF(Ф!$K$4>=4,GM33,0)+IF(Ф!$K$4>=5,HG33,0)+IF(Ф!$K$4>=6,IA33,0)+IF(Ф!$K$4>=7,KI33,0)+IF(Ф!$K$4>=8,LC33,0)+IF(Ф!$K$4>=9,LW33,0)+IF(Ф!$K$4>=10,OE33,0)+IF(Ф!$K$4>=11,OY33,0)+IF(Ф!$K$4>=12,PS33,0) -> 0 | BX33: =IF(Ф!$K$4>=1,DL33,0)+IF(Ф!$K$4>=2,EF33,0)+IF(Ф!$K$4>=3,EZ33,0)+IF(Ф!$K$4>=4,GN33,0)+IF(Ф!$K$4>=5,HH33,0)+IF(Ф!$K$4>=6,IB33,0)+IF(Ф!$K$4>=7,KJ33,0)+IF(Ф!$K$4>=8,LD33,0)+IF(Ф!$K$4>=9,LX33,0)+IF(Ф!$K$4>=10,OF33,0)+IF(Ф!$K$4>=11,OZ33,0)+IF(Ф!$K$4>=12,PT33,0) -> 0 | BY33: =IF(Ф!$K$4>=1,DM33,0)+IF(Ф!$K$4>=2,EG33,0)+IF(Ф!$K$4>=3,FA33,0)+IF(Ф!$K$4>=4,GO33,0)+IF(Ф!$K$4>=5,HI33,0)+IF(Ф!$K$4>=6,IC33,0)+IF(Ф!$K$4>=7,KK33,0)+IF(Ф!$K$4>=8,LE33,0)+IF(Ф!$K$4>=9,LY33,0)+IF(Ф!$K$4>=10,OG33,0)+IF(Ф!$K$4>=11,PA33,0)+IF(Ф!$K$4>=12,PU33,0) -> 0 | BZ33: =IF(Ф!$K$4>=1,DN33,0)+IF(Ф!$K$4>=2,EH33,0)+IF(Ф!$K$4>=3,FB33,0)+IF(Ф!$K$4>=4,GP33,0)+IF(Ф!$K$4>=5,HJ33,0)+IF(Ф!$K$4>=6,ID33,0)+IF(Ф!$K$4>=7,KL33,0)+IF(Ф!$K$4>=8,LF33,0)+IF(Ф!$K$4>=9,LZ33,0)+IF(Ф!$K$4>=10,OH33,0)+IF(Ф!$K$4>=11,PB33,0)+IF(Ф!$K$4>=12,PV33,0) -> 0 | CA33: =IF(Ф!$K$4>=1,DO33,0)+IF(Ф!$K$4>=2,EI33,0)+IF(Ф!$K$4>=3,FC33,0)+IF(Ф!$K$4>=4,GQ33,0)+IF(Ф!$K$4>=5,HK33,0)+IF(Ф!$K$4>=6,IE33,0)+IF(Ф!$K$4>=7,KM33,0)+IF(Ф!$K$4>=8,LG33,0)+IF(Ф!$K$4>=9,MA33,0)+IF(Ф!$K$4>=10,OI33,0)+IF(Ф!$K$4>=11,PC33,0)+IF(Ф!$K$4>=12,PW33,0) -> 0 | CB33: =IF(Ф!$K$4>=1,DP33,0)+IF(Ф!$K$4>=2,EJ33,0)+IF(Ф!$K$4>=3,FD33,0)+IF(Ф!$K$4>=4,GR33,0)+IF(Ф!$K$4>=5,HL33,0)+IF(Ф!$K$4>=6,IF33,0)+IF(Ф!$K$4>=7,KN33,0)+IF(Ф!$K$4>=8,LH33,0)+IF(Ф!$K$4>=9,MB33,0)+IF(Ф!$K$4>=10,OJ33,0)+IF(Ф!$K$4>=11,PD33,0)+IF(Ф!$K$4>=12,PX33,0) -> 0 | CC33: =IF(Ф!$K$4>=1,DQ33,0)+IF(Ф!$K$4>=2,EK33,0)+IF(Ф!$K$4>=3,FE33,0)+IF(Ф!$K$4>=4,GS33,0)+IF(Ф!$K$4>=5,HM33,0)+IF(Ф!$K$4>=6,IG33,0)+IF(Ф!$K$4>=7,KO33,0)+IF(Ф!$K$4>=8,LI33,0)+IF(Ф!$K$4>=9,MC33,0)+IF(Ф!$K$4>=10,OK33,0)+IF(Ф!$K$4>=11,PE33,0)+IF(Ф!$K$4>=12,PY33,0) -> 0 | CD33: 1,279 | CE33: 0 | CF33: 0 | CG33: 1,279 | CH33: 0 | CI33: 5,180 | CJ33: 430 | CK33: 0 | CL33: 4,750 | CM33: 0 | CN33: 0 | CO33: 0 | CP33: 0 | CQ33: 0 | CR33: 0 | CS33: 0 | CT33: 0 | CU33: 0 | CV33: 0 | CW33: 0 | CX33: 1,279 | CY33: 0 | CZ33: 0 | DA33: 1,279 | DB33: 0 | DC33: 0 | DD33: 0 | DE33: 0 | DF33: 0 | DG33: 0 | DH33: 0 | DI33: 0 | DJ33: 0 | DK33: 0 | DL33: 0 | DM33: 0 | DN33: 0 | DO33: 0 | DP33: 0 | DQ33: 0 | DR33: 0 | DS33: 0 | DT33: 0 | DU33: 0 | DV33: 0 | DW33: 2,180 | DX33: 180 | DY33: 0 | DZ33: 2,000 | EA33: 0 | EB33: 0 | EC33: 0 | ED33: 0 | EE33: 0 | EF33: 0 | EG33: 0 | EH33: 0 | EI33: 0 | EJ33: 0 | EK33: 0 | EL33: 0 | EM33: 0 | EN33: 0 | EO33: 0 | EP33: 0 | EQ33: 3,000 | ER33: 250 | ES33: 0 | ET33: 2,750 | EU33: 0 | EV33: 0 | EW33: 0 | EX33: 0 | EY33: 0 | EZ33: 0 | FA33: 0 | FB33: 0 | FC33: 0 | FD33: 0 | FE33: 0 | FF33: 0 | FG33: 0 | FH33: 0 | FI33: 0 | FJ33: 0 | FK33: 1,279 | FL33: 0 | FM33: 0 | FN33: 1,279 | FO33: 0 | FP33: 0 | FQ33: 0 | FR33: 0 | FS33: 0 | FT33: 0 | FU33: 0 | FV33: 0 | FW33: 0 | FX33: 0 | FY33: 0 | FZ33: 0 | GA33: 0 | GB33: 0 | GC33: 0 | GD33: 0 | GE33: 0 | GF33: 0 | GG33: 0 | GH33: 0 | GI33: 0 | GJ33: 0 | GK33: 0 | GL33: 0 | GM33: 0 | GN33: 0 | GO33: 0 | GP33: 0 | GQ33: 0 | GR33: 0 | GS33: 0 | GT33: 0 | GU33: 0 | GV33: 0 | GW33: 0 | GX33: 0 | GY33: 1,279 | GZ33: 0 | HA33: 0 | HB33: 1,279 | HC33: 0 | HD33: 0 | HE33: 0 | HF33: 0 | HG33: 0 | HH33: 0 | HI33: 0 | HJ33: 0 | HK33: 0 | HL33: 0 | HM33: 0 | HN33: 0 | HO33: 0 | HP33: 0 | HQ33: 0 | HR33: 0 | HS33: 0 | HT33: 0 | HU33: 0 | HV33: 0 | HW33: 0 | HX33: 0 | HY33: 0 | HZ33: 0 | IA33: 0 | IB33: 0 | IC33: 0 | ID33: 0 | IE33: 0 | IF33: 0 | IG33: 0 | IH33: 1,279 | II33: 0 | IJ33: 0 | IK33: 1,279 | IL33: 0 | IM33: 6,459 | IN33: 430 | IO33: 0 | IP33: 6,029 | IQ33: 0 | IR33: 0 | IS33: 0 | IT33: 0 | IU33: 0 | IV33: 0 | IW33: 0 | IX33: 0 | IY33: 0 | IZ33: 0 | JA33: 0 | JB33: 0 | JC33: 0 | JD33: 0 | JE33: 0 | JF33: 0 | JG33: 0 | JH33: 0 | JI33: 0 | JJ33: 0 | JK33: 0 | JL33: 0 | JM33: 0 | JN33: 0 | JO33: 0 | JP33: 0 | JQ33: 0 | JR33: 0 | JS33: 0 | JT33: 0 | JU33: 0 | JV33: 0 | JW33: 0 | JX33: 0 | JY33: 0 | JZ33: 0 | KA33: 0 | KB33: 0 | KC33: 0 | KD33: 0 | KE33: 0 | KF33: 0 | KG33: 0 | KH33: 0 | KI33: 0 | KJ33: 0 | KK33: 0 | KL33: 0 | KM33: 0 | KN33: 0 | KO33: 0 | KP33: 0 | KQ33: 0 | KR33: 0 | KS33: 0 | KT33: 0 | KU33: 0 | KV33: 0 | KW33: 0 | KX33: 0 | KY33: 0 | KZ33: 0 | LA33: 0 | LB33: 0 | LC33: 0 | LD33: 0 | LE33: 0 | LF33: 0 | LG33: 0 | LH33: 0 | LI33: 0 | LJ33: 0 | LK33: 0 | LL33: 0 | LM33: 0 | LN33: 0 | LO33: 0 | LP33: 0 | LQ33: 0 | LR33: 0 | LS33: 0 | LT33: 0 | LU33: 0 | LV33: 0 | LW33: 0 | LX33: 0 | LY33: 0 | LZ33: 0 | MA33: 0 | MB33: 0 | MC33: 0 | MD33: 1,279 | ME33: 0 | MF33: 0 | MG33: 1,279 | MH33: 0 | MI33: 6,459 | MJ33: 430 | MK33: 0 | ML33: 6,029 | MM33: 0 | MN33: 0 | MO33: 0 | MP33: 0 | MQ33: 0 | MR33: 0 | MS33: 0 | MT33: 0 | MU33: 0 | MV33: 0 | MW33: 0 | MX33: 0 | MY33: 0 | MZ33: 0 | NA33: 0 | NB33: 0 | NC33: 0 | ND33: 0 | NE33: 0 | NF33: 0 | NG33: 0 | NH33: 0 | NI33: 0 | NJ33: 0 | NK33: 0 | NL33: 0 | NM33: 0 | NN33: 0 | NO33: 0 | NP33: 0 | NQ33: 0 | NR33: 0 | NS33: 0 | NT33: 0 | NU33: 0 | NV33: 0 | NW33: 0 | NX33: 0 | NY33: 0 | NZ33: 0 | OA33: 0 | OB33: 0 | OC33: 0 | OD33: 0 | OE33: 0 | OF33: 0 | OG33: 0 | OH33: 0 | OI33: 0 | OJ33: 0 | OK33: 0 | OL33: 0 | OM33: 0 | ON33: 0 | OO33: 0 | OP33: 0 | OQ33: 0 | OR33: 0 | OS33: 0 | OT33: 0 | OU33: 0 | OV33: 0 | OW33: 0 | OX33: 0 | OY33: 0 | OZ33: 0 | PA33: 0 | PB33: 0 | PC33: 0 | PD33: 0 | PE33: 0 | PF33: 0 | PG33: 0 | PH33: 0 | PI33: 0 | PJ33: 0 | PK33: 0 | PL33: 0 | PM33: 0 | PN33: 0 | PO33: 0 | PP33: 0 | PQ33: 0 | PR33: 0 | PS33: 0 | PT33: 0 | PU33: 0 | PV33: 0 | PW33: 0 | PX33: 0 | PY33: 0 | PZ33: 1,279 | QA33: 0 | QB33: 0 | QC33: 1,279 | QD33: 0 | QE33: 6,459 | QF33: 430 | QG33: 0 | QH33: 6,029 | QI33: 0 | QJ33: 2,841 | QK33: 0 | QL33: 0 | QM33: 2,841 | QN33: 0 | QO33: 2,841 | QP33: 0 | QQ33: 0 | QR33: 2,841 | QS33: 0 | QT33: 5,710 | QU33: 960 | QV33: 0 | QW33: 4,750 | QX33: 0 | QY33: 530 | QZ33: 530 | RA33: 0 | RB33: 0 | RC33: 0 | RD33: 4,120 | RE33: 0 | RF33: 0 | RG33: 4,120 | RH33: 0 | RI33: 9,300 | RJ33: 430 | RK33: 0 | RL33: 8,870 | RM33: 0 | RN33: 5,180 | RO33: 430 | RP33: 0 | RQ33: 4,750 | RR33: 0 | RS33: ИК-Див. Протокол ИК №01-29 от 06.12.11г., Протокол ИК №1-ИК-02 от 19.02.13г. | RT33: =BO33+IF(Ф!$K$4=1,DW33+EQ33,0)+IF(Ф!$K$4=2,EQ33+GE33,0)+IF(Ф!$K$4=3,GE33+GY33,0)+IF(Ф!$K$4=4,GY33+HS33,0)+IF(Ф!$K$4=5,HS33+KA33,0)+IF(Ф!$K$4=6,KA33+KU33,0)+IF(Ф!$K$4=7,KU33+LO33,0)+IF(Ф!$K$4=8,LO33+NW33,0)+IF(Ф!$K$4=9,NW33+OQ33,0)+IF(Ф!$K$4=10,OQ33+PK33,0)+IF(Ф!$K$4=11,PK33,0)-BY33 -> 5,180 | RU33: =RT33*(1+Ф!$K$9) -> 6,112 | RX33: 7,622 | RY33: 12,134 | SA33: 6,112 | SB33: 7,622 | SC33: 12,134
B34: 99 | C34: 19 | G34: МЭ-ТЭЦЧМК-1-П-1001 | I34: Утв.16 | K34: Усовершенствование ТД устройств котлов 3 очереди | L34: 2016-03-01 | M34: 2016-09-30 | N34: система | O34: 1 | P34: (П,С) | Q34: 16,200 | R34: 200 | S34: 0 | T34: 16,000 | V34: 0 | W34: 0 | X34: 0 | Y34: 0 | Z34: 0 | AA34: 0 | AB34: 0 | AC34: 0 | AD34: 0 | AE34: 0 | AF34: 16,200 | AG34: 200 | AH34: 0 | AI34: 16,000 | AJ34: 0 | AK34: 16,200 | AL34: 200 | AM34: 0 | AN34: 16,000 | AO34: 0 | AP34: 16,200 | AQ34: 200 | AR34: 0 | AS34: 16,000 | AT34: 0 | AU34: 16,200 | AV34: 200 | AW34: 0 | AX34: 16,000 | AY34: 0 | AZ34: 16,200 | BJ34: =IF(Ф!$K$4>=1,CX34,0)+IF(Ф!$K$4>=2,DR34,0)+IF(Ф!$K$4>=3,EL34,0)+IF(Ф!$K$4>=4,FZ34,0)+IF(Ф!$K$4>=5,GT34,0)+IF(Ф!$K$4>=6,HN34,0)+IF(Ф!$K$4>=7,JV34,0)+IF(Ф!$K$4>=8,KP34,0)+IF(Ф!$K$4>=9,LJ34,0)+IF(Ф!$K$4>=10,NR34,0)+IF(Ф!$K$4>=11,OL34,0)+IF(Ф!$K$4>=12,PF34,0) -> 0 | BK34: =IF(Ф!$K$4>=1,CY34,0)+IF(Ф!$K$4>=2,DS34,0)+IF(Ф!$K$4>=3,EM34,0)+IF(Ф!$K$4>=4,GA34,0)+IF(Ф!$K$4>=5,GU34,0)+IF(Ф!$K$4>=6,HO34,0)+IF(Ф!$K$4>=7,JW34,0)+IF(Ф!$K$4>=8,KQ34,0)+IF(Ф!$K$4>=9,LK34,0)+IF(Ф!$K$4>=10,NS34,0)+IF(Ф!$K$4>=11,OM34,0)+IF(Ф!$K$4>=12,PG34,0) -> 0 | BL34: =IF(Ф!$K$4>=1,CZ34,0)+IF(Ф!$K$4>=2,DT34,0)+IF(Ф!$K$4>=3,EN34,0)+IF(Ф!$K$4>=4,GB34,0)+IF(Ф!$K$4>=5,GV34,0)+IF(Ф!$K$4>=6,HP34,0)+IF(Ф!$K$4>=7,JX34,0)+IF(Ф!$K$4>=8,KR34,0)+IF(Ф!$K$4>=9,LL34,0)+IF(Ф!$K$4>=10,NT34,0)+IF(Ф!$K$4>=11,ON34,0)+IF(Ф!$K$4>=12,PH34,0) -> 0 | BM34: =IF(Ф!$K$4>=1,DA34,0)+IF(Ф!$K$4>=2,DU34,0)+IF(Ф!$K$4>=3,EO34,0)+IF(Ф!$K$4>=4,GC34,0)+IF(Ф!$K$4>=5,GW34,0)+IF(Ф!$K$4>=6,HQ34,0)+IF(Ф!$K$4>=7,JY34,0)+IF(Ф!$K$4>=8,KS34,0)+IF(Ф!$K$4>=9,LM34,0)+IF(Ф!$K$4>=10,NU34,0)+IF(Ф!$K$4>=11,OO34,0)+IF(Ф!$K$4>=12,PI34,0) -> 0 | BN34: =IF(Ф!$K$4>=1,DB34,0)+IF(Ф!$K$4>=2,DV34,0)+IF(Ф!$K$4>=3,EP34,0)+IF(Ф!$K$4>=4,GD34,0)+IF(Ф!$K$4>=5,GX34,0)+IF(Ф!$K$4>=6,HR34,0)+IF(Ф!$K$4>=7,JZ34,0)+IF(Ф!$K$4>=8,KT34,0)+IF(Ф!$K$4>=9,LN34,0)+IF(Ф!$K$4>=10,NV34,0)+IF(Ф!$K$4>=11,OP34,0)+IF(Ф!$K$4>=12,PJ34,0) -> 0 | BO34: =IF(Ф!$K$4>=1,DC34,0)+IF(Ф!$K$4>=2,DW34,0)+IF(Ф!$K$4>=3,EQ34,0)+IF(Ф!$K$4>=4,GE34,0)+IF(Ф!$K$4>=5,GY34,0)+IF(Ф!$K$4>=6,HS34,0)+IF(Ф!$K$4>=7,KA34,0)+IF(Ф!$K$4>=8,KU34,0)+IF(Ф!$K$4>=9,LO34,0)+IF(Ф!$K$4>=10,NW34,0)+IF(Ф!$K$4>=11,OQ34,0)+IF(Ф!$K$4>=12,PK34,0) -> 0 | BP34: =IF(Ф!$K$4>=1,DD34,0)+IF(Ф!$K$4>=2,DX34,0)+IF(Ф!$K$4>=3,ER34,0)+IF(Ф!$K$4>=4,GF34,0)+IF(Ф!$K$4>=5,GZ34,0)+IF(Ф!$K$4>=6,HT34,0)+IF(Ф!$K$4>=7,KB34,0)+IF(Ф!$K$4>=8,KV34,0)+IF(Ф!$K$4>=9,LP34,0)+IF(Ф!$K$4>=10,NX34,0)+IF(Ф!$K$4>=11,OR34,0)+IF(Ф!$K$4>=12,PL34,0) -> 0 | BQ34: =IF(Ф!$K$4>=1,DE34,0)+IF(Ф!$K$4>=2,DY34,0)+IF(Ф!$K$4>=3,ES34,0)+IF(Ф!$K$4>=4,GG34,0)+IF(Ф!$K$4>=5,HA34,0)+IF(Ф!$K$4>=6,HU34,0)+IF(Ф!$K$4>=7,KC34,0)+IF(Ф!$K$4>=8,KW34,0)+IF(Ф!$K$4>=9,LQ34,0)+IF(Ф!$K$4>=10,NY34,0)+IF(Ф!$K$4>=11,OS34,0)+IF(Ф!$K$4>=12,PM34,0) -> 0 | BR34: =IF(Ф!$K$4>=1,DF34,0)+IF(Ф!$K$4>=2,DZ34,0)+IF(Ф!$K$4>=3,ET34,0)+IF(Ф!$K$4>=4,GH34,0)+IF(Ф!$K$4>=5,HB34,0)+IF(Ф!$K$4>=6,HV34,0)+IF(Ф!$K$4>=7,KD34,0)+IF(Ф!$K$4>=8,KX34,0)+IF(Ф!$K$4>=9,LR34,0)+IF(Ф!$K$4>=10,NZ34,0)+IF(Ф!$K$4>=11,OT34,0)+IF(Ф!$K$4>=12,PN34,0) -> 0 | BS34: =IF(Ф!$K$4>=1,DG34,0)+IF(Ф!$K$4>=2,EA34,0)+IF(Ф!$K$4>=3,EU34,0)+IF(Ф!$K$4>=4,GI34,0)+IF(Ф!$K$4>=5,HC34,0)+IF(Ф!$K$4>=6,HW34,0)+IF(Ф!$K$4>=7,KE34,0)+IF(Ф!$K$4>=8,KY34,0)+IF(Ф!$K$4>=9,LS34,0)+IF(Ф!$K$4>=10,OA34,0)+IF(Ф!$K$4>=11,OU34,0)+IF(Ф!$K$4>=12,PO34,0) -> 0 | BT34: =IF(Ф!$K$4>=1,DH34,0)+IF(Ф!$K$4>=2,EB34,0)+IF(Ф!$K$4>=3,EV34,0)+IF(Ф!$K$4>=4,GJ34,0)+IF(Ф!$K$4>=5,HD34,0)+IF(Ф!$K$4>=6,HX34,0)+IF(Ф!$K$4>=7,KF34,0)+IF(Ф!$K$4>=8,KZ34,0)+IF(Ф!$K$4>=9,LT34,0)+IF(Ф!$K$4>=10,OB34,0)+IF(Ф!$K$4>=11,OV34,0)+IF(Ф!$K$4>=12,PP34,0) -> 0 | BU34: =IF(Ф!$K$4>=1,DI34,0)+IF(Ф!$K$4>=2,EC34,0)+IF(Ф!$K$4>=3,EW34,0)+IF(Ф!$K$4>=4,GK34,0)+IF(Ф!$K$4>=5,HE34,0)+IF(Ф!$K$4>=6,HY34,0)+IF(Ф!$K$4>=7,KG34,0)+IF(Ф!$K$4>=8,LA34,0)+IF(Ф!$K$4>=9,LU34,0)+IF(Ф!$K$4>=10,OC34,0)+IF(Ф!$K$4>=11,OW34,0)+IF(Ф!$K$4>=12,PQ34,0) -> 0 | BV34: =IF(Ф!$K$4>=1,DJ34,0)+IF(Ф!$K$4>=2,ED34,0)+IF(Ф!$K$4>=3,EX34,0)+IF(Ф!$K$4>=4,GL34,0)+IF(Ф!$K$4>=5,HF34,0)+IF(Ф!$K$4>=6,HZ34,0)+IF(Ф!$K$4>=7,KH34,0)+IF(Ф!$K$4>=8,LB34,0)+IF(Ф!$K$4>=9,LV34,0)+IF(Ф!$K$4>=10,OD34,0)+IF(Ф!$K$4>=11,OX34,0)+IF(Ф!$K$4>=12,PR34,0) -> 0 | BW34: =IF(Ф!$K$4>=1,DK34,0)+IF(Ф!$K$4>=2,EE34,0)+IF(Ф!$K$4>=3,EY34,0)+IF(Ф!$K$4>=4,GM34,0)+IF(Ф!$K$4>=5,HG34,0)+IF(Ф!$K$4>=6,IA34,0)+IF(Ф!$K$4>=7,KI34,0)+IF(Ф!$K$4>=8,LC34,0)+IF(Ф!$K$4>=9,LW34,0)+IF(Ф!$K$4>=10,OE34,0)+IF(Ф!$K$4>=11,OY34,0)+IF(Ф!$K$4>=12,PS34,0) -> 0 | BX34: =IF(Ф!$K$4>=1,DL34,0)+IF(Ф!$K$4>=2,EF34,0)+IF(Ф!$K$4>=3,EZ34,0)+IF(Ф!$K$4>=4,GN34,0)+IF(Ф!$K$4>=5,HH34,0)+IF(Ф!$K$4>=6,IB34,0)+IF(Ф!$K$4>=7,KJ34,0)+IF(Ф!$K$4>=8,LD34,0)+IF(Ф!$K$4>=9,LX34,0)+IF(Ф!$K$4>=10,OF34,0)+IF(Ф!$K$4>=11,OZ34,0)+IF(Ф!$K$4>=12,PT34,0) -> 0 | BY34: =IF(Ф!$K$4>=1,DM34,0)+IF(Ф!$K$4>=2,EG34,0)+IF(Ф!$K$4>=3,FA34,0)+IF(Ф!$K$4>=4,GO34,0)+IF(Ф!$K$4>=5,HI34,0)+IF(Ф!$K$4>=6,IC34,0)+IF(Ф!$K$4>=7,KK34,0)+IF(Ф!$K$4>=8,LE34,0)+IF(Ф!$K$4>=9,LY34,0)+IF(Ф!$K$4>=10,OG34,0)+IF(Ф!$K$4>=11,PA34,0)+IF(Ф!$K$4>=12,PU34,0) -> 0 | BZ34: =IF(Ф!$K$4>=1,DN34,0)+IF(Ф!$K$4>=2,EH34,0)+IF(Ф!$K$4>=3,FB34,0)+IF(Ф!$K$4>=4,GP34,0)+IF(Ф!$K$4>=5,HJ34,0)+IF(Ф!$K$4>=6,ID34,0)+IF(Ф!$K$4>=7,KL34,0)+IF(Ф!$K$4>=8,LF34,0)+IF(Ф!$K$4>=9,LZ34,0)+IF(Ф!$K$4>=10,OH34,0)+IF(Ф!$K$4>=11,PB34,0)+IF(Ф!$K$4>=12,PV34,0) -> 0 | CA34: =IF(Ф!$K$4>=1,DO34,0)+IF(Ф!$K$4>=2,EI34,0)+IF(Ф!$K$4>=3,FC34,0)+IF(Ф!$K$4>=4,GQ34,0)+IF(Ф!$K$4>=5,HK34,0)+IF(Ф!$K$4>=6,IE34,0)+IF(Ф!$K$4>=7,KM34,0)+IF(Ф!$K$4>=8,LG34,0)+IF(Ф!$K$4>=9,MA34,0)+IF(Ф!$K$4>=10,OI34,0)+IF(Ф!$K$4>=11,PC34,0)+IF(Ф!$K$4>=12,PW34,0) -> 0 | CB34: =IF(Ф!$K$4>=1,DP34,0)+IF(Ф!$K$4>=2,EJ34,0)+IF(Ф!$K$4>=3,FD34,0)+IF(Ф!$K$4>=4,GR34,0)+IF(Ф!$K$4>=5,HL34,0)+IF(Ф!$K$4>=6,IF34,0)+IF(Ф!$K$4>=7,KN34,0)+IF(Ф!$K$4>=8,LH34,0)+IF(Ф!$K$4>=9,MB34,0)+IF(Ф!$K$4>=10,OJ34,0)+IF(Ф!$K$4>=11,PD34,0)+IF(Ф!$K$4>=12,PX34,0) -> 0 | CC34: =IF(Ф!$K$4>=1,DQ34,0)+IF(Ф!$K$4>=2,EK34,0)+IF(Ф!$K$4>=3,FE34,0)+IF(Ф!$K$4>=4,GS34,0)+IF(Ф!$K$4>=5,HM34,0)+IF(Ф!$K$4>=6,IG34,0)+IF(Ф!$K$4>=7,KO34,0)+IF(Ф!$K$4>=8,LI34,0)+IF(Ф!$K$4>=9,MC34,0)+IF(Ф!$K$4>=10,OK34,0)+IF(Ф!$K$4>=11,PE34,0)+IF(Ф!$K$4>=12,PY34,0) -> 0 | CD34: 200 | CE34: 200 | CF34: 0 | CG34: 0 | CH34: 0 | CI34: 0 | CJ34: 0 | CK34: 0 | CL34: 0 | CM34: 0 | CN34: 0 | CO34: 0 | CP34: 0 | CQ34: 0 | CR34: 0 | CS34: 0 | CT34: 0 | CU34: 0 | CV34: 0 | CW34: 0 | CX34: 0 | CY34: 0 | CZ34: 0 | DA34: 0 | DB34: 0 | DC34: 0 | DD34: 0 | DE34: 0 | DF34: 0 | DG34: 0 | DH34: 0 | DI34: 0 | DJ34: 0 | DK34: 0 | DL34: 0 | DM34: 0 | DN34: 0 | DO34: 0 | DP34: 0 | DQ34: 0 | DR34: 0 | DS34: 0 | DT34: 0 | DU34: 0 | DV34: 0 | DW34: 0 | DX34: 0 | DY34: 0 | DZ34: 0 | EA34: 0 | EB34: 0 | EC34: 0 | ED34: 0 | EE34: 0 | EF34: 0 | EG34: 0 | EH34: 0 | EI34: 0 | EJ34: 0 | EK34: 0 | EL34: 200 | EM34: 200 | EN34: 0 | EO34: 0 | EP34: 0 | EQ34: 0 | ER34: 0 | ES34: 0 | ET34: 0 | EU34: 0 | EV34: 0 | EW34: 0 | EX34: 0 | EY34: 0 | EZ34: 0 | FA34: 0 | FB34: 0 | FC34: 0 | FD34: 0 | FE34: 0 | FF34: 4,000 | FG34: 0 | FH34: 0 | FI34: 4,000 | FJ34: 0 | FK34: 12,200 | FL34: 200 | FM34: 0 | FN34: 12,000 | FO34: 0 | FP34: 0 | FQ34: 0 | FR34: 0 | FS34: 0 | FT34: 0 | FU34: 0 | FV34: 0 | FW34: 0 | FX34: 0 | FY34: 0 | FZ34: 0 | GA34: 0 | GB34: 0 | GC34: 0 | GD34: 0 | GE34: 200 | GF34: 200 | GG34: 0 | GH34: 0 | GI34: 0 | GJ34: 0 | GK34: 0 | GL34: 0 | GM34: 0 | GN34: 0 | GO34: 0 | GP34: 0 | GQ34: 0 | GR34: 0 | GS34: 0 | GT34: 0 | GU34: 0 | GV34: 0 | GW34: 0 | GX34: 0 | GY34: 6,000 | GZ34: 0 | HA34: 0 | HB34: 6,000 | HC34: 0 | HD34: 0 | HE34: 0 | HF34: 0 | HG34: 0 | HH34: 0 | HI34: 0 | HJ34: 0 | HK34: 0 | HL34: 0 | HM34: 0 | HN34: 4,000 | HO34: 0 | HP34: 0 | HQ34: 4,000 | HR34: 0 | HS34: 6,000 | HT34: 0 | HU34: 0 | HV34: 6,000 | HW34: 0 | HX34: 0 | HY34: 0 | HZ34: 0 | IA34: 0 | IB34: 0 | IC34: 0 | ID34: 0 | IE34: 0 | IF34: 0 | IG34: 0 | IH34: 4,200 | II34: 200 | IJ34: 0 | IK34: 4,000 | IL34: 0 | IM34: 12,200 | IN34: 200 | IO34: 0 | IP34: 12,000 | IQ34: 0 | IR34: 0 | IS34: 0 | IT34: 0 | IU34: 0 | IV34: 0 | IW34: 0 | IX34: 0 | IY34: 0 | IZ34: 0 | JA34: 0 | JB34: 12,000 | JC34: 0 | JD34: 0 | JE34: 12,000 | JF34: 0 | JG34: 2,000 | JH34: 0 | JI34: 0 | JJ34: 2,000 | JK34: 0 | JL34: 0 | JM34: 0 | JN34: 0 | JO34: 0 | JP34: 0 | JQ34: 0 | JR34: 0 | JS34: 0 | JT34: 0 | JU34: 0 | JV34: 4,000 | JW34: 0 | JX34: 0 | JY34: 4,000 | JZ34: 0 | KA34: 0 | KB34: 0 | KC34: 0 | KD34: 0 | KE34: 0 | KF34: 0 | KG34: 0 | KH34: 0 | KI34: 0 | KJ34: 0 | KK34: 0 | KL34: 0 | KM34: 0 | KN34: 0 | KO34: 0 | KP34: 4,000 | KQ34: 0 | KR34: 0 | KS34: 4,000 | KT34: 0 | KU34: 1,000 | KV34: 0 | KW34: 0 | KX34: 1,000 | KY34: 0 | KZ34: 0 | LA34: 0 | LB34: 0 | LC34: 0 | LD34: 0 | LE34: 0 | LF34: 0 | LG34: 0 | LH34: 0 | LI34: 0 | LJ34: 4,000 | LK34: 0 | LL34: 0 | LM34: 4,000 | LN34: 0 | LO34: 1,000 | LP34: 0 | LQ34: 0 | LR34: 1,000 | LS34: 0 | LT34: 0 | LU34: 0 | LV34: 0 | LW34: 0 | LX34: 0 | LY34: 0 | LZ34: 0 | MA34: 0 | MB34: 0 | MC34: 0 | MD34: 16,200 | ME34: 200 | MF34: 0 | MG34: 16,000 | MH34: 0 | MI34: 14,200 | MJ34: 200 | MK34: 0 | ML34: 14,000 | MM34: 0 | MN34: 0 | MO34: 0 | MP34: 0 | MQ34: 0 | MR34: 0 | MS34: 0 | MT34: 0 | MU34: 0 | MV34: 0 | MW34: 0 | MX34: 0 | MY34: 0 | MZ34: 0 | NA34: 0 | NB34: 0 | NC34: 2,000 | ND34: 0 | NE34: 0 | NF34: 2,000 | NG34: 0 | NH34: 0 | NI34: 0 | NJ34: 0 | NK34: 0 | NL34: 0 | NM34: 0 | NN34: 0 | NO34: 0 | NP34: 0 | NQ34: 0 | NR34: 0 | NS34: 0 | NT34: 0 | NU34: 0 | NV34: 0 | NW34: 1,000 | NX34: 0 | NY34: 0 | NZ34: 1,000 | OA34: 0 | OB34: 0 | OC34: 0 | OD34: 0 | OE34: 0 | OF34: 0 | OG34: 0 | OH34: 0 | OI34: 0 | OJ34: 0 | OK34: 0 | OL34: 0 | OM34: 0 | ON34: 0 | OO34: 0 | OP34: 0 | OQ34: 1,000 | OR34: 0 | OS34: 0 | OT34: 1,000 | OU34: 0 | OV34: 0 | OW34: 0 | OX34: 0 | OY34: 0 | OZ34: 0 | PA34: 0 | PB34: 0 | PC34: 0 | PD34: 0 | PE34: 0 | PF34: 0 | PG34: 0 | PH34: 0 | PI34: 0 | PJ34: 0 | PK34: 0 | PL34: 0 | PM34: 0 | PN34: 0 | PO34: 0 | PP34: 0 | PQ34: 0 | PR34: 0 | PS34: 0 | PT34: 0 | PU34: 0 | PV34: 0 | PW34: 0 | PX34: 0 | PY34: 0 | PZ34: 16,200 | QA34: 200 | QB34: 0 | QC34: 16,000 | QD34: 0 | QE34: 16,200 | QF34: 200 | QG34: 0 | QH34: 16,000 | QI34: 0 | QJ34: 0 | QK34: 0 | QL34: 0 | QM34: 0 | QN34: 0 | QO34: 0 | QP34: 0 | QQ34: 0 | QR34: 0 | QS34: 0 | QT34: 0 | QU34: 0 | QV34: 0 | QW34: 0 | QX34: 0 | QY34: 0 | QZ34: 0 | RA34: 0 | RB34: 0 | RC34: 0 | RD34: 16,200 | RE34: 200 | RF34: 0 | RG34: 16,000 | RH34: 0 | RI34: 16,200 | RJ34: 200 | RK34: 0 | RL34: 16,000 | RM34: 0 | RN34: 0 | RO34: 0 | RP34: 0 | RQ34: 0 | RR34: 0 | RT34: =BO34+IF(Ф!$K$4=1,DW34+EQ34,0)+IF(Ф!$K$4=2,EQ34+GE34,0)+IF(Ф!$K$4=3,GE34+GY34,0)+IF(Ф!$K$4=4,GY34+HS34,0)+IF(Ф!$K$4=5,HS34+KA34,0)+IF(Ф!$K$4=6,KA34+KU34,0)+IF(Ф!$K$4=7,KU34+LO34,0)+IF(Ф!$K$4=8,LO34+NW34,0)+IF(Ф!$K$4=9,NW34+OQ34,0)+IF(Ф!$K$4=10,OQ34+PK34,0)+IF(Ф!$K$4=11,PK34,0)-BY34 -> 0 | RU34: =RT34*(1+Ф!$K$9) -> 0 | RX34: 19,116 | RY34: 21,028 | SA34: 0 | SB34: 19,116 | SC34: 21,028
B35: 4 | C35: 17 | K35: ОП Чебаркуль | Q35: 1,190 | R35: 70 | T35: 1,120 | V35: 70 | W35: 70 | X35: 0 | Y35: 0 | Z35: 0 | AA35: 0 | AB35: 0 | AC35: 0 | AD35: 0 | AE35: 0 | AF35: 1,120 | AG35: 0 | AH35: 0 | AI35: 1,120 | AJ35: 0 | AK35: 1,190 | AL35: 70 | AM35: 0 | AN35: 1,120 | AO35: 0 | AP35: 1,120 | AQ35: 0 | AR35: 0 | AS35: 1,120 | AT35: 0 | AU35: 1,190 | AV35: 70 | AW35: 0 | AX35: 1,120 | AY35: 0 | AZ35: 1,190 | BJ35: =IF(Ф!$K$4>=1,CX35,0)+IF(Ф!$K$4>=2,DR35,0)+IF(Ф!$K$4>=3,EL35,0)+IF(Ф!$K$4>=4,FZ35,0)+IF(Ф!$K$4>=5,GT35,0)+IF(Ф!$K$4>=6,HN35,0)+IF(Ф!$K$4>=7,JV35,0)+IF(Ф!$K$4>=8,KP35,0)+IF(Ф!$K$4>=9,LJ35,0)+IF(Ф!$K$4>=10,NR35,0)+IF(Ф!$K$4>=11,OL35,0)+IF(Ф!$K$4>=12,PF35,0) -> 1,120 | BK35: =IF(Ф!$K$4>=1,CY35,0)+IF(Ф!$K$4>=2,DS35,0)+IF(Ф!$K$4>=3,EM35,0)+IF(Ф!$K$4>=4,GA35,0)+IF(Ф!$K$4>=5,GU35,0)+IF(Ф!$K$4>=6,HO35,0)+IF(Ф!$K$4>=7,JW35,0)+IF(Ф!$K$4>=8,KQ35,0)+IF(Ф!$K$4>=9,LK35,0)+IF(Ф!$K$4>=10,NS35,0)+IF(Ф!$K$4>=11,OM35,0)+IF(Ф!$K$4>=12,PG35,0) -> 0 | BL35: =IF(Ф!$K$4>=1,CZ35,0)+IF(Ф!$K$4>=2,DT35,0)+IF(Ф!$K$4>=3,EN35,0)+IF(Ф!$K$4>=4,GB35,0)+IF(Ф!$K$4>=5,GV35,0)+IF(Ф!$K$4>=6,HP35,0)+IF(Ф!$K$4>=7,JX35,0)+IF(Ф!$K$4>=8,KR35,0)+IF(Ф!$K$4>=9,LL35,0)+IF(Ф!$K$4>=10,NT35,0)+IF(Ф!$K$4>=11,ON35,0)+IF(Ф!$K$4>=12,PH35,0) -> 0 | BM35: =IF(Ф!$K$4>=1,DA35,0)+IF(Ф!$K$4>=2,DU35,0)+IF(Ф!$K$4>=3,EO35,0)+IF(Ф!$K$4>=4,GC35,0)+IF(Ф!$K$4>=5,GW35,0)+IF(Ф!$K$4>=6,HQ35,0)+IF(Ф!$K$4>=7,JY35,0)+IF(Ф!$K$4>=8,KS35,0)+IF(Ф!$K$4>=9,LM35,0)+IF(Ф!$K$4>=10,NU35,0)+IF(Ф!$K$4>=11,OO35,0)+IF(Ф!$K$4>=12,PI35,0) -> 1,120 | BN35: =IF(Ф!$K$4>=1,DB35,0)+IF(Ф!$K$4>=2,DV35,0)+IF(Ф!$K$4>=3,EP35,0)+IF(Ф!$K$4>=4,GD35,0)+IF(Ф!$K$4>=5,GX35,0)+IF(Ф!$K$4>=6,HR35,0)+IF(Ф!$K$4>=7,JZ35,0)+IF(Ф!$K$4>=8,KT35,0)+IF(Ф!$K$4>=9,LN35,0)+IF(Ф!$K$4>=10,NV35,0)+IF(Ф!$K$4>=11,OP35,0)+IF(Ф!$K$4>=12,PJ35,0) -> 0 | BO35: =IF(Ф!$K$4>=1,DC35,0)+IF(Ф!$K$4>=2,DW35,0)+IF(Ф!$K$4>=3,EQ35,0)+IF(Ф!$K$4>=4,GE35,0)+IF(Ф!$K$4>=5,GY35,0)+IF(Ф!$K$4>=6,HS35,0)+IF(Ф!$K$4>=7,KA35,0)+IF(Ф!$K$4>=8,KU35,0)+IF(Ф!$K$4>=9,LO35,0)+IF(Ф!$K$4>=10,NW35,0)+IF(Ф!$K$4>=11,OQ35,0)+IF(Ф!$K$4>=12,PK35,0) -> 0 | BP35: =IF(Ф!$K$4>=1,DD35,0)+IF(Ф!$K$4>=2,DX35,0)+IF(Ф!$K$4>=3,ER35,0)+IF(Ф!$K$4>=4,GF35,0)+IF(Ф!$K$4>=5,GZ35,0)+IF(Ф!$K$4>=6,HT35,0)+IF(Ф!$K$4>=7,KB35,0)+IF(Ф!$K$4>=8,KV35,0)+IF(Ф!$K$4>=9,LP35,0)+IF(Ф!$K$4>=10,NX35,0)+IF(Ф!$K$4>=11,OR35,0)+IF(Ф!$K$4>=12,PL35,0) -> 0 | BQ35: =IF(Ф!$K$4>=1,DE35,0)+IF(Ф!$K$4>=2,DY35,0)+IF(Ф!$K$4>=3,ES35,0)+IF(Ф!$K$4>=4,GG35,0)+IF(Ф!$K$4>=5,HA35,0)+IF(Ф!$K$4>=6,HU35,0)+IF(Ф!$K$4>=7,KC35,0)+IF(Ф!$K$4>=8,KW35,0)+IF(Ф!$K$4>=9,LQ35,0)+IF(Ф!$K$4>=10,NY35,0)+IF(Ф!$K$4>=11,OS35,0)+IF(Ф!$K$4>=12,PM35,0) -> 0 | BR35: =IF(Ф!$K$4>=1,DF35,0)+IF(Ф!$K$4>=2,DZ35,0)+IF(Ф!$K$4>=3,ET35,0)+IF(Ф!$K$4>=4,GH35,0)+IF(Ф!$K$4>=5,HB35,0)+IF(Ф!$K$4>=6,HV35,0)+IF(Ф!$K$4>=7,KD35,0)+IF(Ф!$K$4>=8,KX35,0)+IF(Ф!$K$4>=9,LR35,0)+IF(Ф!$K$4>=10,NZ35,0)+IF(Ф!$K$4>=11,OT35,0)+IF(Ф!$K$4>=12,PN35,0) -> 0 | BS35: =IF(Ф!$K$4>=1,DG35,0)+IF(Ф!$K$4>=2,EA35,0)+IF(Ф!$K$4>=3,EU35,0)+IF(Ф!$K$4>=4,GI35,0)+IF(Ф!$K$4>=5,HC35,0)+IF(Ф!$K$4>=6,HW35,0)+IF(Ф!$K$4>=7,KE35,0)+IF(Ф!$K$4>=8,KY35,0)+IF(Ф!$K$4>=9,LS35,0)+IF(Ф!$K$4>=10,OA35,0)+IF(Ф!$K$4>=11,OU35,0)+IF(Ф!$K$4>=12,PO35,0) -> 0 | BT35: =IF(Ф!$K$4>=1,DH35,0)+IF(Ф!$K$4>=2,EB35,0)+IF(Ф!$K$4>=3,EV35,0)+IF(Ф!$K$4>=4,GJ35,0)+IF(Ф!$K$4>=5,HD35,0)+IF(Ф!$K$4>=6,HX35,0)+IF(Ф!$K$4>=7,KF35,0)+IF(Ф!$K$4>=8,KZ35,0)+IF(Ф!$K$4>=9,LT35,0)+IF(Ф!$K$4>=10,OB35,0)+IF(Ф!$K$4>=11,OV35,0)+IF(Ф!$K$4>=12,PP35,0) -> 0 | BU35: =IF(Ф!$K$4>=1,DI35,0)+IF(Ф!$K$4>=2,EC35,0)+IF(Ф!$K$4>=3,EW35,0)+IF(Ф!$K$4>=4,GK35,0)+IF(Ф!$K$4>=5,HE35,0)+IF(Ф!$K$4>=6,HY35,0)+IF(Ф!$K$4>=7,KG35,0)+IF(Ф!$K$4>=8,LA35,0)+IF(Ф!$K$4>=9,LU35,0)+IF(Ф!$K$4>=10,OC35,0)+IF(Ф!$K$4>=11,OW35,0)+IF(Ф!$K$4>=12,PQ35,0) -> 0 | BV35: =IF(Ф!$K$4>=1,DJ35,0)+IF(Ф!$K$4>=2,ED35,0)+IF(Ф!$K$4>=3,EX35,0)+IF(Ф!$K$4>=4,GL35,0)+IF(Ф!$K$4>=5,HF35,0)+IF(Ф!$K$4>=6,HZ35,0)+IF(Ф!$K$4>=7,KH35,0)+IF(Ф!$K$4>=8,LB35,0)+IF(Ф!$K$4>=9,LV35,0)+IF(Ф!$K$4>=10,OD35,0)+IF(Ф!$K$4>=11,OX35,0)+IF(Ф!$K$4>=12,PR35,0) -> 0 | BW35: =IF(Ф!$K$4>=1,DK35,0)+IF(Ф!$K$4>=2,EE35,0)+IF(Ф!$K$4>=3,EY35,0)+IF(Ф!$K$4>=4,GM35,0)+IF(Ф!$K$4>=5,HG35,0)+IF(Ф!$K$4>=6,IA35,0)+IF(Ф!$K$4>=7,KI35,0)+IF(Ф!$K$4>=8,LC35,0)+IF(Ф!$K$4>=9,LW35,0)+IF(Ф!$K$4>=10,OE35,0)+IF(Ф!$K$4>=11,OY35,0)+IF(Ф!$K$4>=12,PS35,0) -> 0 | BX35: =IF(Ф!$K$4>=1,DL35,0)+IF(Ф!$K$4>=2,EF35,0)+IF(Ф!$K$4>=3,EZ35,0)+IF(Ф!$K$4>=4,GN35,0)+IF(Ф!$K$4>=5,HH35,0)+IF(Ф!$K$4>=6,IB35,0)+IF(Ф!$K$4>=7,KJ35,0)+IF(Ф!$K$4>=8,LD35,0)+IF(Ф!$K$4>=9,LX35,0)+IF(Ф!$K$4>=10,OF35,0)+IF(Ф!$K$4>=11,OZ35,0)+IF(Ф!$K$4>=12,PT35,0) -> 0 | BY35: =IF(Ф!$K$4>=1,DM35,0)+IF(Ф!$K$4>=2,EG35,0)+IF(Ф!$K$4>=3,FA35,0)+IF(Ф!$K$4>=4,GO35,0)+IF(Ф!$K$4>=5,HI35,0)+IF(Ф!$K$4>=6,IC35,0)+IF(Ф!$K$4>=7,KK35,0)+IF(Ф!$K$4>=8,LE35,0)+IF(Ф!$K$4>=9,LY35,0)+IF(Ф!$K$4>=10,OG35,0)+IF(Ф!$K$4>=11,PA35,0)+IF(Ф!$K$4>=12,PU35,0) -> 0 | BZ35: =IF(Ф!$K$4>=1,DN35,0)+IF(Ф!$K$4>=2,EH35,0)+IF(Ф!$K$4>=3,FB35,0)+IF(Ф!$K$4>=4,GP35,0)+IF(Ф!$K$4>=5,HJ35,0)+IF(Ф!$K$4>=6,ID35,0)+IF(Ф!$K$4>=7,KL35,0)+IF(Ф!$K$4>=8,LF35,0)+IF(Ф!$K$4>=9,LZ35,0)+IF(Ф!$K$4>=10,OH35,0)+IF(Ф!$K$4>=11,PB35,0)+IF(Ф!$K$4>=12,PV35,0) -> 0 | CA35: =IF(Ф!$K$4>=1,DO35,0)+IF(Ф!$K$4>=2,EI35,0)+IF(Ф!$K$4>=3,FC35,0)+IF(Ф!$K$4>=4,GQ35,0)+IF(Ф!$K$4>=5,HK35,0)+IF(Ф!$K$4>=6,IE35,0)+IF(Ф!$K$4>=7,KM35,0)+IF(Ф!$K$4>=8,LG35,0)+IF(Ф!$K$4>=9,MA35,0)+IF(Ф!$K$4>=10,OI35,0)+IF(Ф!$K$4>=11,PC35,0)+IF(Ф!$K$4>=12,PW35,0) -> 0 | CB35: =IF(Ф!$K$4>=1,DP35,0)+IF(Ф!$K$4>=2,EJ35,0)+IF(Ф!$K$4>=3,FD35,0)+IF(Ф!$K$4>=4,GR35,0)+IF(Ф!$K$4>=5,HL35,0)+IF(Ф!$K$4>=6,IF35,0)+IF(Ф!$K$4>=7,KN35,0)+IF(Ф!$K$4>=8,LH35,0)+IF(Ф!$K$4>=9,MB35,0)+IF(Ф!$K$4>=10,OJ35,0)+IF(Ф!$K$4>=11,PD35,0)+IF(Ф!$K$4>=12,PX35,0) -> 0 | CC35: =IF(Ф!$K$4>=1,DQ35,0)+IF(Ф!$K$4>=2,EK35,0)+IF(Ф!$K$4>=3,FE35,0)+IF(Ф!$K$4>=4,GS35,0)+IF(Ф!$K$4>=5,HM35,0)+IF(Ф!$K$4>=6,IG35,0)+IF(Ф!$K$4>=7,KO35,0)+IF(Ф!$K$4>=8,LI35,0)+IF(Ф!$K$4>=9,MC35,0)+IF(Ф!$K$4>=10,OK35,0)+IF(Ф!$K$4>=11,PE35,0)+IF(Ф!$K$4>=12,PY35,0) -> 0 | CD35: 1,120 | CE35: 0 | CF35: 0 | CG35: 1,120 | CH35: 0 | CI35: 1,190 | CJ35: 70 | CK35: 0 | CL35: 1,120 | CM35: 0 | CN35: 0 | CO35: 0 | CP35: 0 | CQ35: 0 | CR35: 0 | CS35: 0 | CT35: 0 | CU35: 0 | CV35: 0 | CW35: 0 | CX35: 1,120 | CY35: 0 | CZ35: 0 | DA35: 1,120 | DB35: 0 | DC35: 0 | DD35: 0 | DE35: 0 | DF35: 0 | DG35: 0 | DH35: 0 | DI35: 0 | DJ35: 0 | DK35: 0 | DL35: 0 | DM35: 0 | DN35: 0 | DO35: 0 | DP35: 0 | DQ35: 0 | DR35: 0 | DS35: 0 | DT35: 0 | DU35: 0 | DV35: 0 | DW35: 70 | DX35: 70 | DY35: 0 | DZ35: 0 | EA35: 0 | EB35: 0 | EC35: 0 | ED35: 0 | EE35: 0 | EF35: 0 | EG35: 0 | EH35: 0 | EI35: 0 | EJ35: 0 | EK35: 0 | EL35: 0 | EM35: 0 | EN35: 0 | EO35: 0 | EP35: 0 | EQ35: 1,120 | ER35: 0 | ES35: 0 | ET35: 1,120 | EU35: 0 | EV35: 0 | EW35: 0 | EX35: 0 | EY35: 0 | EZ35: 0 | FA35: 0 | FB35: 0 | FC35: 0 | FD35: 0 | FE35: 0 | FF35: 0 | FG35: 0 | FH35: 0 | FI35: 0 | FJ35: 0 | FK35: 0 | FL35: 0 | FM35: 0 | FN35: 0 | FO35: 0 | FP35: 0 | FQ35: 0 | FR35: 0 | FS35: 0 | FT35: 0 | FU35: 0 | FV35: 0 | FW35: 0 | FX35: 0 | FY35: 0 | FZ35: 0 | GA35: 0 | GB35: 0 | GC35: 0 | GD35: 0 | GE35: 0 | GF35: 0 | GG35: 0 | GH35: 0 | GI35: 0 | GJ35: 0 | GK35: 0 | GL35: 0 | GM35: 0 | GN35: 0 | GO35: 0 | GP35: 0 | GQ35: 0 | GR35: 0 | GS35: 0 | GT35: 0 | GU35: 0 | GV35: 0 | GW35: 0 | GX35: 0 | GY35: 0 | GZ35: 0 | HA35: 0 | HB35: 0 | HC35: 0 | HD35: 0 | HE35: 0 | HF35: 0 | HG35: 0 | HH35: 0 | HI35: 0 | HJ35: 0 | HK35: 0 | HL35: 0 | HM35: 0 | HN35: 0 | HO35: 0 | HP35: 0 | HQ35: 0 | HR35: 0 | HS35: 0 | HT35: 0 | HU35: 0 | HV35: 0 | HW35: 0 | HX35: 0 | HY35: 0 | HZ35: 0 | IA35: 0 | IB35: 0 | IC35: 0 | ID35: 0 | IE35: 0 | IF35: 0 | IG35: 0 | IH35: 1,120 | II35: 0 | IJ35: 0 | IK35: 1,120 | IL35: 0 | IM35: 1,190 | IN35: 70 | IO35: 0 | IP35: 1,120 | IQ35: 0 | IR35: 0 | IS35: 0 | IT35: 0 | IU35: 0 | IV35: 0 | IW35: 0 | IX35: 0 | IY35: 0 | IZ35: 0 | JA35: 0 | JB35: 0 | JC35: 0 | JD35: 0 | JE35: 0 | JF35: 0 | JG35: 0 | JH35: 0 | JI35: 0 | JJ35: 0 | JK35: 0 | JL35: 0 | JM35: 0 | JN35: 0 | JO35: 0 | JP35: 0 | JQ35: 0 | JR35: 0 | JS35: 0 | JT35: 0 | JU35: 0 | JV35: 0 | JW35: 0 | JX35: 0 | JY35: 0 | JZ35: 0 | KA35: 0 | KB35: 0 | KC35: 0 | KD35: 0 | KE35: 0 | KF35: 0 | KG35: 0 | KH35: 0 | KI35: 0 | KJ35: 0 | KK35: 0 | KL35: 0 | KM35: 0 | KN35: 0 | KO35: 0 | KP35: 0 | KQ35: 0 | KR35: 0 | KS35: 0 | KT35: 0 | KU35: 0 | KV35: 0 | KW35: 0 | KX35: 0 | KY35: 0 | KZ35: 0 | LA35: 0 | LB35: 0 | LC35: 0 | LD35: 0 | LE35: 0 | LF35: 0 | LG35: 0 | LH35: 0 | LI35: 0 | LJ35: 0 | LK35: 0 | LL35: 0 | LM35: 0 | LN35: 0 | LO35: 0 | LP35: 0 | LQ35: 0 | LR35: 0 | LS35: 0 | LT35: 0 | LU35: 0 | LV35: 0 | LW35: 0 | LX35: 0 | LY35: 0 | LZ35: 0 | MA35: 0 | MB35: 0 | MC35: 0 | MD35: 1,120 | ME35: 0 | MF35: 0 | MG35: 1,120 | MH35: 0 | MI35: 1,190 | MJ35: 70 | MK35: 0 | ML35: 1,120 | MM35: 0 | MN35: 0 | MO35: 0 | MP35: 0 | MQ35: 0 | MR35: 0 | MS35: 0 | MT35: 0 | MU35: 0 | MV35: 0 | MW35: 0 | MX35: 0 | MY35: 0 | MZ35: 0 | NA35: 0 | NB35: 0 | NC35: 0 | ND35: 0 | NE35: 0 | NF35: 0 | NG35: 0 | NH35: 0 | NI35: 0 | NJ35: 0 | NK35: 0 | NL35: 0 | NM35: 0 | NN35: 0 | NO35: 0 | NP35: 0 | NQ35: 0 | NR35: 0 | NS35: 0 | NT35: 0 | NU35: 0 | NV35: 0 | NW35: 0 | NX35: 0 | NY35: 0 | NZ35: 0 | OA35: 0 | OB35: 0 | OC35: 0 | OD35: 0 | OE35: 0 | OF35: 0 | OG35: 0 | OH35: 0 | OI35: 0 | OJ35: 0 | OK35: 0 | OL35: 0 | OM35: 0 | ON35: 0 | OO35: 0 | OP35: 0 | OQ35: 0 | OR35: 0 | OS35: 0 | OT35: 0 | OU35: 0 | OV35: 0 | OW35: 0 | OX35: 0 | OY35: 0 | OZ35: 0 | PA35: 0 | PB35: 0 | PC35: 0 | PD35: 0 | PE35: 0 | PF35: 0 | PG35: 0 | PH35: 0 | PI35: 0 | PJ35: 0 | PK35: 0 | PL35: 0 | PM35: 0 | PN35: 0 | PO35: 0 | PP35: 0 | PQ35: 0 | PR35: 0 | PS35: 0 | PT35: 0 | PU35: 0 | PV35: 0 | PW35: 0 | PX35: 0 | PY35: 0 | PZ35: 1,120 | QA35: 0 | QB35: 0 | QC35: 1,120 | QD35: 0 | QE35: 1,190 | QF35: 70 | QG35: 0 | QH35: 1,120 | QI35: 0 | QJ35: 0 | QK35: 0 | QL35: 0 | QM35: 0 | QN35: 0 | QO35: 0 | QP35: 0 | QQ35: 0 | QR35: 0 | QS35: 0 | QT35: 70 | QU35: 70 | QV35: 0 | QW35: 0 | QX35: 0 | QY35: 0 | QZ35: 0 | RA35: 0 | RB35: 0 | RC35: 0 | RD35: 1,120 | RE35: 0 | RF35: 0 | RG35: 1,120 | RH35: 0 | RI35: 1,190 | RJ35: 70 | RK35: 0 | RL35: 1,120 | RM35: 0 | RN35: 70 | RO35: 70 | RP35: 0 | RQ35: 0 | RR35: 0 | RT35: =BO35+IF(Ф!$K$4=1,DW35+EQ35,0)+IF(Ф!$K$4=2,EQ35+GE35,0)+IF(Ф!$K$4=3,GE35+GY35,0)+IF(Ф!$K$4=4,GY35+HS35,0)+IF(Ф!$K$4=5,HS35+KA35,0)+IF(Ф!$K$4=6,KA35+KU35,0)+IF(Ф!$K$4=7,KU35+LO35,0)+IF(Ф!$K$4=8,LO35+NW35,0)+IF(Ф!$K$4=9,NW35+OQ35,0)+IF(Ф!$K$4=10,OQ35+PK35,0)+IF(Ф!$K$4=11,PK35,0)-BY35 -> 1,190 | RU35: =RT35*(1+Ф!$K$9) -> 1,404 | RX35: 1,404 | RY35: 1,545 | SA35: 1,404 | SB35: 1,404 | SC35: 1,545
B36: 18 | C36: 18 | K36: Поддержание существующих мощностей и техперевооружение | Q36: 1,190 | R36: 70 | T36: 1,120 | V36: 70 | W36: 70 | X36: 0 | Y36: 0 | Z36: 0 | AA36: 0 | AB36: 0 | AC36: 0 | AD36: 0 | AE36: 0 | AF36: 1,120 | AG36: 0 | AH36: 0 | AI36: 1,120 | AJ36: 0 | AK36: 1,190 | AL36: 70 | AM36: 0 | AN36: 1,120 | AO36: 0 | AP36: 1,120 | AQ36: 0 | AR36: 0 | AS36: 1,120 | AT36: 0 | AU36: 1,190 | AV36: 70 | AW36: 0 | AX36: 1,120 | AY36: 0 | AZ36: 1,190 | BJ36: =IF(Ф!$K$4>=1,CX36,0)+IF(Ф!$K$4>=2,DR36,0)+IF(Ф!$K$4>=3,EL36,0)+IF(Ф!$K$4>=4,FZ36,0)+IF(Ф!$K$4>=5,GT36,0)+IF(Ф!$K$4>=6,HN36,0)+IF(Ф!$K$4>=7,JV36,0)+IF(Ф!$K$4>=8,KP36,0)+IF(Ф!$K$4>=9,LJ36,0)+IF(Ф!$K$4>=10,NR36,0)+IF(Ф!$K$4>=11,OL36,0)+IF(Ф!$K$4>=12,PF36,0) -> 1,120 | BK36: =IF(Ф!$K$4>=1,CY36,0)+IF(Ф!$K$4>=2,DS36,0)+IF(Ф!$K$4>=3,EM36,0)+IF(Ф!$K$4>=4,GA36,0)+IF(Ф!$K$4>=5,GU36,0)+IF(Ф!$K$4>=6,HO36,0)+IF(Ф!$K$4>=7,JW36,0)+IF(Ф!$K$4>=8,KQ36,0)+IF(Ф!$K$4>=9,LK36,0)+IF(Ф!$K$4>=10,NS36,0)+IF(Ф!$K$4>=11,OM36,0)+IF(Ф!$K$4>=12,PG36,0) -> 0 | BL36: =IF(Ф!$K$4>=1,CZ36,0)+IF(Ф!$K$4>=2,DT36,0)+IF(Ф!$K$4>=3,EN36,0)+IF(Ф!$K$4>=4,GB36,0)+IF(Ф!$K$4>=5,GV36,0)+IF(Ф!$K$4>=6,HP36,0)+IF(Ф!$K$4>=7,JX36,0)+IF(Ф!$K$4>=8,KR36,0)+IF(Ф!$K$4>=9,LL36,0)+IF(Ф!$K$4>=10,NT36,0)+IF(Ф!$K$4>=11,ON36,0)+IF(Ф!$K$4>=12,PH36,0) -> 0 | BM36: =IF(Ф!$K$4>=1,DA36,0)+IF(Ф!$K$4>=2,DU36,0)+IF(Ф!$K$4>=3,EO36,0)+IF(Ф!$K$4>=4,GC36,0)+IF(Ф!$K$4>=5,GW36,0)+IF(Ф!$K$4>=6,HQ36,0)+IF(Ф!$K$4>=7,JY36,0)+IF(Ф!$K$4>=8,KS36,0)+IF(Ф!$K$4>=9,LM36,0)+IF(Ф!$K$4>=10,NU36,0)+IF(Ф!$K$4>=11,OO36,0)+IF(Ф!$K$4>=12,PI36,0) -> 1,120 | BN36: =IF(Ф!$K$4>=1,DB36,0)+IF(Ф!$K$4>=2,DV36,0)+IF(Ф!$K$4>=3,EP36,0)+IF(Ф!$K$4>=4,GD36,0)+IF(Ф!$K$4>=5,GX36,0)+IF(Ф!$K$4>=6,HR36,0)+IF(Ф!$K$4>=7,JZ36,0)+IF(Ф!$K$4>=8,KT36,0)+IF(Ф!$K$4>=9,LN36,0)+IF(Ф!$K$4>=10,NV36,0)+IF(Ф!$K$4>=11,OP36,0)+IF(Ф!$K$4>=12,PJ36,0) -> 0 | BO36: =IF(Ф!$K$4>=1,DC36,0)+IF(Ф!$K$4>=2,DW36,0)+IF(Ф!$K$4>=3,EQ36,0)+IF(Ф!$K$4>=4,GE36,0)+IF(Ф!$K$4>=5,GY36,0)+IF(Ф!$K$4>=6,HS36,0)+IF(Ф!$K$4>=7,KA36,0)+IF(Ф!$K$4>=8,KU36,0)+IF(Ф!$K$4>=9,LO36,0)+IF(Ф!$K$4>=10,NW36,0)+IF(Ф!$K$4>=11,OQ36,0)+IF(Ф!$K$4>=12,PK36,0) -> 0 | BP36: =IF(Ф!$K$4>=1,DD36,0)+IF(Ф!$K$4>=2,DX36,0)+IF(Ф!$K$4>=3,ER36,0)+IF(Ф!$K$4>=4,GF36,0)+IF(Ф!$K$4>=5,GZ36,0)+IF(Ф!$K$4>=6,HT36,0)+IF(Ф!$K$4>=7,KB36,0)+IF(Ф!$K$4>=8,KV36,0)+IF(Ф!$K$4>=9,LP36,0)+IF(Ф!$K$4>=10,NX36,0)+IF(Ф!$K$4>=11,OR36,0)+IF(Ф!$K$4>=12,PL36,0) -> 0 | BQ36: =IF(Ф!$K$4>=1,DE36,0)+IF(Ф!$K$4>=2,DY36,0)+IF(Ф!$K$4>=3,ES36,0)+IF(Ф!$K$4>=4,GG36,0)+IF(Ф!$K$4>=5,HA36,0)+IF(Ф!$K$4>=6,HU36,0)+IF(Ф!$K$4>=7,KC36,0)+IF(Ф!$K$4>=8,KW36,0)+IF(Ф!$K$4>=9,LQ36,0)+IF(Ф!$K$4>=10,NY36,0)+IF(Ф!$K$4>=11,OS36,0)+IF(Ф!$K$4>=12,PM36,0) -> 0 | BR36: =IF(Ф!$K$4>=1,DF36,0)+IF(Ф!$K$4>=2,DZ36,0)+IF(Ф!$K$4>=3,ET36,0)+IF(Ф!$K$4>=4,GH36,0)+IF(Ф!$K$4>=5,HB36,0)+IF(Ф!$K$4>=6,HV36,0)+IF(Ф!$K$4>=7,KD36,0)+IF(Ф!$K$4>=8,KX36,0)+IF(Ф!$K$4>=9,LR36,0)+IF(Ф!$K$4>=10,NZ36,0)+IF(Ф!$K$4>=11,OT36,0)+IF(Ф!$K$4>=12,PN36,0) -> 0 | BS36: =IF(Ф!$K$4>=1,DG36,0)+IF(Ф!$K$4>=2,EA36,0)+IF(Ф!$K$4>=3,EU36,0)+IF(Ф!$K$4>=4,GI36,0)+IF(Ф!$K$4>=5,HC36,0)+IF(Ф!$K$4>=6,HW36,0)+IF(Ф!$K$4>=7,KE36,0)+IF(Ф!$K$4>=8,KY36,0)+IF(Ф!$K$4>=9,LS36,0)+IF(Ф!$K$4>=10,OA36,0)+IF(Ф!$K$4>=11,OU36,0)+IF(Ф!$K$4>=12,PO36,0) -> 0 | BT36: =IF(Ф!$K$4>=1,DH36,0)+IF(Ф!$K$4>=2,EB36,0)+IF(Ф!$K$4>=3,EV36,0)+IF(Ф!$K$4>=4,GJ36,0)+IF(Ф!$K$4>=5,HD36,0)+IF(Ф!$K$4>=6,HX36,0)+IF(Ф!$K$4>=7,KF36,0)+IF(Ф!$K$4>=8,KZ36,0)+IF(Ф!$K$4>=9,LT36,0)+IF(Ф!$K$4>=10,OB36,0)+IF(Ф!$K$4>=11,OV36,0)+IF(Ф!$K$4>=12,PP36,0) -> 0 | BU36: =IF(Ф!$K$4>=1,DI36,0)+IF(Ф!$K$4>=2,EC36,0)+IF(Ф!$K$4>=3,EW36,0)+IF(Ф!$K$4>=4,GK36,0)+IF(Ф!$K$4>=5,HE36,0)+IF(Ф!$K$4>=6,HY36,0)+IF(Ф!$K$4>=7,KG36,0)+IF(Ф!$K$4>=8,LA36,0)+IF(Ф!$K$4>=9,LU36,0)+IF(Ф!$K$4>=10,OC36,0)+IF(Ф!$K$4>=11,OW36,0)+IF(Ф!$K$4>=12,PQ36,0) -> 0 | BV36: =IF(Ф!$K$4>=1,DJ36,0)+IF(Ф!$K$4>=2,ED36,0)+IF(Ф!$K$4>=3,EX36,0)+IF(Ф!$K$4>=4,GL36,0)+IF(Ф!$K$4>=5,HF36,0)+IF(Ф!$K$4>=6,HZ36,0)+IF(Ф!$K$4>=7,KH36,0)+IF(Ф!$K$4>=8,LB36,0)+IF(Ф!$K$4>=9,LV36,0)+IF(Ф!$K$4>=10,OD36,0)+IF(Ф!$K$4>=11,OX36,0)+IF(Ф!$K$4>=12,PR36,0) -> 0 | BW36: =IF(Ф!$K$4>=1,DK36,0)+IF(Ф!$K$4>=2,EE36,0)+IF(Ф!$K$4>=3,EY36,0)+IF(Ф!$K$4>=4,GM36,0)+IF(Ф!$K$4>=5,HG36,0)+IF(Ф!$K$4>=6,IA36,0)+IF(Ф!$K$4>=7,KI36,0)+IF(Ф!$K$4>=8,LC36,0)+IF(Ф!$K$4>=9,LW36,0)+IF(Ф!$K$4>=10,OE36,0)+IF(Ф!$K$4>=11,OY36,0)+IF(Ф!$K$4>=12,PS36,0) -> 0 | BX36: =IF(Ф!$K$4>=1,DL36,0)+IF(Ф!$K$4>=2,EF36,0)+IF(Ф!$K$4>=3,EZ36,0)+IF(Ф!$K$4>=4,GN36,0)+IF(Ф!$K$4>=5,HH36,0)+IF(Ф!$K$4>=6,IB36,0)+IF(Ф!$K$4>=7,KJ36,0)+IF(Ф!$K$4>=8,LD36,0)+IF(Ф!$K$4>=9,LX36,0)+IF(Ф!$K$4>=10,OF36,0)+IF(Ф!$K$4>=11,OZ36,0)+IF(Ф!$K$4>=12,PT36,0) -> 0 | BY36: =IF(Ф!$K$4>=1,DM36,0)+IF(Ф!$K$4>=2,EG36,0)+IF(Ф!$K$4>=3,FA36,0)+IF(Ф!$K$4>=4,GO36,0)+IF(Ф!$K$4>=5,HI36,0)+IF(Ф!$K$4>=6,IC36,0)+IF(Ф!$K$4>=7,KK36,0)+IF(Ф!$K$4>=8,LE36,0)+IF(Ф!$K$4>=9,LY36,0)+IF(Ф!$K$4>=10,OG36,0)+IF(Ф!$K$4>=11,PA36,0)+IF(Ф!$K$4>=12,PU36,0) -> 0 | BZ36: =IF(Ф!$K$4>=1,DN36,0)+IF(Ф!$K$4>=2,EH36,0)+IF(Ф!$K$4>=3,FB36,0)+IF(Ф!$K$4>=4,GP36,0)+IF(Ф!$K$4>=5,HJ36,0)+IF(Ф!$K$4>=6,ID36,0)+IF(Ф!$K$4>=7,KL36,0)+IF(Ф!$K$4>=8,LF36,0)+IF(Ф!$K$4>=9,LZ36,0)+IF(Ф!$K$4>=10,OH36,0)+IF(Ф!$K$4>=11,PB36,0)+IF(Ф!$K$4>=12,PV36,0) -> 0 | CA36: =IF(Ф!$K$4>=1,DO36,0)+IF(Ф!$K$4>=2,EI36,0)+IF(Ф!$K$4>=3,FC36,0)+IF(Ф!$K$4>=4,GQ36,0)+IF(Ф!$K$4>=5,HK36,0)+IF(Ф!$K$4>=6,IE36,0)+IF(Ф!$K$4>=7,KM36,0)+IF(Ф!$K$4>=8,LG36,0)+IF(Ф!$K$4>=9,MA36,0)+IF(Ф!$K$4>=10,OI36,0)+IF(Ф!$K$4>=11,PC36,0)+IF(Ф!$K$4>=12,PW36,0) -> 0 | CB36: =IF(Ф!$K$4>=1,DP36,0)+IF(Ф!$K$4>=2,EJ36,0)+IF(Ф!$K$4>=3,FD36,0)+IF(Ф!$K$4>=4,GR36,0)+IF(Ф!$K$4>=5,HL36,0)+IF(Ф!$K$4>=6,IF36,0)+IF(Ф!$K$4>=7,KN36,0)+IF(Ф!$K$4>=8,LH36,0)+IF(Ф!$K$4>=9,MB36,0)+IF(Ф!$K$4>=10,OJ36,0)+IF(Ф!$K$4>=11,PD36,0)+IF(Ф!$K$4>=12,PX36,0) -> 0 | CC36: =IF(Ф!$K$4>=1,DQ36,0)+IF(Ф!$K$4>=2,EK36,0)+IF(Ф!$K$4>=3,FE36,0)+IF(Ф!$K$4>=4,GS36,0)+IF(Ф!$K$4>=5,HM36,0)+IF(Ф!$K$4>=6,IG36,0)+IF(Ф!$K$4>=7,KO36,0)+IF(Ф!$K$4>=8,LI36,0)+IF(Ф!$K$4>=9,MC36,0)+IF(Ф!$K$4>=10,OK36,0)+IF(Ф!$K$4>=11,PE36,0)+IF(Ф!$K$4>=12,PY36,0) -> 0 | CD36: 1,120 | CE36: 0 | CF36: 0 | CG36: 1,120 | CH36: 0 | CI36: 1,190 | CJ36: 70 | CK36: 0 | CL36: 1,120 | CM36: 0 | CN36: 0 | CO36: 0 | CP36: 0 | CQ36: 0 | CR36: 0 | CS36: 0 | CT36: 0 | CU36: 0 | CV36: 0 | CW36: 0 | CX36: 1,120 | CY36: 0 | CZ36: 0 | DA36: 1,120 | DB36: 0 | DC36: 0 | DD36: 0 | DE36: 0 | DF36: 0 | DG36: 0 | DH36: 0 | DI36: 0 | DJ36: 0 | DK36: 0 | DL36: 0 | DM36: 0 | DN36: 0 | DO36: 0 | DP36: 0 | DQ36: 0 | DR36: 0 | DS36: 0 | DT36: 0 | DU36: 0 | DV36: 0 | DW36: 70 | DX36: 70 | DY36: 0 | DZ36: 0 | EA36: 0 | EB36: 0 | EC36: 0 | ED36: 0 | EE36: 0 | EF36: 0 | EG36: 0 | EH36: 0 | EI36: 0 | EJ36: 0 | EK36: 0 | EL36: 0 | EM36: 0 | EN36: 0 | EO36: 0 | EP36: 0 | EQ36: 1,120 | ER36: 0 | ES36: 0 | ET36: 1,120 | EU36: 0 | EV36: 0 | EW36: 0 | EX36: 0 | EY36: 0 | EZ36: 0 | FA36: 0 | FB36: 0 | FC36: 0 | FD36: 0 | FE36: 0 | FF36: 0 | FG36: 0 | FH36: 0 | FI36: 0 | FJ36: 0 | FK36: 0 | FL36: 0 | FM36: 0 | FN36: 0 | FO36: 0 | FP36: 0 | FQ36: 0 | FR36: 0 | FS36: 0 | FT36: 0 | FU36: 0 | FV36: 0 | FW36: 0 | FX36: 0 | FY36: 0 | FZ36: 0 | GA36: 0 | GB36: 0 | GC36: 0 | GD36: 0 | GE36: 0 | GF36: 0 | GG36: 0 | GH36: 0 | GI36: 0 | GJ36: 0 | GK36: 0 | GL36: 0 | GM36: 0 | GN36: 0 | GO36: 0 | GP36: 0 | GQ36: 0 | GR36: 0 | GS36: 0 | GT36: 0 | GU36: 0 | GV36: 0 | GW36: 0 | GX36: 0 | GY36: 0 | GZ36: 0 | HA36: 0 | HB36: 0 | HC36: 0 | HD36: 0 | HE36: 0 | HF36: 0 | HG36: 0 | HH36: 0 | HI36: 0 | HJ36: 0 | HK36: 0 | HL36: 0 | HM36: 0 | HN36: 0 | HO36: 0 | HP36: 0 | HQ36: 0 | HR36: 0 | HS36: 0 | HT36: 0 | HU36: 0 | HV36: 0 | HW36: 0 | HX36: 0 | HY36: 0 | HZ36: 0 | IA36: 0 | IB36: 0 | IC36: 0 | ID36: 0 | IE36: 0 | IF36: 0 | IG36: 0 | IH36: 1,120 | II36: 0 | IJ36: 0 | IK36: 1,120 | IL36: 0 | IM36: 1,190 | IN36: 70 | IO36: 0 | IP36: 1,120 | IQ36: 0 | IR36: 0 | IS36: 0 | IT36: 0 | IU36: 0 | IV36: 0 | IW36: 0 | IX36: 0 | IY36: 0 | IZ36: 0 | JA36: 0 | JB36: 0 | JC36: 0 | JD36: 0 | JE36: 0 | JF36: 0 | JG36: 0 | JH36: 0 | JI36: 0 | JJ36: 0 | JK36: 0 | JL36: 0 | JM36: 0 | JN36: 0 | JO36: 0 | JP36: 0 | JQ36: 0 | JR36: 0 | JS36: 0 | JT36: 0 | JU36: 0 | JV36: 0 | JW36: 0 | JX36: 0 | JY36: 0 | JZ36: 0 | KA36: 0 | KB36: 0 | KC36: 0 | KD36: 0 | KE36: 0 | KF36: 0 | KG36: 0 | KH36: 0 | KI36: 0 | KJ36: 0 | KK36: 0 | KL36: 0 | KM36: 0 | KN36: 0 | KO36: 0 | KP36: 0 | KQ36: 0 | KR36: 0 | KS36: 0 | KT36: 0 | KU36: 0 | KV36: 0 | KW36: 0 | KX36: 0 | KY36: 0 | KZ36: 0 | LA36: 0 | LB36: 0 | LC36: 0 | LD36: 0 | LE36: 0 | LF36: 0 | LG36: 0 | LH36: 0 | LI36: 0 | LJ36: 0 | LK36: 0 | LL36: 0 | LM36: 0 | LN36: 0 | LO36: 0 | LP36: 0 | LQ36: 0 | LR36: 0 | LS36: 0 | LT36: 0 | LU36: 0 | LV36: 0 | LW36: 0 | LX36: 0 | LY36: 0 | LZ36: 0 | MA36: 0 | MB36: 0 | MC36: 0 | MD36: 1,120 | ME36: 0 | MF36: 0 | MG36: 1,120 | MH36: 0 | MI36: 1,190 | MJ36: 70 | MK36: 0 | ML36: 1,120 | MM36: 0 | MN36: 0 | MO36: 0 | MP36: 0 | MQ36: 0 | MR36: 0 | MS36: 0 | MT36: 0 | MU36: 0 | MV36: 0 | MW36: 0 | MX36: 0 | MY36: 0 | MZ36: 0 | NA36: 0 | NB36: 0 | NC36: 0 | ND36: 0 | NE36: 0 | NF36: 0 | NG36: 0 | NH36: 0 | NI36: 0 | NJ36: 0 | NK36: 0 | NL36: 0 | NM36: 0 | NN36: 0 | NO36: 0 | NP36: 0 | NQ36: 0 | NR36: 0 | NS36: 0 | NT36: 0 | NU36: 0 | NV36: 0 | NW36: 0 | NX36: 0 | NY36: 0 | NZ36: 0 | OA36: 0 | OB36: 0 | OC36: 0 | OD36: 0 | OE36: 0 | OF36: 0 | OG36: 0 | OH36: 0 | OI36: 0 | OJ36: 0 | OK36: 0 | OL36: 0 | OM36: 0 | ON36: 0 | OO36: 0 | OP36: 0 | OQ36: 0 | OR36: 0 | OS36: 0 | OT36: 0 | OU36: 0 | OV36: 0 | OW36: 0 | OX36: 0 | OY36: 0 | OZ36: 0 | PA36: 0 | PB36: 0 | PC36: 0 | PD36: 0 | PE36: 0 | PF36: 0 | PG36: 0 | PH36: 0 | PI36: 0 | PJ36: 0 | PK36: 0 | PL36: 0 | PM36: 0 | PN36: 0 | PO36: 0 | PP36: 0 | PQ36: 0 | PR36: 0 | PS36: 0 | PT36: 0 | PU36: 0 | PV36: 0 | PW36: 0 | PX36: 0 | PY36: 0 | PZ36: 1,120 | QA36: 0 | QB36: 0 | QC36: 1,120 | QD36: 0 | QE36: 1,190 | QF36: 70 | QG36: 0 | QH36: 1,120 | QI36: 0 | QJ36: 0 | QK36: 0 | QL36: 0 | QM36: 0 | QN36: 0 | QO36: 0 | QP36: 0 | QQ36: 0 | QR36: 0 | QS36: 0 | QT36: 70 | QU36: 70 | QV36: 0 | QW36: 0 | QX36: 0 | QY36: 0 | QZ36: 0 | RA36: 0 | RB36: 0 | RC36: 0 | RD36: 1,120 | RE36: 0 | RF36: 0 | RG36: 1,120 | RH36: 0 | RI36: 1,190 | RJ36: 70 | RK36: 0 | RL36: 1,120 | RM36: 0 | RN36: 70 | RO36: 70 | RP36: 0 | RQ36: 0 | RR36: 0 | RT36: =BO36+IF(Ф!$K$4=1,DW36+EQ36,0)+IF(Ф!$K$4=2,EQ36+GE36,0)+IF(Ф!$K$4=3,GE36+GY36,0)+IF(Ф!$K$4=4,GY36+HS36,0)+IF(Ф!$K$4=5,HS36+KA36,0)+IF(Ф!$K$4=6,KA36+KU36,0)+IF(Ф!$K$4=7,KU36+LO36,0)+IF(Ф!$K$4=8,LO36+NW36,0)+IF(Ф!$K$4=9,NW36+OQ36,0)+IF(Ф!$K$4=10,OQ36+PK36,0)+IF(Ф!$K$4=11,PK36,0)-BY36 -> 1,190 | RU36: =RT36*(1+Ф!$K$9) -> 1,404 | RX36: 1,404 | RY36: 1,545 | SA36: 1,404 | SB36: 1,404 | SC36: 1,545
